Workbook

Sheet Hg_Min_Tests
A1: Key | B1: primary_fuel | C1: Hg_Min_lb_per_MWh_Rank | D1: Reason_for_Removal | E1: ORIS code | F1: Plant Name | G1: physical_state | H1: Unit Number | I1: boiler_id | J1: Unit Type | K1: boiler_type | L1: MWe_capacity | M1: max_heat_input | N1: Unit_heat_rate | O1: Fuel_types | P1: fuel | Q1: Fuel_Conc_lb/MMBtu | R1: Mercury - ERT | S1: Mercury MW - ERT | T1: Mercury - ETTS | U1: Mercury MW - ETTS | V1: Mercury - CEMS | W1: Mercury - Part II | X1: Mercury MW - Part II | Y1: Mercury - min | Z1: Mercury MW - min | AA1: control_group_1 | AB1: control_type_1 | AC1: install_date_1 | AD1: control_group_2 | AE1: control_type_2 | AF1: install_date_2 | AG1: control_group_3 | AH1: control_type_3 | AI1: install_date_3 | AJ1: control_group_4 | AK1: control_type_4 | AL1: install_date_4 | AM1: control_group_5 | AN1: control_type_5 | AO1: install_date_5 | AP1: control_group_6 | AQ1: control_type_6 | AR1: install_date_6 | AS1: control_group_7 | AT1: control_type_7 | AU1: install_date_7 | AV1: control_group_8 | AW1: control_type_8 | AX1: install_date_8 | AY1: control_group_9 | AZ1: control_type_9 | BA1: install_date_9 | BB1: control_group_10 | BC1: control_type_10 | BD1: install_date_10 | BE1: control_group_11 | BF1: control_type_11 | BG1: install_date_11 | BH1: control_group_12 | BI1: control_type_12 | BJ1: install_date_12
A2: =E2&"_"&I2 -> 54081_2A | B2: coal | C2: 1 | D2: Control technology and unit size are not representative of 2012 RACT/BACT/LAER technologies or sizes of utility units likely to be constructed in future. | E2: 54081 | F2: Spruance Genco, LLC | G2: VA | H2: GEN2 | I2: 2A | J2: Conventional Boiler | K2: Stoker - underfeed | L2: 28.7 | M2: 375 | N2: 13.06620209 | O2: bituminous | P2: bituminous | Q2: 3.281847274e-06 | T2: 2.633333333e-09 | U2: 3.440766551e-08 | Y2: 2.633333333e-09 | Z2: 3.440766551e-08 | AA2: SO2 control | AB2: Dry FGD - Spray Dryer | AC2: 1992-05-01 | AD2: SO2 control | AE2: Dry FGD - Spray Dryer | AF2: 1992-05-01 | AG2: PM control | AH2: Fabric Filter, pulse | AI2: 1992-05-01 | AJ2: PM control | AK2: Fabric Filter, pulse | AL2: 1992-05-01
A3: 54081_2B | B3: coal | C3: 2 | D3: Control technology and unit size are not representative of 2012 RACT/BACT/LAER technologies or sizes of utility units likely to be constructed in future. | E3: 54081 | F3: Spruance Genco, LLC | G3: VA | H3: GEN2 | I3: 2B | J3: Conventional Boiler | K3: Stoker - underfeed | L3: 28.7 | M3: 375 | N3: 13.06620209 | O3: bituminous | P3: bituminous | Q3: 3.281847274e-06 | T3: 2.633333333e-09 | U3: 3.440766551e-08 | Y3: 2.633333333e-09 | Z3: 3.440766551e-08 | AA3: SO2 control | AB3: Dry FGD - Spray Dryer | AC3: 1992-05-01 | AD3: SO2 control | AE3: Dry FGD - Spray Dryer | AF3: 1992-05-01 | AG3: PM control | AH3: Fabric Filter, pulse | AI3: 1992-05-01 | AJ3: PM control | AK3: Fabric Filter, pulse | AL3: 1992-05-01
A4: 10043_B01 | B4: coal | C4: 3 | D4: Minimum test average reported was result from stack test that did not meet Method 30B QA criteria. Test was invalid. | E4: 10043 | F4: Logan Generating Plant | G4: NJ | H4: Unit1 | I4: B01 | J4: Conventional Boiler | K4: Wall firing - opposed firing | L4: 241.7 | M4: 2116 | N4: 8.75465453 | O4: bituminous | P4: bituminous | Q4: 7.328513405e-06 | T4: 5.333333333e-09 | U4: 4.669149083e-08 | Y4: 5.333333333e-09 | Z4: 4.669149083e-08 | AA4: NOx control | AB4: Selective Catalytic Reduction | AC4: 1994-09-01 | AD4: SO2 control | AE4: Dry FGD - Spray Dryer | AF4: 1994-09-01 | AG4: PM control | AH4: Fabric Filter, reverse air | AI4: 1994-09-01
A5: 527_1 | B5: coal | C5: 4 | E5: 527 | F5: Nucla | G5: CO | H5: 001 | I5: 1 | J5: Fluidized bed firing | K5: Fluidized bed firing | L5: 110 | M5: 1032 | N5: 9.381818182 | O5: bituminous | P5: bituminous | Q5: 3.906528364e-06 | T5: 9.853333333e-09 | U5: 9.244218182e-08 | W5: 5.333333333e-09 | X5: 5.003636364e-08 | Y5: 5.333333333e-09 | Z5: 5.003636364e-08 | AA5: NOx control | AB5: Selective Noncatalytic Reduction | AC5: 2006-07-01 | AD5: PM control | AE5: Fabric Filter, shake and deflate | AF5: 1987-06-01
A6: 54081_3A | B6: coal | C6: 5 | E6: 54081 | F6: Spruance Genco, LLC | G6: VA | H6: GEN3 | I6: 3A | J6: Conventional Boiler | K6: Stoker - underfeed | L6: 28.7 | M6: 375 | N6: 13.06620209 | O6: bituminous | P6: bituminous | Q6: 1.699575776e-06 | T6: 4.69e-09 | U6: 6.12804878e-08 | Y6: 4.69e-09 | Z6: 6.12804878e-08 | AA6: SO2 control | AB6: Dry FGD - Spray Dryer | AC6: 1992-05-01 | AD6: SO2 control | AE6: Dry FGD - Spray Dryer | AF6: 1992-05-01 | AG6: PM control | AH6: Fabric Filter, pulse | AI6: 1992-05-01 | AJ6: PM control | AK6: Fabric Filter, pulse | AL6: 1992-05-01
A7: 54081_3B | B7: coal | C7: 6 | E7: 54081 | F7: Spruance Genco, LLC | G7: VA | H7: GEN3 | I7: 3B | J7: Conventional Boiler | K7: Stoker - underfeed | L7: 28.7 | M7: 375 | N7: 13.06620209 | O7: bituminous | P7: bituminous | Q7: 1.699575776e-06 | T7: 4.69e-09 | U7: 6.12804878e-08 | Y7: 4.69e-09 | Z7: 6.12804878e-08 | AA7: SO2 control | AB7: Dry FGD - Spray Dryer | AC7: 1992-05-01 | AD7: SO2 control | AE7: Dry FGD - Spray Dryer | AF7: 1992-05-01 | AG7: PM control | AH7: Fabric Filter, pulse | AI7: 1992-05-01 | AJ7: PM control | AK7: Fabric Filter, pulse | AL7: 1992-05-01
A8: 2527_6 | B8: coal | C8: 7 | E8: 2527 | F8: AES Greenidge | G8: NY | H8: Unit 4 | I8: 6 | J8: Conventional Boiler | K8: Tangential firing | L8: 112 | M8: 1117 | N8: 9.973214286 | O8: coal - bituminous, petroleum coke | P8: bituminous | W8: 6.460166022e-09 | X8: 6.442862006e-08 | Y8: 6.460166022e-09 | Z8: 6.442862006e-08 | AA8: NOx control | AB8: Selective Catalytic Reduction | AC8: 2007-05-01 | AD8: NOx control | AE8: Selective Noncatalytic Reduction | AF8: 2007-05-01 | AG8: Other control | AH8: Activated carbon injection | AI8: 2007-05-01 | AJ8: SO2 control | AK8: Dry FGD - Circulating Dry Scrubber | AL8: 2007-05-01 | AM8: PM control | AN8: Fabric Filter, pulse | AO8: 2006-11-01
A9: 3130_1 | B9: coal | C9: 8 | E9: 3130 | F9: Seward | G9: PA | H9: SEW-1 | I9: 1 | J9: Fluidized bed firing | K9: Fluidized bed firing | L9: 292.5 | M9: 3100 | N9: 10.5982906 | O9: coal refuse (culm or gob) | P9: coal refuse (culm or gob) | Q9: 0.0001006160622 | T9: 6.35e-09 | U9: 6.72991453e-08 | W9: 3.8e-08 | X9: 4.027350427e-07 | Y9: 6.35e-09 | Z9: 6.72991453e-08 | AA9: NOx control | AB9: Selective Noncatalytic Reduction | AC9: 2004-03-01 | AD9: PM control | AE9: Fabric Filter, pulse | AF9: 2004-03-01
A10: 3130_2 | B10: coal | C10: 9 | E10: 3130 | F10: Seward | G10: PA | H10: SEW-1 | I10: 2 | J10: Fluidized bed firing | K10: Fluidized bed firing | L10: 292.5 | M10: 3100 | N10: 10.5982906 | O10: coal refuse (culm or gob) | P10: coal refuse (culm or gob) | Q10: 0.0001006160622 | T10: 6.35e-09 | U10: 6.72991453e-08 | W10: 3.8e-08 | X10: 4.027350427e-07 | Y10: 6.35e-09 | Z10: 6.72991453e-08 | AA10: NOx control | AB10: Selective Noncatalytic Reduction | AC10: 2004-03-01 | AD10: PM control | AE10: Fabric Filter, pulse | AF10: 2004-03-01
A11: 54035_BLR1 | B11: coal | C11: 10 | E11: 54035 | F11: Roanoke Valley I | G11: NC | H11: Boiler 1 | I11: BLR1 | J11: Conventional Boiler | K11: Wall firing - front firing | L11: 182 | M11: 1700 | N11: 9.340659341 | O11: bituminous | P11: bituminous | Q11: 7.63839747e-06 | T11: 7.263333333e-09 | U11: 6.784432234e-08 | Y11: 7.263333333e-09 | Z11: 6.784432234e-08 | AA11: SO2 control | AB11: Dry FGD - Spray Dryer | AC11: 1994-05-01 | AD11: PM control | AE11: Fabric Filter, reverse air | AF11: 1994-05-01
A12: 50976_AABO1 | B12: coal | C12: 11 | E12: 50976 | F12: INDIANTOWN COGENERATION L.P. | G12: FL | H12: 001 | I12: AABO1 | J12: Conventional Boiler | K12: Wall firing - opposed firing | L12: 361 | M12: 3422 | N12: 9.479224377 | O12: bituminous | P12: bituminous | Q12: 5.186966688e-06 | T12: 8.538448684e-09 | U12: 8.09378709e-08 | W12: 5.49e-07 | X12: 5.204094183e-06 | Y12: 8.538448684e-09 | Z12: 8.09378709e-08 | AA12: NOx control | AB12: Selective Catalytic Reduction | AC12: 1995-12-01 | AD12: SO2 control | AE12: Dry FGD - Spray Dryer | AF12: 1995-12-01 | AG12: PM control | AH12: Fabric Filter, pulse | AI12: 1995-12-01
A13: 2526_13 | B13: coal | C13: 12 | E13: 2526 | F13: AES Westover, LLC | G13: NY | H13: 8 | I13: 13 | J13: Conventional Boiler | K13: Tangential firing | L13: 86 | M13: 875 | N13: 10.1744186 | O13: coal - bituminous | P13: bituminous | W13: 8.145573109e-09 | X13: 8.287647059e-08 | Y13: 8.145573109e-09 | Z13: 8.287647059e-08 | AA13: NOx control | AB13: Selective Catalytic Reduction | AC13: 2009-01-01 | AD13: SO2 control | AE13: Dry FGD - Spray Dryer | AF13: 2009-01-01 | AG13: PM control | AH13: Fabric Filter, pulse | AI13: 2009-01-01
A14: 50888_BLR1 | B14: coal | C14: 13 | E14: 50888 | F14: Northampton Generating Company, L.P. | G14: PA | H14: GEN1 | I14: BLR1 | J14: Fluidized bed firing | K14: Fluidized bed firing | L14: 121 | M14: 1146 | N14: 9.47107438 | O14: coal refuse (culm or gob) | P14: coal refuse (culm or gob) | Q14: 3.335226548e-05 | T14: 1.039666667e-08 | U14: 9.846760331e-08 | W14: 1.287209491e-07 | X14: 1.219125683e-06 | Y14: 1.039666667e-08 | Z14: 9.846760331e-08 | AA14: NOx control | AB14: Selective Noncatalytic Reduction | AC14: 1995-08-01 | AD14: PM control | AE14: Fabric Filter, pulse | AF14: 1995-08-01
A15: 10675_A | B15: coal | C15: 14 | E15: 10675 | F15: AES Thames | G15: CT | H15: A | I15: A | J15: Fluidized bed firing | K15: Fluidized bed firing | L15: 104 | M15: 1002 | N15: 9.634615385 | O15: bituminous | P15: bituminous | W15: 1.05e-08 | X15: 1.011634615e-07 | Y15: 1.05e-08 | Z15: 1.011634615e-07 | AA15: SO2 control | AB15: Dry FGD - Circulating Dry Scrubber | AC15: 1990-03-01 | AD15: PM control | AE15: Fabric Filter, pulse | AF15: 1990-03-01
A16: 10675_B | B16: coal | C16: 15 | E16: 10675 | F16: AES Thames | G16: CT | H16: B | I16: B | J16: Fluidized bed firing | K16: Fluidized bed firing | L16: 104 | M16: 1002 | N16: 9.634615385 | O16: bituminous | P16: bituminous | W16: 1.05e-08 | X16: 1.011634615e-07 | Y16: 1.05e-08 | Z16: 1.011634615e-07 | AA16: SO2 control | AB16: Dry FGD - Circulating Dry Scrubber | AC16: 1990-03-01 | AD16: PM control | AE16: Fabric Filter, pulse | AF16: 1990-03-01
A17: 10673_BLR A | B17: coal | C17: 16 | E17: 10673 | F17: AES Hawaii | G17: HI | H17: 001 | I17: BLR A | J17: Fluidized bed firing | K17: Fluidized bed firing | L17: 101.5 | M17: 1021.4 | N17: 10.06305419 | O17: bituminous | P17: bituminous | Q17: 4.642449358e-06 | T17: 1.171062419e-08 | U17: 1.178446458e-07 | Y17: 1.171062419e-08 | Z17: 1.178446458e-07 | AA17: NOx control | AB17: Selective Noncatalytic Reduction | AD17: PM control | AE17: Fabric Filter, unspecified
A18: 54755_BLR2 | B18: coal | C18: 17 | E18: 54755 | F18: Roanoke Valley II | G18: NC | H18: Boiler 2 | I18: BLR2 | J18: Conventional Boiler | K18: Wall firing - front firing | L18: 50 | M18: 560 | N18: 11.2 | O18: bituminous | P18: bituminous | Q18: 6.556876163e-06 | T18: 1.076e-08 | U18: 1.20512e-07 | Y18: 1.076e-08 | Z18: 1.20512e-07 | AA18: NOx control | AB18: Selective Noncatalytic Reduction | AC18: 1995-06-01 | AD18: SO2 control | AE18: Dry FGD - Spray Dryer | AF18: 1995-06-01 | AG18: PM control | AH18: Fabric Filter, pulse | AI18: 1995-06-01
A19: 10673_BLR B | B19: coal | C19: 18 | E19: 10673 | F19: AES Hawaii | G19: HI | H19: 002 | I19: BLR B | J19: Fluidized bed firing | K19: Fluidized bed firing | L19: 101.5 | M19: 944.2 | N19: 9.302463054 | O19: bituminous | P19: bituminous | Q19: 4.827492523e-06 | T19: 1.299381143e-08 | U19: 1.208744508e-07 | Y19: 1.299381143e-08 | Z19: 1.208744508e-07 | AA19: NOx control | AB19: Selective Noncatalytic Reduction | AD19: PM control | AE19: Fabric Filter, unspecified
A20: 54081_4A | B20: coal | C20: 19 | E20: 54081 | F20: Spruance Genco, LLC | G20: VA | H20: GEN4 | I20: 4A | J20: Conventional Boiler | K20: Stoker - underfeed | L20: 28.7 | M20: 375 | N20: 13.06620209 | O20: bituminous | P20: bituminous | Q20: 2.27283544e-06 | T20: 1.177e-08 | U20: 1.537891986e-07 | W20: 1.607541524e-06 | X20: 2.100446242e-05 | Y20: 1.177e-08 | Z20: 1.537891986e-07 | AA20: SO2 control | AB20: Dry FGD - Spray Dryer | AC20: 1992-05-01 | AD20: SO2 control | AE20: Dry FGD - Spray Dryer | AF20: 1992-05-01 | AG20: PM control | AH20: Fabric Filter, pulse | AI20: 1992-05-01 | AJ20: PM control | AK20: Fabric Filter, pulse | AL20: 1992-05-01
A21: 54081_4B | B21: coal | C21: 20 | E21: 54081 | F21: Spruance Genco, LLC | G21: VA | H21: GEN4 | I21: 4B | J21: Conventional Boiler | K21: Stoker - underfeed | L21: 28.7 | M21: 375 | N21: 13.06620209 | O21: bituminous | P21: bituminous | Q21: 2.27283544e-06 | T21: 1.177e-08 | U21: 1.537891986e-07 | W21: 1.607541524e-06 | X21: 2.100446242e-05 | Y21: 1.177e-08 | Z21: 1.537891986e-07 | AA21: SO2 control | AB21: Dry FGD - Spray Dryer | AC21: 1992-05-01 | AD21: SO2 control | AE21: Dry FGD - Spray Dryer | AF21: 1992-05-01 | AG21: PM control | AH21: Fabric Filter, pulse | AI21: 1992-05-01 | AJ21: PM control | AK21: Fabric Filter, pulse | AL21: 1992-05-01
A22: 10143_AAB01 | B22: coal | C22: 21 | E22: 10143 | F22: Colver Power Project | G22: PA | H22: AAB01 | I22: AAB01 | J22: Fluidized bed firing | K22: Fluidized bed firing | L22: 131 | M22: 1204 | N22: 9.190839695 | O22: coal refuse (culm or gob) | P22: coal refuse (culm or gob) | Q22: 0.0001136514021 | T22: 7.156666667e-08 | U22: 6.577577608e-07 | W22: 1.738162313e-08 | X22: 1.597517118e-07 | Y22: 1.738162313e-08 | Z22: 1.597517118e-07 | AA22: NOx control | AB22: Selective Noncatalytic Reduction | AC22: 1995-05-01 | AD22: PM control | AE22: Fabric Filter, pulse | AF22: 1995-05-01
A23: 54304_1A | B23: coal | C23: 22 | E23: 54304 | F23: Birchwood Power Facility | G23: VA | H23: 1A | I23: 1A | J23: Conventional Boiler | K23: Tangential firing | L23: 222 | M23: 2300 | N23: 10.36036036 | O23: bituminous | P23: bituminous | Q23: 5.383535703e-06 | R23: 1.547613967e-08 | S23: 1.603383839e-07 | Y23: 1.547613967e-08 | Z23: 1.603383839e-07 | AA23: NOx control | AB23: Selective Catalytic Reduction | AC23: 1996-10-01 | AD23: SO2 control | AE23: Dry FGD - Spray Dryer | AF23: 1996-10-01 | AG23: PM control | AH23: Fabric Filter, reverse air | AI23: 1996-10-01
A24: 10603_031 | B24: coal | C24: 23 | E24: 10603 | F24: Ebensburg Power Company | G24: PA | H24: EPC01 | I24: 031 | J24: Fluidized bed firing | K24: Fluidized bed firing | L24: 58 | M24: 830 | N24: 14.31034483 | O24: coal refuse (culm or gob) | P24: coal refuse (culm or gob) | Q24: 65.54186967 | T24: 1.248336938e-08 | U24: 1.786413204e-07 | W24: 3.867725527e-08 | X24: 5.534848599e-07 | Y24: 1.248336938e-08 | Z24: 1.786413204e-07 | AA24: PM control | AB24: Fabric Filter, pulse | AC24: 1990-11-01
A25: 10566_Boil 1 | B25: coal | C25: 24 | E25: 10566 | F25: Chambers Cogeneration LP | G25: NJ | H25: Boil 1 | I25: Boil 1 | J25: Conventional Boiler | K25: Wall firing - front firing | L25: 142.5 | M25: 1387 | N25: 9.733333333 | O25: bituminous | P25: bituminous | Q25: 8.560577946e-06 | T25: 1.930666667e-08 | U25: 1.879182222e-07 | Y25: 1.930666667e-08 | Z25: 1.879182222e-07 | AA25: NOx control | AB25: Selective Catalytic Reduction | AC25: 1994-03-01 | AD25: SO2 control | AE25: Dry FGD - Spray Dryer | AF25: 1994-03-01 | AG25: PM control | AH25: Fabric Filter, reverse air | AI25: 1994-03-01
A26: 2324_1 | B26: coal | C26: 25 | E26: 2324 | F26: Reid Gardner | G26: NV | H26: 1 | I26: 1 | J26: Conventional Boiler | K26: Wall firing - front firing | L26: 111 | M26: 1215 | N26: 10.94594595 | O26: bituminous | P26: bituminous | Q26: 4.761070693e-06 | T26: 2.007333333e-08 | U26: 2.197216216e-07 | Y26: 2.007333333e-08 | Z26: 2.197216216e-07 | AA26: PM control | AB26: Fabric Filter, pulse | AC26: 2008-12-01 | AD26: SO2 control | AE26: Wet FGD - Venturi Type | AF26: 1976-07-01
A27: 10672_CBB | B27: coal | C27: 26 | E27: 10672 | F27: Cedar Bay Generating Company L.P. | G27: FL | H27: CBB1 | I27: CBB | J27: Fluidized bed firing | K27: Fluidized bed firing | L27: 92 | M27: 1063 | N27: 11.55434783 | O27: bituminous | P27: bituminous | Q27: 1.314424233e-05 | T27: 1.903103333e-08 | U27: 2.198911786e-07 | W27: 4.862219498e-08 | X27: 5.617977528e-07 | Y27: 1.903103333e-08 | Z27: 2.198911786e-07 | AA27: SO2 control | AB27: Dry FGD - Circulating Dry Scrubber | AC27: 1994-01-01 | AD27: NOx control | AE27: Selective Noncatalytic Reduction | AF27: 1994-01-01 | AG27: PM control | AH27: Fabric Filter, pulse | AI27: 1994-01-01
A28: 7213_1 | B28: coal | C28: 27 | E28: 7213 | F28: Clover | G28: VA | H28: Unit 1 | I28: 1 | J28: Conventional Boiler | K28: Tangential firing | L28: 431 | M28: 4923 | N28: 11.42227378 | O28: bituminous | P28: bituminous | Q28: 8.095264419e-06 | T28: 2.023329239e-08 | U28: 2.311102052e-07 | Y28: 2.023329239e-08 | Z28: 2.311102052e-07 | AA28: PM control | AB28: Fabric Filter, reverse air | AC28: 2003-05-01 | AD28: SO2 control | AE28: Wet FGD - Spray Type | AF28: 2003-05-01
A29: 4042_1 | B29: coal | C29: 28 | E29: 4042 | F29: Valley | G29: WI | H29: VAPP-B1 | I29: 1 | J29: Conventional Boiler | K29: Wall firing - front firing | L29: 72 | M29: 868 | N29: 12.05555556 | O29: bituminous | P29: bituminous | Q29: 1.506429904e-06 | T29: 1.93e-08 | U29: 2.326722222e-07 | Y29: 1.93e-08 | Z29: 2.326722222e-07 | AA29: PM control | AB29: Fabric Filter, pulse | AC29: 1994-06-01
A30: 10678_BLR1 | B30: coal | C30: 29 | E30: 10678 | F30: AES Warrior Run Cogeneration Facility | G30: MD | H30: BLR1 | I30: BLR1 | J30: Fluidized bed firing | K30: Fluidized bed firing | L30: 202 | M30: 2047 | N30: 10.13366337 | O30: bituminous | P30: bituminous | Q30: 2.12545978e-05 | T30: 2.34e-08 | U30: 2.371277228e-07 | W30: 2.01e-07 | X30: 2.036866337e-06 | Y30: 2.34e-08 | Z30: 2.371277228e-07 | AA30: NOx control | AB30: Selective Noncatalytic Reduction | AC30: 2000-02-01 | AD30: PM control | AE30: Fabric Filter, pulse | AF30: 2000-02-01
A31: 4042_3 | B31: coal | C31: 30 | E31: 4042 | F31: Valley | G31: WI | H31: VAPP-B3 | I31: 3 | J31: Conventional Boiler | K31: Wall firing - front firing | L31: 72 | M31: 868 | N31: 12.05555556 | O31: bituminous | P31: bituminous | Q31: 1.644251391e-06 | T31: 2.093333333e-08 | U31: 2.52362963e-07 | Y31: 2.093333333e-08 | Z31: 2.52362963e-07 | AA31: PM control | AB31: Fabric Filter, pulse | AC31: 1995-06-01
A32: 10672_CBA | B32: coal | C32: 31 | E32: 10672 | F32: Cedar Bay Generating Company L.P. | G32: FL | H32: CBA1 | I32: CBA | J32: Fluidized bed firing | K32: Fluidized bed firing | L32: 92 | M32: 1063 | N32: 11.55434783 | O32: bituminous | P32: bituminous | Q32: 8.211852295e-06 | T32: 2.223825e-08 | U32: 2.569484755e-07 | W32: 2.48143202e-06 | X32: 2.867132867e-05 | Y32: 2.223825e-08 | Z32: 2.569484755e-07 | AA32: SO2 control | AB32: Dry FGD - Circulating Dry Scrubber | AC32: 1994-01-01 | AD32: NOx control | AE32: Selective Noncatalytic Reduction | AF32: 1994-01-01 | AG32: PM control | AH32: Fabric Filter, pulse | AI32: 1994-01-01
A33: 7210_COP1 | B33: coal | C33: 32 | E33: 7210 | F33: Cope | G33: SC | H33: COP001 | I33: COP1 | J33: Conventional Boiler | K33: Tangential firing | L33: 441 | M33: 4059.1 | N33: 9.20430839 | O33: bituminous | P33: bituminous | Q33: 5.859729423e-06 | R33: 7.049657153e-08 | S33: 6.488721848e-07 | W33: 2.896e-08 | X33: 2.66556771e-07 | Y33: 2.896e-08 | Z33: 2.66556771e-07 | AA33: NOx control | AB33: Selective Catalytic Reduction | AC33: 2009-01-01 | AD33: SO2 control | AE33: Dry FGD - Spray Dryer | AF33: 1993-04-01 | AG33: PM control | AH33: Fabric Filter, unspecified | AI33: 1993-04-01
A34: 2378_2 | B34: coal | C34: 33 | E34: 2378 | F34: BL England | G34: NJ | H34: 2 Coal w or w/o TDF | I34: 2 | J34: Conventional Boiler | K34: Cyclone firing | L34: 167.3 | M34: 1600 | N34: 9.563658099 | O34: bituminous | P34: bituminous | W34: 2.964867424e-08 | X34: 2.835497835e-07 | Y34: 2.964867424e-08 | Z34: 2.835497835e-07 | AA34: NOx control | AB34: Selective Noncatalytic Reduction | AC34: 1998-06-01 | AD34: Other control | AE34: Activated carbon injection | AF34: 2007-12-01 | AG34: PM control | AH34: Electrostatic precipitator, cold side, w/o flue gas conditioning | AI34: 1979-01-01 | AJ34: SO2 control | AK34: Wet FGD - Spray Type | AL34: 1994-11-01
A35: 10672_CBC | B35: coal | C35: 34 | E35: 10672 | F35: Cedar Bay Generating Company L.P. | G35: FL | H35: CBC1 | I35: CBC | J35: Fluidized bed firing | K35: Fluidized bed firing | L35: 92 | M35: 1063 | N35: 11.55434783 | O35: bituminous | P35: bituminous | Q35: 7.32768491e-06 | T35: 2.650003333e-08 | U35: 3.061906025e-07 | Y35: 2.650003333e-08 | Z35: 3.061906025e-07 | AA35: SO2 control | AB35: Dry FGD - Circulating Dry Scrubber | AC35: 1994-01-01 | AD35: NOx control | AE35: Selective Noncatalytic Reduction | AF35: 1994-01-01 | AG35: PM control | AH35: Fabric Filter, pulse | AI35: 1994-01-01
A36: 469_3 | B36: coal | C36: 35 | E36: 469 | F36: Cherokee | G36: CO | H36: Unit 3 | I36: 3 | J36: Conventional Boiler | K36: Wall firing - front firing | L36: 165 | M36: 1877 | N36: 11.37575758 | O36: bituminous | P36: bituminous | W36: 2.807288536e-08 | X36: 3.193503383e-07 | Y36: 2.807288536e-08 | Z36: 3.193503383e-07 | AA36: SO2 control | AB36: Dry FGD - Spray Dryer | AC36: 2002-06-01 | AD36: PM control | AE36: Fabric Filter, reverse air | AF36: 1988-02-01
A37: 492_7 | B37: coal | C37: 36 | E37: 492 | F37: Martin Drake | G37: CO | H37: Unit 7 - Coal | I37: 7 | J37: Conventional Boiler | K37: Wall firing - front firing | L37: 141 | M37: 1475 | N37: 10.46099291 | O37: subbituminous, bituminous | P37: subbituminous, bituminous | Q37: 1.961366716e-06 | T37: 3.113333333e-08 | U37: 3.256855792e-07 | W37: 1.83e-07 | X37: 1.914361702e-06 | Y37: 3.113333333e-08 | Z37: 3.256855792e-07 | AA37: PM control | AB37: Fabric Filter, reverse air | AC37: 1993-11-01
A38: 10566_Boil 2 | B38: coal | C38: 37 | E38: 10566 | F38: Chambers Cogeneration LP | G38: NJ | H38: Boil 2 | I38: Boil 2 | J38: Conventional Boiler | K38: Wall firing - front firing | L38: 142.5 | M38: 1387 | N38: 9.733333333 | O38: bituminous | P38: bituminous | Q38: 8.226574647e-06 | T38: 3.379e-08 | U38: 3.288893333e-07 | Y38: 3.379e-08 | Z38: 3.288893333e-07 | AA38: NOx control | AB38: Selective Catalytic Reduction | AC38: 1994-03-01 | AD38: SO2 control | AE38: Dry FGD - Spray Dryer | AF38: 1994-03-01 | AG38: PM control | AH38: Fabric Filter, reverse air | AI38: 1994-03-01
A39: 4042_2 | B39: coal | C39: 38 | E39: 4042 | F39: Valley | G39: WI | H39: VAPP-B2 | I39: 2 | J39: Conventional Boiler | K39: Wall firing - front firing | L39: 72 | M39: 868 | N39: 12.05555556 | O39: bituminous | P39: bituminous | Q39: 1.752175741e-06 | T39: 2.74e-08 | U39: 3.303222222e-07 | Y39: 2.74e-08 | Z39: 3.303222222e-07 | AA39: PM control | AB39: Fabric Filter, pulse | AC39: 1994-06-01
A40: 469_4 | B40: coal | C40: 39 | E40: 469 | F40: Cherokee | G40: CO | H40: Unit 4 | I40: 4 | J40: Conventional Boiler | K40: Tangential firing | L40: 383 | M40: 3520 | N40: 9.190600522 | O40: bituminous | P40: bituminous | W40: 3.597002258e-08 | X40: 3.305861083e-07 | Y40: 3.597002258e-08 | Z40: 3.305861083e-07 | AA40: SO2 control | AB40: Dry FGD - Spray Dryer | AC40: 2002-10-01 | AD40: PM control | AE40: Fabric Filter, reverse air | AF40: 1989-04-01
A41: 2451_Unit 4 | B41: coal | C41: 40 | E41: 2451 | F41: San Juan | G41: NM | H41: Unit 4 | I41: Unit 4 | J41: Conventional Boiler | K41: Wall firing - opposed firing | L41: 544 | M41: 5649 | N41: 10.38419118 | O41: subbituminous | P41: subbituminous | Q41: 5.310458682e-06 | T41: 3.43e-08 | U41: 3.561777574e-07 | W41: 1.36e-07 | X41: 1.41225e-06 | Y41: 3.43e-08 | Z41: 3.561777574e-07 | AA41: Other control | AB41: Activated carbon injection | AC41: 2008-04-01 | AD41: PM control | AE41: Fabric Filter, pulse | AF41: 2007-10-01 | AG41: SO2 control | AH41: Wet FGD - Spray Type | AI41: 1998-04-01
A42: 3287_MCM2 | B42: coal | C42: 41 | E42: 3287 | F42: McMeekin | G42: SC | H42: MCM002 | I42: MCM2 | J42: Conventional Boiler | K42: Tangential firing | L42: 132 | M42: 1101.3 | N42: 8.343181818 | O42: bituminous | P42: bituminous | Q42: 4.698647238e-06 | R42: 4.529812085e-08 | S42: 3.779304582e-07 | W42: 8.9e-07 | X42: 7.425431818e-06 | Y42: 4.529812085e-08 | Z42: 3.779304582e-07 | AA42: PM control | AB42: Fabric Filter, unspecified | AC42: 1992-11-01
A43: 492_5 | B43: coal | C43: 42 | E43: 492 | F43: Martin Drake | G43: CO | H43: Unit 5 - Coal | I43: 5 | J43: Conventional Boiler | K43: Wall firing - front firing | L43: 55 | M43: 570 | N43: 10.36363636 | O43: subbituminous | P43: subbituminous | Q43: 8.641045604e-06 | T43: 3.75e-08 | U43: 3.886363636e-07 | W43: 3.366666667e-07 | X43: 3.489090909e-06 | Y43: 3.75e-08 | Z43: 3.886363636e-07 | AA43: PM control | AB43: Fabric Filter, reverse air | AC43: 1998-05-01
A44: 3280_CAN3 | B44: coal | C44: 43 | E44: 3280 | F44: Canadys Steam | G44: SC | H44: CAN003 | I44: CAN3 | J44: Conventional Boiler | K44: Wall firing - unspecified | L44: 185 | M44: 1824.5 | N44: 9.862162162 | O44: bituminous | P44: bituminous | Q44: 7.239597862e-06 | R44: 4.338711309e-08 | S44: 4.278907451e-07 | W44: 4.224e-08 | X44: 4.165777297e-07 | Y44: 4.224e-08 | Z44: 4.165777297e-07 | AA44: PM control | AB44: Fabric Filter, unspecified | AC44: 1998-07-01
A45: 50974_#1 CFB boiler | B45: coal | C45: 44 | E45: 50974 | F45: Scrubgrass Generating Company L.P. | G45: PA | H45: Gen 1 | I45: #1 CFB boiler | J45: Fluidized bed firing | K45: Fluidized bed firing | L45: 48.5 | M45: 650 | N45: 13.40206186 | O45: coal refuse (culm or gob) | P45: coal refuse (culm or gob) | Q45: 9.278331617e-05 | T45: 3.53e-08 | U45: 4.548969072e-07 | W45: 5.6e-07 | X45: 7.216494845e-06 | Y45: 3.53e-08 | Z45: 4.548969072e-07 | AA45: NOx control | AB45: Selective Noncatalytic Reduction | AC45: 1999-06-01 | AD45: NOx control | AE45: Selective Noncatalytic Reduction | AF45: 1999-06-01 | AG45: PM control | AH45: Fabric Filter, pulse | AI45: 1993-06-01 | AJ45: PM control | AK45: Fabric Filter, pulse | AL45: 1993-06-01 | AM45: SO2 control | AN45: Dry FGD - Circulating Dry Scrubber | AO45: 1993-06-01 | AP45: SO2 control | AQ45: Dry FGD - Circulating Dry Scrubber | AR45: 1993-06-01
A46: 50974_#2 CFB Boiler | B46: coal | C46: 45 | E46: 50974 | F46: Scrubgrass Generating Company L.P. | G46: PA | H46: Gen 1 | I46: #2 CFB Boiler | J46: Fluidized bed firing | K46: Fluidized bed firing | L46: 48.5 | M46: 600 | N46: 12.37113402 | O46: coal refuse (culm or gob) | P46: coal refuse (culm or gob) | Q46: 9.278331617e-05 | T46: 3.53e-08 | U46: 4.548969072e-07 | W46: 5.6e-07 | X46: 7.216494845e-06 | Y46: 3.53e-08 | Z46: 4.548969072e-07 | AA46: NOx control | AB46: Selective Noncatalytic Reduction | AC46: 1999-06-01 | AD46: NOx control | AE46: Selective Noncatalytic Reduction | AF46: 1999-06-01 | AG46: PM control | AH46: Fabric Filter, pulse | AI46: 1993-06-01 | AJ46: PM control | AK46: Fabric Filter, pulse | AL46: 1993-06-01 | AM46: SO2 control | AN46: Dry FGD - Circulating Dry Scrubber | AO46: 1993-06-01 | AP46: SO2 control | AQ46: Dry FGD - Circulating Dry Scrubber | AR46: 1993-06-01
A47: 477_5 | B47: coal | C47: 46 | E47: 477 | F47: Valmont | G47: CO | H47: Unit 5 | I47: 5 | J47: Conventional Boiler | K47: Tangential firing | L47: 196 | M47: 1845 | N47: 9.413265306 | O47: bituminous | P47: bituminous | W47: 4.99939273e-08 | X47: 4.706061014e-07 | Y47: 4.99939273e-08 | Z47: 4.706061014e-07 | AA47: SO2 control | AB47: Dry FGD - Spray Dryer | AC47: 2002-04-01 | AD47: PM control | AE47: Fabric Filter, reverse air | AF47: 1984-04-01
A48: 2451_Unit 3 | B48: coal | C48: 47 | E48: 2451 | F48: San Juan | G48: NM | H48: Unit 3 | I48: Unit 3 | J48: Conventional Boiler | K48: Wall firing - opposed firing | L48: 544 | M48: 5758 | N48: 10.58455882 | O48: subbituminous | P48: subbituminous | Q48: 1.706376601e-05 | T48: 4.683333333e-08 | U48: 4.957101716e-07 | W48: 2.5e-07 | X48: 2.646139706e-06 | Y48: 4.683333333e-08 | Z48: 4.957101716e-07 | AA48: Other control | AB48: Activated carbon injection | AC48: 2008-04-01 | AD48: PM control | AE48: Fabric Filter, pulse | AF48: 2008-03-01 | AG48: SO2 control | AH48: Wet FGD - Spray Type | AI48: 1998-05-01
A49: 10671_1b | B49: coal | C49: 48 | E49: 10671 | F49: AES Shady Point,LLC | G49: OK | H49: Unit 1 | I49: 1b | J49: Fluidized bed firing | K49: Fluidized bed firing | L49: 80 | M49: 1110.435036 | N49: 13.88043795 | O49: bituminous, subbituminous | P49: bituminous, subbituminous | Q49: 2.509323493e-05 | T49: 3.666666667e-08 | U49: 5.089493915e-07 | Y49: 3.666666667e-08 | Z49: 5.089493915e-07 | AA49: PM control | AB49: Fabric Filter, pulse | AC49: 1991-01-01
A50: 10671_1A | B50: coal | C50: 49 | E50: 10671 | F50: AES Shady Point,LLC | G50: OK | H50: Unit 1 | I50: 1A | J50: Fluidized bed firing | K50: Fluidized bed firing | L50: 80 | M50: 1110.435036 | N50: 13.88043795 | O50: bituminous, subbituminous | P50: bituminous, subbituminous | Q50: 2.509323493e-05 | T50: 3.666666667e-08 | U50: 5.089493915e-07 | Y50: 3.666666667e-08 | Z50: 5.089493915e-07 | AA50: PM control | AB50: Fabric Filter, pulse | AC50: 1991-01-01
A51: 10671_2b | B51: coal | C51: 50 | E51: 10671 | F51: AES Shady Point,LLC | G51: OK | H51: Unit 2 | I51: 2b | J51: Fluidized bed firing | K51: Fluidized bed firing | L51: 80 | M51: 1110.435036 | N51: 13.88043795 | O51: bituminous, subbituminous | P51: bituminous, subbituminous | Q51: 2.509323493e-05 | T51: 3.666666667e-08 | U51: 5.089493915e-07 | Y51: 3.666666667e-08 | Z51: 5.089493915e-07 | AA51: PM control | AB51: Fabric Filter, pulse | AC51: 1991-01-01
A52: 10671_2a | B52: coal | C52: 51 | E52: 10671 | F52: AES Shady Point,LLC | G52: OK | H52: Unit 2 | I52: 2a | J52: Fluidized bed firing | K52: Fluidized bed firing | L52: 80 | M52: 1110.435036 | N52: 13.88043795 | O52: bituminous, subbituminous | P52: bituminous, subbituminous | Q52: 2.509323493e-05 | T52: 3.666666667e-08 | U52: 5.089493915e-07 | Y52: 3.666666667e-08 | Z52: 5.089493915e-07 | AA52: PM control | AB52: Fabric Filter, pulse | AC52: 1991-01-01
A53: 1606_1 | B53: coal | C53: 52 | E53: 1606 | F53: Mount Tom | G53: MA | H53: 1 current | I53: 1 | J53: Conventional Boiler | K53: Wall firing - front firing | L53: 155 | M53: 1480 | N53: 9.548387097 | O53: coal - bituminous | P53: bituminous | W53: 5.55e-08 | X53: 5.299354839e-07 | Y53: 5.55e-08 | Z53: 5.299354839e-07 | AA53: NOx control | AB53: Selective Catalytic Reduction | AC53: 2006-06-01 | AD53: PM control | AE53: Electrostatic precipitator, cold side, w/o flue gas conditioning | AF53: 1982-09-01 | AG53: SO2 control | AH53: Dry FGD - Circulating Dry Scrubber | AI53: 2009-12-01 | AJ53: PM control | AK53: Fabric Filter, pulse | AL53: 2009-12-01
A54: 50776_BLR1 | B54: coal | C54: 53 | E54: 50776 | F54: PANTHER CREEK ENERGY FACILITY | G54: PA | H54: BG1 | I54: BLR1 | J54: Fluidized bed firing | K54: Fluidized bed firing | L54: 46.5 | M54: 600 | N54: 12.90322581 | O54: coal refuse (culm or gob) | P54: coal refuse (culm or gob) | Q54: 3.479935119e-05 | T54: 4.133333333e-08 | U54: 5.333333333e-07 | W54: 8.1e-08 | X54: 1.04516129e-06 | Y54: 4.133333333e-08 | Z54: 5.333333333e-07 | AA54: NOx control | AB54: Selective Noncatalytic Reduction | AC54: 1992-10-01 | AD54: PM control | AE54: Fabric Filter, pulse | AF54: 1992-10-01
A55: 50776_BLR2 | B55: coal | C55: 54 | E55: 50776 | F55: PANTHER CREEK ENERGY FACILITY | G55: PA | H55: BG2 | I55: BLR2 | J55: Fluidized bed firing | K55: Fluidized bed firing | L55: 46.5 | M55: 600 | N55: 12.90322581 | O55: coal refuse (culm or gob) | P55: coal refuse (culm or gob) | Q55: 3.479935119e-05 | T55: 4.133333333e-08 | U55: 5.333333333e-07 | W55: 5.983333333e-08 | X55: 7.720430108e-07 | Y55: 4.133333333e-08 | Z55: 5.333333333e-07 | AA55: NOx control | AB55: Selective Noncatalytic Reduction | AC55: 1992-10-01 | AD55: PM control | AE55: Fabric Filter, pulse | AF55: 1992-10-01
A56: 2408_E1 | B56: coal | C56: 55 | E56: 2408 | F56: PSEG Mercer Generating Station | G56: NJ | H56: MERU1E1PT1OS1-Coal | I56: E1 | J56: Conventional Boiler | K56: Wall firing - unspecified | L56: 343 | M56: 3100 | N56: 9.037900875 | O56: bituminous | P56: bituminous | Q56: 3.177933242e-06 | T56: 3.183333333e-07 | U56: 2.877065112e-06 | W56: 5.913e-08 | X56: 5.344110787e-07 | Y56: 5.913e-08 | Z56: 5.344110787e-07 | AA56: PM control | AB56: Electrostatic precipitator, cold side, w/ flue gas conditioning | AC56: 1994-05-01 | AD56: NOx control | AE56: Selective Catalytic Reduction | AF56: 2004-06-01 | AG56: Other control | AH56: Activated carbon injection | AI56: 2007-01-01 | AJ56: PM control | AK56: Fabric Filter, pulse | AL56: 2008-12-01
A57: 7213_2 | B57: coal | C57: 56 | E57: 7213 | F57: Clover | G57: VA | H57: Unit 2 | I57: 2 | J57: Conventional Boiler | K57: Tangential firing | L57: 434 | M57: 5041 | N57: 11.61520737 | O57: bituminous | P57: bituminous | Q57: 5.420833351e-06 | T57: 4.874585801e-08 | U57: 5.661932493e-07 | Y57: 4.874585801e-08 | Z57: 5.661932493e-07 | AA57: NOx control | AB57: Selective Noncatalytic Reduction | AC57: 2003-03-01 | AD57: PM control | AE57: Fabric Filter, reverse air | AF57: 2003-05-01 | AG57: SO2 control | AH57: Wet FGD - Spray Type | AI57: 2003-05-01
A58: 10771_10771-01 | B58: coal | C58: 57 | E58: 10771 | F58: Hopewell | G58: VA | H58: 1 & 2 | I58: 10771-01 | J58: Conventional Boiler | K58: Stoker - spreader | L58: 34 | M58: 433 | N58: 12.73529412 | O58: bituminous | P58: bituminous | Q58: 7.304928989e-06 | T58: 4.593134229e-08 | U58: 5.775190832e-07 | Y58: 4.593134229e-08 | Z58: 5.775190832e-07 | AA58: NOx control | AB58: Selective Noncatalytic Reduction | AC58: 1992-04-01 | AD58: NOx control | AE58: Selective Noncatalytic Reduction | AF58: 1992-04-01 | AG58: PM control | AH58: Multiple cyclone | AI58: 1992-04-01 | AJ58: PM control | AK58: Multiple cyclone | AL58: 1992-04-01 | AM58: SO2 control | AN58: Dry FGD - Spray Dryer | AO58: 1992-04-01 | AP58: SO2 control | AQ58: Dry FGD - Spray Dryer | AR58: 1992-04-01 | AS58: PM control | AT58: Fabric Filter, pulse | AU58: 1992-04-01 | AV58: PM control | AW58: Fabric Filter, pulse | AX58: 1992-04-01
A59: 10771_10771-02 | B59: coal | C59: 58 | E59: 10771 | F59: Hopewell | G59: VA | H59: 1 & 2 | I59: 10771-02 | J59: Conventional Boiler | K59: Stoker - underfeed | L59: 34 | M59: 422 | N59: 12.41176471 | O59: bituminous | P59: bituminous | Q59: 7.304928989e-06 | T59: 4.593134229e-08 | U59: 5.775190832e-07 | Y59: 4.593134229e-08 | Z59: 5.775190832e-07 | AA59: NOx control | AB59: Selective Noncatalytic Reduction | AC59: 1992-04-01 | AD59: NOx control | AE59: Selective Noncatalytic Reduction | AF59: 1992-04-01 | AG59: PM control | AH59: Multiple cyclone | AI59: 1992-04-01 | AJ59: PM control | AK59: Multiple cyclone | AL59: 1992-04-01 | AM59: SO2 control | AN59: Dry FGD - Spray Dryer | AO59: 1992-04-01 | AP59: SO2 control | AQ59: Dry FGD - Spray Dryer | AR59: 1992-04-01 | AS59: PM control | AT59: Fabric Filter, pulse | AU59: 1992-04-01 | AV59: PM control | AW59: Fabric Filter, pulse | AX59: 1992-04-01
A60: 6041_3 | B60: coal | C60: 59 | E60: 6041 | F60: H L Spurlock Station | G60: KY | H60: Unit 03 | I60: 3 | J60: Fluidized bed firing | K60: Fluidized bed firing | L60: 300 | M60: 2500 | N60: 8.333333333 | O60: bituminous | P60: bituminous | Q60: 1.262350535e-05 | T60: 7.2e-08 | U60: 6e-07 | Y60: 7.2e-08 | Z60: 6e-07 | AA60: NOx control | AB60: Selective Noncatalytic Reduction | AC60: 2005-03-01 | AD60: SO2 control | AE60: Dry FGD - Unspecified | AF60: 2005-03-01 | AG60: PM control | AH60: Fabric Filter, pulse | AI60: 2005-03-01
A61: 2451_Unit 2 | B61: coal | C61: 60 | E61: 2451 | F61: San Juan | G61: NM | H61: Unit 2 | I61: Unit 2 | J61: Conventional Boiler | K61: Wall firing - front firing | L61: 370 | M61: 3688 | N61: 9.967567568 | O61: subbituminous | P61: subbituminous | Q61: 8.227547e-06 | T61: 6.103333333e-08 | U61: 6.083538739e-07 | Y61: 6.103333333e-08 | Z61: 6.083538739e-07 | AA61: Other control | AB61: Activated carbon injection | AC61: 2009-06-01 | AD61: PM control | AE61: Fabric Filter, pulse | AF61: 2009-04-01 | AG61: SO2 control | AH61: Wet FGD - Spray Type | AI61: 1998-05-01
A62: 50951_1 | B62: coal | C62: 61 | E62: 50951 | F62: Sunnyside Cogen Associates | G62: UT | H62: Config 1 | I62: 1 | J62: Fluidized bed firing | K62: Fluidized bed firing | L62: 60 | M62: 700 | N62: 11.66666667 | O62: bituminous | P62: bituminous | Q62: 1.388228419e-05 | T62: 5.32e-08 | U62: 6.206666667e-07 | Y62: 5.32e-08 | Z62: 6.206666667e-07 | AA62: NOx control | AB62: Other (specify): Anhydrous ammonia injection | AC62: 1993-01-01 | AD62: SO2 control | AE62: Dry FGD - Sorbent Injection | AF62: 1993-01-01 | AG62: PM control | AH62: Fabric Filter, pulse | AI62: 1993-01-01
A63: 6021_C2 | B63: coal | C63: 62 | E63: 6021 | F63: Craig | G63: CO | H63: C2 | I63: C2 | J63: Conventional Boiler | K63: Wall firing - opposed firing | L63: 456 | M63: 4269 | N63: 9.361842105 | O63: subbituminous | P63: subbituminous | Q63: 1.641425246e-06 | T63: 6.792e-08 | U63: 6.358563158e-07 | W63: 8.356666667e-08 | X63: 7.823379386e-07 | Y63: 6.792e-08 | Z63: 6.358563158e-07 | AA63: PM control | AB63: Fabric Filter, pulse | AC63: 2004-05-01 | AD63: SO2 control | AE63: Wet FGD - Spray Type | AF63: 1979-11-01
A64: 56068_1 | B64: coal | C64: 63 | E64: 56068 | F64: Elm Road Generating Station | G64: WI | H64: ERGS-B1 | I64: 1 | J64: Conventional Boiler | K64: Wall firing - unspecified | L64: 677 | M64: 6515 | N64: 9.623338257 | O64: bituminous | P64: bituminous | Q64: 8.740679286e-06 | T64: 7.533333333e-08 | U64: 7.249581487e-07 | Y64: 7.533333333e-08 | Z64: 7.249581487e-07 | AA64: NOx control | AB64: Selective Catalytic Reduction | AC64: 2009-10-01 | AD64: PM control | AE64: Fabric Filter, pulse | AF64: 2009-10-01 | AG64: SO2 control | AH64: Wet FGD - Spray Type | AI64: 2009-10-01 | AJ64: Other control | AK64: Wet electrostatic precipitator | AL64: 2009-10-01
A65: 3287_MCM1 | B65: coal | C65: 64 | E65: 3287 | F65: McMeekin | G65: SC | H65: MCM001 | I65: MCM1 | J65: Conventional Boiler | K65: Tangential firing | L65: 135 | M65: 1143.5 | N65: 8.47037037 | O65: bituminous | P65: bituminous | Q65: 4.818700298e-06 | R65: 8.846309494e-08 | S65: 7.493151782e-07 | W65: 1.01e-06 | X65: 8.555074074e-06 | Y65: 8.846309494e-08 | Z65: 7.493151782e-07 | AA65: PM control | AB65: Fabric Filter, unspecified | AC65: 1993-04-01
A66: =E66&"_"&I66 -> 54144_BRBR1 | B66: coal | C66: 65 | E66: 54144 | F66: Piney Creek Project | G66: PA | H66: BRBRI | I66: BRBR1 | J66: Fluidized bed firing | K66: Fluidized bed firing | L66: 36 | M66: 450 | N66: 12.5 | O66: bituminous, synfuel | P66: bituminous, synfuel | Q66: 6.923875972e-05 | T66: 1.273333333e-07 | U66: 1.591666667e-06 | W66: 6.097297297e-08 | X66: 7.621621622e-07 | Y66: 6.097297297e-08 | Z66: 7.621621622e-07 | AA66: NOx control | AB66: Selective Noncatalytic Reduction | AC66: 2002-08-01 | AD66: PM control | AE66: Fabric Filter, pulse | AF66: 1992-11-01
A67: 2408_E2 | B67: coal | C67: 66 | E67: 2408 | F67: PSEG Mercer Generating Station | G67: NJ | H67: MERU2E2PT2OS1-Coal | I67: E2 | J67: Conventional Boiler | K67: Wall firing - unspecified | L67: 343 | M67: 3100 | N67: 9.037900875 | O67: bituminous | P67: bituminous | Q67: 6.120040389e-06 | T67: 4.803333333e-07 | U67: 4.341205053e-06 | W67: 8.940666667e-08 | X67: 8.080485909e-07 | Y67: 8.940666667e-08 | Z67: 8.080485909e-07 | AA67: PM control | AB67: Electrostatic precipitator, cold side, w/ flue gas conditioning | AC67: 1991-08-01 | AD67: NOx control | AE67: Selective Catalytic Reduction | AF67: 2004-06-01 | AG67: Other control | AH67: Activated carbon injection | AI67: 2007-01-01 | AJ67: PM control | AK67: Fabric Filter, pulse | AL67: 2008-12-01
A68: 4042_4 | B68: coal | C68: 67 | E68: 4042 | F68: Valley | G68: WI | H68: VAPP-B4 | I68: 4 | J68: Conventional Boiler | K68: Wall firing - front firing | L68: 72 | M68: 868 | N68: 12.05555556 | O68: bituminous | P68: bituminous | Q68: 1.314358509e-06 | T68: 7.34e-08 | U68: 8.848777778e-07 | Y68: 7.34e-08 | Z68: 8.848777778e-07 | AA68: PM control | AB68: Fabric Filter, pulse | AC68: 1995-06-01
A69: 2384_8 | B69: coal | C69: 68 | E69: 2384 | F69: Deepwater | G69: NJ | H69: Coal-firing | I69: 8 | J69: Conventional Boiler | K69: Wall firing - front firing | L69: 87 | M69: 820 | N69: 9.425287356 | P69: bituminous | W69: 9.434241098e-08 | X69: 8.892043333e-07 | Y69: 9.434241098e-08 | Z69: 8.892043333e-07 | AA69: Other control | AB69: Other (specify): Hydrated lime injection to control HCl | AC69: 2008-09-01 | AD69: NOx control | AE69: Selective Noncatalytic Reduction | AF69: 2008-09-01 | AG69: PM control | AH69: Fabric Filter, reverse air | AI69: 1981-01-01
A70: 568_BHB3 | B70: coal | C70: 69 | E70: 568 | F70: Bridgeport Station | G70: CT | H70: BHSEMU3OS2-Coal | I70: BHB3 | J70: Conventional Boiler | K70: Tangential firing | L70: 403 | M70: 4100 | N70: 10.17369727 | O70: subbituminous | P70: subbituminous | Q70: 1.887030874e-06 | T70: 1.216666667e-07 | U70: 1.237799835e-06 | W70: 9.006666667e-08 | X70: 9.163110008e-07 | Y70: 9.006666667e-08 | Z70: 9.163110008e-07 | AA70: PM control | AB70: Electrostatic precipitator, cold side, w/o flue gas conditioning | AC70: 1968-08-01 | AD70: Other control | AE70: Activated carbon injection | AF70: 2008-07-01 | AG70: PM control | AH70: Fabric Filter, pulse | AI70: 2008-01-01
A71: 963_34 | B71: coal | C71: 70 | E71: 963 | F71: Dallman | G71: IL | H71: 34 | I71: 34 | J71: Conventional Boiler | K71: Wall firing - opposed firing | L71: 229.4 | M71: 1924.9 | N71: 8.391020052 | O71: bituminous | P71: bituminous | Q71: 6.037836267e-06 | T71: 5.7269e-07 | U71: 4.805453274e-06 | W71: 1.16e-07 | X71: 9.733583261e-07 | Y71: 1.16e-07 | Z71: 9.733583261e-07 | AA71: NOx control | AB71: Selective Catalytic Reduction | AC71: 2009-05-01 | AD71: PM control | AE71: Fabric Filter, pulse | AF71: 2009-05-01 | AG71: SO2 control | AH71: Wet FGD - Packed Type | AI71: 2009-05-01 | AJ71: Other control | AK71: Wet electrostatic precipitator | AL71: 2009-05-01
A72: 6021_C1 | B72: coal | C72: 71 | E72: 6021 | F72: Craig | G72: CO | H72: C1 | I72: C1 | J72: Conventional Boiler | K72: Wall firing - opposed firing | L72: 456 | M72: 4028 | N72: 8.833333333 | O72: subbituminous | P72: subbituminous | Q72: 1.700055077e-06 | T72: 2.2625e-07 | U72: 1.998541667e-06 | W72: 1.126666667e-07 | X72: 9.952222222e-07 | Y72: 1.126666667e-07 | Z72: 9.952222222e-07 | AA72: PM control | AB72: Fabric Filter, pulse | AC72: 2003-11-01 | AD72: SO2 control | AE72: Wet FGD - Spray Type | AF72: 1980-07-01
A73: 6082_1 | B73: coal | C73: 72 | E73: 6082 | F73: AES Somerset LLC | G73: NY | H73: 001 | I73: 1 | J73: Conventional Boiler | K73: Wall firing - opposed firing | L73: 680.8 | M73: 6280 | N73: 9.224441833 | P73: Bituminous | W73: 1.32e-07 | X73: 1.217626322e-06 | Y73: 1.32e-07 | Z73: 1.217626322e-06 | AA73: NOx control | AB73: Selective Catalytic Reduction | AC73: 1999-01-01 | AD73: Other control | AE73: Dry sorbent injection | AG73: PM control | AH73: Electrostatic precipitator, unspecified | AI73: 1984-01-01 | AJ73: SO2 control | AK73: Wet FGD - Spray Type | AL73: 1984-01-01
A74: 2712_1 | B74: coal | C74: 73 | E74: 2712 | F74: Roxboro Steam Electric Plant | G74: NC | H74: Rox_Cfg_1b | I74: 1 | J74: Conventional Boiler | K74: Wall firing - opposed firing | L74: 385 | M74: 3755 | N74: 9.753246753 | O74: bituminous | P74: bituminous | Q74: 5.567837319e-06 | T74: 1.293789266e-07 | U74: 1.261864596e-06 | Y74: 1.293789266e-07 | Z74: 1.261864596e-06 | AA74: NOx control | AB74: Selective Catalytic Reduction | AC74: 2002-05-01 | AD74: PM control | AE74: Electrostatic precipitator, cold side, w/o flue gas conditioning | AF74: 1974-01-01 | AG74: SO2 control | AH74: Wet FGD - Spray/Tray Type | AI74: 2008-12-01
A75: 2451_Unit 1 | B75: coal | C75: 74 | E75: 2451 | F75: San Juan | G75: NM | H75: Unit 1 | I75: Unit 1 | J75: Conventional Boiler | K75: Wall firing - front firing | L75: 370 | M75: 3707 | N75: 10.01891892 | O75: subbituminous | P75: subbituminous | Q75: 1.488671406e-05 | T75: 1.309e-07 | U75: 1.311476486e-06 | Y75: 1.309e-07 | Z75: 1.311476486e-06 | AA75: Other control | AB75: Activated carbon injection | AC75: 2009-06-01 | AD75: PM control | AE75: Fabric Filter, pulse | AF75: 2008-10-01 | AG75: SO2 control | AH75: Wet FGD - Spray Type | AI75: 1998-05-01
A76: 2712_2 | B76: coal | C76: 75 | E76: 2712 | F76: Roxboro Steam Electric Plant | G76: NC | H76: Rox_Cfg_2c | I76: 2 | J76: Conventional Boiler | K76: Tangential firing | L76: 703 | M76: 6893 | N76: 9.80512091 | O76: bituminous | P76: bituminous | Q76: 6.038042035e-06 | T76: 1.508920133e-07 | U76: 1.479514435e-06 | W76: 6.278333333e-07 | X76: 6.155981745e-06 | Y76: 1.508920133e-07 | Z76: 1.479514435e-06 | AA76: NOx control | AB76: Selective Catalytic Reduction | AC76: 2005-05-01 | AD76: PM control | AE76: Electrostatic precipitator, cold side, w/o flue gas conditioning | AF76: 1974-05-01 | AG76: SO2 control | AH76: Wet FGD - Spray/Tray Type | AI76: 2007-04-20
A77: 52007_BLR2 | B77: coal | C77: 76 | E77: 52007 | F77: Mecklenburg Power Station | G77: VA | H77: Unit 1 & 2 | I77: BLR2 | J77: Conventional Boiler | K77: Wall firing - front firing | L77: 76 | M77: 918 | N77: 12.07894737 | O77: bituminous | P77: bituminous | Q77: 7.165767406e-06 | T77: 1.253333333e-07 | U77: 1.512245614e-06 | Y77: 1.253333333e-07 | Z77: 1.512245614e-06 | AA77: SO2 control | AB77: Dry FGD - Spray Dryer | AC77: 1992-11-01 | AD77: SO2 control | AE77: Dry FGD - Spray Dryer | AF77: 1992-11-01 | AG77: PM control | AH77: Fabric Filter, pulse | AI77: 1992-11-01 | AJ77: PM control | AK77: Fabric Filter, pulse | AL77: 1992-11-01
A78: 52007_BLR2 | B78: coal | C78: 77 | E78: 52007 | F78: Mecklenburg Power Station | G78: VA | H78: Unit 1 & 2 | I78: BLR2 | J78: Conventional Boiler | K78: Wall firing - front firing | L78: 76 | M78: 918 | N78: 12.07894737 | O78: bituminous | P78: bituminous | Q78: 7.165767406e-06 | T78: 1.253333333e-07 | U78: 1.512245614e-06 | Y78: 1.253333333e-07 | Z78: 1.512245614e-06 | AA78: SO2 control | AB78: Dry FGD - Spray Dryer | AC78: 1992-11-01 | AD78: SO2 control | AE78: Dry FGD - Spray Dryer | AF78: 1992-11-01 | AG78: PM control | AH78: Fabric Filter, pulse | AI78: 1992-11-01 | AJ78: PM control | AK78: Fabric Filter, pulse | AL78: 1992-11-01
A79: 52007_BLR1 | B79: coal | C79: 78 | E79: 52007 | F79: Mecklenburg Power Station | G79: VA | H79: Unit 1 & 2 | I79: BLR1 | J79: Conventional Boiler | K79: Wall firing - front firing | L79: 76 | M79: 916 | N79: 12.05263158 | O79: bituminous | P79: bituminous | Q79: 7.165767406e-06 | T79: 1.253333333e-07 | U79: 1.512245614e-06 | Y79: 1.253333333e-07 | Z79: 1.512245614e-06 | AA79: SO2 control | AB79: Dry FGD - Spray Dryer | AC79: 1992-11-01 | AD79: SO2 control | AE79: Dry FGD - Spray Dryer | AF79: 1992-11-01 | AG79: PM control | AH79: Fabric Filter, pulse | AI79: 1992-11-01 | AJ79: PM control | AK79: Fabric Filter, pulse | AL79: 1992-11-01
A80: 52007_BLR1 | B80: coal | C80: 79 | E80: 52007 | F80: Mecklenburg Power Station | G80: VA | H80: Unit 1 & 2 | I80: BLR1 | J80: Conventional Boiler | K80: Wall firing - front firing | L80: 76 | M80: 916 | N80: 12.05263158 | O80: bituminous | P80: bituminous | Q80: 7.165767406e-06 | T80: 1.253333333e-07 | U80: 1.512245614e-06 | Y80: 1.253333333e-07 | Z80: 1.512245614e-06 | AA80: SO2 control | AB80: Dry FGD - Spray Dryer | AC80: 1992-11-01 | AD80: SO2 control | AE80: Dry FGD - Spray Dryer | AF80: 1992-11-01 | AG80: PM control | AH80: Fabric Filter, pulse | AI80: 1992-11-01 | AJ80: PM control | AK80: Fabric Filter, pulse | AL80: 1992-11-01
A81: 6041_4 | B81: coal | C81: 80 | E81: 6041 | F81: H L Spurlock Station | G81: KY | H81: Unit 04 | I81: 4 | J81: Fluidized bed firing | K81: Fluidized bed firing | L81: 300 | M81: 2800 | N81: 9.333333333 | O81: bituminous | P81: bituminous | Q81: 1.631417925e-05 | T81: 1.71e-07 | U81: 1.596e-06 | W81: 5.14e-07 | X81: 4.797333333e-06 | Y81: 1.71e-07 | Z81: 1.596e-06 | AA81: NOx control | AB81: Selective Noncatalytic Reduction | AC81: 2009-04-01 | AD81: SO2 control | AE81: Dry FGD - Unspecified | AF81: 2009-04-01 | AG81: PM control | AH81: Fabric Filter, pulse | AI81: 2009-04-01
A82: 130_1 | B82: coal | C82: 81 | E82: 130 | F82: Cross | G82: SC | H82: C1 | I82: 1 | J82: Conventional Boiler | K82: Wall firing - opposed firing | L82: 610 | M82: 6502 | N82: 10.65901639 | O82: bituminous | P82: bituminous | Q82: 1.555977609e-06 | T82: 1.503333333e-07 | U82: 1.602405464e-06 | Y82: 1.503333333e-07 | Z82: 1.602405464e-06 | AA82: NOx control | AB82: Selective Catalytic Reduction | AC82: 2003-06-01 | AD82: PM control | AE82: Electrostatic precipitator, cold side, w/o flue gas conditioning | AF82: 1995-05-01 | AG82: SO2 control | AH82: Wet FGD - Spray Type | AI82: 1995-05-01
A83: 891_Boiler 9 | B83: coal | C83: 82 | E83: 891 | F83: Havana | G83: IL | H83: Boiler 9 | I83: Boiler 9 | J83: Conventional Boiler | K83: Wall firing - unspecified | L83: 481 | M83: 5030 | N83: 10.45738046 | O83: bituminous | P83: bituminous | Q83: 5.662260128e-06 | T83: 1.596666667e-07 | U83: 1.66969508e-06 | Y83: 1.596666667e-07 | Z83: 1.66969508e-06 | AA83: PM control | AB83: Electrostatic precipitator, hot side, unspecified | AC83: 1978-04-01 | AD83: NOx control | AE83: Selective Catalytic Reduction | AF83: 2003-08-01 | AG83: Other control | AH83: Activated carbon injection | AI83: 2009-07-01 | AJ83: SO2 control | AK83: Dry FGD - Spray Dryer | AM83: PM control | AN83: Fabric Filter, unspecified | AO83: 2009-06-01
A84: 892_Unit 1 | B84: coal | C84: 83 | E84: 892 | F84: Hennepin Power Station | G84: IL | H84: 001 | I84: Unit 1 | J84: Conventional Boiler | K84: Tangential firing | L84: 75 | M84: 776 | N84: 10.34666667 | O84: subbituminous | P84: subbituminous | Q84: 6.63196068e-06 | T84: 1.616666667e-07 | U84: 1.672711111e-06 | Y84: 1.616666667e-07 | Z84: 1.672711111e-06 | AA84: PM control | AB84: Electrostatic precipitator, cold side, unspecified | AC84: 1972-08-01 | AD84: Other control | AE84: Activated carbon injection | AF84: 2009-12-01 | AG84: PM control | AH84: Fabric Filter, unspecified | AI84: 2008-10-01
A85: 892_Unit 2 | B85: coal | C85: 84 | E85: 892 | F85: Hennepin Power Station | G85: IL | H85: 002 | I85: Unit 2 | J85: Conventional Boiler | K85: Tangential firing | L85: 234 | M85: 2500 | N85: 10.68376068 | O85: subbituminous | P85: subbituminous | Q85: 6.63196068e-06 | T85: 1.616666667e-07 | U85: 1.727207977e-06 | Y85: 1.616666667e-07 | Z85: 1.727207977e-06 | AA85: PM control | AB85: Electrostatic precipitator, cold side, unspecified | AC85: 1974-06-01 | AD85: Other control | AE85: Activated carbon injection | AF85: 2009-06-01 | AG85: PM control | AH85: Fabric Filter, unspecified | AI85: 2008-12-01
A86: 602_2 | B86: coal | C86: 85 | E86: 602 | F86: Brandon Shores | G86: MD | H86: 002 | I86: 2 | J86: Conventional Boiler | K86: Wall firing - unspecified | L86: 690 | M86: 6700 | N86: 9.710144928 | O86: bituminous | P86: bituminous | Q86: 7.901053233e-06 | V86: 1.846966667e-07 | Y86: 1.846966667e-07 | Z86: 1.793431401e-06 | AA86: NOx control | AB86: Selective Catalytic Reduction | AD86: PM control | AE86: Electrostatic precipitator, hot side, unspecified | AG86: Other control | AH86: Activated carbon injection | AJ86: Other control | AK86: Other (specify): lime injection | AM86: PM control | AN86: Fabric Filter, unspecified | AP86: SO2 control | AQ86: Wet FGD - Unspecified
A87: 1613_8 | B87: coal | C87: 86 | E87: 1613 | F87: Somerset Station | G87: MA | H87: Unit 8 | I87: 8 | J87: Conventional Boiler | K87: Tangential firing | L87: 113 | M87: 1284 | N87: 11.36283186 | O87: coal - bituminous | P87: bituminous | W87: 1.745e-07 | X87: 1.982814159e-06 | Y87: 1.745e-07 | Z87: 1.982814159e-06 | AA87: NOx control | AB87: Selective Noncatalytic Reduction | AC87: 1995-03-01 | AD87: PM control | AE87: Electrostatic precipitator, cold side, w/o flue gas conditioning | AF87: 1984-03-01
A88: 8219_1 | B88: coal | C88: 87 | E88: 8219 | F88: Ray D Nixon | G88: CO | H88: Unit 1 | I88: 1 | J88: Conventional Boiler | K88: Wall firing - front firing | L88: 225 | M88: 2095 | N88: 9.311111111 | O88: subbituminous | P88: subbituminous | W88: 2.155e-07 | X88: 2.006544444e-06 | Y88: 2.155e-07 | Z88: 2.006544444e-06 | AA88: PM control | AB88: Fabric Filter, reverse air | AC88: 1980-04-01
A89: 3775_1 | B89: coal | C89: 88 | E89: 3775 | F89: Clinch River | G89: VA | H89: CR-1 | I89: 1 | J89: Conventional Boiler | K89: Vertical firing | L89: 230 | M89: 2100.9 | N89: 9.134347826 | O89: bituminous | P89: bituminous | Q89: 2.245105927e-06 | T89: 2.272526168e-07 | U89: 2.075804446e-06 | Y89: 2.272526168e-07 | Z89: 2.075804446e-06 | AA89: NOx control | AB89: Selective Noncatalytic Reduction | AC89: 2009-01-01 | AD89: PM control | AE89: Electrostatic precipitator, cold side, w/ flue gas conditioning | AF89: 1975-02-01
A90: 2706_1 | B90: coal | C90: 89 | E90: 2706 | F90: Asheville Steam Electric Plant | G90: NC | H90: Ash_Cfg_1d | I90: 1 | J90: Conventional Boiler | K90: Wall firing - front firing | L90: 207 | M90: 1914 | N90: 9.246376812 | O90: bituminous | P90: bituminous | Q90: 7.152932631e-06 | T90: 6.703333333e-07 | U90: 6.198154589e-06 | W90: 2.293333333e-07 | X90: 2.120502415e-06 | Y90: 2.293333333e-07 | Z90: 2.120502415e-06 | AA90: NOx control | AB90: Selective Catalytic Reduction | AC90: 2007-06-14 | AD90: PM control | AE90: Electrostatic precipitator, cold side, w/o flue gas conditioning | AF90: 2005-11-17 | AG90: SO2 control | AH90: Wet FGD - Spray/Tray Type | AI90: 2005-11-17
A91: 130_3 | B91: coal | C91: 90 | E91: 130 | F91: Cross | G91: SC | H91: C3 | I91: 3 | J91: Conventional Boiler | K91: Tangential firing | L91: 625 | M91: 6058 | N91: 9.6928 | O91: bituminous | P91: bituminous | Q91: 1.182652371e-06 | T91: 2.29e-07 | U91: 2.2196512e-06 | W91: 4.720881488e-07 | X91: 4.575856009e-06 | Y91: 2.29e-07 | Z91: 2.2196512e-06 | AA91: NOx control | AB91: Selective Catalytic Reduction | AC91: 2006-08-01 | AD91: PM control | AE91: Electrostatic precipitator, cold side, w/o flue gas conditioning | AF91: 2006-08-01 | AG91: SO2 control | AH91: Wet FGD - Spray Type | AI91: 2006-08-01
A92: 876_2 | B92: coal | C92: 91 | E92: 876 | F92: Kincaid Generation LLC | G92: IL | H92: KI1 & 2 | I92: 2 | J92: Conventional Boiler | K92: Cyclone firing | L92: 626 | M92: 6708 | N92: 10.71565495 | O92: coal - subbituminous | P92: subbituminous | W92: 2.233333333e-07 | X92: 2.408707265e-06 | Y92: 2.233333333e-07 | Z92: 2.408707265e-06 | AA92: NOx control | AB92: Selective Catalytic Reduction | AC92: 2003-05-01 | AD92: NOx control | AE92: Selective Catalytic Reduction | AF92: 2002-06-01 | AG92: Other control | AH92: Activated carbon injection | AI92: 2009-07-01 | AJ92: Other control | AK92: Activated carbon injection | AL92: 2009-07-01 | AM92: PM control | AN92: Electrostatic precipitator, cold side, w/o flue gas conditioning | AO92: 1981-06-01 | AP92: PM control | AQ92: Electrostatic precipitator, cold side, w/o flue gas conditioning | AR92: 1982-02-01
A93: 876_1 | B93: coal | C93: 92 | E93: 876 | F93: Kincaid Generation LLC | G93: IL | H93: KI1 & 2 | I93: 1 | J93: Conventional Boiler | K93: Cyclone firing | L93: 622 | M93: 6752 | N93: 10.85530547 | O93: coal - subbituminous | P93: subbituminous | W93: 2.233333333e-07 | X93: 2.408707265e-06 | Y93: 2.233333333e-07 | Z93: 2.408707265e-06 | AA93: NOx control | AB93: Selective Catalytic Reduction | AC93: 2003-05-01 | AD93: NOx control | AE93: Selective Catalytic Reduction | AF93: 2002-06-01 | AG93: Other control | AH93: Activated carbon injection | AI93: 2009-07-01 | AJ93: Other control | AK93: Activated carbon injection | AL93: 2009-07-01 | AM93: PM control | AN93: Electrostatic precipitator, cold side, w/o flue gas conditioning | AO93: 1981-06-01 | AP93: PM control | AQ93: Electrostatic precipitator, cold side, w/o flue gas conditioning | AR93: 1982-02-01
A94: 3298_WIL1 | B94: coal | C94: 93 | E94: 3298 | F94: Williams | G94: SC | H94: WIL001 | I94: WIL1 | J94: Conventional Boiler | K94: Tangential firing | L94: 654 | M94: 5701.2 | N94: 8.717431193 | P94: Bituminous | W94: 2.81e-07 | X94: 2.449598165e-06 | Y94: 2.81e-07 | Z94: 2.449598165e-06 | AA94: NOx control | AB94: Selective Catalytic Reduction | AC94: 2004-05-01 | AD94: PM control | AE94: Electrostatic precipitator, cold side, unspecified | AF94: 1984-01-01 | AG94: SO2 control | AH94: Wet FGD - Unspecified | AI94: 2009-10-01
A95: 3149_1 | B95: coal | C95: 94 | E95: 3149 | F95: PPL Montour | G95: PA | H95: U1 | I95: 1 | J95: Conventional Boiler | K95: Tangential firing | L95: 797 | M95: 7239 | N95: 9.08281054 | O95: bituminous | P95: bituminous | Q95: 4.62280448e-06 | T95: 2.833333333e-07 | U95: 2.573462986e-06 | Y95: 2.833333333e-07 | Z95: 2.573462986e-06 | AA95: PM control | AB95: Electrostatic precipitator, cold side, w/o flue gas conditioning | AC95: 2001-05-01 | AD95: NOx control | AE95: Selective Catalytic Reduction | AF95: 2001-05-01 | AG95: SO2 control | AH95: Wet FGD - Tray Type | AI95: 2008-05-01
A96: 10343_SG-101 | B96: coal | C96: 95 | E96: 10343 | F96: Foster Wheeler Mt Carmel Cogen | G96: PA | H96: SG-101 | I96: SG-101 | J96: Fluidized bed firing | K96: Fluidized bed firing | L96: 43 | M96: 505 | N96: 11.74418605 | O96: coal refuse (culm or gob) | P96: coal refuse (culm or gob) | W96: 2.25e-07 | X96: 2.64244186e-06 | Y96: 2.25e-07 | Z96: 2.64244186e-06 | AA96: PM control | AB96: Fabric Filter, reverse air | AC96: 1990-01-01
A97: 525_1 | B97: coal | C97: 96 | E97: 525 | F97: Hayden | G97: CO | H97: Unit 1 | I97: 1 | J97: Conventional Boiler | K97: Wall firing - front firing | L97: 202 | M97: 1963 | N97: 9.717821782 | O97: bituminous | P97: bituminous | Q97: 1.591023662e-06 | T97: 3.335286667e-07 | U97: 3.241172142e-06 | W97: 2.800206372e-07 | X97: 2.721190647e-06 | Y97: 2.800206372e-07 | Z97: 2.721190647e-06 | AA97: SO2 control | AB97: Dry FGD - Spray Dryer | AC97: 1998-12-01 | AD97: PM control | AE97: Fabric Filter, reverse air | AF97: 1998-12-01
A98: 6137_1 | B98: coal | C98: 97 | E98: 6137 | F98: A. B. Brown Generating Station | G98: IN | H98: 1Config | I98: 1 | J98: Conventional Boiler | K98: Wall firing - opposed firing | L98: 265 | M98: 2518 | N98: 9.501886792 | O98: subbituminous | P98: subbituminous | Q98: 9.280814007e-06 | T98: 3.05079754e-07 | U98: 2.898833286e-06 | Y98: 3.05079754e-07 | Z98: 2.898833286e-06 | AA98: NOx control | AB98: Selective Catalytic Reduction | AC98: 2005-04-01 | AD98: PM control | AE98: Fabric Filter, pulse | AF98: 2004-11-01 | AG98: SO2 control | AH98: Wet FGD - Spray Type | AI98: 1979-04-01
A99: 2535_1 | B99: coal | C99: 98 | E99: 2535 | F99: AES Cayuga, LLC | G99: NY | H99: Unit_1 | I99: 1 | J99: Conventional Boiler | K99: Tangential firing | L99: 164 | M99: 1462 | N99: 8.914634146 | O99: bituminous | P99: bituminous | W99: 3.37e-07 | X99: 3.004231707e-06 | Y99: 3.37e-07 | Z99: 3.004231707e-06 | AA99: NOx control | AB99: Selective Catalytic Reduction | AD99: PM control | AE99: Electrostatic precipitator, cold side, w/o flue gas conditioning | AG99: SO2 control | AH99: Wet FGD - Spray Type | AI99: 1995-06-01
A100: 130_4 | B100: coal | C100: 99 | E100: 130 | F100: Cross | G100: SC | H100: C4 | I100: 4 | J100: Conventional Boiler | K100: Tangential firing | L100: 625 | M100: 6798 | N100: 10.8768 | O100: bituminous | P100: bituminous | Q100: 1.153587167e-06 | T100: 2.766666667e-07 | U100: 3.009248e-06 | W100: 3.826666667e-07 | X100: 4.1621888e-06 | Y100: 2.766666667e-07 | Z100: 3.009248e-06 | AA100: NOx control | AB100: Selective Catalytic Reduction | AC100: 2008-05-01 | AD100: PM control | AE100: Electrostatic precipitator, cold side, w/o flue gas conditioning | AF100: 2008-05-01 | AG100: SO2 control | AH100: Wet FGD - Spray Type | AI100: 2008-05-01
A101: 10641_B1 | B101: coal | C101: 100 | E101: 10641 | F101: Cambria Cogen | G101: PA | H101: 001 | I101: B1 | J101: Fluidized bed firing | K101: Fluidized bed firing | L101: 49 | M101: 560 | N101: 11.42857143 | O101: coal refuse (culm or gob), other--natural gas | P101: coal refuse (culm or gob), other--natural gas | Q101: 8.271982681e-05 | T101: 2.633333333e-07 | U101: 3.00952381e-06 | Y101: 2.633333333e-07 | Z101: 3.00952381e-06 | AA101: NOx control | AB101: Selective Noncatalytic Reduction | AD101: PM control | AE101: Fabric Filter, unspecified
A102: 10641_B2 | B102: coal | C102: 101 | E102: 10641 | F102: Cambria Cogen | G102: PA | H102: 002 | I102: B2 | J102: Fluidized bed firing | K102: Fluidized bed firing | L102: 49 | M102: 560 | N102: 11.42857143 | O102: coal refuse (culm or gob), other--natural gas | P102: coal refuse (culm or gob), other--natural gas | Q102: 6.175031489e-05 | T102: 2.85e-07 | U102: 3.257142857e-06 | Y102: 2.85e-07 | Z102: 3.257142857e-06 | AA102: NOx control | AB102: Selective Noncatalytic Reduction | AD102: PM control | AE102: Fabric Filter, unspecified
A103: 525_2 | B103: coal | C103: 102 | E103: 525 | F103: Hayden | G103: CO | H103: Unit 2 | I103: 2 | J103: Conventional Boiler | K103: Tangential firing | L103: 285 | M103: 2712 | N103: 9.515789474 | O103: bituminous | P103: bituminous | Q103: 1.793092578e-06 | T103: 5.516666667e-07 | U103: 5.24954386e-06 | V103: 3.45e-07 | W103: 7.4e-07 | X103: 7.041684211e-06 | Y103: 3.45e-07 | Z103: 3.282947368e-06 | AA103: SO2 control | AB103: Dry FGD - Spray Dryer | AC103: 1999-06-01 | AD103: PM control | AE103: Fabric Filter, reverse air | AF103: 1999-06-01
A104: 2277_2 | B104: coal | C104: 103 | E104: 2277 | F104: Sheldon Station | G104: NE | H104: U2 | I104: 2 | J104: Conventional Boiler | K104: Cyclone firing | L104: 141 | M104: 1514 | N104: 10.73758865 | O104: subbituminous | P104: subbituminous | Q104: 5.296763706e-06 | R104: 3.307537124e-07 | S104: 3.551497309e-06 | Y104: 3.307537124e-07 | Z104: 3.551497309e-06 | AA104: PM control | AB104: Fabric Filter, pulse | AC104: 2000-02-01
A105: 10774_1 | B105: coal | C105: 104 | E105: 10774 | F105: Southampton Power Station | G105: VA | H105: Unit 1 & 2 | I105: 1 | J105: Conventional Boiler | K105: Stoker - spreader | L105: 34 | M105: 442 | N105: 13 | O105: bituminous | P105: bituminous | Q105: 9.764077707e-06 | T105: 2.796018847e-07 | U105: 3.655383463e-06 | Y105: 2.796018847e-07 | Z105: 3.655383463e-06 | AA105: PM control | AB105: Multiple cyclone | AC105: 1992-03-01 | AD105: PM control | AE105: Multiple cyclone | AF105: 1992-03-01 | AG105: SO2 control | AH105: Dry FGD - Spray Dryer | AI105: 1992-03-01 | AJ105: SO2 control | AK105: Dry FGD - Spray Dryer | AL105: 1992-03-01 | AM105: PM control | AN105: Fabric Filter, pulse | AO105: 1992-03-01 | AP105: PM control | AQ105: Fabric Filter, pulse | AR105: 1992-03-01
A106: 10774_2 | B106: coal | C106: 105 | E106: 10774 | F106: Southampton Power Station | G106: VA | H106: Unit 1 & 2 | I106: 2 | J106: Conventional Boiler | K106: Stoker - spreader | L106: 34 | M106: 447 | N106: 13.14705882 | O106: bituminous | P106: bituminous | Q106: 9.764077707e-06 | T106: 2.796018847e-07 | U106: 3.655383463e-06 | Y106: 2.796018847e-07 | Z106: 3.655383463e-06 | AA106: PM control | AB106: Multiple cyclone | AC106: 1992-03-01 | AD106: PM control | AE106: Multiple cyclone | AF106: 1992-03-01 | AG106: SO2 control | AH106: Dry FGD - Spray Dryer | AI106: 1992-03-01 | AJ106: SO2 control | AK106: Dry FGD - Spray Dryer | AL106: 1992-03-01 | AM106: PM control | AN106: Fabric Filter, pulse | AO106: 1992-03-01 | AP106: PM control | AQ106: Fabric Filter, pulse | AR106: 1992-03-01
A107: 883_8 | B107: coal | C107: 106 | E107: 883 | F107: Waukegan | G107: IL | H107: WK8CONFIG | I107: 8 | J107: Conventional Boiler | K107: Tangential firing | L107: 383 | M107: 3960.892 | N107: 10.34175457 | O107: subbituminous | P107: subbituminous | Q107: 7.242075606e-06 | T107: 3.69e-07 | U107: 3.816107436e-06 | W107: 8.686469277e-07 | X107: 8.983333333e-06 | Y107: 3.69e-07 | Z107: 3.816107436e-06 | AA107: Other control | AB107: Activated carbon injection | AC107: 2008-07-01 | AD107: PM control | AE107: Electrostatic precipitator, cold side, w/o flue gas conditioning | AF107: 1962-07-01
A108: 897_Unit 2 | B108: coal | C108: 107 | E108: 897 | F108: Vermilion | G108: IL | H108: 002 | I108: Unit 2 | J108: Conventional Boiler | K108: Tangential firing | L108: 110 | M108: 1076 | N108: 9.781818182 | O108: subbituminous | P108: subbituminous | Q108: 6.819864313e-06 | T108: 3.97e-07 | U108: 3.883381818e-06 | Y108: 3.97e-07 | Z108: 3.883381818e-06 | AA108: PM control | AB108: Electrostatic precipitator, unspecified | AC108: 1974-01-01 | AD108: Other control | AE108: Activated carbon injection | AF108: 2007-05-01 | AG108: PM control | AH108: Fabric Filter, unspecified | AI108: 2007-05-01
A109: 963_31 | B109: coal | C109: 108 | E109: 963 | F109: Dallman | G109: IL | H109: 31 | I109: 31 | J109: Conventional Boiler | K109: Cyclone firing | L109: 90 | M109: 962.12 | N109: 10.69022222 | O109: bituminous | P109: bituminous | W109: 3.741736997e-07 | X109: 4e-06 | Y109: 3.741736997e-07 | Z109: 4e-06 | AA109: NOx control | AB109: Selective Catalytic Reduction | AC109: 2003-05-01 | AD109: PM control | AE109: Electrostatic precipitator, cold side, w/o flue gas conditioning | AF109: 1968-06-01 | AG109: SO2 control | AH109: Wet FGD - Packed Type | AI109: 2001-08-01
A110: 963_32 | B110: coal | C110: 109 | E110: 963 | F110: Dallman | G110: IL | H110: 32 | I110: 32 | J110: Conventional Boiler | K110: Cyclone firing | L110: 84 | M110: 905.94 | N110: 10.785 | O110: bituminous | P110: bituminous | W110: 3.708854891e-07 | X110: 4e-06 | Y110: 3.708854891e-07 | Z110: 4e-06 | AA110: NOx control | AB110: Selective Catalytic Reduction | AC110: 2003-05-01 | AD110: PM control | AE110: Electrostatic precipitator, cold side, w/o flue gas conditioning | AF110: 1972-06-01 | AG110: SO2 control | AH110: Wet FGD - Packed Type | AI110: 2001-08-01
A111: 3149_2 | B111: coal | C111: 110 | E111: 3149 | F111: PPL Montour | G111: PA | H111: U2 | I111: 2 | J111: Conventional Boiler | K111: Tangential firing | L111: 792 | M111: 7239 | N111: 9.140151515 | O111: bituminous | P111: bituminous | Q111: 6.138318503e-06 | T111: 4.436666667e-07 | U111: 4.055180556e-06 | Y111: 4.436666667e-07 | Z111: 4.055180556e-06 | AA111: PM control | AB111: Electrostatic precipitator, cold side, w/o flue gas conditioning | AC111: 2000-05-01 | AD111: NOx control | AE111: Selective Catalytic Reduction | AF111: 2000-05-01 | AG111: SO2 control | AH111: Wet FGD - Tray Type | AI111: 2008-03-01
A112: 708_2 | B112: coal | C112: 111 | E112: 708 | F112: Hammond | G112: GA | H112: Unit 2 | I112: 2 | J112: Conventional Boiler | K112: Wall firing - front firing | L112: 115 | M112: 1138.032 | N112: 9.895930435 | O112: bituminous | P112: bituminous | Q112: 6.745922315e-06 | T112: 6.049633333e-07 | U112: 5.986675062e-06 | V112: 4.252666667e-07 | W112: 1.071344243e-06 | X112: 1.06019481e-05 | Y112: 4.252666667e-07 | Z112: 4.20840935e-06 | AA112: PM control | AB112: Electrostatic precipitator, cold side, w/ flue gas conditioning | AC112: 1969-04-01 | AD112: SO2 control | AE112: Wet FGD - Spray Type | AF112: 2008-05-01
A113: 708_3 | B113: coal | C113: 112 | E113: 708 | F113: Hammond | G113: GA | H113: Unit 3 | I113: 3 | J113: Conventional Boiler | K113: Wall firing - front firing | L113: 115 | M113: 1141.392 | N113: 9.925147826 | O113: bituminous | P113: bituminous | Q113: 6.745922315e-06 | T113: 6.049633333e-07 | U113: 6.004350513e-06 | V113: 4.252666667e-07 | W113: 1.071344243e-06 | X113: 1.063324998e-05 | Y113: 4.252666667e-07 | Z113: 4.220834532e-06 | AA113: PM control | AB113: Electrostatic precipitator, cold side, w/ flue gas conditioning | AC113: 1968-12-01 | AD113: SO2 control | AE113: Wet FGD - Spray Type | AF113: 2008-05-01
A114: 3946_2 | B114: coal | C114: 113 | E114: 3946 | F114: Willow Island | G114: WV | H114: Unit 2 | I114: 2 | J114: Conventional Boiler | K114: Cyclone firing | L114: 190 | M114: 1458 | N114: 7.673684211 | P114: Bituminous | W114: 5.53e-07 | X114: 4.243547368e-06 | Y114: 5.53e-07 | Z114: 4.243547368e-06 | AA114: PM control | AB114: Electrostatic precipitator, hot side, w/o flue gas conditioning | AC114: 1976-06-01
A115: 708_1 | B115: coal | C115: 114 | E115: 708 | F115: Hammond | G115: GA | H115: Unit 1 | I115: 1 | J115: Conventional Boiler | K115: Wall firing - front firing | L115: 115 | M115: 1158.752 | N115: 10.07610435 | O115: bituminous | P115: bituminous | Q115: 6.745922315e-06 | T115: 6.049633333e-07 | U115: 6.095673673e-06 | V115: 4.252666667e-07 | W115: 1.071344243e-06 | X115: 1.079497638e-05 | Y115: 4.252666667e-07 | Z115: 4.285031309e-06 | AA115: PM control | AB115: Electrostatic precipitator, cold side, w/ flue gas conditioning | AC115: 1971-02-01 | AD115: SO2 control | AE115: Wet FGD - Spray Type | AF115: 2008-05-01
A116: 708_4 | B116: coal | C116: 115 | E116: 708 | F116: Hammond | G116: GA | H116: Unit 4 | I116: 4 | J116: Conventional Boiler | K116: Wall firing - front firing | L116: 520 | M116: 5458.53 | N116: 10.49717308 | O116: bituminous | P116: bituminous | Q116: 6.745922315e-06 | T116: 6.049633333e-07 | U116: 6.350404815e-06 | V116: 4.252666667e-07 | W116: 1.071344243e-06 | X116: 1.124608594e-05 | Y116: 4.252666667e-07 | Z116: 4.464097804e-06 | AA116: NOx control | AB116: Selective Catalytic Reduction | AC116: 2002-05-01 | AD116: PM control | AE116: Electrostatic precipitator, cold side, w/ flue gas conditioning | AF116: 1970-12-01 | AG116: SO2 control | AH116: Wet FGD - Spray Type | AI116: 2008-05-01
A117: 564_2 | B117: coal | C117: 116 | E117: 564 | F117: Stanton Energy Center | G117: FL | H117: 2 coal | I117: 2 | J117: Conventional Boiler | K117: Wall firing - opposed firing | L117: 468 | M117: 4286 | N117: 9.158119658 | O117: coal - bituminous | P117: bituminous | T117: 6.15e-07 | U117: 5.63224359e-06 | W117: 4.912786696e-07 | X117: 4.499188841e-06 | Y117: 4.912786696e-07 | Z117: 4.499188841e-06 | AA117: NOx control | AB117: Selective Catalytic Reduction | AC117: 1996-06-01 | AD117: PM control | AE117: Electrostatic precipitator, cold side, w/o flue gas conditioning | AF117: 1996-06-01 | AG117: SO2 control | AH117: Wet FGD - Spray Type | AI117: 1996-06-01
A118: 897_Unit 1 | B118: coal | C118: 117 | E118: 897 | F118: Vermilion | G118: IL | H118: 001 | I118: Unit 1 | J118: Conventional Boiler | K118: Tangential firing | L118: 72 | M118: 831 | N118: 11.54166667 | O118: subbituminous | P118: subbituminous | Q118: 6.819864313e-06 | T118: 3.97e-07 | U118: 4.582041667e-06 | Y118: 3.97e-07 | Z118: 4.582041667e-06 | AA118: PM control | AB118: Electrostatic precipitator, unspecified | AC118: 1973-06-01 | AD118: Other control | AE118: Activated carbon injection | AF118: 2007-05-01 | AG118: PM control | AH118: Fabric Filter, unspecified | AI118: 2007-05-01
A119: 470_2 | B119: coal | C119: 118 | E119: 470 | F119: Comanche | G119: CO | H119: Unit 2 | I119: 2 | J119: Conventional Boiler | K119: Wall firing - front firing | L119: 365 | M119: 3482 | N119: 9.539726027 | O119: subbituminous | P119: subbituminous | Q119: 7.186991783e-06 | T119: 4.88e-07 | U119: 4.655386301e-06 | V119: 5.68e-06 | W119: 7.562578964e-07 | X119: 7.214493138e-06 | Y119: 4.88e-07 | Z119: 4.655386301e-06 | AA119: Other control | AB119: Activated carbon injection | AD119: SO2 control | AE119: Dry FGD - Spray Dryer | AF119: 2008-07-01 | AG119: PM control | AH119: Fabric Filter, reverse air | AI119: 1991-12-01
A120: 1073_3 | B120: coal | C120: 119 | E120: 1073 | F120: Prairie Creek | G120: IA | H120: Unit 3 | I120: 3 | J120: Conventional Boiler | K120: Wall firing - front firing | L120: 49.5 | M120: 562.3 | N120: 11.35959596 | O120: coal - subbituminous | P120: natural gas, subbituminous | W120: 4.15e-07 | X120: 4.714232323e-06 | Y120: 4.15e-07 | Z120: 4.714232323e-06 | AA120: PM control | AB120: Electrostatic precipitator, cold side, w/ flue gas conditioning | AC120: 1971-06-01
A121: 1626_1 | B121: coal | C121: 120 | E121: 1626 | F121: Salem Harbor | G121: MA | H121: Unit 1 | I121: 1 | J121: Conventional Boiler | K121: Wall firing - front firing | L121: 81.419 | M121: 981 | N121: 12.04878468 | O121: bituminous | P121: bituminous | Q121: 3.863636364e-06 | T121: 3.981999244e-07 | U121: 4.797825149e-06 | Y121: 3.981999244e-07 | Z121: 4.797825149e-06 | AA121: NOx control | AB121: Selective Noncatalytic Reduction | AC121: 1993-08-01 | AD121: PM control | AE121: Electrostatic precipitator, cold side, w/o flue gas conditioning | AF121: 1984-07-01
A122: 492_6 | B122: coal | C122: 121 | E122: 492 | F122: Martin Drake | G122: CO | H122: Unit 6 - Coal | I122: 6 | J122: Conventional Boiler | K122: Wall firing - front firing | L122: 85 | M122: 930 | N122: 10.94117647 | P122: bituminous | W122: 4.533333333e-07 | X122: 4.96e-06 | Y122: 4.533333333e-07 | Z122: 4.96e-06 | AA122: PM control | AB122: Fabric Filter, reverse air | AC122: 1978-09-01
A123: 47_4 | B123: coal | C123: 122 | E123: 47 | F123: Colbert | G123: AL | H123: 4 | I123: 4 | J123: Conventional Boiler | K123: Wall firing - front firing | L123: 200 | M123: 2121 | N123: 10.605 | O123: subbituminous, bituminous | P123: subbituminous, bituminous | Q123: 1.772701031e-06 | T123: 4.843333333e-07 | U123: 5.136355e-06 | Y123: 4.843333333e-07 | Z123: 5.136355e-06 | AA123: PM control | AB123: Electrostatic precipitator, cold side, w/o flue gas conditioning | AC123: 1991-01-01
A124: 3152_4 | B124: coal | C124: 123 | E124: 3152 | F124: Sunbury Generation LP | G124: PA | H124: Boiler 4 | I124: 4 | J124: Conventional Boiler | K124: Wall firing - front firing | L124: 128 | M124: 1360 | N124: 10.625 | O124: bituminous | P124: bituminous | Q124: 1.278346847e-05 | T124: 2.896666667e-06 | U124: 3.077708333e-05 | W124: 4.851097532e-07 | X124: 5.154291128e-06 | Y124: 4.851097532e-07 | Z124: 5.154291128e-06 | AA124: Other control | AB124: Other (specify): SO3 injection | AC124: 1980-06-01 | AD124: PM control | AE124: Electrostatic precipitator, cold side, w/ flue gas conditioning | AF124: 1970-06-01
A125: 2324_4 | B125: coal | C125: 124 | E125: 2324 | F125: Reid Gardner | G125: NV | H125: 4 | I125: 4 | J125: Conventional Boiler | K125: Wall firing - front firing | L125: 281 | M125: 2956 | N125: 10.51957295 | P125: bituminous | W125: 4.9e-07 | X125: 5.154590747e-06 | Y125: 4.9e-07 | Z125: 5.154590747e-06 | AA125: PM control | AB125: Fabric Filter, pulse | AC125: 1983-07-01 | AD125: SO2 control | AE125: Wet FGD - Venturi Type | AF125: 1983-07-01
A126: 8224_2 | B126: coal | C126: 125 | E126: 8224 | F126: North Valmy | G126: NV | H126: 2 | I126: 2 | J126: Conventional Boiler | K126: Wall firing - front firing | L126: 270.2 | M126: 2881 | N126: 10.66247224 | P126: subbituminous, bituminous | W126: 5e-07 | X126: 5.331236121e-06 | Y126: 5e-07 | Z126: 5.331236121e-06 | AA126: SO2 control | AB126: Dry FGD - Spray Dryer | AC126: 1985-05-01 | AD126: PM control | AE126: Fabric Filter, reverse air | AF126: 1985-05-01
A127: 6041_1 | B127: coal | C127: 126 | E127: 6041 | F127: H L Spurlock Station | G127: KY | H127: Unit 01 | I127: 1 | J127: Conventional Boiler | K127: Wall firing - opposed firing | L127: 344 | M127: 3641 | N127: 10.58430233 | O127: bituminous | P127: bituminous | Q127: 8.438532818e-06 | T127: 5.22e-07 | U127: 5.525005814e-06 | Y127: 5.22e-07 | Z127: 5.525005814e-06 | AA127: PM control | AB127: Electrostatic precipitator, cold side, w/o flue gas conditioning | AC127: 2003-05-01 | AD127: NOx control | AE127: Selective Catalytic Reduction | AF127: 2003-05-01 | AG127: SO2 control | AH127: Wet FGD - Unspecified | AI127: 2009-04-01 | AJ127: Other control | AK127: Wet electrostatic precipitator | AL127: 2009-04-01
A128: 4140_B4 | B128: coal | C128: 127 | E128: 4140 | F128: Alma | G128: WI | H128: B4 | I128: B4 | J128: Conventional Boiler | K128: Wall firing - unspecified | L128: 53.63 | M128: 557.2 | N128: 10.38970725 | P128: Bituminous, Subbituminous | W128: 5.553333333e-07 | X128: 5.769750761e-06 | Y128: 5.553333333e-07 | Z128: 5.769750761e-06 | AA128: NOx control | AB128: Selective Noncatalytic Reduction | AD128: PM control | AE128: Electrostatic precipitator, cold side, unspecified | AF128: 1974-06-01
A129: 988_4 | B129: coal | C129: 128 | E129: 988 | F129: Tanners Creek | G129: IN | H129: TC-4 | I129: 4 | J129: Conventional Boiler | K129: Cyclone firing | L129: 579.7 | M129: 4990 | N129: 8.607900638 | O129: subbituminous, bituminous | P129: subbituminous, bituminous | Q129: 6.463248873e-06 | T129: 6.762461457e-07 | U129: 5.821059629e-06 | Y129: 6.762461457e-07 | Z129: 5.821059629e-06 | AA129: PM control | AB129: Electrostatic precipitator, cold side, w/o flue gas conditioning | AC129: 1977-11-01
A130: =E130&"_"&I130 -> 2718_ES-3 | B130: coal | C130: 129 | E130: 2718 | F130: G G Allen | G130: NC | H130: 3-2009 | I130: ES-3 | J130: Conventional Boiler | K130: Tangential firing | L130: 281.5 | M130: 2228 | N130: 7.914742451 | O130: bituminous | P130: bituminous | Q130: 1.021426695e-05 | T130: 7.378701989e-07 | U130: 5.840052587e-06 | Y130: 7.378701989e-07 | Z130: 5.840052587e-06 | AA130: NOx control | AB130: Selective Noncatalytic Reduction | AC130: 2005-05-01 | AD130: PM control | AE130: Electrostatic precipitator, cold side, w/ flue gas conditioning | AF130: 2002-06-01 | AG130: SO2 control | AH130: Wet FGD - Spray Type | AI130: 2009-05-01
A131: 2718_ES-4 | B131: coal | C131: 130 | E131: 2718 | F131: G G Allen | G131: NC | H131: 4-2009 | I131: ES-4 | J131: Conventional Boiler | K131: Tangential firing | L131: 297.3 | M131: 2380 | N131: 8.005381769 | O131: bituminous | P131: bituminous | Q131: 1.021426695e-05 | T131: 7.378701989e-07 | U131: 5.906932639e-06 | Y131: 7.378701989e-07 | Z131: 5.906932639e-06 | AA131: NOx control | AB131: Selective Noncatalytic Reduction | AC131: 2006-06-01 | AD131: PM control | AE131: Electrostatic precipitator, cold side, w/ flue gas conditioning | AF131: 1999-02-01 | AG131: SO2 control | AH131: Wet FGD - Spray Type | AI131: 2009-04-01
A132: 3251_1 | B132: coal | C132: 131 | E132: 3251 | F132: HB Robinson / Darlington Electric Power Plant | G132: SC | H132: Rob_Cfg_1 | I132: 1 | J132: Conventional Boiler | K132: Tangential firing | L132: 187 | M132: 1733 | N132: 9.267379679 | O132: bituminous | P132: bituminous | Q132: 5.37731081e-06 | T132: 6.6e-07 | U132: 6.116470588e-06 | Y132: 6.6e-07 | Z132: 6.116470588e-06 | AA132: PM control | AB132: Electrostatic precipitator, cold side, w/o flue gas conditioning | AC132: 1974-07-01
A133: 1710_Unit 2 | B133: coal | C133: 132 | E133: 1710 | F133: Consumers Energy - J.H. Campbell | G133: MI | H133: JHC2-Conf | I133: Unit 2 | J133: Conventional Boiler | K133: Wall firing - front firing | L133: 374 | M133: 3392 | N133: 9.069518717 | O133: subbituminous, bituminous | P133: subbituminous, bituminous | Q133: 6.502860419e-06 | R133: 6.8796225e-07 | S133: 6.239486503e-06 | Y133: 6.8796225e-07 | Z133: 6.239486503e-06 | AA133: PM control | AB133: Electrostatic precipitator, cold side, w/ flue gas conditioning | AC133: 1978-12-01
A134: 6018_2 | B134: coal | C134: 133 | E134: 6018 | F134: East Bend Station | G134: KY | H134: 2 | I134: 2 | J134: Conventional Boiler | K134: Wall firing - front firing | L134: 650.7246377 | M134: 6313 | N134: 9.701492205 | O134: bituminous | P134: bituminous | Q134: 8.360049261e-06 | T134: 6.506666667e-07 | U134: 6.312437594e-06 | Y134: 6.506666667e-07 | Z134: 6.312437594e-06 | AA134: Other control | AB134: Dry sorbent injection | AC134: 2005-01-01 | AD134: PM control | AE134: Electrostatic precipitator, hot side, w/ flue gas conditioning | AF134: 1981-01-01 | AG134: NOx control | AH134: Selective Catalytic Reduction | AI134: 2002-01-01 | AJ134: SO2 control | AK134: Wet FGD - Spray Type | AL134: 1981-01-01
A135: 1710_Unit 1 | B135: coal | C135: 134 | E135: 1710 | F135: Consumers Energy - J.H. Campbell | G135: MI | H135: JHC1-Conf | I135: Unit 1 | J135: Conventional Boiler | K135: Tangential firing | L135: 274 | M135: 2561 | N135: 9.346715328 | O135: subbituminous | P135: subbituminous | Q135: 8.863770561e-06 | R135: 6.8796225e-07 | S135: 6.430187308e-06 | Y135: 6.8796225e-07 | Z135: 6.430187308e-06 | AA135: PM control | AB135: Electrostatic precipitator, cold side, w/o flue gas conditioning | AC135: 2001-07-01
A136: 3946_1 | B136: coal | C136: 135 | E136: 3946 | F136: Willow Island | G136: WV | H136: Unit 1 | I136: 1 | J136: Conventional Boiler | K136: Vertical firing | L136: 58 | M136: 436 | N136: 7.517241379 | P136: bituminous | W136: 8.593333333e-07 | X136: 6.459816092e-06 | Y136: 8.593333333e-07 | Z136: 6.459816092e-06 | AA136: PM control | AB136: Electrostatic precipitator, cold side, w/o flue gas conditioning | AC136: 1975-06-01
A137: 1082_4 | B137: coal | C137: 136 | E137: 1082 | F137: Walter Scott Jr. Energy Center | G137: IA | H137: 4 | I137: 4 | J137: Conventional Boiler | K137: Wall firing - unspecified | L137: 850 | M137: 7675 | N137: 9.029411765 | O137: subbituminous | P137: subbituminous | Q137: 8.14993242e-06 | R137: 2.938134563e-06 | S137: 2.652962679e-05 | W137: 7.2e-07 | X137: 6.501176471e-06 | Y137: 7.2e-07 | Z137: 6.501176471e-06 | AA137: NOx control | AB137: Selective Catalytic Reduction | AC137: 2007-02-01 | AD137: Other control | AE137: Activated carbon injection | AF137: 2007-02-01 | AG137: SO2 control | AH137: Dry FGD - Circulating Dry Scrubber | AI137: 2007-02-01 | AJ137: PM control | AK137: Fabric Filter, pulse | AL137: 2007-02-01
A138: 8223_4 | B138: coal | C138: 137 | E138: 8223 | F138: Springerville | G138: AZ | H138: 4 | I138: 4 | J138: Conventional Boiler | K138: Wall firing - opposed firing | L138: 450 | M138: 4200 | N138: 9.333333333 | O138: bituminous | P138: bituminous | Q138: 6.024720882e-06 | T138: 3.583333333e-06 | U138: 3.344444444e-05 | W138: 7e-07 | X138: 6.533333333e-06 | Y138: 7e-07 | Z138: 6.533333333e-06 | AA138: NOx control | AB138: Selective Catalytic Reduction | AC138: 2009-12-01 | AD138: SO2 control | AE138: Dry FGD - Spray Dryer | AF138: 2009-12-01 | AG138: PM control | AH138: Fabric Filter, pulse | AI138: 2009-12-01
A139: 47_3 | B139: coal | C139: 138 | E139: 47 | F139: Colbert | G139: AL | H139: 3 | I139: 3 | J139: Conventional Boiler | K139: Wall firing - front firing | L139: 200 | M139: 2121 | N139: 10.605 | O139: other--subbituminous/bituminous blend | P139: other--subbituminous/bituminous blend | Q139: 2.053836864e-06 | T139: 6.443333333e-07 | U139: 6.833155e-06 | Y139: 6.443333333e-07 | Z139: 6.833155e-06 | AA139: PM control | AB139: Electrostatic precipitator, cold side, w/o flue gas conditioning | AC139: 1990-05-01
A140: 2098_6 | B140: coal | C140: 139 | E140: 2098 | F140: Lake Road | G140: MO | H140: 6 | I140: 6 | J140: Conventional Boiler | K140: Cyclone firing | L140: 99 | M140: 980 | N140: 9.898989899 | O140: subbituminous, bituminous | P140: subbituminous, bituminous | Q140: 4.301965579e-06 | T140: 1.473333333e-06 | U140: 1.458451178e-05 | W140: 7.07e-07 | X140: 6.998585859e-06 | Y140: 7.07e-07 | Z140: 6.998585859e-06 | AA140: PM control | AB140: Electrostatic precipitator, cold side, w/o flue gas conditioning | AC140: 1995-07-01
A141: 2480_3 | B141: coal | C141: 140 | E141: 2480 | F141: Danskammer Generating Station | G141: NY | H141: 3 | I141: 3 | J141: Conventional Boiler | K141: Tangential firing | L141: 144.9 | M141: 1365 | N141: 9.420289855 | O141: bituminous | P141: bituminous | W141: 7.532733333e-07 | X141: 7.09605314e-06 | Y141: 7.532733333e-07 | Z141: 7.09605314e-06 | AA141: PM control | AB141: Electrostatic precipitator, cold side, w/o flue gas conditioning | AC141: 1987-09-01
A142: 470_1 | B142: coal | C142: 141 | E142: 470 | F142: Comanche | G142: CO | H142: Unit 1 | I142: 1 | J142: Conventional Boiler | K142: Tangential firing | L142: 360 | M142: 3531 | N142: 9.808333333 | O142: coal - subbituminous | P142: subbituminous | W142: 7.348584208e-07 | X142: 7.207736344e-06 | Y142: 7.348584208e-07 | Z142: 7.207736344e-06 | AA142: Other control | AB142: Activated carbon injection | AD142: SO2 control | AE142: Dry FGD - Spray Dryer | AF142: 2008-12-01 | AG142: PM control | AH142: Fabric Filter, reverse air | AI142: 1990-11-01
A143: 884_4 | B143: coal | C143: 142 | E143: 884 | F143: Will County | G143: IL | H143: WC4CONFIG | I143: 4 | J143: Conventional Boiler | K143: Tangential firing | L143: 542 | M143: 5254.53 | N143: 9.694704797 | O143: subbituminous | P143: subbituminous | Q143: 8.00214378e-06 | T143: 1.067666667e-06 | U143: 1.035071315e-05 | W143: 7.495500708e-07 | X143: 7.266666667e-06 | Y143: 7.495500708e-07 | Z143: 7.266666667e-06 | AA143: Other control | AB143: Activated carbon injection | AC143: 2009-07-01 | AD143: PM control | AE143: Electrostatic precipitator, cold side, w/o flue gas conditioning | AF143: 1963-06-01
A144: 87_1 | B144: coal | C144: 143 | E144: 87 | F144: Escalante | G144: NM | H144: 1 | I144: 1 | J144: Conventional Boiler | K144: Tangential firing | L144: 260 | M144: 2366 | N144: 9.1 | O144: coal - subbituminous | P144: subbituminous | W144: 8.058608059e-07 | X144: 7.333333333e-06 | Y144: 8.058608059e-07 | Z144: 7.333333333e-06 | AA144: PM control | AB144: Fabric Filter, reverse air | AC144: 1984-01-01 | AD144: SO2 control | AE144: Wet FGD - Spray Type | AF144: 1984-01-01
A145: 56224_BLR100 | B145: coal | C145: 144 | E145: 56224 | F145: TS Power Plant | G145: NV | H145: TSPower | I145: BLR100 | J145: Conventional Boiler | K145: Wall firing - opposed firing | L145: 242 | M145: 2112 | N145: 8.727272727 | O145: subbituminous | P145: subbituminous | Q145: 7.516078702e-06 | R145: 9.031471799e-07 | S145: 7.882011752e-06 | T145: 1.26e-06 | U145: 1.099636364e-05 | W145: 8.670138889e-07 | X145: 7.566666667e-06 | Y145: 8.670138889e-07 | Z145: 7.566666667e-06 | AA145: NOx control | AB145: Selective Catalytic Reduction | AC145: 2008-03-01 | AD145: Other control | AE145: Activated carbon injection | AF145: 2008-03-01 | AG145: SO2 control | AH145: Dry FGD - Spray Dryer | AI145: 2008-03-01 | AJ145: PM control | AK145: Fabric Filter, pulse | AL145: 2008-01-01
A146: 2554_4 | B146: coal | C146: 145 | E146: 2554 | F146: Dunkirk Generating Plant | G146: NY | H146: 4 | I146: 4 | J146: Conventional Boiler | K146: Tangential firing | L146: 195 | M146: 1836 | N146: 9.415384615 | O146: subbituminous | P146: subbituminous | Q146: 8.889563647e-06 | T146: 8.050766467e-07 | U146: 7.580106274e-06 | Y146: 8.050766467e-07 | Z146: 7.580106274e-06 | AA146: NOx control | AB146: Selective Noncatalytic Reduction | AD146: Other control | AE146: Dry sorbent injection | AG146: PM control | AH146: Fabric Filter, unspecified | AI146: 2009-05-01
A147: 4078_4 | B147: coal | C147: 146 | E147: 4078 | F147: Weston | G147: WI | H147: W4 | I147: 4 | J147: Conventional Boiler | K147: Wall firing - opposed firing | L147: 574.5 | M147: 5173.07 | N147: 9.004473455 | O147: subbituminous | P147: subbituminous | Q147: 7.04216255e-06 | T147: 1.076333333e-06 | U147: 9.691814929e-06 | W147: 8.933333333e-07 | X147: 8.043996287e-06 | Y147: 8.933333333e-07 | Z147: 8.043996287e-06 | AA147: NOx control | AB147: Selective Catalytic Reduction | AC147: 2008-07-01 | AD147: Other control | AE147: Activated carbon injection | AF147: 2008-07-01 | AG147: SO2 control | AH147: Dry FGD - Spray Dryer | AI147: 2008-07-01 | AJ147: PM control | AK147: Fabric Filter, pulse | AL147: 2008-07-01
A148: 874_5 | B148: coal | C148: 147 | E148: 874 | F148: Joliet 9 | G148: IL | H148: JOL5 CONFIG | I148: 5 | J148: Conventional Boiler | K148: Cyclone firing | L148: 326 | M148: 3572.378 | N148: 10.95821472 | O148: subbituminous | P148: subbituminous | Q148: 6.752572059e-06 | T148: 1.029e-06 | U148: 1.127600295e-05 | W148: 7.528598597e-07 | X148: 8.25e-06 | Y148: 7.528598597e-07 | Z148: 8.25e-06 | AA148: Other control | AB148: Activated carbon injection | AC148: 2009-07-01 | AD148: PM control | AE148: Electrostatic precipitator, cold side, w/o flue gas conditioning | AF148: 1966-03-01
A149: 6113_2 | B149: coal | C149: 148 | E149: 6113 | F149: Gibson | G149: IN | H149: 2-2007-FGDIN | I149: 2 | J149: Conventional Boiler | K149: Wall firing - opposed firing | L149: 661 | M149: 6444 | N149: 9.748865356 | O149: bituminous | P149: bituminous | Q149: 7.920053089e-06 | T149: 8.463333333e-07 | U149: 8.250789713e-06 | Y149: 8.463333333e-07 | Z149: 8.250789713e-06 | AA149: NOx control | AB149: Selective Catalytic Reduction | AC149: 2001-12-01 | AD149: Other control | AE149: Other (specify): Soda Ash Injection for SO3 mitigation | AF149: 2004-06-01 | AG149: PM control | AH149: Electrostatic precipitator, cold side, w/o flue gas conditioning | AI149: 1991-01-01 | AJ149: SO2 control | AK149: Wet FGD - Tray Type | AL149: 2007-05-01
A150: 6113_1 | B150: coal | C150: 149 | E150: 6113 | F150: Gibson | G150: IN | H150: 1-2007-FGDIN | I150: 1 | J150: Conventional Boiler | K150: Wall firing - opposed firing | L150: 661 | M150: 6368 | N150: 9.633888048 | O150: bituminous | P150: bituminous | Q150: 7.795565803e-06 | T150: 8.831666667e-07 | U150: 8.508328795e-06 | Y150: 8.831666667e-07 | Z150: 8.508328795e-06 | AA150: NOx control | AB150: Selective Catalytic Reduction | AC150: 2005-04-01 | AD150: Other control | AE150: Other (specify): Soda Ash Injection for SO3 mitigation | AF150: 2004-06-01 | AG150: PM control | AH150: Electrostatic precipitator, cold side, w/o flue gas conditioning | AI150: 1990-01-01 | AJ150: SO2 control | AK150: Wet FGD - Tray Type | AL150: 2007-10-01
A151: 990_70 | B151: coal | C151: 150 | E151: 990 | F151: Harding Street | G151: IN | H151: 70ss | I151: 70 | J151: Conventional Boiler | K151: Tangential firing | L151: 463 | M151: 4123 | N151: 8.904967603 | O151: bituminous | P151: bituminous | Q151: 5.191908042e-06 | T151: 9.886039203e-07 | U151: 8.803485882e-06 | Y151: 9.886039203e-07 | Z151: 8.803485882e-06 | AA151: NOx control | AB151: Selective Catalytic Reduction | AC151: 2005-12-01 | AD151: PM control | AE151: Electrostatic precipitator, cold side, w/ flue gas conditioning | AF151: 1978-12-01 | AG151: SO2 control | AH151: Wet FGD - Spray Type | AI151: 2007-12-01
A152: 641_5 | B152: coal | C152: 151 | E152: 641 | F152: Crist | G152: FL | H152: Unit 5 | I152: 5 | J152: Conventional Boiler | K152: Tangential firing | L152: 82 | M152: 817.83 | N152: 9.973536585 | O152: bituminous | P152: bituminous | Q152: 7.248674211e-06 | T152: 8.906666667e-07 | U152: 8.883096585e-06 | Y152: 8.906666667e-07 | Z152: 8.883096585e-06 | AA152: NOx control | AB152: Selective Noncatalytic Reduction | AC152: 2006-04-01 | AD152: PM control | AE152: Electrostatic precipitator, hot side, w/ flue gas conditioning | AF152: 2008-03-01 | AG152: PM control | AH152: Electrostatic precipitator, cold side, w/o flue gas conditioning | AI152: 1976-01-01 | AJ152: SO2 control | AK152: Wet FGD - Spray Type | AL152: 2009-12-01
A153: 641_6 | B153: coal | C153: 152 | E153: 641 | F153: Crist | G153: FL | H153: Unit 6 | I153: 6 | J153: Conventional Boiler | K153: Wall firing - front firing | L153: 320 | M153: 3193.348 | N153: 9.9792125 | O153: bituminous | P153: bituminous | Q153: 7.248674211e-06 | T153: 8.906666667e-07 | U153: 8.888151933e-06 | Y153: 8.906666667e-07 | Z153: 8.888151933e-06 | AA153: NOx control | AB153: Selective Noncatalytic Reduction | AC153: 2005-11-01 | AD153: PM control | AE153: Electrostatic precipitator, cold side, w/o flue gas conditioning | AF153: 1994-01-01 | AG153: SO2 control | AH153: Wet FGD - Spray Type | AI153: 2009-12-01
A154: 2535_2 | B154: coal | C154: 153 | E154: 2535 | F154: AES Cayuga, LLC | G154: NY | H154: Unit_2 | I154: 2 | J154: Conventional Boiler | K154: Tangential firing | L154: 168 | M154: 1450 | N154: 8.630952381 | O154: bituminous | P154: bituminous | W154: 1.03e-06 | X154: 8.889880952e-06 | Y154: 1.03e-06 | Z154: 8.889880952e-06 | AA154: PM control | AB154: Electrostatic precipitator, cold side, w/o flue gas conditioning | AD154: SO2 control | AE154: Wet FGD - Spray Type | AF154: 1995-01-01
A155: 4078_3 | B155: coal | C155: 154 | E155: 4078 | F155: Weston | G155: WI | H155: W3 | I155: 3 | J155: Conventional Boiler | K155: Tangential firing | L155: 365.6 | M155: 3423.48 | N155: 9.364004376 | O155: subbituminous | P155: subbituminous | Q155: 6.328823934e-06 | T155: 9.913333333e-07 | U155: 9.282849672e-06 | W155: 7.376666667e-06 | X155: 6.907513895e-05 | Y155: 9.913333333e-07 | Z155: 9.282849672e-06 | AA155: PM control | AB155: Fabric Filter, pulse | AC155: 2001-05-01 | AD155: Other control | AE155: Activated carbon injection
A156: 641_7 | B156: coal | C156: 155 | E156: 641 | F156: Crist | G156: FL | H156: Unit 7 | I156: 7 | J156: Conventional Boiler | K156: Wall firing - front firing | L156: 500 | M156: 5279.792 | N156: 10.559584 | O156: bituminous | P156: bituminous | Q156: 7.248674211e-06 | T156: 8.906666667e-07 | U156: 9.405069483e-06 | Y156: 8.906666667e-07 | Z156: 9.405069483e-06 | AA156: NOx control | AB156: Selective Catalytic Reduction | AC156: 2005-04-01 | AD156: PM control | AE156: Electrostatic precipitator, cold side, w/o flue gas conditioning | AF156: 2004-04-01 | AG156: SO2 control | AH156: Wet FGD - Spray Type | AI156: 2009-12-01
A157: 641_4 | B157: coal | C157: 156 | E157: 641 | F157: Crist | G157: FL | H157: Unit 4 | I157: 4 | J157: Conventional Boiler | K157: Tangential firing | L157: 82 | M157: 868.842 | N157: 10.59563415 | O157: bituminous | P157: bituminous | Q157: 7.248674211e-06 | T157: 8.906666667e-07 | U157: 9.437178146e-06 | Y157: 8.906666667e-07 | Z157: 9.437178146e-06 | AA157: NOx control | AB157: Selective Noncatalytic Reduction | AC157: 2006-04-01 | AD157: PM control | AE157: Electrostatic precipitator, hot side, w/o flue gas conditioning | AF157: 2008-03-01 | AG157: PM control | AH157: Electrostatic precipitator, cold side, w/o flue gas conditioning | AI157: 1976-01-01 | AJ157: SO2 control | AK157: Wet FGD - Spray Type | AL157: 2009-12-01
A158: 136_1 | B158: coal | C158: 157 | E158: 136 | F158: Seminole Generating Station | G158: FL | H158: Unit 1 | I158: 1 | J158: Conventional Boiler | K158: Wall firing - opposed firing | L158: 694 | M158: 7172 | N158: 10.33429395 | O158: coal - bituminous | P158: bituminous | W158: 9.333333333e-07 | X158: 9.645341018e-06 | Y158: 9.333333333e-07 | Z158: 9.645341018e-06 | AA158: NOx control | AB158: Selective Catalytic Reduction | AC158: 2009-02-01 | AD158: PM control | AE158: Electrostatic precipitator, cold side, w/o flue gas conditioning | AF158: 1984-01-01 | AG158: Other control | AH158: Dry sorbent injection | AI158: 2009-02-01 | AJ158: SO2 control | AK158: Wet FGD - Spray Type | AL158: 1984-01-01
A159: 55749_PC1 | B159: coal | C159: 158 | E159: 55749 | F159: Hardin Generator Project | G159: MT | H159: PC1 | I159: PC1 | J159: Conventional Boiler | K159: Wall firing - unspecified | L159: 119 | M159: 1304 | N159: 10.95798319 | O159: bituminous | P159: bituminous | Q159: 2.631461639e-06 | V159: 8.829333333e-07 | Y159: 8.829333333e-07 | Z159: 9.675168627e-06 | AA159: NOx control | AB159: Selective Catalytic Reduction | AC159: 2006-04-01 | AD159: Other control | AE159: Activated carbon injection | AG159: SO2 control | AH159: Dry FGD - Spray Dryer | AI159: 2006-04-01 | AJ159: PM control | AK159: Fabric Filter, pulse | AL159: 2006-04-01
A160: 6076_3 | B160: coal | C160: 159 | E160: 6076 | F160: Colstrip | G160: MT | H160: Unit3 | I160: 3 | J160: Conventional Boiler | K160: Tangential firing | L160: 805 | M160: 7573 | N160: 9.407453416 | O160: subbituminous | P160: subbituminous | Q160: 3.362012256e-06 | T160: 1.050181689e-06 | U160: 9.879535314e-06 | Y160: 1.050181689e-06 | Z160: 9.879535314e-06 | AA160: Other control | AB160: Activated carbon injection | AC160: 2009-12-01 | AD160: SO2 control | AE160: Wet FGD - Venturi Type | AF160: 1984-01-01 | AG160: PM control | AH160: PM scrubber - Venturi | AI160: 1984-01-01
A161: 10151_BLR1A | B161: coal | C161: 160 | E161: 10151 | F161: Grant Town Power Plant | G161: WV | H161: GEN1 | I161: BLR1A | J161: Fluidized bed firing | K161: Fluidized bed firing | L161: 47.5 | M161: 675 | N161: 14.21052632 | O161: coal refuse (culm or gob) | P161: coal refuse (culm or gob) | Q161: 3.070104839e-05 | T161: 7.116666667e-07 | U161: 1.011315789e-05 | Y161: 7.116666667e-07 | Z161: 1.011315789e-05 | AA161: NOx control | AB161: Selective Noncatalytic Reduction | AC161: 2005-05-01 | AD161: NOx control | AE161: Selective Noncatalytic Reduction | AF161: 2005-05-01 | AG161: SO2 control | AH161: Dry FGD - Circulating Dry Scrubber | AI161: 1992-07-01 | AJ161: SO2 control | AK161: Dry FGD - Circulating Dry Scrubber | AL161: 1992-07-01 | AM161: PM control | AN161: Fabric Filter, pulse | AO161: 1992-07-01 | AP161: PM control | AQ161: Fabric Filter, pulse | AR161: 2005-05-01
A162: 10151_BLR1B | B162: coal | C162: 161 | E162: 10151 | F162: Grant Town Power Plant | G162: WV | H162: GEN1 | I162: BLR1B | J162: Fluidized bed firing | K162: Fluidized bed firing | L162: 47.5 | M162: 675 | N162: 14.21052632 | O162: coal refuse (culm or gob) | P162: coal refuse (culm or gob) | Q162: 3.070104839e-05 | T162: 7.116666667e-07 | U162: 1.011315789e-05 | Y162: 7.116666667e-07 | Z162: 1.011315789e-05 | AA162: NOx control | AB162: Selective Noncatalytic Reduction | AC162: 2005-05-01 | AD162: NOx control | AE162: Selective Noncatalytic Reduction | AF162: 2005-05-01 | AG162: SO2 control | AH162: Dry FGD - Circulating Dry Scrubber | AI162: 1992-07-01 | AJ162: SO2 control | AK162: Dry FGD - Circulating Dry Scrubber | AL162: 1992-07-01 | AM162: PM control | AN162: Fabric Filter, pulse | AO162: 1992-07-01 | AP162: PM control | AQ162: Fabric Filter, pulse | AR162: 2005-05-01
A163: 6019_1 | B163: coal | C163: 162 | E163: 6019 | F163: W H Zimmer | G163: OH | H163: 1 | I163: 1 | J163: Conventional Boiler | K163: Wall firing - opposed firing | L163: 1408 | M163: 12656 | N163: 8.988636364 | O163: bituminous, bituminous, bituminous | P163: bituminous, bituminous, bituminous | Q163: 9.060518131e-06 | T163: 1.151666667e-06 | U163: 1.035191288e-05 | Y163: 1.151666667e-06 | Z163: 1.035191288e-05 | AA163: Other control | AB163: Other (specify): Magnesium Hydroxide Injection | AD163: NOx control | AE163: Selective Catalytic Reduction | AF163: 2004-01-01 | AG163: Other control | AH163: Dry sorbent injection | AI163: 2004-05-01 | AJ163: PM control | AK163: Electrostatic precipitator, cold side, w/o flue gas conditioning | AL163: 1991-03-01 | AM163: SO2 control | AN163: Wet FGD - Spray Type | AO163: 2004-06-01
A164: 136_2 | B164: coal | C164: 163 | E164: 136 | F164: Seminole Generating Station | G164: FL | H164: Unit 2 | I164: 2 | J164: Conventional Boiler | K164: Wall firing - opposed firing | L164: 694 | M164: 7172 | N164: 10.33429395 | O164: coal - bituminous | P164: bituminous | W164: 1.013333333e-06 | X164: 1.047208453e-05 | Y164: 1.013333333e-06 | Z164: 1.047208453e-05 | AA164: NOx control | AB164: Selective Catalytic Reduction | AC164: 2009-04-01 | AD164: PM control | AE164: Electrostatic precipitator, cold side, w/o flue gas conditioning | AF164: 1984-12-01 | AG164: Other control | AH164: Dry sorbent injection | AI164: 2009-04-01 | AJ164: SO2 control | AK164: Wet FGD - Spray Type | AL164: 1984-12-01
A165: 3297_WAT1 | B165: coal | C165: 164 | E165: 3297 | F165: Wateree | G165: SC | H165: WAT001 | I165: WAT1 | J165: Conventional Boiler | K165: Wall firing - unspecified | L165: 383 | M165: 3329.7 | N165: 8.693733681 | P165: Bituminous | W165: 1.23e-06 | X165: 1.069329243e-05 | Y165: 1.23e-06 | Z165: 1.069329243e-05 | AA165: NOx control | AB165: Selective Catalytic Reduction | AC165: 2003-06-01 | AD165: PM control | AE165: Fabric Filter, unspecified | AF165: 2001-05-01 | AG165: SO2 control | AH165: Wet FGD - Unspecified
A166: 963_33 | B166: coal | C166: 165 | E166: 963 | F166: Dallman | G166: IL | H166: 33 | I166: 33 | J166: Conventional Boiler | K166: Tangential firing | L166: 208 | M166: 2089.8 | N166: 10.04711538 | O166: coal - bituminous | P166: bituminous | W166: 1.064982295e-06 | X166: 1.07e-05 | Y166: 1.064982295e-06 | Z166: 1.07e-05 | AA166: NOx control | AB166: Selective Catalytic Reduction | AC166: 2003-05-01 | AD166: PM control | AE166: Electrostatic precipitator, cold side, w/o flue gas conditioning | AF166: 1978-06-01 | AG166: SO2 control | AH166: Wet FGD - Spray Type | AI166: 1980-01-01
A167: 2554_1 | B167: coal | C167: 166 | E167: 2554 | F167: Dunkirk Generating Plant | G167: NY | H167: 1 | I167: 1 | J167: Conventional Boiler | K167: Tangential firing | L167: 85 | M167: 922.2 | N167: 10.84941176 | O167: subbituminous | P167: subbituminous | Q167: 6.308849503e-06 | T167: 1.007266667e-06 | U167: 1.092825082e-05 | Y167: 1.007266667e-06 | Z167: 1.092825082e-05 | AA167: NOx control | AB167: Selective Noncatalytic Reduction | AD167: Other control | AE167: Dry sorbent injection | AG167: PM control | AH167: Fabric Filter, unspecified | AI167: 2009-12-01
A168: 8223_1 | B168: coal | C168: 167 | E168: 8223 | F168: Springerville | G168: AZ | H168: 1 | I168: 1 | J168: Conventional Boiler | K168: Tangential firing | L168: 427 | M168: 3830 | N168: 8.969555035 | O168: coal - subbituminous | P168: subbituminous | W168: 1.233333333e-06 | X168: 1.106245121e-05 | Y168: 1.233333333e-06 | Z168: 1.106245121e-05 | AA168: SO2 control | AB168: Dry FGD - Spray Dryer | AC168: 1985-06-01 | AD168: PM control | AE168: Fabric Filter, reverse air | AF168: 1985-06-01
A169: 8224_1 | B169: coal | C169: 168 | E169: 8224 | F169: North Valmy | G169: NV | H169: 1 | I169: 1 | J169: Conventional Boiler | K169: Wall firing - opposed firing | L169: 243.5 | M169: 2560 | N169: 10.51334702 | P169: subbituminous, bituminous | W169: 1.07e-06 | X169: 1.124928131e-05 | Y169: 1.07e-06 | Z169: 1.124928131e-05 | AA169: PM control | AB169: Fabric Filter, reverse air | AC169: 1981-12-01
A170: 728_Y6BR | B170: coal | C170: 169 | E170: 728 | F170: Yates | G170: GA | H170: Y6BR | I170: Y6BR | J170: Conventional Boiler | K170: Tangential firing | L170: 363 | M170: 3492.896 | N170: 9.62230303 | O170: coal - bituminous | P170: bituminous | W170: 1.170297616e-06 | X170: 1.12609583e-05 | Y170: 1.170297616e-06 | Z170: 1.12609583e-05 | AA170: PM control | AB170: Electrostatic precipitator, cold side, w/o flue gas conditioning | AC170: 1974-07-01
A171: 3140_2 | B171: coal | C171: 170 | E171: 3140 | F171: PPL Brunner Island | G171: PA | H171: U2 | I171: 2 | J171: Conventional Boiler | K171: Tangential firing | L171: 393 | M171: 3790 | N171: 9.643765903 | O171: bituminous | P171: bituminous | Q171: 9.098182347e-06 | R171: 1.176837835e-06 | S171: 1.134914858e-05 | Y171: 1.176837835e-06 | Z171: 1.134914858e-05 | AA171: PM control | AB171: Electrostatic precipitator, cold side, w/o flue gas conditioning | AC171: 2009-10-01 | AD171: SO2 control | AE171: Wet FGD - Tray Type | AF171: 2009-11-01
A172: 3098_4 | B172: coal | C172: 171 | E172: 3098 | F172: Elrama Power Plant | G172: PA | H172: ELR4-2 | I172: 4 | J172: Conventional Boiler | K172: Wall firing - front firing | L172: 185 | M172: 1921 | N172: 10.38378378 | O172: bituminous | P172: bituminous | Q172: 9.279976121e-06 | R172: 1.113215306e-06 | S172: 1.155938704e-05 | W172: 1.543333333e-06 | X172: 1.602563964e-05 | Y172: 1.113215306e-06 | Z172: 1.155938704e-05 | AA172: NOx control | AB172: Selective Noncatalytic Reduction | AC172: 2001-07-01 | AD172: PM control | AE172: Multiple cyclone | AF172: 1960-11-01 | AG172: PM control | AH172: Electrostatic precipitator, cold side, w/o flue gas conditioning | AI172: 1960-11-01 | AJ172: SO2 control | AK172: Wet FGD - Venturi Type | AL172: 1975-06-01
A173: 3098_3 | B173: coal | C173: 172 | E173: 3098 | F173: Elrama Power Plant | G173: PA | H173: ELR3-2 | I173: 3 | J173: Conventional Boiler | K173: Vertical firing | L173: 125 | M173: 1303 | N173: 10.424 | O173: bituminous | P173: bituminous | Q173: 9.279976121e-06 | R173: 1.113215306e-06 | S173: 1.160415635e-05 | W173: 1.543333333e-06 | X173: 1.608770667e-05 | Y173: 1.113215306e-06 | Z173: 1.160415635e-05 | AA173: NOx control | AB173: Selective Noncatalytic Reduction | AC173: 2001-07-01 | AD173: PM control | AE173: Multiple cyclone | AF173: 1954-11-01 | AG173: PM control | AH173: Electrostatic precipitator, cold side, w/o flue gas conditioning | AI173: 1954-11-01 | AJ173: SO2 control | AK173: Wet FGD - Venturi Type | AL173: 1975-06-01
A174: 1047_3 | B174: coal | C174: 173 | E174: 1047 | F174: Lansing | G174: IA | H174: Unit 3 | I174: 3 | J174: Conventional Boiler | K174: Wall firing - front firing | L174: 31.9 | M174: 452.9 | N174: 14.19749216 | O174: coal - bituminous | P174: subbituminous | W174: 8.37e-07 | X174: 1.188330094e-05 | Y174: 8.37e-07 | Z174: 1.188330094e-05 | AA174: PM control | AB174: Electrostatic precipitator, cold side, w/o flue gas conditioning | AC174: 1975-06-01
A175: 2706_2 | B175: coal | C175: 174 | E175: 2706 | F175: Asheville Steam Electric Plant | G175: NC | H175: Ash_Cfg_2 | I175: 2 | J175: Conventional Boiler | K175: Wall firing - front firing | L175: 204 | M175: 1902 | N175: 9.323529412 | O175: bituminous | P175: bituminous | Q175: 5.462288713e-06 | T175: 1.276666667e-06 | U175: 1.190303922e-05 | Y175: 1.276666667e-06 | Z175: 1.190303922e-05 | AA175: NOx control | AB175: Selective Catalytic Reduction | AC175: 2006-06-14 | AD175: PM control | AE175: Electrostatic precipitator, cold side, w/o flue gas conditioning | AF175: 1971-05-01 | AG175: SO2 control | AH175: Wet FGD - Spray/Tray Type | AI175: 2006-05-15
A176: 3140_1 | B176: coal | C176: 175 | E176: 3140 | F176: PPL Brunner Island | G176: PA | H176: U1 | I176: 1 | J176: Conventional Boiler | K176: Tangential firing | L176: 330 | M176: 3345 | N176: 10.13636364 | O176: bituminous | P176: bituminous | Q176: 9.098182347e-06 | R176: 1.176837835e-06 | S176: 1.192885623e-05 | Y176: 1.176837835e-06 | Z176: 1.192885623e-05 | AA176: PM control | AB176: Fabric Filter, pulse | AC176: 1965-01-01 | AD176: SO2 control | AE176: Wet FGD - Tray Type | AF176: 2009-11-01
A177: 3161_2 | B177: coal | C177: 176 | E177: 3161 | F177: Eddystone Generating Station | G177: PA | H177: Unit 2 | I177: 2 | J177: Conventional Boiler | K177: Tangential firing | L177: 339 | M177: 2808 | N177: 8.283185841 | O177: bituminous | P177: bituminous | Q177: 5.348973799e-06 | T177: 1.460971557e-06 | U177: 1.210149891e-05 | Y177: 1.460971557e-06 | Z177: 1.210149891e-05 | AA177: NOx control | AB177: Selective Noncatalytic Reduction | AC177: 2003-06-01 | AD177: PM control | AE177: Multiple cyclone | AF177: 1960-11-01 | AG177: PM control | AH177: Electrostatic precipitator, hot side, w/o flue gas conditioning | AI177: 1960-11-01 | AJ177: PM control | AK177: PM scrubber - Venturi | AL177: 1982-12-01 | AM177: SO2 control | AN177: Wet FGD - Spray Type | AO177: 1982-12-01
A178: 6085_14 | B178: coal | C178: 177 | E178: 6085 | F178: R.M. Schahfer | G178: IN | H178: R.M.0014 | I178: 14 | J178: Conventional Boiler | K178: Cyclone firing | L178: 468 | M178: 4650 | N178: 9.935897436 | O178: subbituminous | P178: subbituminous | Q178: 5.972065768e-06 | T178: 1.226666667e-06 | U178: 1.218803419e-05 | Y178: 1.226666667e-06 | Z178: 1.218803419e-05 | AA178: NOx control | AB178: Selective Catalytic Reduction | AC178: 2004-05-01 | AD178: PM control | AE178: Electrostatic precipitator, cold side, w/o flue gas conditioning | AF178: 1990-06-01
A179: 2094_3 | B179: coal | C179: 178 | E179: 2094 | F179: Sibley | G179: MO | H179: 3 | I179: 3 | J179: Conventional Boiler | K179: Cyclone firing | L179: 419 | M179: 4094.1 | N179: 9.771121718 | O179: subbituminous, bituminous | P179: subbituminous, bituminous | Q179: 6.937957001e-06 | T179: 1.296666667e-06 | U179: 1.266988783e-05 | Y179: 1.296666667e-06 | Z179: 1.266988783e-05 | AA179: NOx control | AB179: Selective Catalytic Reduction | AC179: 2009-01-01 | AD179: PM control | AE179: Electrostatic precipitator, cold side, w/o flue gas conditioning | AF179: 1993-04-01
A180: 68029_BLR1 | B180: coal | C180: 179 | E180: 68029 | F180: AES Puerto Rico Cogeneration Facility | G180: PR | H180: Unit_1 | I180: BLR1 | J180: Fluidized bed firing | K180: Fluidized bed firing | L180: 255 | M180: 2461.4 | N180: 9.65254902 | O180: bituminous | P180: bituminous | Q180: 5.630238801e-06 | T180: 1.33e-06 | U180: 1.28378902e-05 | Y180: 1.33e-06 | Z180: 1.28378902e-05 | AA180: NOx control | AB180: Selective Noncatalytic Reduction | AD180: SO2 control | AE180: Dry FGD - Spray Dryer | AG180: PM control | AH180: Electrostatic precipitator, cold side, w/o flue gas conditioning
A181: 2837_3 | B181: coal | C181: 180 | E181: 2837 | F181: Eastlake | G181: OH | H181: Unit 3 | I181: 3 | J181: Conventional Boiler | K181: Tangential firing | L181: 144 | M181: 1205 | N181: 8.368055556 | O181: subbituminous, bituminous | P181: subbituminous, bituminous | Q181: 1.314308677e-05 | T181: 1.57e-06 | U181: 1.313784722e-05 | Y181: 1.57e-06 | Z181: 1.313784722e-05 | AA181: NOx control | AB181: Selective Noncatalytic Reduction | AC181: 1999-10-01 | AD181: PM control | AE181: Electrostatic precipitator, cold side, w/o flue gas conditioning | AF181: 1980-01-01
A182: 10743_CFB1 | B182: coal | C182: 181 | E182: 10743 | F182: Morgantown Energy Facility | G182: WV | H182: Unit 1&2 | I182: CFB1 | J182: Fluidized bed firing | K182: Fluidized bed firing | L182: 29 | M182: 457 | N182: 15.75862069 | O182: bituminous | P182: bituminous | Q182: 1.450940941e-05 | T182: 8.58e-07 | U182: 1.346172414e-05 | Y182: 8.58e-07 | Z182: 1.346172414e-05 | AA182: PM control | AB182: Fabric Filter, pulse | AC182: 1992-01-01 | AD182: PM control | AE182: Fabric Filter, pulse | AF182: 1992-01-01
A183: 10743_CFB2 | B183: coal | C183: 182 | E183: 10743 | F183: Morgantown Energy Facility | G183: WV | H183: Unit 1&2 | I183: CFB2 | J183: Fluidized bed firing | K183: Fluidized bed firing | L183: 29 | M183: 453 | N183: 15.62068966 | O183: bituminous | P183: bituminous | Q183: 1.450940941e-05 | T183: 8.58e-07 | U183: 1.346172414e-05 | Y183: 8.58e-07 | Z183: 1.346172414e-05 | AA183: PM control | AB183: Fabric Filter, pulse | AC183: 1992-01-01 | AD183: PM control | AE183: Fabric Filter, pulse | AF183: 1992-01-01
A184: 6016_1 | B184: coal | C184: 183 | E184: 6016 | F184: Duck Creek | G184: IL | H184: 001 | I184: 1 | J184: Conventional Boiler | K184: Wall firing - unspecified | L184: 400 | M184: 4500 | N184: 11.25 | O184: subbituminous | P184: subbituminous | Q184: 4.004547915e-06 | T184: 3.083333333e-06 | U184: 3.46875e-05 | W184: 1.2e-06 | X184: 1.35e-05 | Y184: 1.2e-06 | Z184: 1.35e-05 | AA184: NOx control | AB184: Selective Catalytic Reduction | AC184: 2003-06-01 | AD184: PM control | AE184: Electrostatic precipitator, cold side, unspecified | AF184: 2009-03-01 | AG184: SO2 control | AH184: Wet FGD - Venturi Type | AI184: 2009-03-01
A185: 2107_2 | B185: coal | C185: 184 | E185: 2107 | F185: Sioux | G185: MO | H185: 002 | I185: 2 | J185: Conventional Boiler | K185: Cyclone firing | L185: 524 | M185: 4920 | N185: 9.389312977 | O185: subbituminous, bituminous | P185: subbituminous, bituminous | Q185: 4.550490543e-06 | T185: 1.44e-06 | U185: 1.352061069e-05 | Y185: 1.44e-06 | Z185: 1.352061069e-05 | AA185: NOx control | AB185: Selective Noncatalytic Reduction | AC185: 2007-05-01 | AD185: PM control | AE185: Electrostatic precipitator, cold side, w/ flue gas conditioning | AF185: 1997-12-01 | AG185: SO2 control | AH185: Wet FGD - Unspecified
A186: 642_1 | B186: coal | C186: 185 | E186: 642 | F186: Scholz | G186: FL | H186: Unit 1 | I186: 1 | J186: Conventional Boiler | K186: Wall firing - front firing | L186: 49 | M186: 581.091 | N186: 11.859 | O186: bituminous | P186: bituminous | Q186: 5.461453305e-06 | T186: 1.152333333e-06 | U186: 1.3665521e-05 | Y186: 1.152333333e-06 | Z186: 1.3665521e-05 | AA186: PM control | AB186: Electrostatic precipitator, cold side, w/o flue gas conditioning | AC186: 1974-01-01
A187: 3098_2 | B187: coal | C187: 186 | E187: 3098 | F187: Elrama Power Plant | G187: PA | H187: ELR2-2 | I187: 2 | J187: Conventional Boiler | K187: Vertical firing | L187: 100 | M187: 1254 | N187: 12.54 | O187: bituminous | P187: bituminous | Q187: 9.279976121e-06 | R187: 1.113215306e-06 | S187: 1.395971993e-05 | W187: 1.543333333e-06 | X187: 1.93534e-05 | Y187: 1.113215306e-06 | Z187: 1.395971993e-05 | AA187: NOx control | AB187: Selective Noncatalytic Reduction | AC187: 2001-07-01 | AD187: PM control | AE187: Multiple cyclone | AF187: 1953-03-01 | AG187: PM control | AH187: Electrostatic precipitator, cold side, w/o flue gas conditioning | AI187: 1953-03-01 | AJ187: SO2 control | AK187: Wet FGD - Venturi Type | AL187: 1975-06-01
A188: 3098_1 | B188: coal | C188: 187 | E188: 3098 | F188: Elrama Power Plant | G188: PA | H188: ELR1-2 | I188: 1 | J188: Conventional Boiler | K188: Vertical firing | L188: 100 | M188: 1254 | N188: 12.54 | O188: bituminous | P188: bituminous | Q188: 9.279976121e-06 | R188: 1.113215306e-06 | S188: 1.395971993e-05 | W188: 1.543333333e-06 | X188: 1.93534e-05 | Y188: 1.113215306e-06 | Z188: 1.395971993e-05 | AA188: NOx control | AB188: Selective Noncatalytic Reduction | AC188: 2001-07-01 | AD188: PM control | AE188: Multiple cyclone | AF188: 1952-06-01 | AG188: PM control | AH188: Electrostatic precipitator, cold side, w/o flue gas conditioning | AI188: 1952-06-01 | AJ188: SO2 control | AK188: Wet FGD - Venturi Type | AL188: 1975-06-01
A189: 2403_U2 | B189: coal | C189: 188 | E189: 2403 | F189: PSEG Hudson Generating Station | G189: NJ | H189: HUDU2E2PT2OS1-Coal | I189: U2 | J189: Conventional Boiler | K189: Wall firing - opposed firing | L189: 659.7 | M189: 6600 | N189: 10.00454752 | O189: natural gas | P189: subbituminous | W189: 1.416333333e-06 | X189: 1.416977414e-05 | Y189: 1.416333333e-06 | Z189: 1.416977414e-05 | AA189: NOx control | AB189: Selective Noncatalytic Reduction | AC189: 1999-03-01 | AD189: PM control | AE189: Electrostatic precipitator, cold side, w/ flue gas conditioning | AF189: 1968-12-01
A190: 2094_1 | B190: coal | C190: 189 | E190: 2094 | F190: Sibley | G190: MO | H190: 1 | I190: 1 | J190: Conventional Boiler | K190: Cyclone firing | L190: 55 | M190: 609.6 | N190: 11.08363636 | O190: subbituminous, bituminous | P190: subbituminous, bituminous | Q190: 6.937957001e-06 | T190: 1.296666667e-06 | U190: 1.437178182e-05 | W190: 3.060844159e-06 | X190: 3.392528362e-05 | Y190: 1.296666667e-06 | Z190: 1.437178182e-05 | AA190: NOx control | AB190: Selective Noncatalytic Reduction | AC190: 2008-05-01 | AD190: PM control | AE190: Electrostatic precipitator, cold side, w/o flue gas conditioning | AF190: 1990-01-01
A191: 867_7 | B191: coal | C191: 190 | E191: 867 | F191: Crawford | G191: IL | H191: CRA7 CONFIG | I191: 7 | J191: Conventional Boiler | K191: Tangential firing | L191: 234 | M191: 2378.571 | N191: 10.16483333 | O191: coal - subbituminous | P191: subbituminous | W191: 1.424519176e-06 | X191: 1.448e-05 | Y191: 1.424519176e-06 | Z191: 1.448e-05 | AA191: Other control | AB191: Activated carbon injection | AC191: 2008-07-01 | AD191: PM control | AE191: Electrostatic precipitator, cold side, w/o flue gas conditioning | AF191: 1958-05-01
A192: 3297_WAT2 | B192: coal | C192: 191 | E192: 3297 | F192: Wateree | G192: SC | H192: WAT002 | I192: WAT2 | J192: Conventional Boiler | K192: Wall firing - unspecified | L192: 380 | M192: 3305.1 | N192: 8.697631579 | P192: Bituminous | W192: 1.67e-06 | X192: 1.452504474e-05 | Y192: 1.67e-06 | Z192: 1.452504474e-05 | AA192: NOx control | AB192: Selective Catalytic Reduction | AC192: 2004-04-01 | AD192: PM control | AE192: Fabric Filter, unspecified | AF192: 2001-07-01 | AG192: SO2 control | AH192: Wet FGD - Unspecified
A193: 8223_2 | B193: coal | C193: 192 | E193: 8223 | F193: Springerville | G193: AZ | H193: 2 | I193: 2 | J193: Conventional Boiler | K193: Tangential firing | L193: 430 | M193: 3830 | N193: 8.906976744 | O193: bituminous | P193: bituminous | W193: 1.67e-06 | X193: 1.487465116e-05 | Y193: 1.67e-06 | Z193: 1.487465116e-05 | AA193: SO2 control | AB193: Dry FGD - Spray Dryer | AC193: 1990-06-01 | AD193: PM control | AE193: Fabric Filter, reverse air | AF193: 1990-06-01
A194: =E194&"_"&I194 -> 994_1 | B194: coal | C194: 193 | E194: 994 | F194: AES Petersburg | G194: IN | H194: 1s | I194: 1 | J194: Conventional Boiler | K194: Tangential firing | L194: 255 | M194: 2200 | N194: 8.62745098 | O194: bituminous | P194: bituminous | W194: 1.739333333e-06 | X194: 1.500601307e-05 | Y194: 1.739333333e-06 | Z194: 1.500601307e-05 | AA194: PM control | AB194: Electrostatic precipitator, cold side, w/ flue gas conditioning | AC194: 1967-12-01 | AD194: SO2 control | AE194: Wet FGD - Spray Type | AF194: 1996-12-01
A195: 1008_2 | B195: coal | C195: 194 | E195: 1008 | F195: R. Gallagher | G195: IN | H195: 2-2007 | I195: 2 | J195: Conventional Boiler | K195: Wall firing - front firing | L195: 150 | M195: 1460 | N195: 9.733333333 | O195: coal - bituminous | P195: bituminous | W195: 1.547203214e-06 | X195: 1.505944461e-05 | Y195: 1.547203214e-06 | Z195: 1.505944461e-05 | AA195: PM control | AB195: Fabric Filter, shake and deflate | AC195: 2007-12-01
A196: 642_2 | B196: coal | C196: 195 | E196: 642 | F196: Scholz | G196: FL | H196: Unit 2 | I196: 2 | J196: Conventional Boiler | K196: Wall firing - front firing | L196: 49 | M196: 644.742 | N196: 13.158 | O196: bituminous | P196: bituminous | Q196: 5.461453305e-06 | T196: 1.152333333e-06 | U196: 1.5162402e-05 | Y196: 1.152333333e-06 | Z196: 1.5162402e-05 | AA196: PM control | AB196: Electrostatic precipitator, cold side, w/o flue gas conditioning | AC196: 2007-12-01
A197: 1043_2SG1 | B197: coal | C197: 196 | E197: 1043 | F197: Frank E. Ratts | G197: IN | H197: 2SG1conf1 | I197: 2SG1 | J197: Conventional Boiler | K197: Wall firing - front firing | L197: 131 | M197: 1142 | N197: 8.717557252 | O197: coal - bituminous | P197: bituminous | W197: 1.822986147e-06 | X197: 1.589198611e-05 | Y197: 1.822986147e-06 | Z197: 1.589198611e-05 | AA197: PM control | AB197: Electrostatic precipitator, cold side, w/o flue gas conditioning | AC197: 1976-12-01
A198: 2094_2 | B198: coal | C198: 197 | E198: 2094 | F198: Sibley | G198: MO | H198: 2 | I198: 2 | J198: Conventional Boiler | K198: Cyclone firing | L198: 51 | M198: 627.3 | N198: 12.3 | O198: subbituminous, bituminous | P198: subbituminous, bituminous | Q198: 6.937957001e-06 | T198: 1.296666667e-06 | U198: 1.5949e-05 | W198: 3.060844159e-06 | X198: 3.764838315e-05 | Y198: 1.296666667e-06 | Z198: 1.5949e-05 | AA198: NOx control | AB198: Selective Noncatalytic Reduction | AC198: 2008-05-01 | AD198: PM control | AE198: Electrostatic precipitator, cold side, w/o flue gas conditioning | AF198: 1990-01-01
A199: 6017_2 | B199: coal | C199: 198 | E199: 6017 | F199: Newton | G199: IL | H199: 002 | I199: 2 | J199: Conventional Boiler | K199: Tangential firing | L199: 620 | M199: 5500 | N199: 8.870967742 | O199: subbituminous | P199: subbituminous | Q199: 5.468752327e-06 | T199: 3.723333333e-06 | U199: 3.302956989e-05 | W199: 1.82e-06 | X199: 1.614516129e-05 | Y199: 1.82e-06 | Z199: 1.614516129e-05 | AA199: Other control | AB199: Other (specify): Flue gas conditioning | AC199: 2001-04-01 | AD199: Other control | AE199: Activated carbon injection | AG199: PM control | AH199: Electrostatic precipitator, cold side, w/ flue gas conditioning
A200: 384_81 | B200: coal | C200: 199 | E200: 384 | F200: Joliet 29 | G200: IL | H200: JOL8CONFIG | I200: 81 | J200: Conventional Boiler | K200: Tangential firing | L200: 271 | M200: 2758.091 | N200: 10.17745756 | O200: coal - subbituminous | P200: subbituminous | W200: 1.642487626e-06 | X200: 1.646666667e-05 | Y200: 1.642487626e-06 | Z200: 1.646666667e-05 | AA200: Other control | AB200: Activated carbon injection | AC200: 2009-07-01 | AD200: Other control | AE200: Activated carbon injection | AF200: 2009-07-01 | AG200: PM control | AH200: Electrostatic precipitator, cold side, w/o flue gas conditioning | AI200: 1966-03-01 | AJ200: PM control | AK200: Electrostatic precipitator, cold side, w/o flue gas conditioning | AL200: 1966-03-01
... 185 more rows

Sheet Hg_Variability_Tests
A1: facility_name | B1: facility_id | C1: boiler_id | D1: configuration_id | E1: HAP | F1: Final_EF | G1: Final_EF_Units | H1: Final_Output_EF | I1: Final_Output_EF_Units | J1: From | K1: Report_id | L1: Hg_Min_lb_per_MWh_Rank | M1: New Souce MACT Floor Test_ID | N1: New Source MACT Floor QA Calc | O1: New Source Floor Agreement of QA Calc | P1: lb/GWh | Q1: 11 | R1: 28 | S1: =R1+3 -> 31 | T1: =S1+3 -> 34 | U1: =T1+3 -> 37 | V1: =U1+3 -> 40 | W1: =V1+3 -> 43
A2: =VLOOKUP(B2&"_"&C2,Hg_Min_Tests!$A:$AZ,6,FALSE) -> Spruance Genco, LLC | B2: 54081 | C2: 2A | D2: GEN2 | E2: Mercury | F2: 2.633333333e-09 | G2: lb/MMBtu | H2: 3.440766551e-08 | I2: lb/MW | J2: ETTS | L2: 1 | P2: =H2*1000 -> 3.440766551e-05 | Q2: =VLOOKUP(B2&"_"&C2,Hg_Min_Tests!$A$1:AA$1000,11,FALSE) -> Stoker - underfeed
A3: =VLOOKUP(B3&"_"&C3,Hg_Min_Tests!$A:$AZ,6,FALSE) -> Spruance Genco, LLC | B3: 54081 | C3: 2B | D3: GEN2 | E3: Mercury | F3: 2.633333333e-09 | G3: lb/MMBtu | H3: 3.440766551e-08 | I3: lb/MW | J3: ETTS | L3: 2 | P3: 3.440766551e-05 | Q3: =VLOOKUP(B3&"_"&C3,Hg_Min_Tests!$A$1:AA$1000,11,FALSE) -> Stoker - underfeed
A4: =VLOOKUP(B4&"_"&C4,Hg_Min_Tests!$A:$AZ,6,FALSE) -> Logan Generating Plant | B4: 10043 | C4: B01 | D4: Unit1 | E4: Mercury | F4: 5.333333333e-09 | G4: lb/MMBtu | H4: 4.669149083e-08 | I4: lb/MW | J4: ETTS | L4: 3 | P4: 4.669149083e-05 | Q4: =VLOOKUP($B4&"_"&$C4,Hg_Min_Tests!$A$1:AAA$1000,Q$1,FALSE) -> Wall firing - opposed firing | R4: =VLOOKUP($B4&"_"&$C4,Hg_Min_Tests!$A$1:AAB$1000,R$1,FALSE) -> Selective Catalytic Reduction | S4: =VLOOKUP($B4&"_"&$C4,Hg_Min_Tests!$A$1:AAC$1000,S$1,FALSE) -> Dry FGD - Spray Dryer | T4: =VLOOKUP($B4&"_"&$C4,Hg_Min_Tests!$A$1:AAD$1000,T$1,FALSE) -> Fabric Filter, reverse air | U4: =VLOOKUP($B4&"_"&$C4,Hg_Min_Tests!$A$1:AAE$1000,U$1,FALSE) ->  | V4: =VLOOKUP($B4&"_"&$C4,Hg_Min_Tests!$A$1:AAF$1000,V$1,FALSE) ->  | W4: =VLOOKUP($B4&"_"&$C4,Hg_Min_Tests!$A$1:AAG$1000,W$1,FALSE) -> 
A5: =VLOOKUP(B5&"_"&C5,Hg_Min_Tests!$A:$AZ,6,FALSE) -> Nucla | B5: 527 | C5: 1 | D5: 001 | E5: Mercury | F5: 5.333333333e-09 | G5: lb/MMBtu | H5: 5.003636364e-08 | I5: lb/MW | J5: Part II | K5: 2009 HG | L5: 4 | M5: =VLOOKUP(H5,Hg_QA_Calcs!B$202:M$230,12,TRUE) -> 1_Hg_T3 | N5: =VLOOKUP(M5,Hg_QA_Calcs!$A$202:$B$204,2,FALSE) -> 5.002666667e-08 | O5: =N5/H5 -> 0.9998062016 | P5: 5.003636364e-05 | Q5: =VLOOKUP(B5&"_"&C5,Hg_Min_Tests!$A$1:AA$1000,11,FALSE) -> Fluidized bed firing | R5: =VLOOKUP($B5&"_"&$C5,Hg_Min_Tests!$A$1:AAB$1000,R$1,FALSE) -> Selective Noncatalytic Reduction | S5: =VLOOKUP($B5&"_"&$C5,Hg_Min_Tests!$A$1:AAC$1000,S$1,FALSE) -> Fabric Filter, shake and deflate | T5: =VLOOKUP($B5&"_"&$C5,Hg_Min_Tests!$A$1:AAD$1000,T$1,FALSE) ->  | U5: =VLOOKUP($B5&"_"&$C5,Hg_Min_Tests!$A$1:AAE$1000,U$1,FALSE) ->  | V5: =VLOOKUP($B5&"_"&$C5,Hg_Min_Tests!$A$1:AAF$1000,V$1,FALSE) ->  | W5: =VLOOKUP($B5&"_"&$C5,Hg_Min_Tests!$A$1:AAG$1000,W$1,FALSE) -> 
A6: =VLOOKUP(B6&"_"&C6,Hg_Min_Tests!$A:$AZ,6,FALSE) -> Nucla | B6: 527 | C6: 1 | D6: 001 | E6: Mercury | F6: 6e-09 | G6: lb/MMBtu | H6: 5.629090909e-08 | I6: lb/MW | J6: Part II | K6: 2008 Hg | L6: 4 | M6: =VLOOKUP(H6,Hg_QA_Calcs!B$202:M$230,12,TRUE) -> 1_Hg_T2 | N6: =VLOOKUP(M6,Hg_QA_Calcs!$A$202:$B$204,2,FALSE) -> 5.628e-08 | O6: =N6/H6 -> 0.9998062016 | P6: 5.629090909e-05 | Q6: =VLOOKUP(B6&"_"&C6,Hg_Min_Tests!$A$1:AA$1000,11,FALSE) -> Fluidized bed firing | R6: =VLOOKUP($B6&"_"&$C6,Hg_Min_Tests!$A$1:AAB$1000,R$1,FALSE) -> Selective Noncatalytic Reduction | S6: =VLOOKUP($B6&"_"&$C6,Hg_Min_Tests!$A$1:AAC$1000,S$1,FALSE) -> Fabric Filter, shake and deflate | T6: =VLOOKUP($B6&"_"&$C6,Hg_Min_Tests!$A$1:AAD$1000,T$1,FALSE) ->  | U6: =VLOOKUP($B6&"_"&$C6,Hg_Min_Tests!$A$1:AAE$1000,U$1,FALSE) ->  | V6: =VLOOKUP($B6&"_"&$C6,Hg_Min_Tests!$A$1:AAF$1000,V$1,FALSE) ->  | W6: =VLOOKUP($B6&"_"&$C6,Hg_Min_Tests!$A$1:AAG$1000,W$1,FALSE) -> 
A7: =VLOOKUP(B7&"_"&C7,Hg_Min_Tests!$A:$AZ,6,FALSE) -> Nucla | B7: 527 | C7: 1 | D7: 001 | E7: Mercury | F7: 9.853333333e-09 | G7: lb/MMBtu | H7: 9.244218182e-08 | I7: lb/MW | J7: ETTS | L7: 4 | M7: =VLOOKUP(H7,Hg_QA_Calcs!B$202:M$230,12,TRUE) -> 1_Hg_T1 | N7: =VLOOKUP(M7,Hg_QA_Calcs!$A$202:$B$204,2,FALSE) -> 9.242426667e-08 | O7: =N7/H7 -> 0.9998062016 | P7: 9.244218182e-05 | Q7: =VLOOKUP(B7&"_"&C7,Hg_Min_Tests!$A$1:AA$1000,11,FALSE) -> Fluidized bed firing | R7: =VLOOKUP($B7&"_"&$C7,Hg_Min_Tests!$A$1:AAB$1000,R$1,FALSE) -> Selective Noncatalytic Reduction | S7: =VLOOKUP($B7&"_"&$C7,Hg_Min_Tests!$A$1:AAC$1000,S$1,FALSE) -> Fabric Filter, shake and deflate | T7: =VLOOKUP($B7&"_"&$C7,Hg_Min_Tests!$A$1:AAD$1000,T$1,FALSE) ->  | U7: =VLOOKUP($B7&"_"&$C7,Hg_Min_Tests!$A$1:AAE$1000,U$1,FALSE) ->  | V7: =VLOOKUP($B7&"_"&$C7,Hg_Min_Tests!$A$1:AAF$1000,V$1,FALSE) ->  | W7: =VLOOKUP($B7&"_"&$C7,Hg_Min_Tests!$A$1:AAG$1000,W$1,FALSE) -> 
A8: =VLOOKUP(B8&"_"&C8,Hg_Min_Tests!$A:$AZ,6,FALSE) -> Spruance Genco, LLC | B8: 54081 | C8: 3A | D8: GEN3 | E8: Mercury | F8: 4.69e-09 | G8: lb/MMBtu | H8: 6.12804878e-08 | I8: lb/MW | J8: ETTS | L8: 5 | P8: 6.12804878e-05 | Q8: =VLOOKUP(B8&"_"&C8,Hg_Min_Tests!$A$1:AA$1000,11,FALSE) -> Stoker - underfeed
A9: =VLOOKUP(B9&"_"&C9,Hg_Min_Tests!$A:$AZ,6,FALSE) -> Spruance Genco, LLC | B9: 54081 | C9: 3B | D9: GEN3 | E9: Mercury | F9: 4.69e-09 | G9: lb/MMBtu | H9: 6.12804878e-08 | I9: lb/MW | J9: ETTS | L9: 6 | P9: 6.12804878e-05 | Q9: =VLOOKUP(B9&"_"&C9,Hg_Min_Tests!$A$1:AA$1000,11,FALSE) -> Stoker - underfeed
A10: =VLOOKUP(B10&"_"&C10,Hg_Min_Tests!$A:$AZ,6,FALSE) -> AES Greenidge | B10: 2527 | C10: 6 | D10: Unit 4 | E10: Mercury | F10: 6.460166022e-09 | G10: lb/MMBtu | H10: 6.442862006e-08 | I10: lb/MW | J10: Part II | K10: Hg July 2009 | L10: 7 | P10: 6.442862006e-05 | Q10: =VLOOKUP(B10&"_"&C10,Hg_Min_Tests!$A$1:AA$1000,11,FALSE) -> Tangential firing | R10: =VLOOKUP($B10&"_"&$C10,Hg_Min_Tests!$A$1:AAB$1000,R$1,FALSE) -> Selective Catalytic Reduction | S10: =VLOOKUP($B10&"_"&$C10,Hg_Min_Tests!$A$1:AAC$1000,S$1,FALSE) -> Selective Noncatalytic Reduction | T10: =VLOOKUP($B10&"_"&$C10,Hg_Min_Tests!$A$1:AAD$1000,T$1,FALSE) -> Activated carbon injection | U10: =VLOOKUP($B10&"_"&$C10,Hg_Min_Tests!$A$1:AAE$1000,U$1,FALSE) -> Dry FGD - Circulating Dry Scrubber | V10: =VLOOKUP($B10&"_"&$C10,Hg_Min_Tests!$A$1:AAF$1000,V$1,FALSE) -> Fabric Filter, pulse | W10: =VLOOKUP($B10&"_"&$C10,Hg_Min_Tests!$A$1:AAG$1000,W$1,FALSE) -> 
A11: =VLOOKUP(B11&"_"&C11,Hg_Min_Tests!$A:$AZ,6,FALSE) -> AES Greenidge | B11: 2527 | C11: 6 | D11: Unit 4 | E11: Mercury | F11: 7.677098143e-08 | G11: lb/MMBtu | H11: 7.656534487e-07 | I11: lb/MW | J11: Part II | K11: Hg June 2008 | L11: 7 | P11: 0.0007656534487 | Q11: =VLOOKUP(B11&"_"&C11,Hg_Min_Tests!$A$1:AA$1000,11,FALSE) -> Tangential firing | R11: =VLOOKUP($B11&"_"&$C11,Hg_Min_Tests!$A$1:AAB$1000,R$1,FALSE) -> Selective Catalytic Reduction | S11: =VLOOKUP($B11&"_"&$C11,Hg_Min_Tests!$A$1:AAC$1000,S$1,FALSE) -> Selective Noncatalytic Reduction | T11: =VLOOKUP($B11&"_"&$C11,Hg_Min_Tests!$A$1:AAD$1000,T$1,FALSE) -> Activated carbon injection | U11: =VLOOKUP($B11&"_"&$C11,Hg_Min_Tests!$A$1:AAE$1000,U$1,FALSE) -> Dry FGD - Circulating Dry Scrubber | V11: =VLOOKUP($B11&"_"&$C11,Hg_Min_Tests!$A$1:AAF$1000,V$1,FALSE) -> Fabric Filter, pulse | W11: =VLOOKUP($B11&"_"&$C11,Hg_Min_Tests!$A$1:AAG$1000,W$1,FALSE) -> 
A12: =VLOOKUP(B12&"_"&C12,Hg_Min_Tests!$A:$AZ,6,FALSE) -> Seward | B12: 3130 | C12: 1 | D12: SEW-1 | E12: Mercury | F12: 6.35e-09 | G12: lb/MMBtu | H12: 6.72991453e-08 | I12: lb/MW | J12: ETTS | L12: 8 | P12: 6.72991453e-05 | Q12: =VLOOKUP(B12&"_"&C12,Hg_Min_Tests!$A$1:AA$1000,11,FALSE) -> Fluidized bed firing | R12: =VLOOKUP($B12&"_"&$C12,Hg_Min_Tests!$A$1:AAB$1000,R$1,FALSE) -> Selective Noncatalytic Reduction | S12: =VLOOKUP($B12&"_"&$C12,Hg_Min_Tests!$A$1:AAC$1000,S$1,FALSE) -> Fabric Filter, pulse | T12: =VLOOKUP($B12&"_"&$C12,Hg_Min_Tests!$A$1:AAD$1000,T$1,FALSE) ->  | U12: =VLOOKUP($B12&"_"&$C12,Hg_Min_Tests!$A$1:AAE$1000,U$1,FALSE) ->  | V12: =VLOOKUP($B12&"_"&$C12,Hg_Min_Tests!$A$1:AAF$1000,V$1,FALSE) ->  | W12: =VLOOKUP($B12&"_"&$C12,Hg_Min_Tests!$A$1:AAG$1000,W$1,FALSE) -> 
A13: =VLOOKUP(B13&"_"&C13,Hg_Min_Tests!$A:$AZ,6,FALSE) -> Seward | B13: 3130 | C13: 1 | D13: SEW-1 | E13: Mercury | F13: 3.8e-08 | G13: lb/MMBtu | H13: 4.027350427e-07 | I13: lb/MW | J13: Part II | K13: ER 1 | L13: 8 | P13: 0.0004027350427 | Q13: =VLOOKUP(B13&"_"&C13,Hg_Min_Tests!$A$1:AA$1000,11,FALSE) -> Fluidized bed firing | R13: =VLOOKUP($B13&"_"&$C13,Hg_Min_Tests!$A$1:AAB$1000,R$1,FALSE) -> Selective Noncatalytic Reduction | S13: =VLOOKUP($B13&"_"&$C13,Hg_Min_Tests!$A$1:AAC$1000,S$1,FALSE) -> Fabric Filter, pulse | T13: =VLOOKUP($B13&"_"&$C13,Hg_Min_Tests!$A$1:AAD$1000,T$1,FALSE) ->  | U13: =VLOOKUP($B13&"_"&$C13,Hg_Min_Tests!$A$1:AAE$1000,U$1,FALSE) ->  | V13: =VLOOKUP($B13&"_"&$C13,Hg_Min_Tests!$A$1:AAF$1000,V$1,FALSE) ->  | W13: =VLOOKUP($B13&"_"&$C13,Hg_Min_Tests!$A$1:AAG$1000,W$1,FALSE) -> 
A14: =VLOOKUP(B14&"_"&C14,Hg_Min_Tests!$A:$AZ,6,FALSE) -> Seward | B14: 3130 | C14: 1 | D14: SEW-1 | E14: Mercury | F14: 5.533333333e-08 | G14: lb/MMBtu | H14: 5.864387464e-07 | I14: lb/MW | J14: Part II | K14: ER 2 | L14: 8 | P14: 0.0005864387464 | Q14: =VLOOKUP(B14&"_"&C14,Hg_Min_Tests!$A$1:AA$1000,11,FALSE) -> Fluidized bed firing | R14: =VLOOKUP($B14&"_"&$C14,Hg_Min_Tests!$A$1:AAB$1000,R$1,FALSE) -> Selective Noncatalytic Reduction | S14: =VLOOKUP($B14&"_"&$C14,Hg_Min_Tests!$A$1:AAC$1000,S$1,FALSE) -> Fabric Filter, pulse | T14: =VLOOKUP($B14&"_"&$C14,Hg_Min_Tests!$A$1:AAD$1000,T$1,FALSE) ->  | U14: =VLOOKUP($B14&"_"&$C14,Hg_Min_Tests!$A$1:AAE$1000,U$1,FALSE) ->  | V14: =VLOOKUP($B14&"_"&$C14,Hg_Min_Tests!$A$1:AAF$1000,V$1,FALSE) ->  | W14: =VLOOKUP($B14&"_"&$C14,Hg_Min_Tests!$A$1:AAG$1000,W$1,FALSE) -> 
A15: =VLOOKUP(B15&"_"&C15,Hg_Min_Tests!$A:$AZ,6,FALSE) -> Seward | B15: 3130 | C15: 2 | D15: SEW-1 | E15: Mercury | F15: 6.35e-09 | G15: lb/MMBtu | H15: 6.72991453e-08 | I15: lb/MW | J15: ETTS | L15: 9 | P15: 6.72991453e-05 | Q15: =VLOOKUP(B15&"_"&C15,Hg_Min_Tests!$A$1:AA$1000,11,FALSE) -> Fluidized bed firing | R15: =VLOOKUP($B15&"_"&$C15,Hg_Min_Tests!$A$1:AAB$1000,R$1,FALSE) -> Selective Noncatalytic Reduction | S15: =VLOOKUP($B15&"_"&$C15,Hg_Min_Tests!$A$1:AAC$1000,S$1,FALSE) -> Fabric Filter, pulse | T15: =VLOOKUP($B15&"_"&$C15,Hg_Min_Tests!$A$1:AAD$1000,T$1,FALSE) ->  | U15: =VLOOKUP($B15&"_"&$C15,Hg_Min_Tests!$A$1:AAE$1000,U$1,FALSE) ->  | V15: =VLOOKUP($B15&"_"&$C15,Hg_Min_Tests!$A$1:AAF$1000,V$1,FALSE) ->  | W15: =VLOOKUP($B15&"_"&$C15,Hg_Min_Tests!$A$1:AAG$1000,W$1,FALSE) -> 
A16: =VLOOKUP(B16&"_"&C16,Hg_Min_Tests!$A:$AZ,6,FALSE) -> Seward | B16: 3130 | C16: 2 | D16: SEW-1 | E16: Mercury | F16: 3.8e-08 | G16: lb/MMBtu | H16: 4.027350427e-07 | I16: lb/MW | J16: Part II | K16: ER 1 | L16: 9 | P16: 0.0004027350427 | Q16: =VLOOKUP(B16&"_"&C16,Hg_Min_Tests!$A$1:AA$1000,11,FALSE) -> Fluidized bed firing | R16: =VLOOKUP($B16&"_"&$C16,Hg_Min_Tests!$A$1:AAB$1000,R$1,FALSE) -> Selective Noncatalytic Reduction | S16: =VLOOKUP($B16&"_"&$C16,Hg_Min_Tests!$A$1:AAC$1000,S$1,FALSE) -> Fabric Filter, pulse | T16: =VLOOKUP($B16&"_"&$C16,Hg_Min_Tests!$A$1:AAD$1000,T$1,FALSE) ->  | U16: =VLOOKUP($B16&"_"&$C16,Hg_Min_Tests!$A$1:AAE$1000,U$1,FALSE) ->  | V16: =VLOOKUP($B16&"_"&$C16,Hg_Min_Tests!$A$1:AAF$1000,V$1,FALSE) ->  | W16: =VLOOKUP($B16&"_"&$C16,Hg_Min_Tests!$A$1:AAG$1000,W$1,FALSE) -> 
A17: =VLOOKUP(B17&"_"&C17,Hg_Min_Tests!$A:$AZ,6,FALSE) -> Seward | B17: 3130 | C17: 2 | D17: SEW-1 | E17: Mercury | F17: 5.533333333e-08 | G17: lb/MMBtu | H17: 5.864387464e-07 | I17: lb/MW | J17: Part II | K17: ER 2 | L17: 9 | P17: 0.0005864387464 | Q17: =VLOOKUP(B17&"_"&C17,Hg_Min_Tests!$A$1:AA$1000,11,FALSE) -> Fluidized bed firing | R17: =VLOOKUP($B17&"_"&$C17,Hg_Min_Tests!$A$1:AAB$1000,R$1,FALSE) -> Selective Noncatalytic Reduction | S17: =VLOOKUP($B17&"_"&$C17,Hg_Min_Tests!$A$1:AAC$1000,S$1,FALSE) -> Fabric Filter, pulse | T17: =VLOOKUP($B17&"_"&$C17,Hg_Min_Tests!$A$1:AAD$1000,T$1,FALSE) ->  | U17: =VLOOKUP($B17&"_"&$C17,Hg_Min_Tests!$A$1:AAE$1000,U$1,FALSE) ->  | V17: =VLOOKUP($B17&"_"&$C17,Hg_Min_Tests!$A$1:AAF$1000,V$1,FALSE) ->  | W17: =VLOOKUP($B17&"_"&$C17,Hg_Min_Tests!$A$1:AAG$1000,W$1,FALSE) -> 
A18: =VLOOKUP(B18&"_"&C18,Hg_Min_Tests!$A:$AZ,6,FALSE) -> Roanoke Valley I | B18: 54035 | C18: BLR1 | D18: Boiler 1 | E18: Mercury | F18: 7.263333333e-09 | G18: lb/MMBtu | H18: 6.784432234e-08 | I18: lb/MW | J18: ETTS | L18: 10 | P18: 6.784432234e-05 | Q18: =VLOOKUP(B18&"_"&C18,Hg_Min_Tests!$A$1:AA$1000,11,FALSE) -> Wall firing - front firing | R18: =VLOOKUP($B18&"_"&$C18,Hg_Min_Tests!$A$1:AAB$1000,R$1,FALSE) -> Dry FGD - Spray Dryer | S18: =VLOOKUP($B18&"_"&$C18,Hg_Min_Tests!$A$1:AAC$1000,S$1,FALSE) -> Fabric Filter, reverse air | T18: =VLOOKUP($B18&"_"&$C18,Hg_Min_Tests!$A$1:AAD$1000,T$1,FALSE) ->  | U18: =VLOOKUP($B18&"_"&$C18,Hg_Min_Tests!$A$1:AAE$1000,U$1,FALSE) ->  | V18: =VLOOKUP($B18&"_"&$C18,Hg_Min_Tests!$A$1:AAF$1000,V$1,FALSE) ->  | W18: =VLOOKUP($B18&"_"&$C18,Hg_Min_Tests!$A$1:AAG$1000,W$1,FALSE) -> 
A19: =VLOOKUP(B19&"_"&C19,Hg_Min_Tests!$A:$AZ,6,FALSE) -> INDIANTOWN COGENERATION L.P. | B19: 50976 | C19: AABO1 | D19: 001 | E19: Mercury | F19: 8.538448684e-09 | G19: lb/MMBtu | H19: 8.09378709e-08 | I19: lb/MW | J19: ETTS | L19: 11 | P19: 8.09378709e-05 | Q19: =VLOOKUP(B19&"_"&C19,Hg_Min_Tests!$A$1:AA$1000,11,FALSE) -> Wall firing - opposed firing | R19: =VLOOKUP($B19&"_"&$C19,Hg_Min_Tests!$A$1:AAB$1000,R$1,FALSE) -> Selective Catalytic Reduction | S19: =VLOOKUP($B19&"_"&$C19,Hg_Min_Tests!$A$1:AAC$1000,S$1,FALSE) -> Dry FGD - Spray Dryer | T19: =VLOOKUP($B19&"_"&$C19,Hg_Min_Tests!$A$1:AAD$1000,T$1,FALSE) -> Fabric Filter, pulse | U19: =VLOOKUP($B19&"_"&$C19,Hg_Min_Tests!$A$1:AAE$1000,U$1,FALSE) ->  | V19: =VLOOKUP($B19&"_"&$C19,Hg_Min_Tests!$A$1:AAF$1000,V$1,FALSE) ->  | W19: =VLOOKUP($B19&"_"&$C19,Hg_Min_Tests!$A$1:AAG$1000,W$1,FALSE) -> 
A20: =VLOOKUP(B20&"_"&C20,Hg_Min_Tests!$A:$AZ,6,FALSE) -> INDIANTOWN COGENERATION L.P. | B20: 50976 | C20: AABO1 | D20: 001 | E20: Mercury | F20: 5.49e-07 | G20: lb/MMBtu | H20: 5.204094183e-06 | I20: lb/MW | J20: Part II | K20: 10669-3 | L20: 11 | P20: =H20*1000 -> 0.005204094183 | Q20: =VLOOKUP(B20&"_"&C20,Hg_Min_Tests!$A$1:AA$1000,11,FALSE) -> Wall firing - opposed firing | R20: =VLOOKUP($B20&"_"&$C20,Hg_Min_Tests!$A$1:AAB$1000,R$1,FALSE) -> Selective Catalytic Reduction | S20: =VLOOKUP($B20&"_"&$C20,Hg_Min_Tests!$A$1:AAC$1000,S$1,FALSE) -> Dry FGD - Spray Dryer | T20: =VLOOKUP($B20&"_"&$C20,Hg_Min_Tests!$A$1:AAD$1000,T$1,FALSE) -> Fabric Filter, pulse | U20: =VLOOKUP($B20&"_"&$C20,Hg_Min_Tests!$A$1:AAE$1000,U$1,FALSE) ->  | V20: =VLOOKUP($B20&"_"&$C20,Hg_Min_Tests!$A$1:AAF$1000,V$1,FALSE) ->  | W20: =VLOOKUP($B20&"_"&$C20,Hg_Min_Tests!$A$1:AAG$1000,W$1,FALSE) -> 
A21: =VLOOKUP(B21&"_"&C21,Hg_Min_Tests!$A:$AZ,6,FALSE) -> AES Westover, LLC | B21: 2526 | C21: 13 | D21: 8 | E21: Mercury | F21: 8.145573109e-09 | G21: lb/MMBtu | H21: 8.287647059e-08 | I21: lb/MW | J21: Part II | K21: Mercury2009PostMPC | L21: 12 | P21: 8.287647059e-05 | Q21: =VLOOKUP(B21&"_"&C21,Hg_Min_Tests!$A$1:AA$1000,11,FALSE) -> Tangential firing | R21: =VLOOKUP($B21&"_"&$C21,Hg_Min_Tests!$A$1:AAB$1000,R$1,FALSE) -> Selective Catalytic Reduction | S21: =VLOOKUP($B21&"_"&$C21,Hg_Min_Tests!$A$1:AAC$1000,S$1,FALSE) -> Dry FGD - Spray Dryer | T21: =VLOOKUP($B21&"_"&$C21,Hg_Min_Tests!$A$1:AAD$1000,T$1,FALSE) -> Fabric Filter, pulse | U21: =VLOOKUP($B21&"_"&$C21,Hg_Min_Tests!$A$1:AAE$1000,U$1,FALSE) ->  | V21: =VLOOKUP($B21&"_"&$C21,Hg_Min_Tests!$A$1:AAF$1000,V$1,FALSE) ->  | W21: =VLOOKUP($B21&"_"&$C21,Hg_Min_Tests!$A$1:AAG$1000,W$1,FALSE) -> 
A22: =VLOOKUP(B22&"_"&C22,Hg_Min_Tests!$A:$AZ,6,FALSE) -> Northampton Generating Company, L.P. | B22: 50888 | C22: BLR1 | D22: GEN1 | E22: Mercury | F22: 1.039666667e-08 | G22: lb/MMBtu | H22: 9.846760331e-08 | I22: lb/MW | J22: ETTS | L22: 13 | P22: 9.846760331e-05 | Q22: =VLOOKUP(B22&"_"&C22,Hg_Min_Tests!$A$1:AA$1000,11,FALSE) -> Fluidized bed firing | R22: =VLOOKUP($B22&"_"&$C22,Hg_Min_Tests!$A$1:AAB$1000,R$1,FALSE) -> Selective Noncatalytic Reduction | S22: =VLOOKUP($B22&"_"&$C22,Hg_Min_Tests!$A$1:AAC$1000,S$1,FALSE) -> Fabric Filter, pulse | T22: =VLOOKUP($B22&"_"&$C22,Hg_Min_Tests!$A$1:AAD$1000,T$1,FALSE) ->  | U22: =VLOOKUP($B22&"_"&$C22,Hg_Min_Tests!$A$1:AAE$1000,U$1,FALSE) ->  | V22: =VLOOKUP($B22&"_"&$C22,Hg_Min_Tests!$A$1:AAF$1000,V$1,FALSE) ->  | W22: =VLOOKUP($B22&"_"&$C22,Hg_Min_Tests!$A$1:AAG$1000,W$1,FALSE) -> 
A23: =VLOOKUP(B23&"_"&C23,Hg_Min_Tests!$A:$AZ,6,FALSE) -> Northampton Generating Company, L.P. | B23: 50888 | C23: BLR1 | D23: GEN1 | E23: Mercury | F23: 1.287209491e-07 | G23: lb/MMBtu | H23: 1.219125683e-06 | I23: lb/MW | J23: Part II | K23: TDF 2009 Stack Test - #226-013 | L23: 13 | P23: 0.001219125683 | Q23: =VLOOKUP(B23&"_"&C23,Hg_Min_Tests!$A$1:AA$1000,11,FALSE) -> Fluidized bed firing | R23: =VLOOKUP($B23&"_"&$C23,Hg_Min_Tests!$A$1:AAB$1000,R$1,FALSE) -> Selective Noncatalytic Reduction | S23: =VLOOKUP($B23&"_"&$C23,Hg_Min_Tests!$A$1:AAC$1000,S$1,FALSE) -> Fabric Filter, pulse | T23: =VLOOKUP($B23&"_"&$C23,Hg_Min_Tests!$A$1:AAD$1000,T$1,FALSE) ->  | U23: =VLOOKUP($B23&"_"&$C23,Hg_Min_Tests!$A$1:AAE$1000,U$1,FALSE) ->  | V23: =VLOOKUP($B23&"_"&$C23,Hg_Min_Tests!$A$1:AAF$1000,V$1,FALSE) ->  | W23: =VLOOKUP($B23&"_"&$C23,Hg_Min_Tests!$A$1:AAG$1000,W$1,FALSE) -> 
A24: =VLOOKUP(B24&"_"&C24,Hg_Min_Tests!$A:$AZ,6,FALSE) -> AES Thames | B24: 10675 | C24: A | D24: A | E24: Mercury | F24: 1.05e-08 | G24: lb/MMBtu | H24: 1.011634615e-07 | I24: lb/MW | J24: Part II | K24: 5 | L24: 14 | P24: 0.0001011634615 | Q24: =VLOOKUP(B24&"_"&C24,Hg_Min_Tests!$A$1:AA$1000,11,FALSE) -> Fluidized bed firing | R24: =VLOOKUP($B24&"_"&$C24,Hg_Min_Tests!$A$1:AAB$1000,R$1,FALSE) -> Dry FGD - Circulating Dry Scrubber | S24: =VLOOKUP($B24&"_"&$C24,Hg_Min_Tests!$A$1:AAC$1000,S$1,FALSE) -> Fabric Filter, pulse | T24: =VLOOKUP($B24&"_"&$C24,Hg_Min_Tests!$A$1:AAD$1000,T$1,FALSE) ->  | U24: =VLOOKUP($B24&"_"&$C24,Hg_Min_Tests!$A$1:AAE$1000,U$1,FALSE) ->  | V24: =VLOOKUP($B24&"_"&$C24,Hg_Min_Tests!$A$1:AAF$1000,V$1,FALSE) ->  | W24: =VLOOKUP($B24&"_"&$C24,Hg_Min_Tests!$A$1:AAG$1000,W$1,FALSE) -> 
A25: =VLOOKUP(B25&"_"&C25,Hg_Min_Tests!$A:$AZ,6,FALSE) -> AES Thames | B25: 10675 | C25: A | D25: A | E25: Mercury | F25: 1.23e-08 | G25: lb/MMBtu | H25: 1.185057692e-07 | I25: lb/MW | J25: Part II | K25: 4 | L25: 14 | P25: 0.0001185057692 | Q25: =VLOOKUP(B25&"_"&C25,Hg_Min_Tests!$A$1:AA$1000,11,FALSE) -> Fluidized bed firing | R25: =VLOOKUP($B25&"_"&$C25,Hg_Min_Tests!$A$1:AAB$1000,R$1,FALSE) -> Dry FGD - Circulating Dry Scrubber | S25: =VLOOKUP($B25&"_"&$C25,Hg_Min_Tests!$A$1:AAC$1000,S$1,FALSE) -> Fabric Filter, pulse | T25: =VLOOKUP($B25&"_"&$C25,Hg_Min_Tests!$A$1:AAD$1000,T$1,FALSE) ->  | U25: =VLOOKUP($B25&"_"&$C25,Hg_Min_Tests!$A$1:AAE$1000,U$1,FALSE) ->  | V25: =VLOOKUP($B25&"_"&$C25,Hg_Min_Tests!$A$1:AAF$1000,V$1,FALSE) ->  | W25: =VLOOKUP($B25&"_"&$C25,Hg_Min_Tests!$A$1:AAG$1000,W$1,FALSE) -> 
A26: =VLOOKUP(B26&"_"&C26,Hg_Min_Tests!$A:$AZ,6,FALSE) -> AES Thames | B26: 10675 | C26: A | D26: A | E26: Mercury | F26: 1.38e-08 | G26: lb/MMBtu | H26: 1.329576923e-07 | I26: lb/MW | J26: Part II | K26: 6 | L26: 14 | P26: 0.0001329576923 | Q26: =VLOOKUP(B26&"_"&C26,Hg_Min_Tests!$A$1:AA$1000,11,FALSE) -> Fluidized bed firing | R26: =VLOOKUP($B26&"_"&$C26,Hg_Min_Tests!$A$1:AAB$1000,R$1,FALSE) -> Dry FGD - Circulating Dry Scrubber | S26: =VLOOKUP($B26&"_"&$C26,Hg_Min_Tests!$A$1:AAC$1000,S$1,FALSE) -> Fabric Filter, pulse | T26: =VLOOKUP($B26&"_"&$C26,Hg_Min_Tests!$A$1:AAD$1000,T$1,FALSE) ->  | U26: =VLOOKUP($B26&"_"&$C26,Hg_Min_Tests!$A$1:AAE$1000,U$1,FALSE) ->  | V26: =VLOOKUP($B26&"_"&$C26,Hg_Min_Tests!$A$1:AAF$1000,V$1,FALSE) ->  | W26: =VLOOKUP($B26&"_"&$C26,Hg_Min_Tests!$A$1:AAG$1000,W$1,FALSE) -> 
A27: =VLOOKUP(B27&"_"&C27,Hg_Min_Tests!$A:$AZ,6,FALSE) -> AES Thames | B27: 10675 | C27: B | D27: B | E27: Mercury | F27: 1.05e-08 | G27: lb/MMBtu | H27: 1.011634615e-07 | I27: lb/MW | J27: Part II | K27: 5 | L27: 15 | P27: 0.0001011634615 | Q27: =VLOOKUP(B27&"_"&C27,Hg_Min_Tests!$A$1:AA$1000,11,FALSE) -> Fluidized bed firing | R27: =VLOOKUP($B27&"_"&$C27,Hg_Min_Tests!$A$1:AAB$1000,R$1,FALSE) -> Dry FGD - Circulating Dry Scrubber | S27: =VLOOKUP($B27&"_"&$C27,Hg_Min_Tests!$A$1:AAC$1000,S$1,FALSE) -> Fabric Filter, pulse | T27: =VLOOKUP($B27&"_"&$C27,Hg_Min_Tests!$A$1:AAD$1000,T$1,FALSE) ->  | U27: =VLOOKUP($B27&"_"&$C27,Hg_Min_Tests!$A$1:AAE$1000,U$1,FALSE) ->  | V27: =VLOOKUP($B27&"_"&$C27,Hg_Min_Tests!$A$1:AAF$1000,V$1,FALSE) ->  | W27: =VLOOKUP($B27&"_"&$C27,Hg_Min_Tests!$A$1:AAG$1000,W$1,FALSE) -> 
A28: =VLOOKUP(B28&"_"&C28,Hg_Min_Tests!$A:$AZ,6,FALSE) -> AES Thames | B28: 10675 | C28: B | D28: B | E28: Mercury | F28: 1.23e-08 | G28: lb/MMBtu | H28: 1.185057692e-07 | I28: lb/MW | J28: Part II | K28: 4 | L28: 15 | P28: 0.0001185057692 | Q28: =VLOOKUP(B28&"_"&C28,Hg_Min_Tests!$A$1:AA$1000,11,FALSE) -> Fluidized bed firing | R28: =VLOOKUP($B28&"_"&$C28,Hg_Min_Tests!$A$1:AAB$1000,R$1,FALSE) -> Dry FGD - Circulating Dry Scrubber | S28: =VLOOKUP($B28&"_"&$C28,Hg_Min_Tests!$A$1:AAC$1000,S$1,FALSE) -> Fabric Filter, pulse | T28: =VLOOKUP($B28&"_"&$C28,Hg_Min_Tests!$A$1:AAD$1000,T$1,FALSE) ->  | U28: =VLOOKUP($B28&"_"&$C28,Hg_Min_Tests!$A$1:AAE$1000,U$1,FALSE) ->  | V28: =VLOOKUP($B28&"_"&$C28,Hg_Min_Tests!$A$1:AAF$1000,V$1,FALSE) ->  | W28: =VLOOKUP($B28&"_"&$C28,Hg_Min_Tests!$A$1:AAG$1000,W$1,FALSE) -> 
A29: =VLOOKUP(B29&"_"&C29,Hg_Min_Tests!$A:$AZ,6,FALSE) -> AES Thames | B29: 10675 | C29: B | D29: B | E29: Mercury | F29: 1.38e-08 | G29: lb/MMBtu | H29: 1.329576923e-07 | I29: lb/MW | J29: Part II | K29: 6 | L29: 15 | P29: 0.0001329576923 | Q29: =VLOOKUP(B29&"_"&C29,Hg_Min_Tests!$A$1:AA$1000,11,FALSE) -> Fluidized bed firing | R29: =VLOOKUP($B29&"_"&$C29,Hg_Min_Tests!$A$1:AAB$1000,R$1,FALSE) -> Dry FGD - Circulating Dry Scrubber | S29: =VLOOKUP($B29&"_"&$C29,Hg_Min_Tests!$A$1:AAC$1000,S$1,FALSE) -> Fabric Filter, pulse | T29: =VLOOKUP($B29&"_"&$C29,Hg_Min_Tests!$A$1:AAD$1000,T$1,FALSE) ->  | U29: =VLOOKUP($B29&"_"&$C29,Hg_Min_Tests!$A$1:AAE$1000,U$1,FALSE) ->  | V29: =VLOOKUP($B29&"_"&$C29,Hg_Min_Tests!$A$1:AAF$1000,V$1,FALSE) ->  | W29: =VLOOKUP($B29&"_"&$C29,Hg_Min_Tests!$A$1:AAG$1000,W$1,FALSE) -> 
A30: =VLOOKUP(B30&"_"&C30,Hg_Min_Tests!$A:$AZ,6,FALSE) -> AES Hawaii | B30: 10673 | C30: BLR A | D30: 001 | E30: Mercury | F30: 1.171062419e-08 | G30: lb/MMBtu | H30: 1.178446458e-07 | I30: lb/MW | J30: ETTS | L30: 16 | P30: 0.0001178446458 | Q30: =VLOOKUP(B30&"_"&C30,Hg_Min_Tests!$A$1:AA$1000,11,FALSE) -> Fluidized bed firing | R30: =VLOOKUP($B30&"_"&$C30,Hg_Min_Tests!$A$1:AAB$1000,R$1,FALSE) -> Selective Noncatalytic Reduction | S30: =VLOOKUP($B30&"_"&$C30,Hg_Min_Tests!$A$1:AAC$1000,S$1,FALSE) -> Fabric Filter, unspecified | T30: =VLOOKUP($B30&"_"&$C30,Hg_Min_Tests!$A$1:AAD$1000,T$1,FALSE) ->  | U30: =VLOOKUP($B30&"_"&$C30,Hg_Min_Tests!$A$1:AAE$1000,U$1,FALSE) ->  | V30: =VLOOKUP($B30&"_"&$C30,Hg_Min_Tests!$A$1:AAF$1000,V$1,FALSE) ->  | W30: =VLOOKUP($B30&"_"&$C30,Hg_Min_Tests!$A$1:AAG$1000,W$1,FALSE) -> 
A31: =VLOOKUP(B31&"_"&C31,Hg_Min_Tests!$A:$AZ,6,FALSE) -> Roanoke Valley II | B31: 54755 | C31: BLR2 | D31: Boiler 2 | E31: Mercury | F31: 1.076e-08 | G31: lb/MMBtu | H31: 1.20512e-07 | I31: lb/MW | J31: ETTS | L31: 17 | P31: 0.000120512 | Q31: =VLOOKUP(B31&"_"&C31,Hg_Min_Tests!$A$1:AA$1000,11,FALSE) -> Wall firing - front firing | R31: =VLOOKUP($B31&"_"&$C31,Hg_Min_Tests!$A$1:AAB$1000,R$1,FALSE) -> Selective Noncatalytic Reduction | S31: =VLOOKUP($B31&"_"&$C31,Hg_Min_Tests!$A$1:AAC$1000,S$1,FALSE) -> Dry FGD - Spray Dryer | T31: =VLOOKUP($B31&"_"&$C31,Hg_Min_Tests!$A$1:AAD$1000,T$1,FALSE) -> Fabric Filter, pulse | U31: =VLOOKUP($B31&"_"&$C31,Hg_Min_Tests!$A$1:AAE$1000,U$1,FALSE) ->  | V31: =VLOOKUP($B31&"_"&$C31,Hg_Min_Tests!$A$1:AAF$1000,V$1,FALSE) ->  | W31: =VLOOKUP($B31&"_"&$C31,Hg_Min_Tests!$A$1:AAG$1000,W$1,FALSE) -> 
A32: =VLOOKUP(B32&"_"&C32,Hg_Min_Tests!$A:$AZ,6,FALSE) -> AES Hawaii | B32: 10673 | C32: BLR B | D32: 002 | E32: Mercury | F32: 1.299381143e-08 | G32: lb/MMBtu | H32: 1.208744508e-07 | I32: lb/MW | J32: ETTS | L32: 18 | P32: 0.0001208744508 | Q32: =VLOOKUP(B32&"_"&C32,Hg_Min_Tests!$A$1:AA$1000,11,FALSE) -> Fluidized bed firing | R32: =VLOOKUP($B32&"_"&$C32,Hg_Min_Tests!$A$1:AAB$1000,R$1,FALSE) -> Selective Noncatalytic Reduction | S32: =VLOOKUP($B32&"_"&$C32,Hg_Min_Tests!$A$1:AAC$1000,S$1,FALSE) -> Fabric Filter, unspecified | T32: =VLOOKUP($B32&"_"&$C32,Hg_Min_Tests!$A$1:AAD$1000,T$1,FALSE) ->  | U32: =VLOOKUP($B32&"_"&$C32,Hg_Min_Tests!$A$1:AAE$1000,U$1,FALSE) ->  | V32: =VLOOKUP($B32&"_"&$C32,Hg_Min_Tests!$A$1:AAF$1000,V$1,FALSE) ->  | W32: =VLOOKUP($B32&"_"&$C32,Hg_Min_Tests!$A$1:AAG$1000,W$1,FALSE) -> 
A33: =VLOOKUP(B33&"_"&C33,Hg_Min_Tests!$A:$AZ,6,FALSE) -> Spruance Genco, LLC | B33: 54081 | C33: 4A | D33: GEN4 | E33: Mercury | F33: 1.177e-08 | G33: lb/MMBtu | H33: 1.537891986e-07 | I33: lb/MW | J33: ETTS | L33: 19 | P33: 0.0001537891986 | Q33: =VLOOKUP(B33&"_"&C33,Hg_Min_Tests!$A$1:AA$1000,11,FALSE) -> Stoker - underfeed | R33: =VLOOKUP($B33&"_"&$C33,Hg_Min_Tests!$A$1:AAB$1000,R$1,FALSE) -> Dry FGD - Spray Dryer | S33: =VLOOKUP($B33&"_"&$C33,Hg_Min_Tests!$A$1:AAC$1000,S$1,FALSE) -> Dry FGD - Spray Dryer | T33: =VLOOKUP($B33&"_"&$C33,Hg_Min_Tests!$A$1:AAD$1000,T$1,FALSE) -> Fabric Filter, pulse | U33: =VLOOKUP($B33&"_"&$C33,Hg_Min_Tests!$A$1:AAE$1000,U$1,FALSE) -> Fabric Filter, pulse | V33: =VLOOKUP($B33&"_"&$C33,Hg_Min_Tests!$A$1:AAF$1000,V$1,FALSE) ->  | W33: =VLOOKUP($B33&"_"&$C33,Hg_Min_Tests!$A$1:AAG$1000,W$1,FALSE) -> 
A34: =VLOOKUP(B34&"_"&C34,Hg_Min_Tests!$A:$AZ,6,FALSE) -> Spruance Genco, LLC | B34: 54081 | C34: 4A | D34: GEN4 | E34: Mercury | F34: 1.607541524e-06 | G34: lb/MMBtu | H34: 2.100446242e-05 | I34: lb/MW | J34: Part II | K34: 2006 Emissions Testing at Boilers 4A and 4B | L34: 19 | P34: 0.02100446242 | Q34: =VLOOKUP(B34&"_"&C34,Hg_Min_Tests!$A$1:AA$1000,11,FALSE) -> Stoker - underfeed | R34: =VLOOKUP($B34&"_"&$C34,Hg_Min_Tests!$A$1:AAB$1000,R$1,FALSE) -> Dry FGD - Spray Dryer | S34: =VLOOKUP($B34&"_"&$C34,Hg_Min_Tests!$A$1:AAC$1000,S$1,FALSE) -> Dry FGD - Spray Dryer | T34: =VLOOKUP($B34&"_"&$C34,Hg_Min_Tests!$A$1:AAD$1000,T$1,FALSE) -> Fabric Filter, pulse | U34: =VLOOKUP($B34&"_"&$C34,Hg_Min_Tests!$A$1:AAE$1000,U$1,FALSE) -> Fabric Filter, pulse | V34: =VLOOKUP($B34&"_"&$C34,Hg_Min_Tests!$A$1:AAF$1000,V$1,FALSE) ->  | W34: =VLOOKUP($B34&"_"&$C34,Hg_Min_Tests!$A$1:AAG$1000,W$1,FALSE) -> 
A35: =VLOOKUP(B35&"_"&C35,Hg_Min_Tests!$A:$AZ,6,FALSE) -> Spruance Genco, LLC | B35: 54081 | C35: 4B | D35: GEN4 | E35: Mercury | F35: 1.177e-08 | G35: lb/MMBtu | H35: 1.537891986e-07 | I35: lb/MW | J35: ETTS | L35: 20 | P35: 0.0001537891986 | Q35: =VLOOKUP(B35&"_"&C35,Hg_Min_Tests!$A$1:AA$1000,11,FALSE) -> Stoker - underfeed | R35: =VLOOKUP($B35&"_"&$C35,Hg_Min_Tests!$A$1:AAB$1000,R$1,FALSE) -> Dry FGD - Spray Dryer | S35: =VLOOKUP($B35&"_"&$C35,Hg_Min_Tests!$A$1:AAC$1000,S$1,FALSE) -> Dry FGD - Spray Dryer | T35: =VLOOKUP($B35&"_"&$C35,Hg_Min_Tests!$A$1:AAD$1000,T$1,FALSE) -> Fabric Filter, pulse | U35: =VLOOKUP($B35&"_"&$C35,Hg_Min_Tests!$A$1:AAE$1000,U$1,FALSE) -> Fabric Filter, pulse | V35: =VLOOKUP($B35&"_"&$C35,Hg_Min_Tests!$A$1:AAF$1000,V$1,FALSE) ->  | W35: =VLOOKUP($B35&"_"&$C35,Hg_Min_Tests!$A$1:AAG$1000,W$1,FALSE) -> 
A36: =VLOOKUP(B36&"_"&C36,Hg_Min_Tests!$A:$AZ,6,FALSE) -> Spruance Genco, LLC | B36: 54081 | C36: 4B | D36: GEN4 | E36: Mercury | F36: 1.607541524e-06 | G36: lb/MMBtu | H36: 2.100446242e-05 | I36: lb/MW | J36: Part II | K36: 2006 Emissions Testing at Boilers 4A and 4B | L36: 20 | P36: 0.02100446242 | Q36: =VLOOKUP(B36&"_"&C36,Hg_Min_Tests!$A$1:AA$1000,11,FALSE) -> Stoker - underfeed | R36: =VLOOKUP($B36&"_"&$C36,Hg_Min_Tests!$A$1:AAB$1000,R$1,FALSE) -> Dry FGD - Spray Dryer | S36: =VLOOKUP($B36&"_"&$C36,Hg_Min_Tests!$A$1:AAC$1000,S$1,FALSE) -> Dry FGD - Spray Dryer | T36: =VLOOKUP($B36&"_"&$C36,Hg_Min_Tests!$A$1:AAD$1000,T$1,FALSE) -> Fabric Filter, pulse | U36: =VLOOKUP($B36&"_"&$C36,Hg_Min_Tests!$A$1:AAE$1000,U$1,FALSE) -> Fabric Filter, pulse | V36: =VLOOKUP($B36&"_"&$C36,Hg_Min_Tests!$A$1:AAF$1000,V$1,FALSE) ->  | W36: =VLOOKUP($B36&"_"&$C36,Hg_Min_Tests!$A$1:AAG$1000,W$1,FALSE) -> 
A37: =VLOOKUP(B37&"_"&C37,Hg_Min_Tests!$A:$AZ,6,FALSE) -> Colver Power Project | B37: 10143 | C37: AAB01 | D37: AAB01 | E37: Mercury | F37: 1.738162313e-08 | G37: lb/MMBtu | H37: 1.597517118e-07 | I37: lb/MW | J37: Part II | K37: Mercury Emissions 8-2009 | L37: 21 | P37: 0.0001597517118 | Q37: =VLOOKUP(B37&"_"&C37,Hg_Min_Tests!$A$1:AA$1000,11,FALSE) -> Fluidized bed firing | R37: =VLOOKUP($B37&"_"&$C37,Hg_Min_Tests!$A$1:AAB$1000,R$1,FALSE) -> Selective Noncatalytic Reduction | S37: =VLOOKUP($B37&"_"&$C37,Hg_Min_Tests!$A$1:AAC$1000,S$1,FALSE) -> Fabric Filter, pulse | T37: =VLOOKUP($B37&"_"&$C37,Hg_Min_Tests!$A$1:AAD$1000,T$1,FALSE) ->  | U37: =VLOOKUP($B37&"_"&$C37,Hg_Min_Tests!$A$1:AAE$1000,U$1,FALSE) ->  | V37: =VLOOKUP($B37&"_"&$C37,Hg_Min_Tests!$A$1:AAF$1000,V$1,FALSE) ->  | W37: =VLOOKUP($B37&"_"&$C37,Hg_Min_Tests!$A$1:AAG$1000,W$1,FALSE) -> 
A38: =VLOOKUP(B38&"_"&C38,Hg_Min_Tests!$A:$AZ,6,FALSE) -> Colver Power Project | B38: 10143 | C38: AAB01 | D38: AAB01 | E38: Mercury | F38: 7.156666667e-08 | G38: lb/MMBtu | H38: 6.577577608e-07 | I38: lb/MW | J38: ETTS | L38: 21 | P38: 0.0006577577608 | Q38: =VLOOKUP(B38&"_"&C38,Hg_Min_Tests!$A$1:AA$1000,11,FALSE) -> Fluidized bed firing | R38: =VLOOKUP($B38&"_"&$C38,Hg_Min_Tests!$A$1:AAB$1000,R$1,FALSE) -> Selective Noncatalytic Reduction | S38: =VLOOKUP($B38&"_"&$C38,Hg_Min_Tests!$A$1:AAC$1000,S$1,FALSE) -> Fabric Filter, pulse | T38: =VLOOKUP($B38&"_"&$C38,Hg_Min_Tests!$A$1:AAD$1000,T$1,FALSE) ->  | U38: =VLOOKUP($B38&"_"&$C38,Hg_Min_Tests!$A$1:AAE$1000,U$1,FALSE) ->  | V38: =VLOOKUP($B38&"_"&$C38,Hg_Min_Tests!$A$1:AAF$1000,V$1,FALSE) ->  | W38: =VLOOKUP($B38&"_"&$C38,Hg_Min_Tests!$A$1:AAG$1000,W$1,FALSE) -> 
A39: =VLOOKUP(B39&"_"&C39,Hg_Min_Tests!$A:$AZ,6,FALSE) -> Colver Power Project | B39: 10143 | C39: AAB01 | D39: AAB01 | E39: Mercury | F39: 8.043305469e-08 | G39: lb/MMBtu | H39: 7.392473118e-07 | I39: lb/MW | J39: Part II | K39: Mercury Emissions 10-2008 | L39: 21 | P39: =H39*1000 -> 0.0007392473118 | Q39: =VLOOKUP(B39&"_"&C39,Hg_Min_Tests!$A$1:AA$1000,11,FALSE) -> Fluidized bed firing | R39: =VLOOKUP($B39&"_"&$C39,Hg_Min_Tests!$A$1:AAB$1000,R$1,FALSE) -> Selective Noncatalytic Reduction | S39: =VLOOKUP($B39&"_"&$C39,Hg_Min_Tests!$A$1:AAC$1000,S$1,FALSE) -> Fabric Filter, pulse | T39: =VLOOKUP($B39&"_"&$C39,Hg_Min_Tests!$A$1:AAD$1000,T$1,FALSE) ->  | U39: =VLOOKUP($B39&"_"&$C39,Hg_Min_Tests!$A$1:AAE$1000,U$1,FALSE) ->  | V39: =VLOOKUP($B39&"_"&$C39,Hg_Min_Tests!$A$1:AAF$1000,V$1,FALSE) ->  | W39: =VLOOKUP($B39&"_"&$C39,Hg_Min_Tests!$A$1:AAG$1000,W$1,FALSE) -> 
A40: =VLOOKUP(B40&"_"&C40,Hg_Min_Tests!$A:$AZ,6,FALSE) -> Colver Power Project | B40: 10143 | C40: AAB01 | D40: AAB01 | E40: Mercury | F40: 4.067692759e-06 | G40: lb/MMBtu | H40: 3.738551207e-05 | I40: lb/MW | J40: Part II | K40: Mercury Emissions 10-07 | L40: 21 | P40: 0.03738551207 | Q40: =VLOOKUP(B40&"_"&C40,Hg_Min_Tests!$A$1:AA$1000,11,FALSE) -> Fluidized bed firing | R40: =VLOOKUP($B40&"_"&$C40,Hg_Min_Tests!$A$1:AAB$1000,R$1,FALSE) -> Selective Noncatalytic Reduction | S40: =VLOOKUP($B40&"_"&$C40,Hg_Min_Tests!$A$1:AAC$1000,S$1,FALSE) -> Fabric Filter, pulse | T40: =VLOOKUP($B40&"_"&$C40,Hg_Min_Tests!$A$1:AAD$1000,T$1,FALSE) ->  | U40: =VLOOKUP($B40&"_"&$C40,Hg_Min_Tests!$A$1:AAE$1000,U$1,FALSE) ->  | V40: =VLOOKUP($B40&"_"&$C40,Hg_Min_Tests!$A$1:AAF$1000,V$1,FALSE) ->  | W40: =VLOOKUP($B40&"_"&$C40,Hg_Min_Tests!$A$1:AAG$1000,W$1,FALSE) -> 
A41: =VLOOKUP(B41&"_"&C41,Hg_Min_Tests!$A:$AZ,6,FALSE) -> Birchwood Power Facility | B41: 54304 | C41: 1A | D41: 1A | E41: Mercury | F41: 1.547613967e-08 | G41: lb/MMBtu | H41: 1.603383839e-07 | I41: lb/MW | J41: ERT | L41: 22 | P41: 0.0001603383839 | Q41: =VLOOKUP(B41&"_"&C41,Hg_Min_Tests!$A$1:AA$1000,11,FALSE) -> Tangential firing | R41: =VLOOKUP($B41&"_"&$C41,Hg_Min_Tests!$A$1:AAB$1000,R$1,FALSE) -> Selective Catalytic Reduction | S41: =VLOOKUP($B41&"_"&$C41,Hg_Min_Tests!$A$1:AAC$1000,S$1,FALSE) -> Dry FGD - Spray Dryer | T41: =VLOOKUP($B41&"_"&$C41,Hg_Min_Tests!$A$1:AAD$1000,T$1,FALSE) -> Fabric Filter, reverse air | U41: =VLOOKUP($B41&"_"&$C41,Hg_Min_Tests!$A$1:AAE$1000,U$1,FALSE) ->  | V41: =VLOOKUP($B41&"_"&$C41,Hg_Min_Tests!$A$1:AAF$1000,V$1,FALSE) ->  | W41: =VLOOKUP($B41&"_"&$C41,Hg_Min_Tests!$A$1:AAG$1000,W$1,FALSE) -> 
A42: =VLOOKUP(B42&"_"&C42,Hg_Min_Tests!$A:$AZ,6,FALSE) -> Ebensburg Power Company | B42: 10603 | C42: 031 | D42: EPC01 | E42: Mercury | F42: 1.248336938e-08 | G42: lb/MMBtu | H42: 1.786413204e-07 | I42: lb/MW | J42: ETTS | L42: 23 | P42: 0.0001786413204 | Q42: =VLOOKUP(B42&"_"&C42,Hg_Min_Tests!$A$1:AA$1000,11,FALSE) -> Fluidized bed firing | R42: =VLOOKUP($B42&"_"&$C42,Hg_Min_Tests!$A$1:AAB$1000,R$1,FALSE) -> Fabric Filter, pulse | S42: =VLOOKUP($B42&"_"&$C42,Hg_Min_Tests!$A$1:AAC$1000,S$1,FALSE) ->  | T42: =VLOOKUP($B42&"_"&$C42,Hg_Min_Tests!$A$1:AAD$1000,T$1,FALSE) ->  | U42: =VLOOKUP($B42&"_"&$C42,Hg_Min_Tests!$A$1:AAE$1000,U$1,FALSE) ->  | V42: =VLOOKUP($B42&"_"&$C42,Hg_Min_Tests!$A$1:AAF$1000,V$1,FALSE) ->  | W42: =VLOOKUP($B42&"_"&$C42,Hg_Min_Tests!$A$1:AAG$1000,W$1,FALSE) -> 
A43: =VLOOKUP(B43&"_"&C43,Hg_Min_Tests!$A:$AZ,6,FALSE) -> Ebensburg Power Company | B43: 10603 | C43: 031 | D43: EPC01 | E43: Mercury | F43: 3.867725527e-08 | G43: lb/MMBtu | H43: 5.534848599e-07 | I43: lb/MW | J43: Part II | K43: Hg June 2009 | L43: 23 | P43: 0.0005534848599 | Q43: =VLOOKUP(B43&"_"&C43,Hg_Min_Tests!$A$1:AA$1000,11,FALSE) -> Fluidized bed firing | R43: =VLOOKUP($B43&"_"&$C43,Hg_Min_Tests!$A$1:AAB$1000,R$1,FALSE) -> Fabric Filter, pulse | S43: =VLOOKUP($B43&"_"&$C43,Hg_Min_Tests!$A$1:AAC$1000,S$1,FALSE) ->  | T43: =VLOOKUP($B43&"_"&$C43,Hg_Min_Tests!$A$1:AAD$1000,T$1,FALSE) ->  | U43: =VLOOKUP($B43&"_"&$C43,Hg_Min_Tests!$A$1:AAE$1000,U$1,FALSE) ->  | V43: =VLOOKUP($B43&"_"&$C43,Hg_Min_Tests!$A$1:AAF$1000,V$1,FALSE) ->  | W43: =VLOOKUP($B43&"_"&$C43,Hg_Min_Tests!$A$1:AAG$1000,W$1,FALSE) -> 
A44: =VLOOKUP(B44&"_"&C44,Hg_Min_Tests!$A:$AZ,6,FALSE) -> Ebensburg Power Company | B44: 10603 | C44: 031 | D44: EPC01 | E44: Mercury | F44: 3.47e-07 | G44: lb/MMBtu | H44: 4.965689655e-06 | I44: lb/MW | J44: Part II | K44: 2005 Emissions | L44: 23 | P44: 0.004965689655 | Q44: =VLOOKUP(B44&"_"&C44,Hg_Min_Tests!$A$1:AA$1000,11,FALSE) -> Fluidized bed firing | R44: =VLOOKUP($B44&"_"&$C44,Hg_Min_Tests!$A$1:AAB$1000,R$1,FALSE) -> Fabric Filter, pulse | S44: =VLOOKUP($B44&"_"&$C44,Hg_Min_Tests!$A$1:AAC$1000,S$1,FALSE) ->  | T44: =VLOOKUP($B44&"_"&$C44,Hg_Min_Tests!$A$1:AAD$1000,T$1,FALSE) ->  | U44: =VLOOKUP($B44&"_"&$C44,Hg_Min_Tests!$A$1:AAE$1000,U$1,FALSE) ->  | V44: =VLOOKUP($B44&"_"&$C44,Hg_Min_Tests!$A$1:AAF$1000,V$1,FALSE) ->  | W44: =VLOOKUP($B44&"_"&$C44,Hg_Min_Tests!$A$1:AAG$1000,W$1,FALSE) -> 
A45: =VLOOKUP(B45&"_"&C45,Hg_Min_Tests!$A:$AZ,6,FALSE) -> Chambers Cogeneration LP | B45: 10566 | C45: Boil 1 | D45: Boil 1 | E45: Mercury | F45: 1.930666667e-08 | G45: lb/MMBtu | H45: 1.879182222e-07 | I45: lb/MW | J45: ETTS | L45: 24 | P45: 0.0001879182222 | Q45: =VLOOKUP(B45&"_"&C45,Hg_Min_Tests!$A$1:AA$1000,11,FALSE) -> Wall firing - front firing | R45: =VLOOKUP($B45&"_"&$C45,Hg_Min_Tests!$A$1:AAB$1000,R$1,FALSE) -> Selective Catalytic Reduction | S45: =VLOOKUP($B45&"_"&$C45,Hg_Min_Tests!$A$1:AAC$1000,S$1,FALSE) -> Dry FGD - Spray Dryer | T45: =VLOOKUP($B45&"_"&$C45,Hg_Min_Tests!$A$1:AAD$1000,T$1,FALSE) -> Fabric Filter, reverse air | U45: =VLOOKUP($B45&"_"&$C45,Hg_Min_Tests!$A$1:AAE$1000,U$1,FALSE) ->  | V45: =VLOOKUP($B45&"_"&$C45,Hg_Min_Tests!$A$1:AAF$1000,V$1,FALSE) ->  | W45: =VLOOKUP($B45&"_"&$C45,Hg_Min_Tests!$A$1:AAG$1000,W$1,FALSE) -> 
A46: =VLOOKUP(B46&"_"&C46,Hg_Min_Tests!$A:$AZ,6,FALSE) -> Reid Gardner | B46: 2324 | C46: 1 | D46: 1 | E46: Mercury | F46: 2.007333333e-08 | G46: lb/MMBtu | H46: 2.197216216e-07 | I46: lb/MW | J46: ETTS | L46: 25 | P46: 0.0002197216216 | Q46: =VLOOKUP(B46&"_"&C46,Hg_Min_Tests!$A$1:AA$1000,11,FALSE) -> Wall firing - front firing | R46: =VLOOKUP($B46&"_"&$C46,Hg_Min_Tests!$A$1:AAB$1000,R$1,FALSE) -> Fabric Filter, pulse | S46: =VLOOKUP($B46&"_"&$C46,Hg_Min_Tests!$A$1:AAC$1000,S$1,FALSE) -> Wet FGD - Venturi Type | T46: =VLOOKUP($B46&"_"&$C46,Hg_Min_Tests!$A$1:AAD$1000,T$1,FALSE) ->  | U46: =VLOOKUP($B46&"_"&$C46,Hg_Min_Tests!$A$1:AAE$1000,U$1,FALSE) ->  | V46: =VLOOKUP($B46&"_"&$C46,Hg_Min_Tests!$A$1:AAF$1000,V$1,FALSE) ->  | W46: =VLOOKUP($B46&"_"&$C46,Hg_Min_Tests!$A$1:AAG$1000,W$1,FALSE) -> 
A47: =VLOOKUP(B47&"_"&C47,Hg_Min_Tests!$A:$AZ,6,FALSE) -> Cedar Bay Generating Company L.P. | B47: 10672 | C47: CBB | D47: CBB1 | E47: Mercury | F47: 1.903103333e-08 | G47: lb/MMBtu | H47: 2.198911786e-07 | I47: lb/MW | J47: ETTS | L47: 26 | P47: 0.0002198911786 | Q47: =VLOOKUP(B47&"_"&C47,Hg_Min_Tests!$A$1:AA$1000,11,FALSE) -> Fluidized bed firing | R47: =VLOOKUP($B47&"_"&$C47,Hg_Min_Tests!$A$1:AAB$1000,R$1,FALSE) -> Dry FGD - Circulating Dry Scrubber | S47: =VLOOKUP($B47&"_"&$C47,Hg_Min_Tests!$A$1:AAC$1000,S$1,FALSE) -> Selective Noncatalytic Reduction | T47: =VLOOKUP($B47&"_"&$C47,Hg_Min_Tests!$A$1:AAD$1000,T$1,FALSE) -> Fabric Filter, pulse | U47: =VLOOKUP($B47&"_"&$C47,Hg_Min_Tests!$A$1:AAE$1000,U$1,FALSE) ->  | V47: =VLOOKUP($B47&"_"&$C47,Hg_Min_Tests!$A$1:AAF$1000,V$1,FALSE) ->  | W47: =VLOOKUP($B47&"_"&$C47,Hg_Min_Tests!$A$1:AAG$1000,W$1,FALSE) -> 
A48: =VLOOKUP(B48&"_"&C48,Hg_Min_Tests!$A:$AZ,6,FALSE) -> Cedar Bay Generating Company L.P. | B48: 10672 | C48: CBB | D48: CBB1 | E48: Mercury | F48: 4.862219498e-08 | G48: lb/MMBtu | H48: 5.617977528e-07 | I48: lb/MW | J48: Part II | K48: CBB2009metals | L48: 26 | P48: 0.0005617977528 | Q48: =VLOOKUP(B48&"_"&C48,Hg_Min_Tests!$A$1:AA$1000,11,FALSE) -> Fluidized bed firing | R48: =VLOOKUP($B48&"_"&$C48,Hg_Min_Tests!$A$1:AAB$1000,R$1,FALSE) -> Dry FGD - Circulating Dry Scrubber | S48: =VLOOKUP($B48&"_"&$C48,Hg_Min_Tests!$A$1:AAC$1000,S$1,FALSE) -> Selective Noncatalytic Reduction | T48: =VLOOKUP($B48&"_"&$C48,Hg_Min_Tests!$A$1:AAD$1000,T$1,FALSE) -> Fabric Filter, pulse | U48: =VLOOKUP($B48&"_"&$C48,Hg_Min_Tests!$A$1:AAE$1000,U$1,FALSE) ->  | V48: =VLOOKUP($B48&"_"&$C48,Hg_Min_Tests!$A$1:AAF$1000,V$1,FALSE) ->  | W48: =VLOOKUP($B48&"_"&$C48,Hg_Min_Tests!$A$1:AAG$1000,W$1,FALSE) -> 
A49: =VLOOKUP(B49&"_"&C49,Hg_Min_Tests!$A:$AZ,6,FALSE) -> Clover | B49: 7213 | C49: 1 | D49: Unit 1 | E49: Mercury | F49: 2.023329239e-08 | G49: lb/MMBtu | H49: 2.311102052e-07 | I49: lb/MW | J49: ETTS | L49: 27 | P49: 0.0002311102052 | Q49: =VLOOKUP(B49&"_"&C49,Hg_Min_Tests!$A$1:AA$1000,11,FALSE) -> Tangential firing | R49: =VLOOKUP($B49&"_"&$C49,Hg_Min_Tests!$A$1:AAB$1000,R$1,FALSE) -> Fabric Filter, reverse air | S49: =VLOOKUP($B49&"_"&$C49,Hg_Min_Tests!$A$1:AAC$1000,S$1,FALSE) -> Wet FGD - Spray Type | T49: =VLOOKUP($B49&"_"&$C49,Hg_Min_Tests!$A$1:AAD$1000,T$1,FALSE) ->  | U49: =VLOOKUP($B49&"_"&$C49,Hg_Min_Tests!$A$1:AAE$1000,U$1,FALSE) ->  | V49: =VLOOKUP($B49&"_"&$C49,Hg_Min_Tests!$A$1:AAF$1000,V$1,FALSE) ->  | W49: =VLOOKUP($B49&"_"&$C49,Hg_Min_Tests!$A$1:AAG$1000,W$1,FALSE) -> 
A50: =VLOOKUP(B50&"_"&C50,Hg_Min_Tests!$A:$AZ,6,FALSE) -> Valley | B50: 4042 | C50: 1 | D50: VAPP-B1 | E50: Mercury | F50: 1.93e-08 | G50: lb/MMBtu | H50: 2.326722222e-07 | I50: lb/MW | J50: ETTS | L50: 28 | P50: 0.0002326722222 | Q50: =VLOOKUP(B50&"_"&C50,Hg_Min_Tests!$A$1:AA$1000,11,FALSE) -> Wall firing - front firing | R50: =VLOOKUP($B50&"_"&$C50,Hg_Min_Tests!$A$1:AAB$1000,R$1,FALSE) -> Fabric Filter, pulse | S50: =VLOOKUP($B50&"_"&$C50,Hg_Min_Tests!$A$1:AAC$1000,S$1,FALSE) ->  | T50: =VLOOKUP($B50&"_"&$C50,Hg_Min_Tests!$A$1:AAD$1000,T$1,FALSE) ->  | U50: =VLOOKUP($B50&"_"&$C50,Hg_Min_Tests!$A$1:AAE$1000,U$1,FALSE) ->  | V50: =VLOOKUP($B50&"_"&$C50,Hg_Min_Tests!$A$1:AAF$1000,V$1,FALSE) ->  | W50: =VLOOKUP($B50&"_"&$C50,Hg_Min_Tests!$A$1:AAG$1000,W$1,FALSE) -> 
A51: =VLOOKUP(B51&"_"&C51,Hg_Min_Tests!$A:$AZ,6,FALSE) -> AES Warrior Run Cogeneration Facility | B51: 10678 | C51: BLR1 | D51: BLR1 | E51: Mercury | F51: 2.34e-08 | G51: lb/MMBtu | H51: 2.371277228e-07 | I51: lb/MW | J51: ETTS | L51: 29 | P51: 0.0002371277228 | Q51: =VLOOKUP(B51&"_"&C51,Hg_Min_Tests!$A$1:AA$1000,11,FALSE) -> Fluidized bed firing | R51: =VLOOKUP($B51&"_"&$C51,Hg_Min_Tests!$A$1:AAB$1000,R$1,FALSE) -> Selective Noncatalytic Reduction | S51: =VLOOKUP($B51&"_"&$C51,Hg_Min_Tests!$A$1:AAC$1000,S$1,FALSE) -> Fabric Filter, pulse | T51: =VLOOKUP($B51&"_"&$C51,Hg_Min_Tests!$A$1:AAD$1000,T$1,FALSE) ->  | U51: =VLOOKUP($B51&"_"&$C51,Hg_Min_Tests!$A$1:AAE$1000,U$1,FALSE) ->  | V51: =VLOOKUP($B51&"_"&$C51,Hg_Min_Tests!$A$1:AAF$1000,V$1,FALSE) ->  | W51: =VLOOKUP($B51&"_"&$C51,Hg_Min_Tests!$A$1:AAG$1000,W$1,FALSE) -> 
A52: =VLOOKUP(B52&"_"&C52,Hg_Min_Tests!$A:$AZ,6,FALSE) -> AES Warrior Run Cogeneration Facility | B52: 10678 | C52: BLR1 | D52: BLR1 | E52: Mercury | F52: 2.01e-07 | G52: lb/MMBtu | H52: 2.036866337e-06 | I52: lb/MW | J52: Part II | K52: 2006_Hg | L52: 29 | P52: 0.002036866337 | Q52: =VLOOKUP(B52&"_"&C52,Hg_Min_Tests!$A$1:AA$1000,11,FALSE) -> Fluidized bed firing | R52: =VLOOKUP($B52&"_"&$C52,Hg_Min_Tests!$A$1:AAB$1000,R$1,FALSE) -> Selective Noncatalytic Reduction | S52: =VLOOKUP($B52&"_"&$C52,Hg_Min_Tests!$A$1:AAC$1000,S$1,FALSE) -> Fabric Filter, pulse | T52: =VLOOKUP($B52&"_"&$C52,Hg_Min_Tests!$A$1:AAD$1000,T$1,FALSE) ->  | U52: =VLOOKUP($B52&"_"&$C52,Hg_Min_Tests!$A$1:AAE$1000,U$1,FALSE) ->  | V52: =VLOOKUP($B52&"_"&$C52,Hg_Min_Tests!$A$1:AAF$1000,V$1,FALSE) ->  | W52: =VLOOKUP($B52&"_"&$C52,Hg_Min_Tests!$A$1:AAG$1000,W$1,FALSE) -> 
A53: =VLOOKUP(B53&"_"&C53,Hg_Min_Tests!$A:$AZ,6,FALSE) -> AES Warrior Run Cogeneration Facility | B53: 10678 | C53: BLR1 | D53: BLR1 | E53: Mercury | F53: 2.27e-07 | G53: lb/MMBtu | H53: 2.300341584e-06 | I53: lb/MW | J53: Part II | K53: 2007_Hg | L53: 29 | P53: 0.002300341584 | Q53: =VLOOKUP(B53&"_"&C53,Hg_Min_Tests!$A$1:AA$1000,11,FALSE) -> Fluidized bed firing | R53: =VLOOKUP($B53&"_"&$C53,Hg_Min_Tests!$A$1:AAB$1000,R$1,FALSE) -> Selective Noncatalytic Reduction | S53: =VLOOKUP($B53&"_"&$C53,Hg_Min_Tests!$A$1:AAC$1000,S$1,FALSE) -> Fabric Filter, pulse | T53: =VLOOKUP($B53&"_"&$C53,Hg_Min_Tests!$A$1:AAD$1000,T$1,FALSE) ->  | U53: =VLOOKUP($B53&"_"&$C53,Hg_Min_Tests!$A$1:AAE$1000,U$1,FALSE) ->  | V53: =VLOOKUP($B53&"_"&$C53,Hg_Min_Tests!$A$1:AAF$1000,V$1,FALSE) ->  | W53: =VLOOKUP($B53&"_"&$C53,Hg_Min_Tests!$A$1:AAG$1000,W$1,FALSE) -> 
A54: =VLOOKUP(B54&"_"&C54,Hg_Min_Tests!$A:$AZ,6,FALSE) -> AES Warrior Run Cogeneration Facility | B54: 10678 | C54: BLR1 | D54: BLR1 | E54: Mercury | F54: 2.646666667e-07 | G54: lb/MMBtu | H54: 2.682042904e-06 | I54: lb/MW | J54: Part II | K54: 2008_Hg | L54: 29 | P54: 0.002682042904 | Q54: =VLOOKUP(B54&"_"&C54,Hg_Min_Tests!$A$1:AA$1000,11,FALSE) -> Fluidized bed firing | R54: =VLOOKUP($B54&"_"&$C54,Hg_Min_Tests!$A$1:AAB$1000,R$1,FALSE) -> Selective Noncatalytic Reduction | S54: =VLOOKUP($B54&"_"&$C54,Hg_Min_Tests!$A$1:AAC$1000,S$1,FALSE) -> Fabric Filter, pulse | T54: =VLOOKUP($B54&"_"&$C54,Hg_Min_Tests!$A$1:AAD$1000,T$1,FALSE) ->  | U54: =VLOOKUP($B54&"_"&$C54,Hg_Min_Tests!$A$1:AAE$1000,U$1,FALSE) ->  | V54: =VLOOKUP($B54&"_"&$C54,Hg_Min_Tests!$A$1:AAF$1000,V$1,FALSE) ->  | W54: =VLOOKUP($B54&"_"&$C54,Hg_Min_Tests!$A$1:AAG$1000,W$1,FALSE) -> 
A55: =VLOOKUP(B55&"_"&C55,Hg_Min_Tests!$A:$AZ,6,FALSE) -> Valley | B55: 4042 | C55: 3 | D55: VAPP-B3 | E55: Mercury | F55: 2.093333333e-08 | G55: lb/MMBtu | H55: 2.52362963e-07 | I55: lb/MW | J55: ETTS | L55: 30 | P55: 0.000252362963 | Q55: =VLOOKUP(B55&"_"&C55,Hg_Min_Tests!$A$1:AA$1000,11,FALSE) -> Wall firing - front firing | R55: =VLOOKUP($B55&"_"&$C55,Hg_Min_Tests!$A$1:AAB$1000,R$1,FALSE) -> Fabric Filter, pulse | S55: =VLOOKUP($B55&"_"&$C55,Hg_Min_Tests!$A$1:AAC$1000,S$1,FALSE) ->  | T55: =VLOOKUP($B55&"_"&$C55,Hg_Min_Tests!$A$1:AAD$1000,T$1,FALSE) ->  | U55: =VLOOKUP($B55&"_"&$C55,Hg_Min_Tests!$A$1:AAE$1000,U$1,FALSE) ->  | V55: =VLOOKUP($B55&"_"&$C55,Hg_Min_Tests!$A$1:AAF$1000,V$1,FALSE) ->  | W55: =VLOOKUP($B55&"_"&$C55,Hg_Min_Tests!$A$1:AAG$1000,W$1,FALSE) -> 
A56: =VLOOKUP(B56&"_"&C56,Hg_Min_Tests!$A:$AZ,6,FALSE) -> Cedar Bay Generating Company L.P. | B56: 10672 | C56: CBA | D56: CBA1 | E56: Mercury | F56: 2.223825e-08 | G56: lb/MMBtu | H56: 2.569484755e-07 | I56: lb/MW | J56: ETTS | L56: 31 | P56: 0.0002569484755 | Q56: =VLOOKUP(B56&"_"&C56,Hg_Min_Tests!$A$1:AA$1000,11,FALSE) -> Fluidized bed firing | R56: =VLOOKUP($B56&"_"&$C56,Hg_Min_Tests!$A$1:AAB$1000,R$1,FALSE) -> Dry FGD - Circulating Dry Scrubber | S56: =VLOOKUP($B56&"_"&$C56,Hg_Min_Tests!$A$1:AAC$1000,S$1,FALSE) -> Selective Noncatalytic Reduction | T56: =VLOOKUP($B56&"_"&$C56,Hg_Min_Tests!$A$1:AAD$1000,T$1,FALSE) -> Fabric Filter, pulse | U56: =VLOOKUP($B56&"_"&$C56,Hg_Min_Tests!$A$1:AAE$1000,U$1,FALSE) ->  | V56: =VLOOKUP($B56&"_"&$C56,Hg_Min_Tests!$A$1:AAF$1000,V$1,FALSE) ->  | W56: =VLOOKUP($B56&"_"&$C56,Hg_Min_Tests!$A$1:AAG$1000,W$1,FALSE) -> 
A57: =VLOOKUP(B57&"_"&C57,Hg_Min_Tests!$A:$AZ,6,FALSE) -> Cedar Bay Generating Company L.P. | B57: 10672 | C57: CBA | D57: CBA1 | E57: Mercury | F57: 2.48143202e-06 | G57: lb/MMBtu | H57: 2.867132867e-05 | I57: lb/MW | J57: Part II | K57: CBA2009metals | L57: 31 | P57: 0.02867132867 | Q57: =VLOOKUP(B57&"_"&C57,Hg_Min_Tests!$A$1:AA$1000,11,FALSE) -> Fluidized bed firing | R57: =VLOOKUP($B57&"_"&$C57,Hg_Min_Tests!$A$1:AAB$1000,R$1,FALSE) -> Dry FGD - Circulating Dry Scrubber | S57: =VLOOKUP($B57&"_"&$C57,Hg_Min_Tests!$A$1:AAC$1000,S$1,FALSE) -> Selective Noncatalytic Reduction | T57: =VLOOKUP($B57&"_"&$C57,Hg_Min_Tests!$A$1:AAD$1000,T$1,FALSE) -> Fabric Filter, pulse | U57: =VLOOKUP($B57&"_"&$C57,Hg_Min_Tests!$A$1:AAE$1000,U$1,FALSE) ->  | V57: =VLOOKUP($B57&"_"&$C57,Hg_Min_Tests!$A$1:AAF$1000,V$1,FALSE) ->  | W57: =VLOOKUP($B57&"_"&$C57,Hg_Min_Tests!$A$1:AAG$1000,W$1,FALSE) -> 
A58: =VLOOKUP(B58&"_"&C58,Hg_Min_Tests!$A:$AZ,6,FALSE) -> Cope | B58: 7210 | C58: COP1 | D58: COP001 | E58: Mercury | F58: 2.896e-08 | G58: lb/MMBtu | H58: 2.66556771e-07 | I58: lb/MW | J58: Part II | K58: Hg-02/09 | L58: 32 | P58: 0.000266556771 | Q58: =VLOOKUP(B58&"_"&C58,Hg_Min_Tests!$A$1:AA$1000,11,FALSE) -> Tangential firing | R58: =VLOOKUP($B58&"_"&$C58,Hg_Min_Tests!$A$1:AAB$1000,R$1,FALSE) -> Selective Catalytic Reduction | S58: =VLOOKUP($B58&"_"&$C58,Hg_Min_Tests!$A$1:AAC$1000,S$1,FALSE) -> Dry FGD - Spray Dryer | T58: =VLOOKUP($B58&"_"&$C58,Hg_Min_Tests!$A$1:AAD$1000,T$1,FALSE) -> Fabric Filter, unspecified | U58: =VLOOKUP($B58&"_"&$C58,Hg_Min_Tests!$A$1:AAE$1000,U$1,FALSE) ->  | V58: =VLOOKUP($B58&"_"&$C58,Hg_Min_Tests!$A$1:AAF$1000,V$1,FALSE) ->  | W58: =VLOOKUP($B58&"_"&$C58,Hg_Min_Tests!$A$1:AAG$1000,W$1,FALSE) -> 
A59: =VLOOKUP(B59&"_"&C59,Hg_Min_Tests!$A:$AZ,6,FALSE) -> Cope | B59: 7210 | C59: COP1 | D59: COP001 | E59: Mercury | F59: 7.049657153e-08 | G59: lb/MMBtu | H59: 6.488721848e-07 | I59: lb/MW | J59: ERT | L59: 32 | P59: 0.0006488721848 | Q59: =VLOOKUP(B59&"_"&C59,Hg_Min_Tests!$A$1:AA$1000,11,FALSE) -> Tangential firing | R59: =VLOOKUP($B59&"_"&$C59,Hg_Min_Tests!$A$1:AAB$1000,R$1,FALSE) -> Selective Catalytic Reduction | S59: =VLOOKUP($B59&"_"&$C59,Hg_Min_Tests!$A$1:AAC$1000,S$1,FALSE) -> Dry FGD - Spray Dryer | T59: =VLOOKUP($B59&"_"&$C59,Hg_Min_Tests!$A$1:AAD$1000,T$1,FALSE) -> Fabric Filter, unspecified | U59: =VLOOKUP($B59&"_"&$C59,Hg_Min_Tests!$A$1:AAE$1000,U$1,FALSE) ->  | V59: =VLOOKUP($B59&"_"&$C59,Hg_Min_Tests!$A$1:AAF$1000,V$1,FALSE) ->  | W59: =VLOOKUP($B59&"_"&$C59,Hg_Min_Tests!$A$1:AAG$1000,W$1,FALSE) -> 
A60: =VLOOKUP(B60&"_"&C60,Hg_Min_Tests!$A:$AZ,6,FALSE) -> BL England | B60: 2378 | C60: 2 | D60: 2 Coal w or w/o TDF | E60: Mercury | F60: 2.964867424e-08 | G60: lb/MMBtu | H60: 2.835497835e-07 | I60: lb/MW | J60: Part II | K60: CAM 238-026 | L60: 33 | P60: 0.0002835497835 | Q60: =VLOOKUP(B60&"_"&C60,Hg_Min_Tests!$A$1:AA$1000,11,FALSE) -> Cyclone firing | R60: =VLOOKUP($B60&"_"&$C60,Hg_Min_Tests!$A$1:AAB$1000,R$1,FALSE) -> Selective Noncatalytic Reduction | S60: =VLOOKUP($B60&"_"&$C60,Hg_Min_Tests!$A$1:AAC$1000,S$1,FALSE) -> Activated carbon injection | T60: =VLOOKUP($B60&"_"&$C60,Hg_Min_Tests!$A$1:AAD$1000,T$1,FALSE) -> Electrostatic precipitator, cold side, w/o flue gas conditioning | U60: =VLOOKUP($B60&"_"&$C60,Hg_Min_Tests!$A$1:AAE$1000,U$1,FALSE) -> Wet FGD - Spray Type | V60: =VLOOKUP($B60&"_"&$C60,Hg_Min_Tests!$A$1:AAF$1000,V$1,FALSE) ->  | W60: =VLOOKUP($B60&"_"&$C60,Hg_Min_Tests!$A$1:AAG$1000,W$1,FALSE) -> 
A61: =VLOOKUP(B61&"_"&C61,Hg_Min_Tests!$A:$AZ,6,FALSE) -> BL England | B61: 2378 | C61: 2 | D61: 2 Coal w or w/o TDF | E61: Mercury | F61: 4.413486193e-08 | G61: lb/MMBtu | H61: 4.220907298e-07 | I61: lb/MW | J61: Part II | K61: CAM 238-021 | L61: 33 | P61: 0.0004220907298 | Q61: =VLOOKUP(B61&"_"&C61,Hg_Min_Tests!$A$1:AA$1000,11,FALSE) -> Cyclone firing | R61: =VLOOKUP($B61&"_"&$C61,Hg_Min_Tests!$A$1:AAB$1000,R$1,FALSE) -> Selective Noncatalytic Reduction | S61: =VLOOKUP($B61&"_"&$C61,Hg_Min_Tests!$A$1:AAC$1000,S$1,FALSE) -> Activated carbon injection | T61: =VLOOKUP($B61&"_"&$C61,Hg_Min_Tests!$A$1:AAD$1000,T$1,FALSE) -> Electrostatic precipitator, cold side, w/o flue gas conditioning | U61: =VLOOKUP($B61&"_"&$C61,Hg_Min_Tests!$A$1:AAE$1000,U$1,FALSE) -> Wet FGD - Spray Type | V61: =VLOOKUP($B61&"_"&$C61,Hg_Min_Tests!$A$1:AAF$1000,V$1,FALSE) ->  | W61: =VLOOKUP($B61&"_"&$C61,Hg_Min_Tests!$A$1:AAG$1000,W$1,FALSE) -> 
A62: =VLOOKUP(B62&"_"&C62,Hg_Min_Tests!$A:$AZ,6,FALSE) -> BL England | B62: 2378 | C62: 2 | D62: 2 Coal w or w/o TDF | E62: Mercury | F62: 2.188267405e-07 | G62: lb/MMBtu | H62: 2.092784129e-06 | I62: lb/MW | J62: Part II | K62: CAM 238-017 | L62: 33 | P62: =H62*1000 -> 0.002092784129 | Q62: =VLOOKUP(B62&"_"&C62,Hg_Min_Tests!$A$1:AA$1000,11,FALSE) -> Cyclone firing | R62: =VLOOKUP($B62&"_"&$C62,Hg_Min_Tests!$A$1:AAB$1000,R$1,FALSE) -> Selective Noncatalytic Reduction | S62: =VLOOKUP($B62&"_"&$C62,Hg_Min_Tests!$A$1:AAC$1000,S$1,FALSE) -> Activated carbon injection | T62: =VLOOKUP($B62&"_"&$C62,Hg_Min_Tests!$A$1:AAD$1000,T$1,FALSE) -> Electrostatic precipitator, cold side, w/o flue gas conditioning | U62: =VLOOKUP($B62&"_"&$C62,Hg_Min_Tests!$A$1:AAE$1000,U$1,FALSE) -> Wet FGD - Spray Type
A63: =VLOOKUP(B63&"_"&C63,Hg_Min_Tests!$A:$AZ,6,FALSE) -> BL England | B63: 2378 | C63: 2 | D63: 2 Coal w or w/o TDF | E63: Mercury | F63: 2.226169355e-07 | G63: lb/MMBtu | H63: 2.129032258e-06 | I63: lb/MW | J63: Part II | K63: CAM 238-028 | L63: 33 | P63: 0.002129032258 | Q63: =VLOOKUP(B63&"_"&C63,Hg_Min_Tests!$A$1:AA$1000,11,FALSE) -> Cyclone firing | R63: =VLOOKUP($B63&"_"&$C63,Hg_Min_Tests!$A$1:AAB$1000,R$1,FALSE) -> Selective Noncatalytic Reduction | S63: =VLOOKUP($B63&"_"&$C63,Hg_Min_Tests!$A$1:AAC$1000,S$1,FALSE) -> Activated carbon injection | T63: =VLOOKUP($B63&"_"&$C63,Hg_Min_Tests!$A$1:AAD$1000,T$1,FALSE) -> Electrostatic precipitator, cold side, w/o flue gas conditioning | U63: =VLOOKUP($B63&"_"&$C63,Hg_Min_Tests!$A$1:AAE$1000,U$1,FALSE) -> Wet FGD - Spray Type
A64: =VLOOKUP(B64&"_"&C64,Hg_Min_Tests!$A:$AZ,6,FALSE) -> BL England | B64: 2378 | C64: 2 | D64: 2 Coal w or w/o TDF | E64: Mercury | F64: 2.853684896e-07 | G64: lb/MMBtu | H64: 2.729166667e-06 | I64: lb/MW | J64: Part II | K64: CAM 238-008 | L64: 33 | P64: 0.002729166667 | Q64: =VLOOKUP(B64&"_"&C64,Hg_Min_Tests!$A$1:AA$1000,11,FALSE) -> Cyclone firing | R64: =VLOOKUP($B64&"_"&$C64,Hg_Min_Tests!$A$1:AAB$1000,R$1,FALSE) -> Selective Noncatalytic Reduction | S64: =VLOOKUP($B64&"_"&$C64,Hg_Min_Tests!$A$1:AAC$1000,S$1,FALSE) -> Activated carbon injection | T64: =VLOOKUP($B64&"_"&$C64,Hg_Min_Tests!$A$1:AAD$1000,T$1,FALSE) -> Electrostatic precipitator, cold side, w/o flue gas conditioning | U64: =VLOOKUP($B64&"_"&$C64,Hg_Min_Tests!$A$1:AAE$1000,U$1,FALSE) -> Wet FGD - Spray Type
A65: =VLOOKUP(B65&"_"&C65,Hg_Min_Tests!$A:$AZ,6,FALSE) -> BL England | B65: 2378 | C65: 2 | D65: 2 Coal w or w/o TDF | E65: Mercury | F65: 3.508336831e-07 | G65: lb/MMBtu | H65: 3.355253395e-06 | I65: lb/MW | J65: Part II | K65: CAM 238-012 | L65: 33 | P65: 0.003355253395 | Q65: =VLOOKUP(B65&"_"&C65,Hg_Min_Tests!$A$1:AA$1000,11,FALSE) -> Cyclone firing | R65: =VLOOKUP($B65&"_"&$C65,Hg_Min_Tests!$A$1:AAB$1000,R$1,FALSE) -> Selective Noncatalytic Reduction | S65: =VLOOKUP($B65&"_"&$C65,Hg_Min_Tests!$A$1:AAC$1000,S$1,FALSE) -> Activated carbon injection | T65: =VLOOKUP($B65&"_"&$C65,Hg_Min_Tests!$A$1:AAD$1000,T$1,FALSE) -> Electrostatic precipitator, cold side, w/o flue gas conditioning | U65: =VLOOKUP($B65&"_"&$C65,Hg_Min_Tests!$A$1:AAE$1000,U$1,FALSE) -> Wet FGD - Spray Type
A66: =VLOOKUP(B66&"_"&C66,Hg_Min_Tests!$A:$AZ,6,FALSE) -> BL England | B66: 2378 | C66: 2 | D66: 2 Coal w or w/o TDF | E66: Mercury | F66: 4.851474893e-07 | G66: lb/MMBtu | H66: 4.639784715e-06 | I66: lb/MW | J66: Part II | K66: CAM 238-016 | L66: 33 | P66: 0.004639784715 | Q66: =VLOOKUP(B66&"_"&C66,Hg_Min_Tests!$A$1:AA$1000,11,FALSE) -> Cyclone firing | R66: =VLOOKUP($B66&"_"&$C66,Hg_Min_Tests!$A$1:AAB$1000,R$1,FALSE) -> Selective Noncatalytic Reduction | S66: =VLOOKUP($B66&"_"&$C66,Hg_Min_Tests!$A$1:AAC$1000,S$1,FALSE) -> Activated carbon injection | T66: =VLOOKUP($B66&"_"&$C66,Hg_Min_Tests!$A$1:AAD$1000,T$1,FALSE) -> Electrostatic precipitator, cold side, w/o flue gas conditioning | U66: =VLOOKUP($B66&"_"&$C66,Hg_Min_Tests!$A$1:AAE$1000,U$1,FALSE) -> Wet FGD - Spray Type
A67: =VLOOKUP(B67&"_"&C67,Hg_Min_Tests!$A:$AZ,6,FALSE) -> BL England | B67: 2378 | C67: 2 | D67: 2 Coal w or w/o TDF | E67: Mercury | F67: 7.689040404e-07 | G67: lb/MMBtu | H67: 7.353535354e-06 | I67: lb/MW | J67: Part II | K67: CAM 238-020 | L67: 33 | P67: 0.007353535354 | Q67: =VLOOKUP(B67&"_"&C67,Hg_Min_Tests!$A$1:AA$1000,11,FALSE) -> Cyclone firing | R67: =VLOOKUP($B67&"_"&$C67,Hg_Min_Tests!$A$1:AAB$1000,R$1,FALSE) -> Selective Noncatalytic Reduction | S67: =VLOOKUP($B67&"_"&$C67,Hg_Min_Tests!$A$1:AAC$1000,S$1,FALSE) -> Activated carbon injection | T67: =VLOOKUP($B67&"_"&$C67,Hg_Min_Tests!$A$1:AAD$1000,T$1,FALSE) -> Electrostatic precipitator, cold side, w/o flue gas conditioning | U67: =VLOOKUP($B67&"_"&$C67,Hg_Min_Tests!$A$1:AAE$1000,U$1,FALSE) -> Wet FGD - Spray Type
A68: =VLOOKUP(B68&"_"&C68,Hg_Min_Tests!$A:$AZ,6,FALSE) -> Cedar Bay Generating Company L.P. | B68: 10672 | C68: CBC | D68: CBC1 | E68: Mercury | F68: 2.650003333e-08 | G68: lb/MMBtu | H68: 3.061906025e-07 | I68: lb/MW | J68: ETTS | L68: 34 | P68: 0.0003061906025 | Q68: =VLOOKUP(B68&"_"&C68,Hg_Min_Tests!$A$1:AA$1000,11,FALSE) -> Fluidized bed firing | R68: =VLOOKUP($B68&"_"&$C68,Hg_Min_Tests!$A$1:AAB$1000,R$1,FALSE) -> Dry FGD - Circulating Dry Scrubber | S68: =VLOOKUP($B68&"_"&$C68,Hg_Min_Tests!$A$1:AAC$1000,S$1,FALSE) -> Selective Noncatalytic Reduction | T68: =VLOOKUP($B68&"_"&$C68,Hg_Min_Tests!$A$1:AAD$1000,T$1,FALSE) -> Fabric Filter, pulse | U68: =VLOOKUP($B68&"_"&$C68,Hg_Min_Tests!$A$1:AAE$1000,U$1,FALSE) -> 
A69: =VLOOKUP(B69&"_"&C69,Hg_Min_Tests!$A:$AZ,6,FALSE) -> Cherokee | B69: 469 | C69: 3 | D69: Unit 3 | E69: Mercury | F69: 2.807288536e-08 | G69: lb/MMBtu | H69: 3.193503383e-07 | I69: lb/MW | J69: Part II | K69: CHE3 Hg Oct08 | L69: 35 | P69: 0.0003193503383 | Q69: =VLOOKUP(B69&"_"&C69,Hg_Min_Tests!$A$1:AA$1000,11,FALSE) -> Wall firing - front firing | R69: =VLOOKUP($B69&"_"&$C69,Hg_Min_Tests!$A$1:AAB$1000,R$1,FALSE) -> Dry FGD - Spray Dryer | S69: =VLOOKUP($B69&"_"&$C69,Hg_Min_Tests!$A$1:AAC$1000,S$1,FALSE) -> Fabric Filter, reverse air | T69: =VLOOKUP($B69&"_"&$C69,Hg_Min_Tests!$A$1:AAD$1000,T$1,FALSE) ->  | U69: =VLOOKUP($B69&"_"&$C69,Hg_Min_Tests!$A$1:AAE$1000,U$1,FALSE) -> 
A70: =VLOOKUP(B70&"_"&C70,Hg_Min_Tests!$A:$AZ,6,FALSE) -> Cherokee | B70: 469 | C70: 3 | D70: Unit 3 | E70: Mercury | F70: 1.094810462e-07 | G70: lb/MMBtu | H70: 1.245429841e-06 | I70: lb/MW | J70: Part II | K70: CHE3 Hg Feb09 | L70: 35 | P70: 0.001245429841 | Q70: =VLOOKUP(B70&"_"&C70,Hg_Min_Tests!$A$1:AA$1000,11,FALSE) -> Wall firing - front firing | R70: =VLOOKUP($B70&"_"&$C70,Hg_Min_Tests!$A$1:AAB$1000,R$1,FALSE) -> Dry FGD - Spray Dryer | S70: =VLOOKUP($B70&"_"&$C70,Hg_Min_Tests!$A$1:AAC$1000,S$1,FALSE) -> Fabric Filter, reverse air | T70: =VLOOKUP($B70&"_"&$C70,Hg_Min_Tests!$A$1:AAD$1000,T$1,FALSE) ->  | U70: =VLOOKUP($B70&"_"&$C70,Hg_Min_Tests!$A$1:AAE$1000,U$1,FALSE) -> 
A71: =VLOOKUP(B71&"_"&C71,Hg_Min_Tests!$A:$AZ,6,FALSE) -> Cherokee | B71: 469 | C71: 3 | D71: Unit 3 | E71: Mercury | F71: 1.6e-07 | G71: lb/MMBtu | H71: 1.820121212e-06 | I71: lb/MW | J71: Part II | K71: CHE3 Hg Jun07 | L71: 35 | P71: 0.001820121212 | Q71: =VLOOKUP(B71&"_"&C71,Hg_Min_Tests!$A$1:AA$1000,11,FALSE) -> Wall firing - front firing | R71: =VLOOKUP($B71&"_"&$C71,Hg_Min_Tests!$A$1:AAB$1000,R$1,FALSE) -> Dry FGD - Spray Dryer | S71: =VLOOKUP($B71&"_"&$C71,Hg_Min_Tests!$A$1:AAC$1000,S$1,FALSE) -> Fabric Filter, reverse air | T71: =VLOOKUP($B71&"_"&$C71,Hg_Min_Tests!$A$1:AAD$1000,T$1,FALSE) ->  | U71: =VLOOKUP($B71&"_"&$C71,Hg_Min_Tests!$A$1:AAE$1000,U$1,FALSE) -> 
A72: =VLOOKUP(B72&"_"&C72,Hg_Min_Tests!$A:$AZ,6,FALSE) -> Martin Drake | B72: 492 | C72: 7 | D72: Unit 7 - Coal | E72: Mercury | F72: 3.113333333e-08 | G72: lb/MMBtu | H72: 3.256855792e-07 | I72: lb/MW | J72: ETTS | L72: 36 | P72: 0.0003256855792 | Q72: =VLOOKUP(B72&"_"&C72,Hg_Min_Tests!$A$1:AA$1000,11,FALSE) -> Wall firing - front firing | R72: =VLOOKUP($B72&"_"&$C72,Hg_Min_Tests!$A$1:AAB$1000,R$1,FALSE) -> Fabric Filter, reverse air | S72: =VLOOKUP($B72&"_"&$C72,Hg_Min_Tests!$A$1:AAC$1000,S$1,FALSE) ->  | T72: =VLOOKUP($B72&"_"&$C72,Hg_Min_Tests!$A$1:AAD$1000,T$1,FALSE) ->  | U72: =VLOOKUP($B72&"_"&$C72,Hg_Min_Tests!$A$1:AAE$1000,U$1,FALSE) -> 
A73: =VLOOKUP(B73&"_"&C73,Hg_Min_Tests!$A:$AZ,6,FALSE) -> Martin Drake | B73: 492 | C73: 7 | D73: Unit 7 - Coal | E73: Mercury | F73: 1.83e-07 | G73: lb/MMBtu | H73: 1.914361702e-06 | I73: lb/MW | J73: Part II | K73: Airtech 2480D | L73: 36 | P73: 0.001914361702 | Q73: =VLOOKUP(B73&"_"&C73,Hg_Min_Tests!$A$1:AA$1000,11,FALSE) -> Wall firing - front firing | R73: =VLOOKUP($B73&"_"&$C73,Hg_Min_Tests!$A$1:AAB$1000,R$1,FALSE) -> Fabric Filter, reverse air | S73: =VLOOKUP($B73&"_"&$C73,Hg_Min_Tests!$A$1:AAC$1000,S$1,FALSE) ->  | T73: =VLOOKUP($B73&"_"&$C73,Hg_Min_Tests!$A$1:AAD$1000,T$1,FALSE) ->  | U73: =VLOOKUP($B73&"_"&$C73,Hg_Min_Tests!$A$1:AAE$1000,U$1,FALSE) -> 
A74: =VLOOKUP(B74&"_"&C74,Hg_Min_Tests!$A:$AZ,6,FALSE) -> Martin Drake | B74: 492 | C74: 7 | D74: Unit 7 - Coal | E74: Mercury | F74: 6.833333333e-07 | G74: lb/MMBtu | H74: 7.148345154e-06 | I74: lb/MW | J74: Part II | K74: APT CSU5384 D | L74: 36 | P74: 0.007148345154 | Q74: =VLOOKUP(B74&"_"&C74,Hg_Min_Tests!$A$1:AA$1000,11,FALSE) -> Wall firing - front firing | R74: =VLOOKUP($B74&"_"&$C74,Hg_Min_Tests!$A$1:AAB$1000,R$1,FALSE) -> Fabric Filter, reverse air | S74: =VLOOKUP($B74&"_"&$C74,Hg_Min_Tests!$A$1:AAC$1000,S$1,FALSE) ->  | T74: =VLOOKUP($B74&"_"&$C74,Hg_Min_Tests!$A$1:AAD$1000,T$1,FALSE) ->  | U74: =VLOOKUP($B74&"_"&$C74,Hg_Min_Tests!$A$1:AAE$1000,U$1,FALSE) -> 
A75: =VLOOKUP(B75&"_"&C75,Hg_Min_Tests!$A:$AZ,6,FALSE) -> Chambers Cogeneration LP | B75: 10566 | C75: Boil 2 | D75: Boil 2 | E75: Mercury | F75: 3.379e-08 | G75: lb/MMBtu | H75: 3.288893333e-07 | I75: lb/MW | J75: ETTS | L75: 37 | P75: 0.0003288893333 | Q75: =VLOOKUP(B75&"_"&C75,Hg_Min_Tests!$A$1:AA$1000,11,FALSE) -> Wall firing - front firing | R75: =VLOOKUP($B75&"_"&$C75,Hg_Min_Tests!$A$1:AAB$1000,R$1,FALSE) -> Selective Catalytic Reduction | S75: =VLOOKUP($B75&"_"&$C75,Hg_Min_Tests!$A$1:AAC$1000,S$1,FALSE) -> Dry FGD - Spray Dryer | T75: =VLOOKUP($B75&"_"&$C75,Hg_Min_Tests!$A$1:AAD$1000,T$1,FALSE) -> Fabric Filter, reverse air | U75: =VLOOKUP($B75&"_"&$C75,Hg_Min_Tests!$A$1:AAE$1000,U$1,FALSE) -> 
A76: =VLOOKUP(B76&"_"&C76,Hg_Min_Tests!$A:$AZ,6,FALSE) -> Valley | B76: 4042 | C76: 2 | D76: VAPP-B2 | E76: Mercury | F76: 2.74e-08 | G76: lb/MMBtu | H76: 3.303222222e-07 | I76: lb/MW | J76: ETTS | L76: 38 | P76: 0.0003303222222 | Q76: =VLOOKUP(B76&"_"&C76,Hg_Min_Tests!$A$1:AA$1000,11,FALSE) -> Wall firing - front firing | R76: =VLOOKUP($B76&"_"&$C76,Hg_Min_Tests!$A$1:AAB$1000,R$1,FALSE) -> Fabric Filter, pulse | S76: =VLOOKUP($B76&"_"&$C76,Hg_Min_Tests!$A$1:AAC$1000,S$1,FALSE) ->  | T76: =VLOOKUP($B76&"_"&$C76,Hg_Min_Tests!$A$1:AAD$1000,T$1,FALSE) ->  | U76: =VLOOKUP($B76&"_"&$C76,Hg_Min_Tests!$A$1:AAE$1000,U$1,FALSE) -> 
A77: =VLOOKUP(B77&"_"&C77,Hg_Min_Tests!$A:$AZ,6,FALSE) -> Cherokee | B77: 469 | C77: 4 | D77: Unit 4 | E77: Mercury | F77: 3.597002258e-08 | G77: lb/MMBtu | H77: 3.305861083e-07 | I77: lb/MW | J77: Part II | K77: CHE4 Hg Oct08 | L77: 39 | P77: 0.0003305861083 | Q77: =VLOOKUP(B77&"_"&C77,Hg_Min_Tests!$A$1:AA$1000,11,FALSE) -> Tangential firing | R77: =VLOOKUP($B77&"_"&$C77,Hg_Min_Tests!$A$1:AAB$1000,R$1,FALSE) -> Dry FGD - Spray Dryer | S77: =VLOOKUP($B77&"_"&$C77,Hg_Min_Tests!$A$1:AAC$1000,S$1,FALSE) -> Fabric Filter, reverse air | T77: =VLOOKUP($B77&"_"&$C77,Hg_Min_Tests!$A$1:AAD$1000,T$1,FALSE) ->  | U77: =VLOOKUP($B77&"_"&$C77,Hg_Min_Tests!$A$1:AAE$1000,U$1,FALSE) -> 
A78: =VLOOKUP(B78&"_"&C78,Hg_Min_Tests!$A:$AZ,6,FALSE) -> Cherokee | B78: 469 | C78: 4 | D78: Unit 4 | E78: Mercury | F78: 2.19651808e-07 | G78: lb/MMBtu | H78: 2.018732021e-06 | I78: lb/MW | J78: Part II | K78: CHE4 Hg Oct09 | L78: 39 | P78: 0.002018732021 | Q78: =VLOOKUP(B78&"_"&C78,Hg_Min_Tests!$A$1:AA$1000,11,FALSE) -> Tangential firing | R78: =VLOOKUP($B78&"_"&$C78,Hg_Min_Tests!$A$1:AAB$1000,R$1,FALSE) -> Dry FGD - Spray Dryer | S78: =VLOOKUP($B78&"_"&$C78,Hg_Min_Tests!$A$1:AAC$1000,S$1,FALSE) -> Fabric Filter, reverse air | T78: =VLOOKUP($B78&"_"&$C78,Hg_Min_Tests!$A$1:AAD$1000,T$1,FALSE) ->  | U78: =VLOOKUP($B78&"_"&$C78,Hg_Min_Tests!$A$1:AAE$1000,U$1,FALSE) -> 
A79: =VLOOKUP(B79&"_"&C79,Hg_Min_Tests!$A:$AZ,6,FALSE) -> Cherokee | B79: 469 | C79: 4 | D79: Unit 4 | E79: Mercury | F79: 1.12e-06 | G79: lb/MMBtu | H79: 1.029347258e-05 | I79: lb/MW | J79: Part II | K79: CHE4 Hg Aug05 | L79: 39 | P79: 0.01029347258 | Q79: =VLOOKUP(B79&"_"&C79,Hg_Min_Tests!$A$1:AA$1000,11,FALSE) -> Tangential firing | R79: =VLOOKUP($B79&"_"&$C79,Hg_Min_Tests!$A$1:AAB$1000,R$1,FALSE) -> Dry FGD - Spray Dryer | S79: =VLOOKUP($B79&"_"&$C79,Hg_Min_Tests!$A$1:AAC$1000,S$1,FALSE) -> Fabric Filter, reverse air | T79: =VLOOKUP($B79&"_"&$C79,Hg_Min_Tests!$A$1:AAD$1000,T$1,FALSE) ->  | U79: =VLOOKUP($B79&"_"&$C79,Hg_Min_Tests!$A$1:AAE$1000,U$1,FALSE) -> 
A80: =VLOOKUP(B80&"_"&C80,Hg_Min_Tests!$A:$AZ,6,FALSE) -> San Juan | B80: 2451 | C80: Unit 4 | D80: Unit 4 | E80: Mercury | F80: 3.43e-08 | G80: lb/MMBtu | H80: 3.561777574e-07 | I80: lb/MW | J80: ETTS | L80: 40 | P80: 0.0003561777574 | Q80: =VLOOKUP(B80&"_"&C80,Hg_Min_Tests!$A$1:AA$1000,11,FALSE) -> Wall firing - opposed firing | R80: =VLOOKUP($B80&"_"&$C80,Hg_Min_Tests!$A$1:AAB$1000,R$1,FALSE) -> Activated carbon injection | S80: =VLOOKUP($B80&"_"&$C80,Hg_Min_Tests!$A$1:AAC$1000,S$1,FALSE) -> Fabric Filter, pulse | T80: =VLOOKUP($B80&"_"&$C80,Hg_Min_Tests!$A$1:AAD$1000,T$1,FALSE) -> Wet FGD - Spray Type | U80: =VLOOKUP($B80&"_"&$C80,Hg_Min_Tests!$A$1:AAE$1000,U$1,FALSE) -> 
A81: =VLOOKUP(B81&"_"&C81,Hg_Min_Tests!$A:$AZ,6,FALSE) -> San Juan | B81: 2451 | C81: Unit 4 | D81: Unit 4 | E81: Mercury | F81: 1.36e-07 | G81: lb/MMBtu | H81: 1.41225e-06 | I81: lb/MW | J81: Part II | K81: Unit 4 Mini Hg RATA 2009 | L81: 40 | P81: 0.00141225 | Q81: =VLOOKUP(B81&"_"&C81,Hg_Min_Tests!$A$1:AA$1000,11,FALSE) -> Wall firing - opposed firing | R81: =VLOOKUP($B81&"_"&$C81,Hg_Min_Tests!$A$1:AAB$1000,R$1,FALSE) -> Activated carbon injection | S81: =VLOOKUP($B81&"_"&$C81,Hg_Min_Tests!$A$1:AAC$1000,S$1,FALSE) -> Fabric Filter, pulse | T81: =VLOOKUP($B81&"_"&$C81,Hg_Min_Tests!$A$1:AAD$1000,T$1,FALSE) -> Wet FGD - Spray Type | U81: =VLOOKUP($B81&"_"&$C81,Hg_Min_Tests!$A$1:AAE$1000,U$1,FALSE) -> 
A82: =VLOOKUP(B82&"_"&C82,Hg_Min_Tests!$A:$AZ,6,FALSE) -> San Juan | B82: 2451 | C82: Unit 4 | D82: Unit 4 | E82: Mercury | F82: 3.426666667e-07 | G82: lb/MMBtu | H82: 3.558316176e-06 | I82: lb/MW | J82: Part II | K82: Unit 4 Mini Hg RATA 2008 | L82: 40 | P82: 0.003558316176 | Q82: =VLOOKUP(B82&"_"&C82,Hg_Min_Tests!$A$1:AA$1000,11,FALSE) -> Wall firing - opposed firing | R82: =VLOOKUP($B82&"_"&$C82,Hg_Min_Tests!$A$1:AAB$1000,R$1,FALSE) -> Activated carbon injection | S82: =VLOOKUP($B82&"_"&$C82,Hg_Min_Tests!$A$1:AAC$1000,S$1,FALSE) -> Fabric Filter, pulse | T82: =VLOOKUP($B82&"_"&$C82,Hg_Min_Tests!$A$1:AAD$1000,T$1,FALSE) -> Wet FGD - Spray Type | U82: =VLOOKUP($B82&"_"&$C82,Hg_Min_Tests!$A$1:AAE$1000,U$1,FALSE) -> 
A83: =VLOOKUP(B83&"_"&C83,Hg_Min_Tests!$A:$AZ,6,FALSE) -> McMeekin | B83: 3287 | C83: MCM2 | D83: MCM002 | E83: Mercury | F83: 4.529812085e-08 | G83: lb/MMBtu | H83: 3.779304582e-07 | I83: lb/MW | J83: ERT | L83: 41 | P83: 0.0003779304582 | Q83: =VLOOKUP(B83&"_"&C83,Hg_Min_Tests!$A$1:AA$1000,11,FALSE) -> Tangential firing | R83: =VLOOKUP($B83&"_"&$C83,Hg_Min_Tests!$A$1:AAB$1000,R$1,FALSE) -> Fabric Filter, unspecified | S83: =VLOOKUP($B83&"_"&$C83,Hg_Min_Tests!$A$1:AAC$1000,S$1,FALSE) ->  | T83: =VLOOKUP($B83&"_"&$C83,Hg_Min_Tests!$A$1:AAD$1000,T$1,FALSE) ->  | U83: =VLOOKUP($B83&"_"&$C83,Hg_Min_Tests!$A$1:AAE$1000,U$1,FALSE) -> 
A84: =VLOOKUP(B84&"_"&C84,Hg_Min_Tests!$A:$AZ,6,FALSE) -> McMeekin | B84: 3287 | C84: MCM2 | D84: MCM002 | E84: Mercury | F84: 8.9e-07 | G84: lb/MMBtu | H84: 7.425431818e-06 | I84: lb/MW | J84: Part II | K84: Hg-01/06-MCM2 | L84: 41 | P84: 0.007425431818 | Q84: =VLOOKUP(B84&"_"&C84,Hg_Min_Tests!$A$1:AA$1000,11,FALSE) -> Tangential firing | R84: =VLOOKUP($B84&"_"&$C84,Hg_Min_Tests!$A$1:AAB$1000,R$1,FALSE) -> Fabric Filter, unspecified | S84: =VLOOKUP($B84&"_"&$C84,Hg_Min_Tests!$A$1:AAC$1000,S$1,FALSE) ->  | T84: =VLOOKUP($B84&"_"&$C84,Hg_Min_Tests!$A$1:AAD$1000,T$1,FALSE) ->  | U84: =VLOOKUP($B84&"_"&$C84,Hg_Min_Tests!$A$1:AAE$1000,U$1,FALSE) -> 
A85: =VLOOKUP(B85&"_"&C85,Hg_Min_Tests!$A:$AZ,6,FALSE) -> Martin Drake | B85: 492 | C85: 5 | D85: Unit 5 - Coal | E85: Mercury | F85: 3.75e-08 | G85: lb/MMBtu | H85: 3.886363636e-07 | I85: lb/MW | J85: ETTS | L85: 42 | P85: 0.0003886363636 | Q85: =VLOOKUP(B85&"_"&C85,Hg_Min_Tests!$A$1:AA$1000,11,FALSE) -> Wall firing - front firing | R85: =VLOOKUP($B85&"_"&$C85,Hg_Min_Tests!$A$1:AAB$1000,R$1,FALSE) -> Fabric Filter, reverse air | S85: =VLOOKUP($B85&"_"&$C85,Hg_Min_Tests!$A$1:AAC$1000,S$1,FALSE) ->  | T85: =VLOOKUP($B85&"_"&$C85,Hg_Min_Tests!$A$1:AAD$1000,T$1,FALSE) ->  | U85: =VLOOKUP($B85&"_"&$C85,Hg_Min_Tests!$A$1:AAE$1000,U$1,FALSE) -> 
A86: =VLOOKUP(B86&"_"&C86,Hg_Min_Tests!$A:$AZ,6,FALSE) -> Martin Drake | B86: 492 | C86: 5 | D86: Unit 5 - Coal | E86: Mercury | F86: 3.366666667e-07 | G86: lb/MMBtu | H86: 3.489090909e-06 | I86: lb/MW | J86: Part II | K86: APT CSU5384 D | L86: 42 | P86: 0.003489090909 | Q86: =VLOOKUP(B86&"_"&C86,Hg_Min_Tests!$A$1:AA$1000,11,FALSE) -> Wall firing - front firing | R86: =VLOOKUP($B86&"_"&$C86,Hg_Min_Tests!$A$1:AAB$1000,R$1,FALSE) -> Fabric Filter, reverse air | S86: =VLOOKUP($B86&"_"&$C86,Hg_Min_Tests!$A$1:AAC$1000,S$1,FALSE) ->  | T86: =VLOOKUP($B86&"_"&$C86,Hg_Min_Tests!$A$1:AAD$1000,T$1,FALSE) ->  | U86: =VLOOKUP($B86&"_"&$C86,Hg_Min_Tests!$A$1:AAE$1000,U$1,FALSE) -> 
A87: =VLOOKUP(B87&"_"&C87,Hg_Min_Tests!$A:$AZ,6,FALSE) -> Martin Drake | B87: 492 | C87: 5 | D87: Unit 5 - Coal | E87: Mercury | F87: 4.33e-07 | G87: lb/MMBtu | H87: 4.487454545e-06 | I87: lb/MW | J87: Part II | K87: Airtech 2480D | L87: 42 | P87: 0.004487454545 | Q87: =VLOOKUP(B87&"_"&C87,Hg_Min_Tests!$A$1:AA$1000,11,FALSE) -> Wall firing - front firing | R87: =VLOOKUP($B87&"_"&$C87,Hg_Min_Tests!$A$1:AAB$1000,R$1,FALSE) -> Fabric Filter, reverse air | S87: =VLOOKUP($B87&"_"&$C87,Hg_Min_Tests!$A$1:AAC$1000,S$1,FALSE) ->  | T87: =VLOOKUP($B87&"_"&$C87,Hg_Min_Tests!$A$1:AAD$1000,T$1,FALSE) ->  | U87: =VLOOKUP($B87&"_"&$C87,Hg_Min_Tests!$A$1:AAE$1000,U$1,FALSE) -> 
A88: =VLOOKUP(B88&"_"&C88,Hg_Min_Tests!$A:$AZ,6,FALSE) -> Canadys Steam | B88: 3280 | C88: CAN3 | D88: CAN003 | E88: Mercury | F88: 4.224e-08 | G88: lb/MMBtu | H88: 4.165777297e-07 | I88: lb/MW | J88: Part II | K88: Hg-03/09-CAN3 | L88: 43 | P88: 0.0004165777297 | Q88: =VLOOKUP(B88&"_"&C88,Hg_Min_Tests!$A$1:AA$1000,11,FALSE) -> Wall firing - unspecified | R88: =VLOOKUP($B88&"_"&$C88,Hg_Min_Tests!$A$1:AAB$1000,R$1,FALSE) -> Fabric Filter, unspecified | S88: =VLOOKUP($B88&"_"&$C88,Hg_Min_Tests!$A$1:AAC$1000,S$1,FALSE) ->  | T88: =VLOOKUP($B88&"_"&$C88,Hg_Min_Tests!$A$1:AAD$1000,T$1,FALSE) ->  | U88: =VLOOKUP($B88&"_"&$C88,Hg_Min_Tests!$A$1:AAE$1000,U$1,FALSE) -> 
A89: =VLOOKUP(B89&"_"&C89,Hg_Min_Tests!$A:$AZ,6,FALSE) -> Canadys Steam | B89: 3280 | C89: CAN3 | D89: CAN003 | E89: Mercury | F89: 4.338711309e-08 | G89: lb/MMBtu | H89: 4.278907451e-07 | I89: lb/MW | J89: ERT | L89: 43 | P89: 0.0004278907451 | Q89: =VLOOKUP(B89&"_"&C89,Hg_Min_Tests!$A$1:AA$1000,11,FALSE) -> Wall firing - unspecified | R89: =VLOOKUP($B89&"_"&$C89,Hg_Min_Tests!$A$1:AAB$1000,R$1,FALSE) -> Fabric Filter, unspecified | S89: =VLOOKUP($B89&"_"&$C89,Hg_Min_Tests!$A$1:AAC$1000,S$1,FALSE) ->  | T89: =VLOOKUP($B89&"_"&$C89,Hg_Min_Tests!$A$1:AAD$1000,T$1,FALSE) ->  | U89: =VLOOKUP($B89&"_"&$C89,Hg_Min_Tests!$A$1:AAE$1000,U$1,FALSE) -> 
A90: =VLOOKUP(B90&"_"&C90,Hg_Min_Tests!$A:$AZ,6,FALSE) -> Canadys Steam | B90: 3280 | C90: CAN3 | D90: CAN003 | E90: Mercury | F90: 7e-08 | G90: lb/MMBtu | H90: 6.903513514e-07 | I90: lb/MW | J90: Part II | K90: Hg-01/06-CAN3 | L90: 43 | P90: 0.0006903513514 | Q90: =VLOOKUP(B90&"_"&C90,Hg_Min_Tests!$A$1:AA$1000,11,FALSE) -> Wall firing - unspecified | R90: =VLOOKUP($B90&"_"&$C90,Hg_Min_Tests!$A$1:AAB$1000,R$1,FALSE) -> Fabric Filter, unspecified | S90: =VLOOKUP($B90&"_"&$C90,Hg_Min_Tests!$A$1:AAC$1000,S$1,FALSE) ->  | T90: =VLOOKUP($B90&"_"&$C90,Hg_Min_Tests!$A$1:AAD$1000,T$1,FALSE) ->  | U90: =VLOOKUP($B90&"_"&$C90,Hg_Min_Tests!$A$1:AAE$1000,U$1,FALSE) -> 
A91: =VLOOKUP(B91&"_"&C91,Hg_Min_Tests!$A:$AZ,6,FALSE) -> Canadys Steam | B91: 3280 | C91: CAN3 | D91: CAN003 | E91: Mercury | F91: 2.3e-07 | G91: lb/MMBtu | H91: 2.268297297e-06 | I91: lb/MW | J91: Part II | K91: Hg-02/06-CAN3 | L91: 43 | P91: 0.002268297297 | Q91: =VLOOKUP(B91&"_"&C91,Hg_Min_Tests!$A$1:AA$1000,11,FALSE) -> Wall firing - unspecified | R91: =VLOOKUP($B91&"_"&$C91,Hg_Min_Tests!$A$1:AAB$1000,R$1,FALSE) -> Fabric Filter, unspecified | S91: =VLOOKUP($B91&"_"&$C91,Hg_Min_Tests!$A$1:AAC$1000,S$1,FALSE) ->  | T91: =VLOOKUP($B91&"_"&$C91,Hg_Min_Tests!$A$1:AAD$1000,T$1,FALSE) ->  | U91: =VLOOKUP($B91&"_"&$C91,Hg_Min_Tests!$A$1:AAE$1000,U$1,FALSE) -> 
A92: =VLOOKUP(B92&"_"&C92,Hg_Min_Tests!$A:$AZ,6,FALSE) -> Scrubgrass Generating Company L.P. | B92: 50974 | C92: #1 CFB boiler | D92: Gen 1 | E92: Mercury | F92: 3.53e-08 | G92: lb/MMBtu | H92: 4.548969072e-07 | I92: lb/MW | J92: ETTS | L92: 44 | P92: 0.0004548969072 | Q92: =VLOOKUP(B92&"_"&C92,Hg_Min_Tests!$A$1:AA$1000,11,FALSE) -> Fluidized bed firing | R92: =VLOOKUP($B92&"_"&$C92,Hg_Min_Tests!$A$1:AAB$1000,R$1,FALSE) -> Selective Noncatalytic Reduction | S92: =VLOOKUP($B92&"_"&$C92,Hg_Min_Tests!$A$1:AAC$1000,S$1,FALSE) -> Selective Noncatalytic Reduction | T92: =VLOOKUP($B92&"_"&$C92,Hg_Min_Tests!$A$1:AAD$1000,T$1,FALSE) -> Fabric Filter, pulse | U92: =VLOOKUP($B92&"_"&$C92,Hg_Min_Tests!$A$1:AAE$1000,U$1,FALSE) -> Fabric Filter, pulse
A93: =VLOOKUP(B93&"_"&C93,Hg_Min_Tests!$A:$AZ,6,FALSE) -> Scrubgrass Generating Company L.P. | B93: 50974 | C93: #1 CFB boiler | D93: Gen 1 | E93: Mercury | F93: 5.6e-07 | G93: lb/MMBtu | H93: 7.216494845e-06 | I93: lb/MW | J93: Part II | K93: 12/13/2005 Waste Bituminous Coal Baseline Testing | L93: 44 | P93: 0.007216494845 | Q93: =VLOOKUP(B93&"_"&C93,Hg_Min_Tests!$A$1:AA$1000,11,FALSE) -> Fluidized bed firing | R93: =VLOOKUP($B93&"_"&$C93,Hg_Min_Tests!$A$1:AAB$1000,R$1,FALSE) -> Selective Noncatalytic Reduction | S93: =VLOOKUP($B93&"_"&$C93,Hg_Min_Tests!$A$1:AAC$1000,S$1,FALSE) -> Selective Noncatalytic Reduction | T93: =VLOOKUP($B93&"_"&$C93,Hg_Min_Tests!$A$1:AAD$1000,T$1,FALSE) -> Fabric Filter, pulse | U93: =VLOOKUP($B93&"_"&$C93,Hg_Min_Tests!$A$1:AAE$1000,U$1,FALSE) -> Fabric Filter, pulse
A94: =VLOOKUP(B94&"_"&C94,Hg_Min_Tests!$A:$AZ,6,FALSE) -> Scrubgrass Generating Company L.P. | B94: 50974 | C94: #1 CFB boiler | D94: Gen 1 | E94: Mercury | F94: 3e-06 | G94: lb/MMBtu | H94: 3.865979381e-05 | I94: lb/MW | J94: Part II | K94: common stack test 3-2-2005 | L94: 44 | P94: 0.03865979381 | Q94: =VLOOKUP(B94&"_"&C94,Hg_Min_Tests!$A$1:AA$1000,11,FALSE) -> Fluidized bed firing | R94: =VLOOKUP($B94&"_"&$C94,Hg_Min_Tests!$A$1:AAB$1000,R$1,FALSE) -> Selective Noncatalytic Reduction | S94: =VLOOKUP($B94&"_"&$C94,Hg_Min_Tests!$A$1:AAC$1000,S$1,FALSE) -> Selective Noncatalytic Reduction | T94: =VLOOKUP($B94&"_"&$C94,Hg_Min_Tests!$A$1:AAD$1000,T$1,FALSE) -> Fabric Filter, pulse | U94: =VLOOKUP($B94&"_"&$C94,Hg_Min_Tests!$A$1:AAE$1000,U$1,FALSE) -> Fabric Filter, pulse
A95: =VLOOKUP(B95&"_"&C95,Hg_Min_Tests!$A:$AZ,6,FALSE) -> Scrubgrass Generating Company L.P. | B95: 50974 | C95: #2 CFB Boiler | D95: Gen 1 | E95: Mercury | F95: 3.53e-08 | G95: lb/MMBtu | H95: 4.548969072e-07 | I95: lb/MW | J95: ETTS | L95: 45 | P95: 0.0004548969072 | Q95: =VLOOKUP(B95&"_"&C95,Hg_Min_Tests!$A$1:AA$1000,11,FALSE) -> Fluidized bed firing | R95: =VLOOKUP($B95&"_"&$C95,Hg_Min_Tests!$A$1:AAB$1000,R$1,FALSE) -> Selective Noncatalytic Reduction | S95: =VLOOKUP($B95&"_"&$C95,Hg_Min_Tests!$A$1:AAC$1000,S$1,FALSE) -> Selective Noncatalytic Reduction | T95: =VLOOKUP($B95&"_"&$C95,Hg_Min_Tests!$A$1:AAD$1000,T$1,FALSE) -> Fabric Filter, pulse | U95: =VLOOKUP($B95&"_"&$C95,Hg_Min_Tests!$A$1:AAE$1000,U$1,FALSE) -> Fabric Filter, pulse
A96: =VLOOKUP(B96&"_"&C96,Hg_Min_Tests!$A:$AZ,6,FALSE) -> Scrubgrass Generating Company L.P. | B96: 50974 | C96: #2 CFB Boiler | D96: Gen 1 | E96: Mercury | F96: 5.6e-07 | G96: lb/MMBtu | H96: 7.216494845e-06 | I96: lb/MW | J96: Part II | K96: 12/13/2005 Waste Bituminous Coal Baseline Testing | L96: 45 | P96: 0.007216494845 | Q96: =VLOOKUP(B96&"_"&C96,Hg_Min_Tests!$A$1:AA$1000,11,FALSE) -> Fluidized bed firing | R96: =VLOOKUP($B96&"_"&$C96,Hg_Min_Tests!$A$1:AAB$1000,R$1,FALSE) -> Selective Noncatalytic Reduction | S96: =VLOOKUP($B96&"_"&$C96,Hg_Min_Tests!$A$1:AAC$1000,S$1,FALSE) -> Selective Noncatalytic Reduction | T96: =VLOOKUP($B96&"_"&$C96,Hg_Min_Tests!$A$1:AAD$1000,T$1,FALSE) -> Fabric Filter, pulse | U96: =VLOOKUP($B96&"_"&$C96,Hg_Min_Tests!$A$1:AAE$1000,U$1,FALSE) -> Fabric Filter, pulse
A97: =VLOOKUP(B97&"_"&C97,Hg_Min_Tests!$A:$AZ,6,FALSE) -> Scrubgrass Generating Company L.P. | B97: 50974 | C97: #2 CFB Boiler | D97: Gen 1 | E97: Mercury | F97: 3e-06 | G97: lb/MMBtu | H97: 3.865979381e-05 | I97: lb/MW | J97: Part II | K97: common stack test 3-2-2005 | L97: 45 | P97: 0.03865979381 | Q97: =VLOOKUP(B97&"_"&C97,Hg_Min_Tests!$A$1:AA$1000,11,FALSE) -> Fluidized bed firing | R97: =VLOOKUP($B97&"_"&$C97,Hg_Min_Tests!$A$1:AAB$1000,R$1,FALSE) -> Selective Noncatalytic Reduction | S97: =VLOOKUP($B97&"_"&$C97,Hg_Min_Tests!$A$1:AAC$1000,S$1,FALSE) -> Selective Noncatalytic Reduction | T97: =VLOOKUP($B97&"_"&$C97,Hg_Min_Tests!$A$1:AAD$1000,T$1,FALSE) -> Fabric Filter, pulse | U97: =VLOOKUP($B97&"_"&$C97,Hg_Min_Tests!$A$1:AAE$1000,U$1,FALSE) -> Fabric Filter, pulse
A98: =VLOOKUP(B98&"_"&C98,Hg_Min_Tests!$A:$AZ,6,FALSE) -> Valmont | B98: 477 | C98: 5 | D98: Unit 5 | E98: Mercury | F98: 4.99939273e-08 | G98: lb/MMBtu | H98: 4.706061014e-07 | I98: lb/MW | J98: Part II | K98: VAL5 Hg Jul09 | L98: 46 | P98: 0.0004706061014 | Q98: =VLOOKUP(B98&"_"&C98,Hg_Min_Tests!$A$1:AA$1000,11,FALSE) -> Tangential firing | R98: =VLOOKUP($B98&"_"&$C98,Hg_Min_Tests!$A$1:AAB$1000,R$1,FALSE) -> Dry FGD - Spray Dryer | S98: =VLOOKUP($B98&"_"&$C98,Hg_Min_Tests!$A$1:AAC$1000,S$1,FALSE) -> Fabric Filter, reverse air | T98: =VLOOKUP($B98&"_"&$C98,Hg_Min_Tests!$A$1:AAD$1000,T$1,FALSE) ->  | U98: =VLOOKUP($B98&"_"&$C98,Hg_Min_Tests!$A$1:AAE$1000,U$1,FALSE) -> 
A99: =VLOOKUP(B99&"_"&C99,Hg_Min_Tests!$A:$AZ,6,FALSE) -> Valmont | B99: 477 | C99: 5 | D99: Unit 5 | E99: Mercury | F99: 5.9e-07 | G99: lb/MMBtu | H99: 5.553826531e-06 | I99: lb/MW | J99: Part II | K99: VAL5 Hg Jan08 | L99: 46 | P99: 0.005553826531 | Q99: =VLOOKUP(B99&"_"&C99,Hg_Min_Tests!$A$1:AA$1000,11,FALSE) -> Tangential firing | R99: =VLOOKUP($B99&"_"&$C99,Hg_Min_Tests!$A$1:AAB$1000,R$1,FALSE) -> Dry FGD - Spray Dryer | S99: =VLOOKUP($B99&"_"&$C99,Hg_Min_Tests!$A$1:AAC$1000,S$1,FALSE) -> Fabric Filter, reverse air | T99: =VLOOKUP($B99&"_"&$C99,Hg_Min_Tests!$A$1:AAD$1000,T$1,FALSE) ->  | U99: =VLOOKUP($B99&"_"&$C99,Hg_Min_Tests!$A$1:AAE$1000,U$1,FALSE) -> 
A100: =VLOOKUP(B100&"_"&C100,Hg_Min_Tests!$A:$AZ,6,FALSE) -> San Juan | B100: 2451 | C100: Unit 3 | D100: Unit 3 | E100: Mercury | F100: 4.683333333e-08 | G100: lb/MMBtu | H100: 4.957101716e-07 | I100: lb/MW | J100: ETTS | L100: 47 | P100: 0.0004957101716 | Q100: =VLOOKUP(B100&"_"&C100,Hg_Min_Tests!$A$1:AA$1000,11,FALSE) -> Wall firing - opposed firing | R100: =VLOOKUP($B100&"_"&$C100,Hg_Min_Tests!$A$1:AAB$1000,R$1,FALSE) -> Activated carbon injection | S100: =VLOOKUP($B100&"_"&$C100,Hg_Min_Tests!$A$1:AAC$1000,S$1,FALSE) -> Fabric Filter, pulse | T100: =VLOOKUP($B100&"_"&$C100,Hg_Min_Tests!$A$1:AAD$1000,T$1,FALSE) -> Wet FGD - Spray Type | U100: =VLOOKUP($B100&"_"&$C100,Hg_Min_Tests!$A$1:AAE$1000,U$1,FALSE) -> 
A101: =VLOOKUP(B101&"_"&C101,Hg_Min_Tests!$A:$AZ,6,FALSE) -> San Juan | B101: 2451 | C101: Unit 3 | D101: Unit 3 | E101: Mercury | F101: 2.5e-07 | G101: lb/MMBtu | H101: 2.646139706e-06 | I101: lb/MW | J101: Part II | K101: Unit 3 Mini Hg RATA 2009 | L101: 47 | P101: 0.002646139706 | Q101: =VLOOKUP(B101&"_"&C101,Hg_Min_Tests!$A$1:AA$1000,11,FALSE) -> Wall firing - opposed firing | R101: =VLOOKUP($B101&"_"&$C101,Hg_Min_Tests!$A$1:AAB$1000,R$1,FALSE) -> Activated carbon injection | S101: =VLOOKUP($B101&"_"&$C101,Hg_Min_Tests!$A$1:AAC$1000,S$1,FALSE) -> Fabric Filter, pulse | T101: =VLOOKUP($B101&"_"&$C101,Hg_Min_Tests!$A$1:AAD$1000,T$1,FALSE) -> Wet FGD - Spray Type | U101: =VLOOKUP($B101&"_"&$C101,Hg_Min_Tests!$A$1:AAE$1000,U$1,FALSE) -> 
A102: =VLOOKUP(B102&"_"&C102,Hg_Min_Tests!$A:$AZ,6,FALSE) -> AES Shady Point,LLC | B102: 10671 | C102: 1b | D102: Unit 1 | E102: Mercury | F102: 3.666666667e-08 | G102: lb/MMBtu | H102: 5.089493915e-07 | I102: lb/MW | J102: ETTS | L102: 48 | P102: 0.0005089493915 | Q102: =VLOOKUP(B102&"_"&C102,Hg_Min_Tests!$A$1:AA$1000,11,FALSE) -> Fluidized bed firing | R102: =VLOOKUP($B102&"_"&$C102,Hg_Min_Tests!$A$1:AAB$1000,R$1,FALSE) -> Fabric Filter, pulse | S102: =VLOOKUP($B102&"_"&$C102,Hg_Min_Tests!$A$1:AAC$1000,S$1,FALSE) ->  | T102: =VLOOKUP($B102&"_"&$C102,Hg_Min_Tests!$A$1:AAD$1000,T$1,FALSE) ->  | U102: =VLOOKUP($B102&"_"&$C102,Hg_Min_Tests!$A$1:AAE$1000,U$1,FALSE) -> 
A103: =VLOOKUP(B103&"_"&C103,Hg_Min_Tests!$A:$AZ,6,FALSE) -> AES Shady Point,LLC | B103: 10671 | C103: 1A | D103: Unit 1 | E103: Mercury | F103: 3.666666667e-08 | G103: lb/MMBtu | H103: 5.089493915e-07 | I103: lb/MW | J103: ETTS | L103: 49 | P103: 0.0005089493915 | Q103: =VLOOKUP(B103&"_"&C103,Hg_Min_Tests!$A$1:AA$1000,11,FALSE) -> Fluidized bed firing | R103: =VLOOKUP($B103&"_"&$C103,Hg_Min_Tests!$A$1:AAB$1000,R$1,FALSE) -> Fabric Filter, pulse | S103: =VLOOKUP($B103&"_"&$C103,Hg_Min_Tests!$A$1:AAC$1000,S$1,FALSE) ->  | T103: =VLOOKUP($B103&"_"&$C103,Hg_Min_Tests!$A$1:AAD$1000,T$1,FALSE) ->  | U103: =VLOOKUP($B103&"_"&$C103,Hg_Min_Tests!$A$1:AAE$1000,U$1,FALSE) -> 
A104: =VLOOKUP(B104&"_"&C104,Hg_Min_Tests!$A:$AZ,6,FALSE) -> AES Shady Point,LLC | B104: 10671 | C104: 2b | D104: Unit 2 | E104: Mercury | F104: 3.666666667e-08 | G104: lb/MMBtu | H104: 5.089493915e-07 | I104: lb/MW | J104: ETTS | L104: 50 | P104: 0.0005089493915 | Q104: =VLOOKUP(B104&"_"&C104,Hg_Min_Tests!$A$1:AA$1000,11,FALSE) -> Fluidized bed firing | R104: =VLOOKUP($B104&"_"&$C104,Hg_Min_Tests!$A$1:AAB$1000,R$1,FALSE) -> Fabric Filter, pulse | S104: =VLOOKUP($B104&"_"&$C104,Hg_Min_Tests!$A$1:AAC$1000,S$1,FALSE) ->  | T104: =VLOOKUP($B104&"_"&$C104,Hg_Min_Tests!$A$1:AAD$1000,T$1,FALSE) ->  | U104: =VLOOKUP($B104&"_"&$C104,Hg_Min_Tests!$A$1:AAE$1000,U$1,FALSE) -> 
A105: =VLOOKUP(B105&"_"&C105,Hg_Min_Tests!$A:$AZ,6,FALSE) -> AES Shady Point,LLC | B105: 10671 | C105: 2a | D105: Unit 2 | E105: Mercury | F105: 3.666666667e-08 | G105: lb/MMBtu | H105: 5.089493915e-07 | I105: lb/MW | J105: ETTS | L105: 51 | P105: 0.0005089493915 | Q105: =VLOOKUP(B105&"_"&C105,Hg_Min_Tests!$A$1:AA$1000,11,FALSE) -> Fluidized bed firing | R105: =VLOOKUP($B105&"_"&$C105,Hg_Min_Tests!$A$1:AAB$1000,R$1,FALSE) -> Fabric Filter, pulse | S105: =VLOOKUP($B105&"_"&$C105,Hg_Min_Tests!$A$1:AAC$1000,S$1,FALSE) ->  | T105: =VLOOKUP($B105&"_"&$C105,Hg_Min_Tests!$A$1:AAD$1000,T$1,FALSE) ->  | U105: =VLOOKUP($B105&"_"&$C105,Hg_Min_Tests!$A$1:AAE$1000,U$1,FALSE) -> 
A106: =VLOOKUP(B106&"_"&C106,Hg_Min_Tests!$A:$AZ,6,FALSE) -> Mount Tom | B106: 1606 | C106: 1 | D106: 1 current | E106: Mercury | F106: 5.55e-08 | G106: lb/MMBtu | H106: 5.299354839e-07 | I106: lb/MW | J106: Part II | K106: Turbosorp - initial compliance test | L106: 52 | P106: 0.0005299354839 | Q106: =VLOOKUP(B106&"_"&C106,Hg_Min_Tests!$A$1:AA$1000,11,FALSE) -> Wall firing - front firing | R106: =VLOOKUP($B106&"_"&$C106,Hg_Min_Tests!$A$1:AAB$1000,R$1,FALSE) -> Selective Catalytic Reduction | S106: =VLOOKUP($B106&"_"&$C106,Hg_Min_Tests!$A$1:AAC$1000,S$1,FALSE) -> Electrostatic precipitator, cold side, w/o flue gas conditioning | T106: =VLOOKUP($B106&"_"&$C106,Hg_Min_Tests!$A$1:AAD$1000,T$1,FALSE) -> Dry FGD - Circulating Dry Scrubber | U106: =VLOOKUP($B106&"_"&$C106,Hg_Min_Tests!$A$1:AAE$1000,U$1,FALSE) -> Fabric Filter, pulse
A107: =VLOOKUP(B107&"_"&C107,Hg_Min_Tests!$A:$AZ,6,FALSE) -> PANTHER CREEK ENERGY FACILITY | B107: 50776 | C107: BLR1 | D107: BG1 | E107: Mercury | F107: 4.133333333e-08 | G107: lb/MMBtu | H107: 5.333333333e-07 | I107: lb/MW | J107: ETTS | L107: 53 | P107: 0.0005333333333 | Q107: =VLOOKUP(B107&"_"&C107,Hg_Min_Tests!$A$1:AA$1000,11,FALSE) -> Fluidized bed firing | R107: =VLOOKUP($B107&"_"&$C107,Hg_Min_Tests!$A$1:AAB$1000,R$1,FALSE) -> Selective Noncatalytic Reduction | S107: =VLOOKUP($B107&"_"&$C107,Hg_Min_Tests!$A$1:AAC$1000,S$1,FALSE) -> Fabric Filter, pulse | T107: =VLOOKUP($B107&"_"&$C107,Hg_Min_Tests!$A$1:AAD$1000,T$1,FALSE) ->  | U107: =VLOOKUP($B107&"_"&$C107,Hg_Min_Tests!$A$1:AAE$1000,U$1,FALSE) -> 
A108: =VLOOKUP(B108&"_"&C108,Hg_Min_Tests!$A:$AZ,6,FALSE) -> PANTHER CREEK ENERGY FACILITY | B108: 50776 | C108: BLR1 | D108: BG1 | E108: Mercury | F108: 8.1e-08 | G108: lb/MMBtu | H108: 1.04516129e-06 | I108: lb/MW | J108: Part II | K108: B1 Hg 12/2008 | L108: 53 | P108: 0.00104516129 | Q108: =VLOOKUP(B108&"_"&C108,Hg_Min_Tests!$A$1:AA$1000,11,FALSE) -> Fluidized bed firing | R108: =VLOOKUP($B108&"_"&$C108,Hg_Min_Tests!$A$1:AAB$1000,R$1,FALSE) -> Selective Noncatalytic Reduction | S108: =VLOOKUP($B108&"_"&$C108,Hg_Min_Tests!$A$1:AAC$1000,S$1,FALSE) -> Fabric Filter, pulse | T108: =VLOOKUP($B108&"_"&$C108,Hg_Min_Tests!$A$1:AAD$1000,T$1,FALSE) ->  | U108: =VLOOKUP($B108&"_"&$C108,Hg_Min_Tests!$A$1:AAE$1000,U$1,FALSE) -> 
A109: =VLOOKUP(B109&"_"&C109,Hg_Min_Tests!$A:$AZ,6,FALSE) -> PANTHER CREEK ENERGY FACILITY | B109: 50776 | C109: BLR1 | D109: BG1 | E109: Mercury | F109: 1.8e-07 | G109: lb/MMBtu | H109: 2.322580645e-06 | I109: lb/MW | J109: Part II | K109: B1 Hg 06/2008 | L109: 53 | P109: 0.002322580645 | Q109: =VLOOKUP(B109&"_"&C109,Hg_Min_Tests!$A$1:AA$1000,11,FALSE) -> Fluidized bed firing | R109: =VLOOKUP($B109&"_"&$C109,Hg_Min_Tests!$A$1:AAB$1000,R$1,FALSE) -> Selective Noncatalytic Reduction | S109: =VLOOKUP($B109&"_"&$C109,Hg_Min_Tests!$A$1:AAC$1000,S$1,FALSE) -> Fabric Filter, pulse | T109: =VLOOKUP($B109&"_"&$C109,Hg_Min_Tests!$A$1:AAD$1000,T$1,FALSE) ->  | U109: =VLOOKUP($B109&"_"&$C109,Hg_Min_Tests!$A$1:AAE$1000,U$1,FALSE) -> 
A110: =VLOOKUP(B110&"_"&C110,Hg_Min_Tests!$A:$AZ,6,FALSE) -> PANTHER CREEK ENERGY FACILITY | B110: 50776 | C110: BLR2 | D110: BG2 | E110: Mercury | F110: 4.133333333e-08 | G110: lb/MMBtu | H110: 5.333333333e-07 | I110: lb/MW | J110: ETTS | L110: 54 | P110: 0.0005333333333 | Q110: =VLOOKUP(B110&"_"&C110,Hg_Min_Tests!$A$1:AA$1000,11,FALSE) -> Fluidized bed firing | R110: =VLOOKUP($B110&"_"&$C110,Hg_Min_Tests!$A$1:AAB$1000,R$1,FALSE) -> Selective Noncatalytic Reduction | S110: =VLOOKUP($B110&"_"&$C110,Hg_Min_Tests!$A$1:AAC$1000,S$1,FALSE) -> Fabric Filter, pulse | T110: =VLOOKUP($B110&"_"&$C110,Hg_Min_Tests!$A$1:AAD$1000,T$1,FALSE) ->  | U110: =VLOOKUP($B110&"_"&$C110,Hg_Min_Tests!$A$1:AAE$1000,U$1,FALSE) -> 
A111: =VLOOKUP(B111&"_"&C111,Hg_Min_Tests!$A:$AZ,6,FALSE) -> PANTHER CREEK ENERGY FACILITY | B111: 50776 | C111: BLR2 | D111: BG2 | E111: Mercury | F111: 5.983333333e-08 | G111: lb/MMBtu | H111: 7.720430108e-07 | I111: lb/MW | J111: Part II | K111: B2 Hg 12/2008 | L111: 54 | P111: 0.0007720430108 | Q111: =VLOOKUP(B111&"_"&C111,Hg_Min_Tests!$A$1:AA$1000,11,FALSE) -> Fluidized bed firing | R111: =VLOOKUP($B111&"_"&$C111,Hg_Min_Tests!$A$1:AAB$1000,R$1,FALSE) -> Selective Noncatalytic Reduction | S111: =VLOOKUP($B111&"_"&$C111,Hg_Min_Tests!$A$1:AAC$1000,S$1,FALSE) -> Fabric Filter, pulse | T111: =VLOOKUP($B111&"_"&$C111,Hg_Min_Tests!$A$1:AAD$1000,T$1,FALSE) ->  | U111: =VLOOKUP($B111&"_"&$C111,Hg_Min_Tests!$A$1:AAE$1000,U$1,FALSE) -> 
A112: =VLOOKUP(B112&"_"&C112,Hg_Min_Tests!$A:$AZ,6,FALSE) -> PANTHER CREEK ENERGY FACILITY | B112: 50776 | C112: BLR2 | D112: BG2 | E112: Mercury | F112: 1.275e-07 | G112: lb/MMBtu | H112: 1.64516129e-06 | I112: lb/MW | J112: Part II | K112: B2 Hg 06/2008 | L112: 54 | P112: 0.00164516129 | Q112: =VLOOKUP(B112&"_"&C112,Hg_Min_Tests!$A$1:AA$1000,11,FALSE) -> Fluidized bed firing | R112: =VLOOKUP($B112&"_"&$C112,Hg_Min_Tests!$A$1:AAB$1000,R$1,FALSE) -> Selective Noncatalytic Reduction | S112: =VLOOKUP($B112&"_"&$C112,Hg_Min_Tests!$A$1:AAC$1000,S$1,FALSE) -> Fabric Filter, pulse | T112: =VLOOKUP($B112&"_"&$C112,Hg_Min_Tests!$A$1:AAD$1000,T$1,FALSE) ->  | U112: =VLOOKUP($B112&"_"&$C112,Hg_Min_Tests!$A$1:AAE$1000,U$1,FALSE) -> 
A113: =VLOOKUP(B113&"_"&C113,Hg_Min_Tests!$A:$AZ,6,FALSE) -> PSEG Mercer Generating Station | B113: 2408 | C113: E1 | D113: MERU1E1PT1OS1-Coal | E113: Mercury | F113: 5.913e-08 | G113: lb/MMBtu | H113: 5.344110787e-07 | I113: lb/MW | J113: Part II | K113: EG08004-4Q | L113: 55 | P113: 0.0005344110787 | Q113: =VLOOKUP(B113&"_"&C113,Hg_Min_Tests!$A$1:AA$1000,11,FALSE) -> Wall firing - unspecified | R113: =VLOOKUP($B113&"_"&$C113,Hg_Min_Tests!$A$1:AAB$1000,R$1,FALSE) -> Electrostatic precipitator, cold side, w/ flue gas conditioning | S113: =VLOOKUP($B113&"_"&$C113,Hg_Min_Tests!$A$1:AAC$1000,S$1,FALSE) -> Selective Catalytic Reduction | T113: =VLOOKUP($B113&"_"&$C113,Hg_Min_Tests!$A$1:AAD$1000,T$1,FALSE) -> Activated carbon injection | U113: =VLOOKUP($B113&"_"&$C113,Hg_Min_Tests!$A$1:AAE$1000,U$1,FALSE) -> Fabric Filter, pulse
A114: =VLOOKUP(B114&"_"&C114,Hg_Min_Tests!$A:$AZ,6,FALSE) -> PSEG Mercer Generating Station | B114: 2408 | C114: E1 | D114: MERU1E1PT1OS1-Coal | E114: Mercury | F114: 2.632333333e-07 | G114: lb/MMBtu | H114: 2.379076774e-06 | I114: lb/MW | J114: Part II | K114: MER1-2 4Q2009 Hg PM10 ST Co NG | L114: 55 | P114: 0.002379076774 | Q114: =VLOOKUP(B114&"_"&C114,Hg_Min_Tests!$A$1:AA$1000,11,FALSE) -> Wall firing - unspecified | R114: =VLOOKUP($B114&"_"&$C114,Hg_Min_Tests!$A$1:AAB$1000,R$1,FALSE) -> Electrostatic precipitator, cold side, w/ flue gas conditioning | S114: =VLOOKUP($B114&"_"&$C114,Hg_Min_Tests!$A$1:AAC$1000,S$1,FALSE) -> Selective Catalytic Reduction | T114: =VLOOKUP($B114&"_"&$C114,Hg_Min_Tests!$A$1:AAD$1000,T$1,FALSE) -> Activated carbon injection | U114: =VLOOKUP($B114&"_"&$C114,Hg_Min_Tests!$A$1:AAE$1000,U$1,FALSE) -> Fabric Filter, pulse
A115: =VLOOKUP(B115&"_"&C115,Hg_Min_Tests!$A:$AZ,6,FALSE) -> PSEG Mercer Generating Station | B115: 2408 | C115: E1 | D115: MERU1E1PT1OS1-Coal | E115: Mercury | F115: 3.183333333e-07 | G115: lb/MMBtu | H115: 2.877065112e-06 | I115: lb/MW | J115: ETTS | L115: 55 | P115: 0.002877065112 | Q115: =VLOOKUP(B115&"_"&C115,Hg_Min_Tests!$A$1:AA$1000,11,FALSE) -> Wall firing - unspecified | R115: =VLOOKUP($B115&"_"&$C115,Hg_Min_Tests!$A$1:AAB$1000,R$1,FALSE) -> Electrostatic precipitator, cold side, w/ flue gas conditioning | S115: =VLOOKUP($B115&"_"&$C115,Hg_Min_Tests!$A$1:AAC$1000,S$1,FALSE) -> Selective Catalytic Reduction | T115: =VLOOKUP($B115&"_"&$C115,Hg_Min_Tests!$A$1:AAD$1000,T$1,FALSE) -> Activated carbon injection | U115: =VLOOKUP($B115&"_"&$C115,Hg_Min_Tests!$A$1:AAE$1000,U$1,FALSE) -> Fabric Filter, pulse
A116: =VLOOKUP(B116&"_"&C116,Hg_Min_Tests!$A:$AZ,6,FALSE) -> PSEG Mercer Generating Station | B116: 2408 | C116: E1 | D116: MERU1E1PT1OS1-Coal | E116: Mercury | F116: 7.629666667e-07 | G116: lb/MMBtu | H116: 6.895617104e-06 | I116: lb/MW | J116: Part II | K116: MER1-2 3Q2009 STCo NG | L116: 55 | P116: 0.006895617104 | Q116: =VLOOKUP(B116&"_"&C116,Hg_Min_Tests!$A$1:AA$1000,11,FALSE) -> Wall firing - unspecified | R116: =VLOOKUP($B116&"_"&$C116,Hg_Min_Tests!$A$1:AAB$1000,R$1,FALSE) -> Electrostatic precipitator, cold side, w/ flue gas conditioning | S116: =VLOOKUP($B116&"_"&$C116,Hg_Min_Tests!$A$1:AAC$1000,S$1,FALSE) -> Selective Catalytic Reduction | T116: =VLOOKUP($B116&"_"&$C116,Hg_Min_Tests!$A$1:AAD$1000,T$1,FALSE) -> Activated carbon injection | U116: =VLOOKUP($B116&"_"&$C116,Hg_Min_Tests!$A$1:AAE$1000,U$1,FALSE) -> Fabric Filter, pulse
A117: =VLOOKUP(B117&"_"&C117,Hg_Min_Tests!$A:$AZ,6,FALSE) -> PSEG Mercer Generating Station | B117: 2408 | C117: E1 | D117: MERU1E1PT1OS1-Coal | E117: Mercury | F117: 7.814e-07 | G117: lb/MMBtu | H117: 7.062215743e-06 | I117: lb/MW | J117: Part II | K117: MER1-2 1Q2009 ST Co HgPM10 | L117: 55 | P117: 0.007062215743 | Q117: =VLOOKUP(B117&"_"&C117,Hg_Min_Tests!$A$1:AA$1000,11,FALSE) -> Wall firing - unspecified | R117: =VLOOKUP($B117&"_"&$C117,Hg_Min_Tests!$A$1:AAB$1000,R$1,FALSE) -> Electrostatic precipitator, cold side, w/ flue gas conditioning | S117: =VLOOKUP($B117&"_"&$C117,Hg_Min_Tests!$A$1:AAC$1000,S$1,FALSE) -> Selective Catalytic Reduction | T117: =VLOOKUP($B117&"_"&$C117,Hg_Min_Tests!$A$1:AAD$1000,T$1,FALSE) -> Activated carbon injection | U117: =VLOOKUP($B117&"_"&$C117,Hg_Min_Tests!$A$1:AAE$1000,U$1,FALSE) -> Fabric Filter, pulse
A118: =VLOOKUP(B118&"_"&C118,Hg_Min_Tests!$A:$AZ,6,FALSE) -> Clover | B118: 7213 | C118: 2 | D118: Unit 2 | E118: Mercury | F118: 4.874585801e-08 | G118: lb/MMBtu | H118: 5.661932493e-07 | I118: lb/MW | J118: ETTS | L118: 56 | P118: 0.0005661932493 | Q118: =VLOOKUP(B118&"_"&C118,Hg_Min_Tests!$A$1:AA$1000,11,FALSE) -> Tangential firing | R118: =VLOOKUP($B118&"_"&$C118,Hg_Min_Tests!$A$1:AAB$1000,R$1,FALSE) -> Selective Noncatalytic Reduction | S118: =VLOOKUP($B118&"_"&$C118,Hg_Min_Tests!$A$1:AAC$1000,S$1,FALSE) -> Fabric Filter, reverse air | T118: =VLOOKUP($B118&"_"&$C118,Hg_Min_Tests!$A$1:AAD$1000,T$1,FALSE) -> Wet FGD - Spray Type | U118: =VLOOKUP($B118&"_"&$C118,Hg_Min_Tests!$A$1:AAE$1000,U$1,FALSE) -> 
A119: =VLOOKUP(B119&"_"&C119,Hg_Min_Tests!$A:$AZ,6,FALSE) -> Hopewell | B119: 10771 | C119: 10771-01 | D119: 1 & 2 | E119: Mercury | F119: 4.593134229e-08 | G119: lb/MMBtu | H119: 5.775190832e-07 | I119: lb/MW | J119: ETTS | L119: 57 | P119: 0.0005775190832 | Q119: =VLOOKUP(B119&"_"&C119,Hg_Min_Tests!$A$1:AA$1000,11,FALSE) -> Stoker - spreader | R119: =VLOOKUP($B119&"_"&$C119,Hg_Min_Tests!$A$1:AAB$1000,R$1,FALSE) -> Selective Noncatalytic Reduction | S119: =VLOOKUP($B119&"_"&$C119,Hg_Min_Tests!$A$1:AAC$1000,S$1,FALSE) -> Selective Noncatalytic Reduction | T119: =VLOOKUP($B119&"_"&$C119,Hg_Min_Tests!$A$1:AAD$1000,T$1,FALSE) -> Multiple cyclone | U119: =VLOOKUP($B119&"_"&$C119,Hg_Min_Tests!$A$1:AAE$1000,U$1,FALSE) -> Multiple cyclone
A120: =VLOOKUP(B120&"_"&C120,Hg_Min_Tests!$A:$AZ,6,FALSE) -> Hopewell | B120: 10771 | C120: 10771-02 | D120: 1 & 2 | E120: Mercury | F120: 4.593134229e-08 | G120: lb/MMBtu | H120: 5.775190832e-07 | I120: lb/MW | J120: ETTS | L120: 58 | P120: 0.0005775190832 | Q120: =VLOOKUP(B120&"_"&C120,Hg_Min_Tests!$A$1:AA$1000,11,FALSE) -> Stoker - underfeed | R120: =VLOOKUP($B120&"_"&$C120,Hg_Min_Tests!$A$1:AAB$1000,R$1,FALSE) -> Selective Noncatalytic Reduction | S120: =VLOOKUP($B120&"_"&$C120,Hg_Min_Tests!$A$1:AAC$1000,S$1,FALSE) -> Selective Noncatalytic Reduction | T120: =VLOOKUP($B120&"_"&$C120,Hg_Min_Tests!$A$1:AAD$1000,T$1,FALSE) -> Multiple cyclone | U120: =VLOOKUP($B120&"_"&$C120,Hg_Min_Tests!$A$1:AAE$1000,U$1,FALSE) -> Multiple cyclone
A121: =VLOOKUP(B121&"_"&C121,Hg_Min_Tests!$A:$AZ,6,FALSE) -> H L Spurlock Station | B121: 6041 | C121: 3 | D121: Unit 03 | E121: Mercury | F121: 7.2e-08 | G121: lb/MMBtu | H121: 6e-07 | I121: lb/MW | J121: ETTS | L121: 59 | P121: 0.0006 | Q121: =VLOOKUP(B121&"_"&C121,Hg_Min_Tests!$A$1:AA$1000,11,FALSE) -> Fluidized bed firing | R121: =VLOOKUP($B121&"_"&$C121,Hg_Min_Tests!$A$1:AAB$1000,R$1,FALSE) -> Selective Noncatalytic Reduction | S121: =VLOOKUP($B121&"_"&$C121,Hg_Min_Tests!$A$1:AAC$1000,S$1,FALSE) -> Dry FGD - Unspecified | T121: =VLOOKUP($B121&"_"&$C121,Hg_Min_Tests!$A$1:AAD$1000,T$1,FALSE) -> Fabric Filter, pulse | U121: =VLOOKUP($B121&"_"&$C121,Hg_Min_Tests!$A$1:AAE$1000,U$1,FALSE) -> 
A122: =VLOOKUP(B122&"_"&C122,Hg_Min_Tests!$A:$AZ,6,FALSE) -> San Juan | B122: 2451 | C122: Unit 2 | D122: Unit 2 | E122: Mercury | F122: 6.103333333e-08 | G122: lb/MMBtu | H122: 6.083538739e-07 | I122: lb/MW | J122: ETTS | L122: 60 | P122: 0.0006083538739 | Q122: =VLOOKUP(B122&"_"&C122,Hg_Min_Tests!$A$1:AA$1000,11,FALSE) -> Wall firing - front firing | R122: =VLOOKUP($B122&"_"&$C122,Hg_Min_Tests!$A$1:AAB$1000,R$1,FALSE) -> Activated carbon injection | S122: =VLOOKUP($B122&"_"&$C122,Hg_Min_Tests!$A$1:AAC$1000,S$1,FALSE) -> Fabric Filter, pulse | T122: =VLOOKUP($B122&"_"&$C122,Hg_Min_Tests!$A$1:AAD$1000,T$1,FALSE) -> Wet FGD - Spray Type | U122: =VLOOKUP($B122&"_"&$C122,Hg_Min_Tests!$A$1:AAE$1000,U$1,FALSE) -> 
A123: =VLOOKUP(B123&"_"&C123,Hg_Min_Tests!$A:$AZ,6,FALSE) -> Sunnyside Cogen Associates | B123: 50951 | C123: 1 | D123: Config 1 | E123: Mercury | F123: 5.32e-08 | G123: lb/MMBtu | H123: 6.206666667e-07 | I123: lb/MW | J123: ETTS | L123: 61 | P123: 0.0006206666667 | Q123: =VLOOKUP(B123&"_"&C123,Hg_Min_Tests!$A$1:AA$1000,11,FALSE) -> Fluidized bed firing | R123: =VLOOKUP($B123&"_"&$C123,Hg_Min_Tests!$A$1:AAB$1000,R$1,FALSE) -> Other (specify): Anhydrous ammonia injection | S123: =VLOOKUP($B123&"_"&$C123,Hg_Min_Tests!$A$1:AAC$1000,S$1,FALSE) -> Dry FGD - Sorbent Injection | T123: =VLOOKUP($B123&"_"&$C123,Hg_Min_Tests!$A$1:AAD$1000,T$1,FALSE) -> Fabric Filter, pulse | U123: =VLOOKUP($B123&"_"&$C123,Hg_Min_Tests!$A$1:AAE$1000,U$1,FALSE) -> 
A124: =VLOOKUP(B124&"_"&C124,Hg_Min_Tests!$A:$AZ,6,FALSE) -> Craig | B124: 6021 | C124: C2 | D124: C2 | E124: Mercury | F124: 6.792e-08 | G124: lb/MMBtu | H124: 6.358563158e-07 | I124: lb/MW | J124: ETTS | L124: 62 | P124: 0.0006358563158 | Q124: =VLOOKUP(B124&"_"&C124,Hg_Min_Tests!$A$1:AA$1000,11,FALSE) -> Wall firing - opposed firing | R124: =VLOOKUP($B124&"_"&$C124,Hg_Min_Tests!$A$1:AAB$1000,R$1,FALSE) -> Fabric Filter, pulse | S124: =VLOOKUP($B124&"_"&$C124,Hg_Min_Tests!$A$1:AAC$1000,S$1,FALSE) -> Wet FGD - Spray Type | T124: =VLOOKUP($B124&"_"&$C124,Hg_Min_Tests!$A$1:AAD$1000,T$1,FALSE) ->  | U124: =VLOOKUP($B124&"_"&$C124,Hg_Min_Tests!$A$1:AAE$1000,U$1,FALSE) -> 
A125: =VLOOKUP(B125&"_"&C125,Hg_Min_Tests!$A:$AZ,6,FALSE) -> Craig | B125: 6021 | C125: C2 | D125: C2 | E125: Mercury | F125: 8.356666667e-08 | G125: lb/MMBtu | H125: 7.823379386e-07 | I125: lb/MW | J125: Part II | K125: C2 2009 Hg Low Mass Emitter | L125: 62 | P125: 0.0007823379386 | Q125: =VLOOKUP(B125&"_"&C125,Hg_Min_Tests!$A$1:AA$1000,11,FALSE) -> Wall firing - opposed firing | R125: =VLOOKUP($B125&"_"&$C125,Hg_Min_Tests!$A$1:AAB$1000,R$1,FALSE) -> Fabric Filter, pulse | S125: =VLOOKUP($B125&"_"&$C125,Hg_Min_Tests!$A$1:AAC$1000,S$1,FALSE) -> Wet FGD - Spray Type | T125: =VLOOKUP($B125&"_"&$C125,Hg_Min_Tests!$A$1:AAD$1000,T$1,FALSE) ->  | U125: =VLOOKUP($B125&"_"&$C125,Hg_Min_Tests!$A$1:AAE$1000,U$1,FALSE) -> 
A126: =VLOOKUP(B126&"_"&C126,Hg_Min_Tests!$A:$AZ,6,FALSE) -> Craig | B126: 6021 | C126: C2 | D126: C2 | E126: Mercury | F126: 1.076666667e-07 | G126: lb/MMBtu | H126: 1.007958333e-06 | I126: lb/MW | J126: Part II | K126: C2 2008 Hg Low Mass Emitter | L126: 62 | P126: =H126*1000 -> 0.001007958333 | Q126: =VLOOKUP(B126&"_"&C126,Hg_Min_Tests!$A$1:AA$1000,11,FALSE) -> Wall firing - opposed firing | R126: =VLOOKUP($B126&"_"&$C126,Hg_Min_Tests!$A$1:AAB$1000,R$1,FALSE) -> Fabric Filter, pulse | S126: =VLOOKUP($B126&"_"&$C126,Hg_Min_Tests!$A$1:AAC$1000,S$1,FALSE) -> Wet FGD - Spray Type | T126: =VLOOKUP($B126&"_"&$C126,Hg_Min_Tests!$A$1:AAD$1000,T$1,FALSE) ->  | U126: =VLOOKUP($B126&"_"&$C126,Hg_Min_Tests!$A$1:AAE$1000,U$1,FALSE) -> 
A127: =VLOOKUP(B127&"_"&C127,Hg_Min_Tests!$A:$AZ,6,FALSE) -> Elm Road Generating Station | B127: 56068 | C127: 1 | D127: ERGS-B1 | E127: Mercury | F127: 7.533333333e-08 | G127: lb/MMBtu | H127: 7.249581487e-07 | I127: lb/MW | J127: ETTS | L127: 63 | P127: 0.0007249581487 | Q127: =VLOOKUP(B127&"_"&C127,Hg_Min_Tests!$A$1:AA$1000,11,FALSE) -> Wall firing - unspecified | R127: =VLOOKUP($B127&"_"&$C127,Hg_Min_Tests!$A$1:AAB$1000,R$1,FALSE) -> Selective Catalytic Reduction | S127: =VLOOKUP($B127&"_"&$C127,Hg_Min_Tests!$A$1:AAC$1000,S$1,FALSE) -> Fabric Filter, pulse | T127: =VLOOKUP($B127&"_"&$C127,Hg_Min_Tests!$A$1:AAD$1000,T$1,FALSE) -> Wet FGD - Spray Type | U127: =VLOOKUP($B127&"_"&$C127,Hg_Min_Tests!$A$1:AAE$1000,U$1,FALSE) -> Wet electrostatic precipitator
A128: =VLOOKUP(B128&"_"&C128,Hg_Min_Tests!$A:$AZ,6,FALSE) -> McMeekin | B128: 3287 | C128: MCM1 | D128: MCM001 | E128: Mercury | F128: 8.846309494e-08 | G128: lb/MMBtu | H128: 7.493151782e-07 | I128: lb/MW | J128: ERT | L128: 64 | P128: 0.0007493151782 | Q128: =VLOOKUP(B128&"_"&C128,Hg_Min_Tests!$A$1:AA$1000,11,FALSE) -> Tangential firing | R128: =VLOOKUP($B128&"_"&$C128,Hg_Min_Tests!$A$1:AAB$1000,R$1,FALSE) -> Fabric Filter, unspecified | S128: =VLOOKUP($B128&"_"&$C128,Hg_Min_Tests!$A$1:AAC$1000,S$1,FALSE) ->  | T128: =VLOOKUP($B128&"_"&$C128,Hg_Min_Tests!$A$1:AAD$1000,T$1,FALSE) ->  | U128: =VLOOKUP($B128&"_"&$C128,Hg_Min_Tests!$A$1:AAE$1000,U$1,FALSE) -> 
A129: =VLOOKUP(B129&"_"&C129,Hg_Min_Tests!$A:$AZ,6,FALSE) -> McMeekin | B129: 3287 | C129: MCM1 | D129: MCM001 | E129: Mercury | F129: 1.01e-06 | G129: lb/MMBtu | H129: 8.555074074e-06 | I129: lb/MW | J129: Part II | K129: Hg-01/06-MCM1 | L129: 64 | P129: 0.008555074074 | Q129: =VLOOKUP(B129&"_"&C129,Hg_Min_Tests!$A$1:AA$1000,11,FALSE) -> Tangential firing | R129: =VLOOKUP($B129&"_"&$C129,Hg_Min_Tests!$A$1:AAB$1000,R$1,FALSE) -> Fabric Filter, unspecified | S129: =VLOOKUP($B129&"_"&$C129,Hg_Min_Tests!$A$1:AAC$1000,S$1,FALSE) ->  | T129: =VLOOKUP($B129&"_"&$C129,Hg_Min_Tests!$A$1:AAD$1000,T$1,FALSE) ->  | U129: =VLOOKUP($B129&"_"&$C129,Hg_Min_Tests!$A$1:AAE$1000,U$1,FALSE) -> 
A130: =VLOOKUP(B130&"_"&C130,Hg_Min_Tests!$A:$AZ,6,FALSE) -> Piney Creek Project | B130: 54144 | C130: BRBR1 | D130: BRBRI | E130: Mercury | F130: 6.097297297e-08 | G130: lb/MMBtu | H130: 7.621621622e-07 | I130: lb/MW | J130: Part II | K130: 16-00127 Condition 4 & 12 | L130: 65 | P130: 0.0007621621622 | Q130: =VLOOKUP(B130&"_"&C130,Hg_Min_Tests!$A$1:AA$1000,11,FALSE) -> Fluidized bed firing | R130: =VLOOKUP($B130&"_"&$C130,Hg_Min_Tests!$A$1:AAB$1000,R$1,FALSE) -> Selective Noncatalytic Reduction | S130: =VLOOKUP($B130&"_"&$C130,Hg_Min_Tests!$A$1:AAC$1000,S$1,FALSE) -> Fabric Filter, pulse | T130: =VLOOKUP($B130&"_"&$C130,Hg_Min_Tests!$A$1:AAD$1000,T$1,FALSE) ->  | U130: =VLOOKUP($B130&"_"&$C130,Hg_Min_Tests!$A$1:AAE$1000,U$1,FALSE) -> 
A131: =VLOOKUP(B131&"_"&C131,Hg_Min_Tests!$A:$AZ,6,FALSE) -> Piney Creek Project | B131: 54144 | C131: BRBR1 | D131: BRBRI | E131: Mercury | F131: 1.273333333e-07 | G131: lb/MMBtu | H131: 1.591666667e-06 | I131: lb/MW | J131: ETTS | L131: 65 | P131: =H131*1000 -> 0.001591666667 | Q131: =VLOOKUP(B131&"_"&C131,Hg_Min_Tests!$A$1:AA$1000,11,FALSE) -> Fluidized bed firing | R131: =VLOOKUP($B131&"_"&$C131,Hg_Min_Tests!$A$1:AAB$1000,R$1,FALSE) -> Selective Noncatalytic Reduction | S131: =VLOOKUP($B131&"_"&$C131,Hg_Min_Tests!$A$1:AAC$1000,S$1,FALSE) -> Fabric Filter, pulse | T131: =VLOOKUP($B131&"_"&$C131,Hg_Min_Tests!$A$1:AAD$1000,T$1,FALSE) ->  | U131: =VLOOKUP($B131&"_"&$C131,Hg_Min_Tests!$A$1:AAE$1000,U$1,FALSE) -> 
A132: =VLOOKUP(B132&"_"&C132,Hg_Min_Tests!$A:$AZ,6,FALSE) -> PSEG Mercer Generating Station | B132: 2408 | C132: E2 | D132: MERU2E2PT2OS1-Coal | E132: Mercury | F132: 8.940666667e-08 | G132: lb/MMBtu | H132: 8.080485909e-07 | I132: lb/MW | J132: Part II | K132: EG08004-4Q | L132: 66 | P132: 0.0008080485909 | Q132: =VLOOKUP(B132&"_"&C132,Hg_Min_Tests!$A$1:AA$1000,11,FALSE) -> Wall firing - unspecified | R132: =VLOOKUP($B132&"_"&$C132,Hg_Min_Tests!$A$1:AAB$1000,R$1,FALSE) -> Electrostatic precipitator, cold side, w/ flue gas conditioning | S132: =VLOOKUP($B132&"_"&$C132,Hg_Min_Tests!$A$1:AAC$1000,S$1,FALSE) -> Selective Catalytic Reduction | T132: =VLOOKUP($B132&"_"&$C132,Hg_Min_Tests!$A$1:AAD$1000,T$1,FALSE) -> Activated carbon injection | U132: =VLOOKUP($B132&"_"&$C132,Hg_Min_Tests!$A$1:AAE$1000,U$1,FALSE) -> Fabric Filter, pulse
A133: =VLOOKUP(B133&"_"&C133,Hg_Min_Tests!$A:$AZ,6,FALSE) -> PSEG Mercer Generating Station | B133: 2408 | C133: E2 | D133: MERU2E2PT2OS1-Coal | E133: Mercury | F133: 1.661e-07 | G133: lb/MMBtu | H133: 1.501195335e-06 | I133: lb/MW | J133: Part II | K133: MER1-2 4Q2009 Hg PM10 ST Co NG | L133: 66 | P133: 0.001501195335 | Q133: =VLOOKUP(B133&"_"&C133,Hg_Min_Tests!$A$1:AA$1000,11,FALSE) -> Wall firing - unspecified | R133: =VLOOKUP($B133&"_"&$C133,Hg_Min_Tests!$A$1:AAB$1000,R$1,FALSE) -> Electrostatic precipitator, cold side, w/ flue gas conditioning | S133: =VLOOKUP($B133&"_"&$C133,Hg_Min_Tests!$A$1:AAC$1000,S$1,FALSE) -> Selective Catalytic Reduction | T133: =VLOOKUP($B133&"_"&$C133,Hg_Min_Tests!$A$1:AAD$1000,T$1,FALSE) -> Activated carbon injection | U133: =VLOOKUP($B133&"_"&$C133,Hg_Min_Tests!$A$1:AAE$1000,U$1,FALSE) -> Fabric Filter, pulse
A134: =VLOOKUP(B134&"_"&C134,Hg_Min_Tests!$A:$AZ,6,FALSE) -> PSEG Mercer Generating Station | B134: 2408 | C134: E2 | D134: MERU2E2PT2OS1-Coal | E134: Mercury | F134: 2e-07 | G134: lb/MMBtu | H134: 1.807580175e-06 | I134: lb/MW | J134: Part II | K134: MER2 2009 1YR ST Co NG | L134: 66 | P134: 0.001807580175 | Q134: =VLOOKUP(B134&"_"&C134,Hg_Min_Tests!$A$1:AA$1000,11,FALSE) -> Wall firing - unspecified | R134: =VLOOKUP($B134&"_"&$C134,Hg_Min_Tests!$A$1:AAB$1000,R$1,FALSE) -> Electrostatic precipitator, cold side, w/ flue gas conditioning | S134: =VLOOKUP($B134&"_"&$C134,Hg_Min_Tests!$A$1:AAC$1000,S$1,FALSE) -> Selective Catalytic Reduction | T134: =VLOOKUP($B134&"_"&$C134,Hg_Min_Tests!$A$1:AAD$1000,T$1,FALSE) -> Activated carbon injection | U134: =VLOOKUP($B134&"_"&$C134,Hg_Min_Tests!$A$1:AAE$1000,U$1,FALSE) -> Fabric Filter, pulse
A135: =VLOOKUP(B135&"_"&C135,Hg_Min_Tests!$A:$AZ,6,FALSE) -> PSEG Mercer Generating Station | B135: 2408 | C135: E2 | D135: MERU2E2PT2OS1-Coal | E135: Mercury | F135: 4.803333333e-07 | G135: lb/MMBtu | H135: 4.341205053e-06 | I135: lb/MW | J135: ETTS | L135: 66 | P135: 0.004341205053 | Q135: =VLOOKUP(B135&"_"&C135,Hg_Min_Tests!$A$1:AA$1000,11,FALSE) -> Wall firing - unspecified | R135: =VLOOKUP($B135&"_"&$C135,Hg_Min_Tests!$A$1:AAB$1000,R$1,FALSE) -> Electrostatic precipitator, cold side, w/ flue gas conditioning | S135: =VLOOKUP($B135&"_"&$C135,Hg_Min_Tests!$A$1:AAC$1000,S$1,FALSE) -> Selective Catalytic Reduction | T135: =VLOOKUP($B135&"_"&$C135,Hg_Min_Tests!$A$1:AAD$1000,T$1,FALSE) -> Activated carbon injection | U135: =VLOOKUP($B135&"_"&$C135,Hg_Min_Tests!$A$1:AAE$1000,U$1,FALSE) -> Fabric Filter, pulse
A136: =VLOOKUP(B136&"_"&C136,Hg_Min_Tests!$A:$AZ,6,FALSE) -> PSEG Mercer Generating Station | B136: 2408 | C136: E2 | D136: MERU2E2PT2OS1-Coal | E136: Mercury | F136: 9.685666667e-07 | G136: lb/MMBtu | H136: 8.753809524e-06 | I136: lb/MW | J136: Part II | K136: MER1-2 3Q2009 STCo NG | L136: 66 | P136: 0.008753809524 | Q136: =VLOOKUP(B136&"_"&C136,Hg_Min_Tests!$A$1:AA$1000,11,FALSE) -> Wall firing - unspecified | R136: =VLOOKUP($B136&"_"&$C136,Hg_Min_Tests!$A$1:AAB$1000,R$1,FALSE) -> Electrostatic precipitator, cold side, w/ flue gas conditioning | S136: =VLOOKUP($B136&"_"&$C136,Hg_Min_Tests!$A$1:AAC$1000,S$1,FALSE) -> Selective Catalytic Reduction | T136: =VLOOKUP($B136&"_"&$C136,Hg_Min_Tests!$A$1:AAD$1000,T$1,FALSE) -> Activated carbon injection | U136: =VLOOKUP($B136&"_"&$C136,Hg_Min_Tests!$A$1:AAE$1000,U$1,FALSE) -> Fabric Filter, pulse
A137: =VLOOKUP(B137&"_"&C137,Hg_Min_Tests!$A:$AZ,6,FALSE) -> PSEG Mercer Generating Station | B137: 2408 | C137: E2 | D137: MERU2E2PT2OS1-Coal | E137: Mercury | F137: 2.362e-06 | G137: lb/MMBtu | H137: 2.134752187e-05 | I137: lb/MW | J137: Part II | K137: MER1-2 1Q2009 ST Co HgPM10 | L137: 66 | P137: 0.02134752187 | Q137: =VLOOKUP(B137&"_"&C137,Hg_Min_Tests!$A$1:AA$1000,11,FALSE) -> Wall firing - unspecified | R137: =VLOOKUP($B137&"_"&$C137,Hg_Min_Tests!$A$1:AAB$1000,R$1,FALSE) -> Electrostatic precipitator, cold side, w/ flue gas conditioning | S137: =VLOOKUP($B137&"_"&$C137,Hg_Min_Tests!$A$1:AAC$1000,S$1,FALSE) -> Selective Catalytic Reduction | T137: =VLOOKUP($B137&"_"&$C137,Hg_Min_Tests!$A$1:AAD$1000,T$1,FALSE) -> Activated carbon injection | U137: =VLOOKUP($B137&"_"&$C137,Hg_Min_Tests!$A$1:AAE$1000,U$1,FALSE) -> Fabric Filter, pulse
A138: =VLOOKUP(B138&"_"&C138,Hg_Min_Tests!$A:$AZ,6,FALSE) -> Valley | B138: 4042 | C138: 4 | D138: VAPP-B4 | E138: Mercury | F138: 7.34e-08 | G138: lb/MMBtu | H138: 8.848777778e-07 | I138: lb/MW | J138: ETTS | L138: 67 | P138: 0.0008848777778 | Q138: =VLOOKUP(B138&"_"&C138,Hg_Min_Tests!$A$1:AA$1000,11,FALSE) -> Wall firing - front firing | R138: =VLOOKUP($B138&"_"&$C138,Hg_Min_Tests!$A$1:AAB$1000,R$1,FALSE) -> Fabric Filter, pulse | S138: =VLOOKUP($B138&"_"&$C138,Hg_Min_Tests!$A$1:AAC$1000,S$1,FALSE) ->  | T138: =VLOOKUP($B138&"_"&$C138,Hg_Min_Tests!$A$1:AAD$1000,T$1,FALSE) ->  | U138: =VLOOKUP($B138&"_"&$C138,Hg_Min_Tests!$A$1:AAE$1000,U$1,FALSE) -> 
A139: =VLOOKUP(B139&"_"&C139,Hg_Min_Tests!$A:$AZ,6,FALSE) -> Deepwater | B139: 2384 | C139: 8 | D139: Coal-firing | E139: Mercury | F139: 9.434241098e-08 | G139: lb/MMBtu | H139: 8.892043333e-07 | I139: lb/MW | J139: Part II | K139: OBG compliance 6/25-26/09 | L139: 68 | P139: 0.0008892043333 | Q139: =VLOOKUP(B139&"_"&C139,Hg_Min_Tests!$A$1:AA$1000,11,FALSE) -> Wall firing - front firing | R139: =VLOOKUP($B139&"_"&$C139,Hg_Min_Tests!$A$1:AAB$1000,R$1,FALSE) -> Other (specify): Hydrated lime injection to control HCl | S139: =VLOOKUP($B139&"_"&$C139,Hg_Min_Tests!$A$1:AAC$1000,S$1,FALSE) -> Selective Noncatalytic Reduction | T139: =VLOOKUP($B139&"_"&$C139,Hg_Min_Tests!$A$1:AAD$1000,T$1,FALSE) -> Fabric Filter, reverse air | U139: =VLOOKUP($B139&"_"&$C139,Hg_Min_Tests!$A$1:AAE$1000,U$1,FALSE) -> 
A140: =VLOOKUP(B140&"_"&C140,Hg_Min_Tests!$A:$AZ,6,FALSE) -> Deepwater | B140: 2384 | C140: 8 | D140: Coal-firing | E140: Mercury | F140: 1.169513415e-07 | G140: lb/MMBtu | H140: 1.1023e-06 | I140: lb/MW | J140: Part II | K140: OBG 08/04-06/09 | L140: 68 | P140: 0.0011023 | Q140: =VLOOKUP(B140&"_"&C140,Hg_Min_Tests!$A$1:AA$1000,11,FALSE) -> Wall firing - front firing | R140: =VLOOKUP($B140&"_"&$C140,Hg_Min_Tests!$A$1:AAB$1000,R$1,FALSE) -> Other (specify): Hydrated lime injection to control HCl | S140: =VLOOKUP($B140&"_"&$C140,Hg_Min_Tests!$A$1:AAC$1000,S$1,FALSE) -> Selective Noncatalytic Reduction | T140: =VLOOKUP($B140&"_"&$C140,Hg_Min_Tests!$A$1:AAD$1000,T$1,FALSE) -> Fabric Filter, reverse air | U140: =VLOOKUP($B140&"_"&$C140,Hg_Min_Tests!$A$1:AAE$1000,U$1,FALSE) -> 
A141: =VLOOKUP(B141&"_"&C141,Hg_Min_Tests!$A:$AZ,6,FALSE) -> Deepwater | B141: 2384 | C141: 8 | D141: Coal-firing | E141: Mercury | F141: 3.508593293e-07 | G141: lb/MMBtu | H141: 3.30695e-06 | I141: lb/MW | J141: Part II | K141: Air Nova compliance 12/9-10/08 | L141: 68 | P141: 0.00330695 | Q141: =VLOOKUP(B141&"_"&C141,Hg_Min_Tests!$A$1:AA$1000,11,FALSE) -> Wall firing - front firing | R141: =VLOOKUP($B141&"_"&$C141,Hg_Min_Tests!$A$1:AAB$1000,R$1,FALSE) -> Other (specify): Hydrated lime injection to control HCl | S141: =VLOOKUP($B141&"_"&$C141,Hg_Min_Tests!$A$1:AAC$1000,S$1,FALSE) -> Selective Noncatalytic Reduction | T141: =VLOOKUP($B141&"_"&$C141,Hg_Min_Tests!$A$1:AAD$1000,T$1,FALSE) -> Fabric Filter, reverse air | U141: =VLOOKUP($B141&"_"&$C141,Hg_Min_Tests!$A$1:AAE$1000,U$1,FALSE) -> 
A142: =VLOOKUP(B142&"_"&C142,Hg_Min_Tests!$A:$AZ,6,FALSE) -> Deepwater | B142: 2384 | C142: 8 | D142: Coal-firing | E142: Mercury | F142: 4.210311951e-07 | G142: lb/MMBtu | H142: 3.96834e-06 | I142: lb/MW | J142: Part II | K142: Air Nova TSP, HCl, Hg 3/13/09 | L142: 68 | P142: 0.00396834 | Q142: =VLOOKUP(B142&"_"&C142,Hg_Min_Tests!$A$1:AA$1000,11,FALSE) -> Wall firing - front firing | R142: =VLOOKUP($B142&"_"&$C142,Hg_Min_Tests!$A$1:AAB$1000,R$1,FALSE) -> Other (specify): Hydrated lime injection to control HCl | S142: =VLOOKUP($B142&"_"&$C142,Hg_Min_Tests!$A$1:AAC$1000,S$1,FALSE) -> Selective Noncatalytic Reduction | T142: =VLOOKUP($B142&"_"&$C142,Hg_Min_Tests!$A$1:AAD$1000,T$1,FALSE) -> Fabric Filter, reverse air | U142: =VLOOKUP($B142&"_"&$C142,Hg_Min_Tests!$A$1:AAE$1000,U$1,FALSE) -> 
A143: =VLOOKUP(B143&"_"&C143,Hg_Min_Tests!$A:$AZ,6,FALSE) -> Bridgeport Station | B143: 568 | C143: BHB3 | D143: BHSEMU3OS2-Coal | E143: Mercury | F143: 9.006666667e-08 | G143: lb/MMBtu | H143: 9.163110008e-07 | I143: lb/MW | J143: Part II | K143: 630-0902 | L143: 69 | P143: 0.0009163110008 | Q143: =VLOOKUP(B143&"_"&C143,Hg_Min_Tests!$A$1:AA$1000,11,FALSE) -> Tangential firing | R143: =VLOOKUP($B143&"_"&$C143,Hg_Min_Tests!$A$1:AAB$1000,R$1,FALSE) -> Electrostatic precipitator, cold side, w/o flue gas conditioning | S143: =VLOOKUP($B143&"_"&$C143,Hg_Min_Tests!$A$1:AAC$1000,S$1,FALSE) -> Activated carbon injection | T143: =VLOOKUP($B143&"_"&$C143,Hg_Min_Tests!$A$1:AAD$1000,T$1,FALSE) -> Fabric Filter, pulse | U143: =VLOOKUP($B143&"_"&$C143,Hg_Min_Tests!$A$1:AAE$1000,U$1,FALSE) -> 
A144: =VLOOKUP(B144&"_"&C144,Hg_Min_Tests!$A:$AZ,6,FALSE) -> Bridgeport Station | B144: 568 | C144: BHB3 | D144: BHSEMU3OS2-Coal | E144: Mercury | F144: 1.161666667e-07 | G144: lb/MMBtu | H144: 1.1818445e-06 | I144: lb/MW | J144: Part II | K144: 630-0915 | L144: 69 | P144: 0.0011818445 | Q144: =VLOOKUP(B144&"_"&C144,Hg_Min_Tests!$A$1:AA$1000,11,FALSE) -> Tangential firing | R144: =VLOOKUP($B144&"_"&$C144,Hg_Min_Tests!$A$1:AAB$1000,R$1,FALSE) -> Electrostatic precipitator, cold side, w/o flue gas conditioning | S144: =VLOOKUP($B144&"_"&$C144,Hg_Min_Tests!$A$1:AAC$1000,S$1,FALSE) -> Activated carbon injection | T144: =VLOOKUP($B144&"_"&$C144,Hg_Min_Tests!$A$1:AAD$1000,T$1,FALSE) -> Fabric Filter, pulse | U144: =VLOOKUP($B144&"_"&$C144,Hg_Min_Tests!$A$1:AAE$1000,U$1,FALSE) -> 
A145: =VLOOKUP(B145&"_"&C145,Hg_Min_Tests!$A:$AZ,6,FALSE) -> Bridgeport Station | B145: 568 | C145: BHB3 | D145: BHSEMU3OS2-Coal | E145: Mercury | F145: 1.216666667e-07 | G145: lb/MMBtu | H145: 1.237799835e-06 | I145: lb/MW | J145: ETTS | L145: 69 | P145: 0.001237799835 | Q145: =VLOOKUP(B145&"_"&C145,Hg_Min_Tests!$A$1:AA$1000,11,FALSE) -> Tangential firing | R145: =VLOOKUP($B145&"_"&$C145,Hg_Min_Tests!$A$1:AAB$1000,R$1,FALSE) -> Electrostatic precipitator, cold side, w/o flue gas conditioning | S145: =VLOOKUP($B145&"_"&$C145,Hg_Min_Tests!$A$1:AAC$1000,S$1,FALSE) -> Activated carbon injection | T145: =VLOOKUP($B145&"_"&$C145,Hg_Min_Tests!$A$1:AAD$1000,T$1,FALSE) -> Fabric Filter, pulse | U145: =VLOOKUP($B145&"_"&$C145,Hg_Min_Tests!$A$1:AAE$1000,U$1,FALSE) -> 
A146: =VLOOKUP(B146&"_"&C146,Hg_Min_Tests!$A:$AZ,6,FALSE) -> Bridgeport Station | B146: 568 | C146: BHB3 | D146: BHSEMU3OS2-Coal | E146: Mercury | F146: 2.27e-07 | G146: lb/MMBtu | H146: 2.30942928e-06 | I146: lb/MW | J146: Part II | K146: 630-0927 | L146: 69 | P146: 0.00230942928 | Q146: =VLOOKUP(B146&"_"&C146,Hg_Min_Tests!$A$1:AA$1000,11,FALSE) -> Tangential firing | R146: =VLOOKUP($B146&"_"&$C146,Hg_Min_Tests!$A$1:AAB$1000,R$1,FALSE) -> Electrostatic precipitator, cold side, w/o flue gas conditioning | S146: =VLOOKUP($B146&"_"&$C146,Hg_Min_Tests!$A$1:AAC$1000,S$1,FALSE) -> Activated carbon injection | T146: =VLOOKUP($B146&"_"&$C146,Hg_Min_Tests!$A$1:AAD$1000,T$1,FALSE) -> Fabric Filter, pulse | U146: =VLOOKUP($B146&"_"&$C146,Hg_Min_Tests!$A$1:AAE$1000,U$1,FALSE) -> 
A147: =VLOOKUP(B147&"_"&C147,Hg_Min_Tests!$A:$AZ,6,FALSE) -> Dallman | B147: 963 | C147: 34 | D147: 34 | E147: Mercury | F147: 1.16e-07 | G147: lb/MMBtu | H147: 9.733583261e-07 | I147: lb/MW | J147: Part II | K147: Dallman 34 Test 2 | L147: 70 | P147: 0.0009733583261 | Q147: =VLOOKUP(B147&"_"&C147,Hg_Min_Tests!$A$1:AA$1000,11,FALSE) -> Wall firing - opposed firing | R147: =VLOOKUP($B147&"_"&$C147,Hg_Min_Tests!$A$1:AAB$1000,R$1,FALSE) -> Selective Catalytic Reduction | S147: =VLOOKUP($B147&"_"&$C147,Hg_Min_Tests!$A$1:AAC$1000,S$1,FALSE) -> Fabric Filter, pulse | T147: =VLOOKUP($B147&"_"&$C147,Hg_Min_Tests!$A$1:AAD$1000,T$1,FALSE) -> Wet FGD - Packed Type | U147: =VLOOKUP($B147&"_"&$C147,Hg_Min_Tests!$A$1:AAE$1000,U$1,FALSE) -> Wet electrostatic precipitator
A148: =VLOOKUP(B148&"_"&C148,Hg_Min_Tests!$A:$AZ,6,FALSE) -> Dallman | B148: 963 | C148: 34 | D148: 34 | E148: Mercury | F148: 1.5e-07 | G148: lb/MMBtu | H148: 1.258653008e-06 | I148: lb/MW | J148: Part II | K148: Dallman 34 Test 1 | L148: 70 | P148: 0.001258653008 | Q148: =VLOOKUP(B148&"_"&C148,Hg_Min_Tests!$A$1:AA$1000,11,FALSE) -> Wall firing - opposed firing | R148: =VLOOKUP($B148&"_"&$C148,Hg_Min_Tests!$A$1:AAB$1000,R$1,FALSE) -> Selective Catalytic Reduction | S148: =VLOOKUP($B148&"_"&$C148,Hg_Min_Tests!$A$1:AAC$1000,S$1,FALSE) -> Fabric Filter, pulse | T148: =VLOOKUP($B148&"_"&$C148,Hg_Min_Tests!$A$1:AAD$1000,T$1,FALSE) -> Wet FGD - Packed Type | U148: =VLOOKUP($B148&"_"&$C148,Hg_Min_Tests!$A$1:AAE$1000,U$1,FALSE) -> Wet electrostatic precipitator
A149: =VLOOKUP(B149&"_"&C149,Hg_Min_Tests!$A:$AZ,6,FALSE) -> Dallman | B149: 963 | C149: 34 | D149: 34 | E149: Mercury | F149: 5.7269e-07 | G149: lb/MMBtu | H149: 4.805453274e-06 | I149: lb/MW | J149: ETTS | L149: 70 | P149: 0.004805453274 | Q149: =VLOOKUP(B149&"_"&C149,Hg_Min_Tests!$A$1:AA$1000,11,FALSE) -> Wall firing - opposed firing | R149: =VLOOKUP($B149&"_"&$C149,Hg_Min_Tests!$A$1:AAB$1000,R$1,FALSE) -> Selective Catalytic Reduction | S149: =VLOOKUP($B149&"_"&$C149,Hg_Min_Tests!$A$1:AAC$1000,S$1,FALSE) -> Fabric Filter, pulse | T149: =VLOOKUP($B149&"_"&$C149,Hg_Min_Tests!$A$1:AAD$1000,T$1,FALSE) -> Wet FGD - Packed Type | U149: =VLOOKUP($B149&"_"&$C149,Hg_Min_Tests!$A$1:AAE$1000,U$1,FALSE) -> Wet electrostatic precipitator
A150: =VLOOKUP(B150&"_"&C150,Hg_Min_Tests!$A:$AZ,6,FALSE) -> Craig | B150: 6021 | C150: C1 | D150: C1 | E150: Mercury | F150: 1.126666667e-07 | G150: lb/MMBtu | H150: 9.952222222e-07 | I150: lb/MW | J150: Part II | K150: C1 2008 Low-mass emitter HG | L150: 71 | P150: 0.0009952222222 | Q150: =VLOOKUP(B150&"_"&C150,Hg_Min_Tests!$A$1:AA$1000,11,FALSE) -> Wall firing - opposed firing | R150: =VLOOKUP($B150&"_"&$C150,Hg_Min_Tests!$A$1:AAB$1000,R$1,FALSE) -> Fabric Filter, pulse | S150: =VLOOKUP($B150&"_"&$C150,Hg_Min_Tests!$A$1:AAC$1000,S$1,FALSE) -> Wet FGD - Spray Type | T150: =VLOOKUP($B150&"_"&$C150,Hg_Min_Tests!$A$1:AAD$1000,T$1,FALSE) ->  | U150: =VLOOKUP($B150&"_"&$C150,Hg_Min_Tests!$A$1:AAE$1000,U$1,FALSE) -> 
A151: =VLOOKUP(B151&"_"&C151,Hg_Min_Tests!$A:$AZ,6,FALSE) -> Craig | B151: 6021 | C151: C1 | D151: C1 | E151: Mercury | F151: 1.156666667e-07 | G151: lb/MMBtu | H151: 1.021722222e-06 | I151: lb/MW | J151: Part II | K151: C1 2009 Hg Low Mass Emitter | L151: 71 | P151: 0.001021722222 | Q151: =VLOOKUP(B151&"_"&C151,Hg_Min_Tests!$A$1:AA$1000,11,FALSE) -> Wall firing - opposed firing | R151: =VLOOKUP($B151&"_"&$C151,Hg_Min_Tests!$A$1:AAB$1000,R$1,FALSE) -> Fabric Filter, pulse | S151: =VLOOKUP($B151&"_"&$C151,Hg_Min_Tests!$A$1:AAC$1000,S$1,FALSE) -> Wet FGD - Spray Type | T151: =VLOOKUP($B151&"_"&$C151,Hg_Min_Tests!$A$1:AAD$1000,T$1,FALSE) ->  | U151: =VLOOKUP($B151&"_"&$C151,Hg_Min_Tests!$A$1:AAE$1000,U$1,FALSE) -> 
A152: =VLOOKUP(B152&"_"&C152,Hg_Min_Tests!$A:$AZ,6,FALSE) -> Craig | B152: 6021 | C152: C1 | D152: C1 | E152: Mercury | F152: 2.2625e-07 | G152: lb/MMBtu | H152: 1.998541667e-06 | I152: lb/MW | J152: ETTS | L152: 71 | P152: 0.001998541667 | Q152: =VLOOKUP(B152&"_"&C152,Hg_Min_Tests!$A$1:AA$1000,11,FALSE) -> Wall firing - opposed firing | R152: =VLOOKUP($B152&"_"&$C152,Hg_Min_Tests!$A$1:AAB$1000,R$1,FALSE) -> Fabric Filter, pulse | S152: =VLOOKUP($B152&"_"&$C152,Hg_Min_Tests!$A$1:AAC$1000,S$1,FALSE) -> Wet FGD - Spray Type | T152: =VLOOKUP($B152&"_"&$C152,Hg_Min_Tests!$A$1:AAD$1000,T$1,FALSE) ->  | U152: =VLOOKUP($B152&"_"&$C152,Hg_Min_Tests!$A$1:AAE$1000,U$1,FALSE) -> 
A153: =VLOOKUP(B153&"_"&C153,Hg_Min_Tests!$A:$AZ,6,FALSE) -> AES Somerset LLC | B153: 6082 | C153: 1 | D153: 001 | E153: Mercury | F153: 1.32e-07 | G153: lb/MMBtu | H153: 1.217626322e-06 | I153: lb/MW | J153: Part II | K153: Hg_June_2008 | L153: 72 | P153: 0.001217626322 | Q153: =VLOOKUP(B153&"_"&C153,Hg_Min_Tests!$A$1:AA$1000,11,FALSE) -> Wall firing - opposed firing | R153: =VLOOKUP($B153&"_"&$C153,Hg_Min_Tests!$A$1:AAB$1000,R$1,FALSE) -> Selective Catalytic Reduction | S153: =VLOOKUP($B153&"_"&$C153,Hg_Min_Tests!$A$1:AAC$1000,S$1,FALSE) -> Dry sorbent injection | T153: =VLOOKUP($B153&"_"&$C153,Hg_Min_Tests!$A$1:AAD$1000,T$1,FALSE) -> Electrostatic precipitator, unspecified | U153: =VLOOKUP($B153&"_"&$C153,Hg_Min_Tests!$A$1:AAE$1000,U$1,FALSE) -> Wet FGD - Spray Type
A154: =VLOOKUP(B154&"_"&C154,Hg_Min_Tests!$A:$AZ,6,FALSE) -> Roxboro Steam Electric Plant | B154: 2712 | C154: 1 | D154: Rox_Cfg_1b | E154: Mercury | F154: 1.293789266e-07 | G154: lb/MMBtu | H154: 1.261864596e-06 | I154: lb/MW | J154: ETTS | L154: 73 | P154: 0.001261864596 | Q154: =VLOOKUP(B154&"_"&C154,Hg_Min_Tests!$A$1:AA$1000,11,FALSE) -> Wall firing - opposed firing | R154: =VLOOKUP($B154&"_"&$C154,Hg_Min_Tests!$A$1:AAB$1000,R$1,FALSE) -> Selective Catalytic Reduction | S154: =VLOOKUP($B154&"_"&$C154,Hg_Min_Tests!$A$1:AAC$1000,S$1,FALSE) -> Electrostatic precipitator, cold side, w/o flue gas conditioning | T154: =VLOOKUP($B154&"_"&$C154,Hg_Min_Tests!$A$1:AAD$1000,T$1,FALSE) -> Wet FGD - Spray/Tray Type | U154: =VLOOKUP($B154&"_"&$C154,Hg_Min_Tests!$A$1:AAE$1000,U$1,FALSE) -> 
A155: =VLOOKUP(B155&"_"&C155,Hg_Min_Tests!$A:$AZ,6,FALSE) -> San Juan | B155: 2451 | C155: Unit 1 | D155: Unit 1 | E155: Mercury | F155: 1.309e-07 | G155: lb/MMBtu | H155: 1.311476486e-06 | I155: lb/MW | J155: ETTS | L155: 74 | P155: 0.001311476486 | Q155: =VLOOKUP(B155&"_"&C155,Hg_Min_Tests!$A$1:AA$1000,11,FALSE) -> Wall firing - front firing | R155: =VLOOKUP($B155&"_"&$C155,Hg_Min_Tests!$A$1:AAB$1000,R$1,FALSE) -> Activated carbon injection | S155: =VLOOKUP($B155&"_"&$C155,Hg_Min_Tests!$A$1:AAC$1000,S$1,FALSE) -> Fabric Filter, pulse | T155: =VLOOKUP($B155&"_"&$C155,Hg_Min_Tests!$A$1:AAD$1000,T$1,FALSE) -> Wet FGD - Spray Type | U155: =VLOOKUP($B155&"_"&$C155,Hg_Min_Tests!$A$1:AAE$1000,U$1,FALSE) -> 
A156: =VLOOKUP(B156&"_"&C156,Hg_Min_Tests!$A:$AZ,6,FALSE) -> Roxboro Steam Electric Plant | B156: 2712 | C156: 2 | D156: Rox_Cfg_2c | E156: Mercury | F156: 1.508920133e-07 | G156: lb/MMBtu | H156: 1.479514435e-06 | I156: lb/MW | J156: ETTS | L156: 75 | P156: 0.001479514435 | Q156: =VLOOKUP(B156&"_"&C156,Hg_Min_Tests!$A$1:AA$1000,11,FALSE) -> Tangential firing | R156: =VLOOKUP($B156&"_"&$C156,Hg_Min_Tests!$A$1:AAB$1000,R$1,FALSE) -> Selective Catalytic Reduction | S156: =VLOOKUP($B156&"_"&$C156,Hg_Min_Tests!$A$1:AAC$1000,S$1,FALSE) -> Electrostatic precipitator, cold side, w/o flue gas conditioning | T156: =VLOOKUP($B156&"_"&$C156,Hg_Min_Tests!$A$1:AAD$1000,T$1,FALSE) -> Wet FGD - Spray/Tray Type | U156: =VLOOKUP($B156&"_"&$C156,Hg_Min_Tests!$A$1:AAE$1000,U$1,FALSE) -> 
A157: =VLOOKUP(B157&"_"&C157,Hg_Min_Tests!$A:$AZ,6,FALSE) -> Roxboro Steam Electric Plant | B157: 2712 | C157: 2 | D157: Rox_Cfg_2c | E157: Mercury | F157: 6.278333333e-07 | G157: lb/MMBtu | H157: 6.155981745e-06 | I157: lb/MW | J157: Part II | K157: Rox_Blr_2_Test_6h | L157: 75 | P157: 0.006155981745 | Q157: =VLOOKUP(B157&"_"&C157,Hg_Min_Tests!$A$1:AA$1000,11,FALSE) -> Tangential firing | R157: =VLOOKUP($B157&"_"&$C157,Hg_Min_Tests!$A$1:AAB$1000,R$1,FALSE) -> Selective Catalytic Reduction | S157: =VLOOKUP($B157&"_"&$C157,Hg_Min_Tests!$A$1:AAC$1000,S$1,FALSE) -> Electrostatic precipitator, cold side, w/o flue gas conditioning | T157: =VLOOKUP($B157&"_"&$C157,Hg_Min_Tests!$A$1:AAD$1000,T$1,FALSE) -> Wet FGD - Spray/Tray Type | U157: =VLOOKUP($B157&"_"&$C157,Hg_Min_Tests!$A$1:AAE$1000,U$1,FALSE) -> 
A158: =VLOOKUP(B158&"_"&C158,Hg_Min_Tests!$A:$AZ,6,FALSE) -> Mecklenburg Power Station | B158: 52007 | C158: BLR2 | D158: Unit 1 & 2 | E158: Mercury | F158: 1.253333333e-07 | G158: lb/MMBtu | H158: 1.512245614e-06 | I158: lb/MW | J158: ETTS | L158: 76 | P158: 0.001512245614 | Q158: =VLOOKUP(B158&"_"&C158,Hg_Min_Tests!$A$1:AA$1000,11,FALSE) -> Wall firing - front firing | R158: =VLOOKUP($B158&"_"&$C158,Hg_Min_Tests!$A$1:AAB$1000,R$1,FALSE) -> Dry FGD - Spray Dryer | S158: =VLOOKUP($B158&"_"&$C158,Hg_Min_Tests!$A$1:AAC$1000,S$1,FALSE) -> Dry FGD - Spray Dryer | T158: =VLOOKUP($B158&"_"&$C158,Hg_Min_Tests!$A$1:AAD$1000,T$1,FALSE) -> Fabric Filter, pulse | U158: =VLOOKUP($B158&"_"&$C158,Hg_Min_Tests!$A$1:AAE$1000,U$1,FALSE) -> Fabric Filter, pulse
A159: =VLOOKUP(B159&"_"&C159,Hg_Min_Tests!$A:$AZ,6,FALSE) -> Mecklenburg Power Station | B159: 52007 | C159: BLR1 | D159: Unit 1 & 2 | E159: Mercury | F159: 1.253333333e-07 | G159: lb/MMBtu | H159: 1.512245614e-06 | I159: lb/MW | J159: ETTS | L159: 78 | P159: 0.001512245614 | Q159: =VLOOKUP(B159&"_"&C159,Hg_Min_Tests!$A$1:AA$1000,11,FALSE) -> Wall firing - front firing | R159: =VLOOKUP($B159&"_"&$C159,Hg_Min_Tests!$A$1:AAB$1000,R$1,FALSE) -> Dry FGD - Spray Dryer | S159: =VLOOKUP($B159&"_"&$C159,Hg_Min_Tests!$A$1:AAC$1000,S$1,FALSE) -> Dry FGD - Spray Dryer | T159: =VLOOKUP($B159&"_"&$C159,Hg_Min_Tests!$A$1:AAD$1000,T$1,FALSE) -> Fabric Filter, pulse | U159: =VLOOKUP($B159&"_"&$C159,Hg_Min_Tests!$A$1:AAE$1000,U$1,FALSE) -> Fabric Filter, pulse
A160: =VLOOKUP(B160&"_"&C160,Hg_Min_Tests!$A:$AZ,6,FALSE) -> H L Spurlock Station | B160: 6041 | C160: 4 | D160: Unit 04 | E160: Mercury | F160: 1.71e-07 | G160: lb/MMBtu | H160: 1.596e-06 | I160: lb/MW | J160: ETTS | L160: 80 | P160: 0.001596 | Q160: =VLOOKUP(B160&"_"&C160,Hg_Min_Tests!$A$1:AA$1000,11,FALSE) -> Fluidized bed firing | R160: =VLOOKUP($B160&"_"&$C160,Hg_Min_Tests!$A$1:AAB$1000,R$1,FALSE) -> Selective Noncatalytic Reduction | S160: =VLOOKUP($B160&"_"&$C160,Hg_Min_Tests!$A$1:AAC$1000,S$1,FALSE) -> Dry FGD - Unspecified | T160: =VLOOKUP($B160&"_"&$C160,Hg_Min_Tests!$A$1:AAD$1000,T$1,FALSE) -> Fabric Filter, pulse | U160: =VLOOKUP($B160&"_"&$C160,Hg_Min_Tests!$A$1:AAE$1000,U$1,FALSE) -> 
A161: =VLOOKUP(B161&"_"&C161,Hg_Min_Tests!$A:$AZ,6,FALSE) -> H L Spurlock Station | B161: 6041 | C161: 4 | D161: Unit 04 | E161: Mercury | F161: 5.14e-07 | G161: lb/MMBtu | H161: 4.797333333e-06 | I161: lb/MW | J161: Part II | K161: Compliance_metals_05/27/09 | L161: 80 | P161: 0.004797333333 | Q161: =VLOOKUP(B161&"_"&C161,Hg_Min_Tests!$A$1:AA$1000,11,FALSE) -> Fluidized bed firing | R161: =VLOOKUP($B161&"_"&$C161,Hg_Min_Tests!$A$1:AAB$1000,R$1,FALSE) -> Selective Noncatalytic Reduction | S161: =VLOOKUP($B161&"_"&$C161,Hg_Min_Tests!$A$1:AAC$1000,S$1,FALSE) -> Dry FGD - Unspecified | T161: =VLOOKUP($B161&"_"&$C161,Hg_Min_Tests!$A$1:AAD$1000,T$1,FALSE) -> Fabric Filter, pulse | U161: =VLOOKUP($B161&"_"&$C161,Hg_Min_Tests!$A$1:AAE$1000,U$1,FALSE) -> 
A162: =VLOOKUP(B162&"_"&C162,Hg_Min_Tests!$A:$AZ,6,FALSE) -> Cross | B162: 130 | C162: 1 | D162: C1 | E162: Mercury | F162: 1.503333333e-07 | G162: lb/MMBtu | H162: 1.602405464e-06 | I162: lb/MW | J162: ETTS | L162: 81 | P162: 0.001602405464 | Q162: =VLOOKUP(B162&"_"&C162,Hg_Min_Tests!$A$1:AA$1000,11,FALSE) -> Wall firing - opposed firing | R162: =VLOOKUP($B162&"_"&$C162,Hg_Min_Tests!$A$1:AAB$1000,R$1,FALSE) -> Selective Catalytic Reduction | S162: =VLOOKUP($B162&"_"&$C162,Hg_Min_Tests!$A$1:AAC$1000,S$1,FALSE) -> Electrostatic precipitator, cold side, w/o flue gas conditioning | T162: =VLOOKUP($B162&"_"&$C162,Hg_Min_Tests!$A$1:AAD$1000,T$1,FALSE) -> Wet FGD - Spray Type | U162: =VLOOKUP($B162&"_"&$C162,Hg_Min_Tests!$A$1:AAE$1000,U$1,FALSE) -> 
A163: =VLOOKUP(B163&"_"&C163,Hg_Min_Tests!$A:$AZ,6,FALSE) -> Havana | B163: 891 | C163: Boiler 9 | D163: Boiler 9 | E163: Mercury | F163: 1.596666667e-07 | G163: lb/MMBtu | H163: 1.66969508e-06 | I163: lb/MW | J163: ETTS | L163: 82 | P163: 0.00166969508 | Q163: =VLOOKUP(B163&"_"&C163,Hg_Min_Tests!$A$1:AA$1000,11,FALSE) -> Wall firing - unspecified | R163: =VLOOKUP($B163&"_"&$C163,Hg_Min_Tests!$A$1:AAB$1000,R$1,FALSE) -> Electrostatic precipitator, hot side, unspecified | S163: =VLOOKUP($B163&"_"&$C163,Hg_Min_Tests!$A$1:AAC$1000,S$1,FALSE) -> Selective Catalytic Reduction | T163: =VLOOKUP($B163&"_"&$C163,Hg_Min_Tests!$A$1:AAD$1000,T$1,FALSE) -> Activated carbon injection | U163: =VLOOKUP($B163&"_"&$C163,Hg_Min_Tests!$A$1:AAE$1000,U$1,FALSE) -> Dry FGD - Spray Dryer
A164: =VLOOKUP(B164&"_"&C164,Hg_Min_Tests!$A:$AZ,6,FALSE) -> Hennepin Power Station | B164: 892 | C164: Unit 1 | D164: 001 | E164: Mercury | F164: 1.616666667e-07 | G164: lb/MMBtu | H164: 1.672711111e-06 | I164: lb/MW | J164: ETTS | L164: 83 | P164: 0.001672711111 | Q164: =VLOOKUP(B164&"_"&C164,Hg_Min_Tests!$A$1:AA$1000,11,FALSE) -> Tangential firing | R164: =VLOOKUP($B164&"_"&$C164,Hg_Min_Tests!$A$1:AAB$1000,R$1,FALSE) -> Electrostatic precipitator, cold side, unspecified | S164: =VLOOKUP($B164&"_"&$C164,Hg_Min_Tests!$A$1:AAC$1000,S$1,FALSE) -> Activated carbon injection | T164: =VLOOKUP($B164&"_"&$C164,Hg_Min_Tests!$A$1:AAD$1000,T$1,FALSE) -> Fabric Filter, unspecified | U164: =VLOOKUP($B164&"_"&$C164,Hg_Min_Tests!$A$1:AAE$1000,U$1,FALSE) -> 
A165: =VLOOKUP(B165&"_"&C165,Hg_Min_Tests!$A:$AZ,6,FALSE) -> Hennepin Power Station | B165: 892 | C165: Unit 2 | D165: 002 | E165: Mercury | F165: 1.616666667e-07 | G165: lb/MMBtu | H165: 1.727207977e-06 | I165: lb/MW | J165: ETTS | L165: 84 | P165: 0.001727207977 | Q165: =VLOOKUP(B165&"_"&C165,Hg_Min_Tests!$A$1:AA$1000,11,FALSE) -> Tangential firing | R165: =VLOOKUP($B165&"_"&$C165,Hg_Min_Tests!$A$1:AAB$1000,R$1,FALSE) -> Electrostatic precipitator, cold side, unspecified | S165: =VLOOKUP($B165&"_"&$C165,Hg_Min_Tests!$A$1:AAC$1000,S$1,FALSE) -> Activated carbon injection | T165: =VLOOKUP($B165&"_"&$C165,Hg_Min_Tests!$A$1:AAD$1000,T$1,FALSE) -> Fabric Filter, unspecified | U165: =VLOOKUP($B165&"_"&$C165,Hg_Min_Tests!$A$1:AAE$1000,U$1,FALSE) -> 
A166: =VLOOKUP(B166&"_"&C166,Hg_Min_Tests!$A:$AZ,6,FALSE) -> Brandon Shores | B166: 602 | C166: 2 | D166: 002 | E166: Mercury | F166: 1.846966667e-07 | G166: lb/MMBtu | H166: 1.793431401e-06 | I166: lb/MW | J166: CEMS | L166: 85 | P166: 0.001793431401 | Q166: =VLOOKUP(B166&"_"&C166,Hg_Min_Tests!$A$1:AA$1000,11,FALSE) -> Wall firing - unspecified | R166: =VLOOKUP($B166&"_"&$C166,Hg_Min_Tests!$A$1:AAB$1000,R$1,FALSE) -> Selective Catalytic Reduction | S166: =VLOOKUP($B166&"_"&$C166,Hg_Min_Tests!$A$1:AAC$1000,S$1,FALSE) -> Electrostatic precipitator, hot side, unspecified | T166: =VLOOKUP($B166&"_"&$C166,Hg_Min_Tests!$A$1:AAD$1000,T$1,FALSE) -> Activated carbon injection | U166: =VLOOKUP($B166&"_"&$C166,Hg_Min_Tests!$A$1:AAE$1000,U$1,FALSE) -> Other (specify): lime injection
A167: =VLOOKUP(B167&"_"&C167,Hg_Min_Tests!$A:$AZ,6,FALSE) -> Somerset Station | B167: 1613 | C167: 8 | D167: Unit 8 | E167: Mercury | F167: 1.745e-07 | G167: lb/MMBtu | H167: 1.982814159e-06 | I167: lb/MW | J167: Part II | K167: 11 | L167: 86 | P167: 0.001982814159 | Q167: =VLOOKUP(B167&"_"&C167,Hg_Min_Tests!$A$1:AA$1000,11,FALSE) -> Tangential firing | R167: =VLOOKUP($B167&"_"&$C167,Hg_Min_Tests!$A$1:AAB$1000,R$1,FALSE) -> Selective Noncatalytic Reduction | S167: =VLOOKUP($B167&"_"&$C167,Hg_Min_Tests!$A$1:AAC$1000,S$1,FALSE) -> Electrostatic precipitator, cold side, w/o flue gas conditioning | T167: =VLOOKUP($B167&"_"&$C167,Hg_Min_Tests!$A$1:AAD$1000,T$1,FALSE) ->  | U167: =VLOOKUP($B167&"_"&$C167,Hg_Min_Tests!$A$1:AAE$1000,U$1,FALSE) -> 
A168: =VLOOKUP(B168&"_"&C168,Hg_Min_Tests!$A:$AZ,6,FALSE) -> Somerset Station | B168: 1613 | C168: 8 | D168: Unit 8 | E168: Mercury | F168: 4.17e-07 | G168: lb/MMBtu | H168: 4.738300885e-06 | I168: lb/MW | J168: Part II | K168: 7 | L168: 86 | P168: 0.004738300885 | Q168: =VLOOKUP(B168&"_"&C168,Hg_Min_Tests!$A$1:AA$1000,11,FALSE) -> Tangential firing | R168: =VLOOKUP($B168&"_"&$C168,Hg_Min_Tests!$A$1:AAB$1000,R$1,FALSE) -> Selective Noncatalytic Reduction | S168: =VLOOKUP($B168&"_"&$C168,Hg_Min_Tests!$A$1:AAC$1000,S$1,FALSE) -> Electrostatic precipitator, cold side, w/o flue gas conditioning | T168: =VLOOKUP($B168&"_"&$C168,Hg_Min_Tests!$A$1:AAD$1000,T$1,FALSE) ->  | U168: =VLOOKUP($B168&"_"&$C168,Hg_Min_Tests!$A$1:AAE$1000,U$1,FALSE) -> 
A169: =VLOOKUP(B169&"_"&C169,Hg_Min_Tests!$A:$AZ,6,FALSE) -> Somerset Station | B169: 1613 | C169: 8 | D169: Unit 8 | E169: Mercury | F169: 5.41e-07 | G169: lb/MMBtu | H169: 6.147292035e-06 | I169: lb/MW | J169: Part II | K169: 8 | L169: 86 | P169: 0.006147292035 | Q169: =VLOOKUP(B169&"_"&C169,Hg_Min_Tests!$A$1:AA$1000,11,FALSE) -> Tangential firing | R169: =VLOOKUP($B169&"_"&$C169,Hg_Min_Tests!$A$1:AAB$1000,R$1,FALSE) -> Selective Noncatalytic Reduction | S169: =VLOOKUP($B169&"_"&$C169,Hg_Min_Tests!$A$1:AAC$1000,S$1,FALSE) -> Electrostatic precipitator, cold side, w/o flue gas conditioning | T169: =VLOOKUP($B169&"_"&$C169,Hg_Min_Tests!$A$1:AAD$1000,T$1,FALSE) ->  | U169: =VLOOKUP($B169&"_"&$C169,Hg_Min_Tests!$A$1:AAE$1000,U$1,FALSE) -> 
A170: =VLOOKUP(B170&"_"&C170,Hg_Min_Tests!$A:$AZ,6,FALSE) -> Somerset Station | B170: 1613 | C170: 8 | D170: Unit 8 | E170: Mercury | F170: 5.94e-07 | G170: lb/MMBtu | H170: 6.749522124e-06 | I170: lb/MW | J170: Part II | K170: 6 | L170: 86 | P170: 0.006749522124 | Q170: =VLOOKUP(B170&"_"&C170,Hg_Min_Tests!$A$1:AA$1000,11,FALSE) -> Tangential firing | R170: =VLOOKUP($B170&"_"&$C170,Hg_Min_Tests!$A$1:AAB$1000,R$1,FALSE) -> Selective Noncatalytic Reduction | S170: =VLOOKUP($B170&"_"&$C170,Hg_Min_Tests!$A$1:AAC$1000,S$1,FALSE) -> Electrostatic precipitator, cold side, w/o flue gas conditioning | T170: =VLOOKUP($B170&"_"&$C170,Hg_Min_Tests!$A$1:AAD$1000,T$1,FALSE) ->  | U170: =VLOOKUP($B170&"_"&$C170,Hg_Min_Tests!$A$1:AAE$1000,U$1,FALSE) -> 
A171: =VLOOKUP(B171&"_"&C171,Hg_Min_Tests!$A:$AZ,6,FALSE) -> Somerset Station | B171: 1613 | C171: 8 | D171: Unit 8 | E171: Mercury | F171: 1.340301263e-06 | G171: lb/MMBtu | H171: 1.522961789e-05 | I171: lb/MW | J171: Part II | K171: 4 | L171: 86 | P171: 0.01522961789 | Q171: =VLOOKUP(B171&"_"&C171,Hg_Min_Tests!$A$1:AA$1000,11,FALSE) -> Tangential firing | R171: =VLOOKUP($B171&"_"&$C171,Hg_Min_Tests!$A$1:AAB$1000,R$1,FALSE) -> Selective Noncatalytic Reduction | S171: =VLOOKUP($B171&"_"&$C171,Hg_Min_Tests!$A$1:AAC$1000,S$1,FALSE) -> Electrostatic precipitator, cold side, w/o flue gas conditioning | T171: =VLOOKUP($B171&"_"&$C171,Hg_Min_Tests!$A$1:AAD$1000,T$1,FALSE) ->  | U171: =VLOOKUP($B171&"_"&$C171,Hg_Min_Tests!$A$1:AAE$1000,U$1,FALSE) -> 
A172: =VLOOKUP(B172&"_"&C172,Hg_Min_Tests!$A:$AZ,6,FALSE) -> Somerset Station | B172: 1613 | C172: 8 | D172: Unit 8 | E172: Mercury | F172: 1.377021846e-06 | G172: lb/MMBtu | H172: 1.56468677e-05 | I172: lb/MW | J172: Part II | K172: 2 | L172: 86 | P172: 0.0156468677 | Q172: =VLOOKUP(B172&"_"&C172,Hg_Min_Tests!$A$1:AA$1000,11,FALSE) -> Tangential firing | R172: =VLOOKUP($B172&"_"&$C172,Hg_Min_Tests!$A$1:AAB$1000,R$1,FALSE) -> Selective Noncatalytic Reduction | S172: =VLOOKUP($B172&"_"&$C172,Hg_Min_Tests!$A$1:AAC$1000,S$1,FALSE) -> Electrostatic precipitator, cold side, w/o flue gas conditioning | T172: =VLOOKUP($B172&"_"&$C172,Hg_Min_Tests!$A$1:AAD$1000,T$1,FALSE) ->  | U172: =VLOOKUP($B172&"_"&$C172,Hg_Min_Tests!$A$1:AAE$1000,U$1,FALSE) -> 
A173: =VLOOKUP(B173&"_"&C173,Hg_Min_Tests!$A:$AZ,6,FALSE) -> Somerset Station | B173: 1613 | C173: 8 | D173: Unit 8 | E173: Mercury | F173: 1.62e-06 | G173: lb/MMBtu | H173: 1.840778761e-05 | I173: lb/MW | J173: Part II | K173: 10 | L173: 86 | P173: 0.01840778761 | Q173: =VLOOKUP(B173&"_"&C173,Hg_Min_Tests!$A$1:AA$1000,11,FALSE) -> Tangential firing | R173: =VLOOKUP($B173&"_"&$C173,Hg_Min_Tests!$A$1:AAB$1000,R$1,FALSE) -> Selective Noncatalytic Reduction | S173: =VLOOKUP($B173&"_"&$C173,Hg_Min_Tests!$A$1:AAC$1000,S$1,FALSE) -> Electrostatic precipitator, cold side, w/o flue gas conditioning | T173: =VLOOKUP($B173&"_"&$C173,Hg_Min_Tests!$A$1:AAD$1000,T$1,FALSE) ->  | U173: =VLOOKUP($B173&"_"&$C173,Hg_Min_Tests!$A$1:AAE$1000,U$1,FALSE) -> 
A174: =VLOOKUP(B174&"_"&C174,Hg_Min_Tests!$A:$AZ,6,FALSE) -> Somerset Station | B174: 1613 | C174: 8 | D174: Unit 8 | E174: Mercury | F174: 1.826848982e-06 | G174: lb/MMBtu | H174: 2.075817781e-05 | I174: lb/MW | J174: Part II | K174: 5 | L174: 86 | P174: 0.02075817781 | Q174: =VLOOKUP(B174&"_"&C174,Hg_Min_Tests!$A$1:AA$1000,11,FALSE) -> Tangential firing | R174: =VLOOKUP($B174&"_"&$C174,Hg_Min_Tests!$A$1:AAB$1000,R$1,FALSE) -> Selective Noncatalytic Reduction | S174: =VLOOKUP($B174&"_"&$C174,Hg_Min_Tests!$A$1:AAC$1000,S$1,FALSE) -> Electrostatic precipitator, cold side, w/o flue gas conditioning | T174: =VLOOKUP($B174&"_"&$C174,Hg_Min_Tests!$A$1:AAD$1000,T$1,FALSE) ->  | U174: =VLOOKUP($B174&"_"&$C174,Hg_Min_Tests!$A$1:AAE$1000,U$1,FALSE) -> 
A175: =VLOOKUP(B175&"_"&C175,Hg_Min_Tests!$A:$AZ,6,FALSE) -> Somerset Station | B175: 1613 | C175: 8 | D175: Unit 8 | E175: Mercury | F175: 1.899e-06 | G175: lb/MMBtu | H175: 2.15780177e-05 | I175: lb/MW | J175: Part II | K175: 9 | L175: 86 | P175: 0.0215780177 | Q175: =VLOOKUP(B175&"_"&C175,Hg_Min_Tests!$A$1:AA$1000,11,FALSE) -> Tangential firing | R175: =VLOOKUP($B175&"_"&$C175,Hg_Min_Tests!$A$1:AAB$1000,R$1,FALSE) -> Selective Noncatalytic Reduction | S175: =VLOOKUP($B175&"_"&$C175,Hg_Min_Tests!$A$1:AAC$1000,S$1,FALSE) -> Electrostatic precipitator, cold side, w/o flue gas conditioning | T175: =VLOOKUP($B175&"_"&$C175,Hg_Min_Tests!$A$1:AAD$1000,T$1,FALSE) ->  | U175: =VLOOKUP($B175&"_"&$C175,Hg_Min_Tests!$A$1:AAE$1000,U$1,FALSE) -> 
A176: =VLOOKUP(B176&"_"&C176,Hg_Min_Tests!$A:$AZ,6,FALSE) -> Somerset Station | B176: 1613 | C176: 8 | D176: Unit 8 | E176: Mercury | F176: 2.113e-06 | G176: lb/MMBtu | H176: 2.400966372e-05 | I176: lb/MW | J176: Part II | K176: 13 | L176: 86 | P176: 0.02400966372 | Q176: =VLOOKUP(B176&"_"&C176,Hg_Min_Tests!$A$1:AA$1000,11,FALSE) -> Tangential firing | R176: =VLOOKUP($B176&"_"&$C176,Hg_Min_Tests!$A$1:AAB$1000,R$1,FALSE) -> Selective Noncatalytic Reduction | S176: =VLOOKUP($B176&"_"&$C176,Hg_Min_Tests!$A$1:AAC$1000,S$1,FALSE) -> Electrostatic precipitator, cold side, w/o flue gas conditioning | T176: =VLOOKUP($B176&"_"&$C176,Hg_Min_Tests!$A$1:AAD$1000,T$1,FALSE) ->  | U176: =VLOOKUP($B176&"_"&$C176,Hg_Min_Tests!$A$1:AAE$1000,U$1,FALSE) -> 
A177: =VLOOKUP(B177&"_"&C177,Hg_Min_Tests!$A:$AZ,6,FALSE) -> Somerset Station | B177: 1613 | C177: 8 | D177: Unit 8 | E177: Mercury | F177: 2.54e-06 | G177: lb/MMBtu | H177: 2.886159292e-05 | I177: lb/MW | J177: Part II | K177: 12 | L177: 86 | P177: 0.02886159292 | Q177: =VLOOKUP(B177&"_"&C177,Hg_Min_Tests!$A$1:AA$1000,11,FALSE) -> Tangential firing | R177: =VLOOKUP($B177&"_"&$C177,Hg_Min_Tests!$A$1:AAB$1000,R$1,FALSE) -> Selective Noncatalytic Reduction | S177: =VLOOKUP($B177&"_"&$C177,Hg_Min_Tests!$A$1:AAC$1000,S$1,FALSE) -> Electrostatic precipitator, cold side, w/o flue gas conditioning | T177: =VLOOKUP($B177&"_"&$C177,Hg_Min_Tests!$A$1:AAD$1000,T$1,FALSE) ->  | U177: =VLOOKUP($B177&"_"&$C177,Hg_Min_Tests!$A$1:AAE$1000,U$1,FALSE) -> 
A178: =VLOOKUP(B178&"_"&C178,Hg_Min_Tests!$A:$AZ,6,FALSE) -> Somerset Station | B178: 1613 | C178: 8 | D178: Unit 8 | E178: Mercury | F178: 2.808e-06 | G178: lb/MMBtu | H178: 3.190683186e-05 | I178: lb/MW | J178: Part II | K178: 14 | L178: 86 | P178: 0.03190683186 | Q178: =VLOOKUP(B178&"_"&C178,Hg_Min_Tests!$A$1:AA$1000,11,FALSE) -> Tangential firing | R178: =VLOOKUP($B178&"_"&$C178,Hg_Min_Tests!$A$1:AAB$1000,R$1,FALSE) -> Selective Noncatalytic Reduction | S178: =VLOOKUP($B178&"_"&$C178,Hg_Min_Tests!$A$1:AAC$1000,S$1,FALSE) -> Electrostatic precipitator, cold side, w/o flue gas conditioning | T178: =VLOOKUP($B178&"_"&$C178,Hg_Min_Tests!$A$1:AAD$1000,T$1,FALSE) ->  | U178: =VLOOKUP($B178&"_"&$C178,Hg_Min_Tests!$A$1:AAE$1000,U$1,FALSE) -> 
A179: =VLOOKUP(B179&"_"&C179,Hg_Min_Tests!$A:$AZ,6,FALSE) -> Ray D Nixon | B179: 8219 | C179: 1 | D179: Unit 1 | E179: Mercury | F179: 2.155e-07 | G179: lb/MMBtu | H179: 2.006544444e-06 | I179: lb/MW | J179: Part II | K179: APT CSU5384 N | L179: 87 | P179: 0.002006544444 | Q179: =VLOOKUP(B179&"_"&C179,Hg_Min_Tests!$A$1:AA$1000,11,FALSE) -> Wall firing - front firing | R179: =VLOOKUP($B179&"_"&$C179,Hg_Min_Tests!$A$1:AAB$1000,R$1,FALSE) -> Fabric Filter, reverse air | S179: =VLOOKUP($B179&"_"&$C179,Hg_Min_Tests!$A$1:AAC$1000,S$1,FALSE) ->  | T179: =VLOOKUP($B179&"_"&$C179,Hg_Min_Tests!$A$1:AAD$1000,T$1,FALSE) ->  | U179: =VLOOKUP($B179&"_"&$C179,Hg_Min_Tests!$A$1:AAE$1000,U$1,FALSE) -> 
A180: =VLOOKUP(B180&"_"&C180,Hg_Min_Tests!$A:$AZ,6,FALSE) -> Ray D Nixon | B180: 8219 | C180: 1 | D180: Unit 1 | E180: Mercury | F180: 3.64e-07 | G180: lb/MMBtu | H180: 3.389244444e-06 | I180: lb/MW | J180: Part II | K180: Airtech 2480N | L180: 87 | P180: 0.003389244444 | Q180: =VLOOKUP(B180&"_"&C180,Hg_Min_Tests!$A$1:AA$1000,11,FALSE) -> Wall firing - front firing | R180: =VLOOKUP($B180&"_"&$C180,Hg_Min_Tests!$A$1:AAB$1000,R$1,FALSE) -> Fabric Filter, reverse air | S180: =VLOOKUP($B180&"_"&$C180,Hg_Min_Tests!$A$1:AAC$1000,S$1,FALSE) ->  | T180: =VLOOKUP($B180&"_"&$C180,Hg_Min_Tests!$A$1:AAD$1000,T$1,FALSE) ->  | U180: =VLOOKUP($B180&"_"&$C180,Hg_Min_Tests!$A$1:AAE$1000,U$1,FALSE) -> 
A181: =VLOOKUP(B181&"_"&C181,Hg_Min_Tests!$A:$AZ,6,FALSE) -> Ray D Nixon | B181: 8219 | C181: 1 | D181: Unit 1 | E181: Mercury | F181: 1.0805e-06 | G181: lb/MMBtu | H181: 1.006065556e-05 | I181: lb/MW | J181: Part II | K181: Airtech 2693-O | L181: 87 | P181: 0.01006065556 | Q181: =VLOOKUP(B181&"_"&C181,Hg_Min_Tests!$A$1:AA$1000,11,FALSE) -> Wall firing - front firing | R181: =VLOOKUP($B181&"_"&$C181,Hg_Min_Tests!$A$1:AAB$1000,R$1,FALSE) -> Fabric Filter, reverse air | S181: =VLOOKUP($B181&"_"&$C181,Hg_Min_Tests!$A$1:AAC$1000,S$1,FALSE) ->  | T181: =VLOOKUP($B181&"_"&$C181,Hg_Min_Tests!$A$1:AAD$1000,T$1,FALSE) ->  | U181: =VLOOKUP($B181&"_"&$C181,Hg_Min_Tests!$A$1:AAE$1000,U$1,FALSE) -> 
A182: =VLOOKUP(B182&"_"&C182,Hg_Min_Tests!$A:$AZ,6,FALSE) -> Clinch River | B182: 3775 | C182: 1 | D182: CR-1 | E182: Mercury | F182: 2.272526168e-07 | G182: lb/MMBtu | H182: 2.075804446e-06 | I182: lb/MW | J182: ETTS | L182: 88 | P182: 0.002075804446 | Q182: =VLOOKUP(B182&"_"&C182,Hg_Min_Tests!$A$1:AA$1000,11,FALSE) -> Vertical firing | R182: =VLOOKUP($B182&"_"&$C182,Hg_Min_Tests!$A$1:AAB$1000,R$1,FALSE) -> Selective Noncatalytic Reduction | S182: =VLOOKUP($B182&"_"&$C182,Hg_Min_Tests!$A$1:AAC$1000,S$1,FALSE) -> Electrostatic precipitator, cold side, w/ flue gas conditioning | T182: =VLOOKUP($B182&"_"&$C182,Hg_Min_Tests!$A$1:AAD$1000,T$1,FALSE) ->  | U182: =VLOOKUP($B182&"_"&$C182,Hg_Min_Tests!$A$1:AAE$1000,U$1,FALSE) -> 
A183: =VLOOKUP(B183&"_"&C183,Hg_Min_Tests!$A:$AZ,6,FALSE) -> Asheville Steam Electric Plant | B183: 2706 | C183: 1 | D183: Ash_Cfg_1d | E183: Mercury | F183: 2.293333333e-07 | G183: lb/MMBtu | H183: 2.120502415e-06 | I183: lb/MW | J183: Part II | K183: Ash_Blr_1_Test_8ap | L183: 89 | P183: 0.002120502415 | Q183: =VLOOKUP(B183&"_"&C183,Hg_Min_Tests!$A$1:AA$1000,11,FALSE) -> Wall firing - front firing | R183: =VLOOKUP($B183&"_"&$C183,Hg_Min_Tests!$A$1:AAB$1000,R$1,FALSE) -> Selective Catalytic Reduction | S183: =VLOOKUP($B183&"_"&$C183,Hg_Min_Tests!$A$1:AAC$1000,S$1,FALSE) -> Electrostatic precipitator, cold side, w/o flue gas conditioning | T183: =VLOOKUP($B183&"_"&$C183,Hg_Min_Tests!$A$1:AAD$1000,T$1,FALSE) -> Wet FGD - Spray/Tray Type | U183: =VLOOKUP($B183&"_"&$C183,Hg_Min_Tests!$A$1:AAE$1000,U$1,FALSE) -> 
A184: =VLOOKUP(B184&"_"&C184,Hg_Min_Tests!$A:$AZ,6,FALSE) -> Asheville Steam Electric Plant | B184: 2706 | C184: 1 | D184: Ash_Cfg_1d | E184: Mercury | F184: 6.703333333e-07 | G184: lb/MMBtu | H184: 6.198154589e-06 | I184: lb/MW | J184: ETTS | L184: 89 | P184: 0.006198154589 | Q184: =VLOOKUP(B184&"_"&C184,Hg_Min_Tests!$A$1:AA$1000,11,FALSE) -> Wall firing - front firing | R184: =VLOOKUP($B184&"_"&$C184,Hg_Min_Tests!$A$1:AAB$1000,R$1,FALSE) -> Selective Catalytic Reduction | S184: =VLOOKUP($B184&"_"&$C184,Hg_Min_Tests!$A$1:AAC$1000,S$1,FALSE) -> Electrostatic precipitator, cold side, w/o flue gas conditioning | T184: =VLOOKUP($B184&"_"&$C184,Hg_Min_Tests!$A$1:AAD$1000,T$1,FALSE) -> Wet FGD - Spray/Tray Type | U184: =VLOOKUP($B184&"_"&$C184,Hg_Min_Tests!$A$1:AAE$1000,U$1,FALSE) -> 
A185: =VLOOKUP(B185&"_"&C185,Hg_Min_Tests!$A:$AZ,6,FALSE) -> Cross | B185: 130 | C185: 3 | D185: C3 | E185: Mercury | F185: 2.29e-07 | G185: lb/MMBtu | H185: 2.2196512e-06 | I185: lb/MW | J185: ETTS | L185: 90 | P185: 0.0022196512 | Q185: =VLOOKUP(B185&"_"&C185,Hg_Min_Tests!$A$1:AA$1000,11,FALSE) -> Tangential firing | R185: =VLOOKUP($B185&"_"&$C185,Hg_Min_Tests!$A$1:AAB$1000,R$1,FALSE) -> Selective Catalytic Reduction | S185: =VLOOKUP($B185&"_"&$C185,Hg_Min_Tests!$A$1:AAC$1000,S$1,FALSE) -> Electrostatic precipitator, cold side, w/o flue gas conditioning | T185: =VLOOKUP($B185&"_"&$C185,Hg_Min_Tests!$A$1:AAD$1000,T$1,FALSE) -> Wet FGD - Spray Type | U185: =VLOOKUP($B185&"_"&$C185,Hg_Min_Tests!$A$1:AAE$1000,U$1,FALSE) -> 
A186: =VLOOKUP(B186&"_"&C186,Hg_Min_Tests!$A:$AZ,6,FALSE) -> Cross | B186: 130 | C186: 3 | D186: C3 | E186: Mercury | F186: 4.720881488e-07 | G186: lb/MMBtu | H186: 4.575856009e-06 | I186: lb/MW | J186: Part II | K186: C3LME2008 | L186: 90 | P186: 0.004575856009 | Q186: =VLOOKUP(B186&"_"&C186,Hg_Min_Tests!$A$1:AA$1000,11,FALSE) -> Tangential firing | R186: =VLOOKUP($B186&"_"&$C186,Hg_Min_Tests!$A$1:AAB$1000,R$1,FALSE) -> Selective Catalytic Reduction | S186: =VLOOKUP($B186&"_"&$C186,Hg_Min_Tests!$A$1:AAC$1000,S$1,FALSE) -> Electrostatic precipitator, cold side, w/o flue gas conditioning | T186: =VLOOKUP($B186&"_"&$C186,Hg_Min_Tests!$A$1:AAD$1000,T$1,FALSE) -> Wet FGD - Spray Type | U186: =VLOOKUP($B186&"_"&$C186,Hg_Min_Tests!$A$1:AAE$1000,U$1,FALSE) -> 
A187: =VLOOKUP(B187&"_"&C187,Hg_Min_Tests!$A:$AZ,6,FALSE) -> Cross | B187: 130 | C187: 3 | D187: C3 | E187: Mercury | F187: 6.573333333e-07 | G187: lb/MMBtu | H187: 6.371400533e-06 | I187: lb/MW | J187: Part II | K187: C3TV292008 | L187: 90 | P187: 0.006371400533 | Q187: =VLOOKUP(B187&"_"&C187,Hg_Min_Tests!$A$1:AA$1000,11,FALSE) -> Tangential firing | R187: =VLOOKUP($B187&"_"&$C187,Hg_Min_Tests!$A$1:AAB$1000,R$1,FALSE) -> Selective Catalytic Reduction | S187: =VLOOKUP($B187&"_"&$C187,Hg_Min_Tests!$A$1:AAC$1000,S$1,FALSE) -> Electrostatic precipitator, cold side, w/o flue gas conditioning | T187: =VLOOKUP($B187&"_"&$C187,Hg_Min_Tests!$A$1:AAD$1000,T$1,FALSE) -> Wet FGD - Spray Type | U187: =VLOOKUP($B187&"_"&$C187,Hg_Min_Tests!$A$1:AAE$1000,U$1,FALSE) -> 
A188: =VLOOKUP(B188&"_"&C188,Hg_Min_Tests!$A:$AZ,6,FALSE) -> Cross | B188: 130 | C188: 3 | D188: C3 | E188: Mercury | F188: 7.233333333e-07 | G188: lb/MMBtu | H188: 7.011125333e-06 | I188: lb/MW | J188: Part II | K188: C3TVM292007 | L188: 90 | P188: 0.007011125333 | Q188: =VLOOKUP(B188&"_"&C188,Hg_Min_Tests!$A$1:AA$1000,11,FALSE) -> Tangential firing | R188: =VLOOKUP($B188&"_"&$C188,Hg_Min_Tests!$A$1:AAB$1000,R$1,FALSE) -> Selective Catalytic Reduction | S188: =VLOOKUP($B188&"_"&$C188,Hg_Min_Tests!$A$1:AAC$1000,S$1,FALSE) -> Electrostatic precipitator, cold side, w/o flue gas conditioning | T188: =VLOOKUP($B188&"_"&$C188,Hg_Min_Tests!$A$1:AAD$1000,T$1,FALSE) -> Wet FGD - Spray Type | U188: =VLOOKUP($B188&"_"&$C188,Hg_Min_Tests!$A$1:AAE$1000,U$1,FALSE) -> 
A189: =VLOOKUP(B189&"_"&C189,Hg_Min_Tests!$A:$AZ,6,FALSE) -> Cross | B189: 130 | C189: 3 | D189: C3 | E189: Mercury | F189: 7.993333333e-07 | G189: lb/MMBtu | H189: 7.747778133e-06 | I189: lb/MW | J189: Part II | K189: C3TV292009 | L189: 90 | P189: 0.007747778133 | Q189: =VLOOKUP(B189&"_"&C189,Hg_Min_Tests!$A$1:AA$1000,11,FALSE) -> Tangential firing | R189: =VLOOKUP($B189&"_"&$C189,Hg_Min_Tests!$A$1:AAB$1000,R$1,FALSE) -> Selective Catalytic Reduction | S189: =VLOOKUP($B189&"_"&$C189,Hg_Min_Tests!$A$1:AAC$1000,S$1,FALSE) -> Electrostatic precipitator, cold side, w/o flue gas conditioning | T189: =VLOOKUP($B189&"_"&$C189,Hg_Min_Tests!$A$1:AAD$1000,T$1,FALSE) -> Wet FGD - Spray Type | U189: =VLOOKUP($B189&"_"&$C189,Hg_Min_Tests!$A$1:AAE$1000,U$1,FALSE) -> 
A190: =VLOOKUP(B190&"_"&C190,Hg_Min_Tests!$A:$AZ,6,FALSE) -> Kincaid Generation LLC | B190: 876 | C190: 2 | D190: KI1 & 2 | E190: Mercury | F190: 2.233333333e-07 | G190: lb/MMBtu | H190: 2.408707265e-06 | I190: lb/MW | J190: Part II | K190: 2009Hg | L190: 91 | P190: 0.002408707265 | Q190: =VLOOKUP(B190&"_"&C190,Hg_Min_Tests!$A$1:AA$1000,11,FALSE) -> Cyclone firing | R190: =VLOOKUP($B190&"_"&$C190,Hg_Min_Tests!$A$1:AAB$1000,R$1,FALSE) -> Selective Catalytic Reduction | S190: =VLOOKUP($B190&"_"&$C190,Hg_Min_Tests!$A$1:AAC$1000,S$1,FALSE) -> Selective Catalytic Reduction | T190: =VLOOKUP($B190&"_"&$C190,Hg_Min_Tests!$A$1:AAD$1000,T$1,FALSE) -> Activated carbon injection | U190: =VLOOKUP($B190&"_"&$C190,Hg_Min_Tests!$A$1:AAE$1000,U$1,FALSE) -> Activated carbon injection
A191: =VLOOKUP(B191&"_"&C191,Hg_Min_Tests!$A:$AZ,6,FALSE) -> Kincaid Generation LLC | B191: 876 | C191: 1 | D191: KI1 & 2 | E191: Mercury | F191: 2.233333333e-07 | G191: lb/MMBtu | H191: 2.408707265e-06 | I191: lb/MW | J191: Part II | K191: 2009Hg | L191: 92 | P191: 0.002408707265 | Q191: =VLOOKUP(B191&"_"&C191,Hg_Min_Tests!$A$1:AA$1000,11,FALSE) -> Cyclone firing | R191: =VLOOKUP($B191&"_"&$C191,Hg_Min_Tests!$A$1:AAB$1000,R$1,FALSE) -> Selective Catalytic Reduction | S191: =VLOOKUP($B191&"_"&$C191,Hg_Min_Tests!$A$1:AAC$1000,S$1,FALSE) -> Selective Catalytic Reduction | T191: =VLOOKUP($B191&"_"&$C191,Hg_Min_Tests!$A$1:AAD$1000,T$1,FALSE) -> Activated carbon injection | U191: =VLOOKUP($B191&"_"&$C191,Hg_Min_Tests!$A$1:AAE$1000,U$1,FALSE) -> Activated carbon injection
A192: =VLOOKUP(B192&"_"&C192,Hg_Min_Tests!$A:$AZ,6,FALSE) -> Williams | B192: 3298 | C192: WIL1 | D192: WIL001 | E192: Mercury | F192: 2.81e-07 | G192: lb/MMBtu | H192: 2.449598165e-06 | I192: lb/MW | J192: Part II | K192: Hg-12/09 | L192: 93 | P192: 0.002449598165 | Q192: =VLOOKUP(B192&"_"&C192,Hg_Min_Tests!$A$1:AA$1000,11,FALSE) -> Tangential firing | R192: =VLOOKUP($B192&"_"&$C192,Hg_Min_Tests!$A$1:AAB$1000,R$1,FALSE) -> Selective Catalytic Reduction | S192: =VLOOKUP($B192&"_"&$C192,Hg_Min_Tests!$A$1:AAC$1000,S$1,FALSE) -> Electrostatic precipitator, cold side, unspecified | T192: =VLOOKUP($B192&"_"&$C192,Hg_Min_Tests!$A$1:AAD$1000,T$1,FALSE) -> Wet FGD - Unspecified | U192: =VLOOKUP($B192&"_"&$C192,Hg_Min_Tests!$A$1:AAE$1000,U$1,FALSE) -> 
A193: =VLOOKUP(B193&"_"&C193,Hg_Min_Tests!$A:$AZ,6,FALSE) -> PPL Montour | B193: 3149 | C193: 1 | D193: U1 | E193: Mercury | F193: 2.833333333e-07 | G193: lb/MMBtu | H193: 2.573462986e-06 | I193: lb/MW | J193: ETTS | L193: 94 | P193: 0.002573462986 | Q193: =VLOOKUP(B193&"_"&C193,Hg_Min_Tests!$A$1:AA$1000,11,FALSE) -> Tangential firing | R193: =VLOOKUP($B193&"_"&$C193,Hg_Min_Tests!$A$1:AAB$1000,R$1,FALSE) -> Electrostatic precipitator, cold side, w/o flue gas conditioning | S193: =VLOOKUP($B193&"_"&$C193,Hg_Min_Tests!$A$1:AAC$1000,S$1,FALSE) -> Selective Catalytic Reduction | T193: =VLOOKUP($B193&"_"&$C193,Hg_Min_Tests!$A$1:AAD$1000,T$1,FALSE) -> Wet FGD - Tray Type | U193: =VLOOKUP($B193&"_"&$C193,Hg_Min_Tests!$A$1:AAE$1000,U$1,FALSE) -> 
A194: =VLOOKUP(B194&"_"&C194,Hg_Min_Tests!$A:$AZ,6,FALSE) -> Foster Wheeler Mt Carmel Cogen | B194: 10343 | C194: SG-101 | D194: SG-101 | E194: Mercury | F194: 2.25e-07 | G194: lb/MMBtu | H194: 2.64244186e-06 | I194: lb/MW | J194: Part II | K194: Hg 2008 | L194: 95 | P194: 0.00264244186 | Q194: =VLOOKUP(B194&"_"&C194,Hg_Min_Tests!$A$1:AA$1000,11,FALSE) -> Fluidized bed firing | R194: =VLOOKUP($B194&"_"&$C194,Hg_Min_Tests!$A$1:AAB$1000,R$1,FALSE) -> Fabric Filter, reverse air | S194: =VLOOKUP($B194&"_"&$C194,Hg_Min_Tests!$A$1:AAC$1000,S$1,FALSE) ->  | T194: =VLOOKUP($B194&"_"&$C194,Hg_Min_Tests!$A$1:AAD$1000,T$1,FALSE) ->  | U194: =VLOOKUP($B194&"_"&$C194,Hg_Min_Tests!$A$1:AAE$1000,U$1,FALSE) -> 
A195: =VLOOKUP(B195&"_"&C195,Hg_Min_Tests!$A:$AZ,6,FALSE) -> Foster Wheeler Mt Carmel Cogen | B195: 10343 | C195: SG-101 | D195: SG-101 | E195: Mercury | F195: 2.7e-07 | G195: lb/MMBtu | H195: 3.170930233e-06 | I195: lb/MW | J195: Part II | K195: Hg 2009 | L195: 95 | P195: =H195*1000 -> 0.003170930233 | Q195: =VLOOKUP(B195&"_"&C195,Hg_Min_Tests!$A$1:AA$1000,11,FALSE) -> Fluidized bed firing | R195: =VLOOKUP($B195&"_"&$C195,Hg_Min_Tests!$A$1:AAB$1000,R$1,FALSE) -> Fabric Filter, reverse air | S195: =VLOOKUP($B195&"_"&$C195,Hg_Min_Tests!$A$1:AAC$1000,S$1,FALSE) ->  | T195: =VLOOKUP($B195&"_"&$C195,Hg_Min_Tests!$A$1:AAD$1000,T$1,FALSE) ->  | U195: =VLOOKUP($B195&"_"&$C195,Hg_Min_Tests!$A$1:AAE$1000,U$1,FALSE) -> 
A196: =VLOOKUP(B196&"_"&C196,Hg_Min_Tests!$A:$AZ,6,FALSE) -> Hayden | B196: 525 | C196: 1 | D196: Unit 1 | E196: Mercury | F196: 2.800206372e-07 | G196: lb/MMBtu | H196: 2.721190647e-06 | I196: lb/MW | J196: Part II | K196: HAY1 Hg Feb09 | L196: 96 | P196: 0.002721190647 | Q196: =VLOOKUP(B196&"_"&C196,Hg_Min_Tests!$A$1:AA$1000,11,FALSE) -> Wall firing - front firing | R196: =VLOOKUP($B196&"_"&$C196,Hg_Min_Tests!$A$1:AAB$1000,R$1,FALSE) -> Dry FGD - Spray Dryer | S196: =VLOOKUP($B196&"_"&$C196,Hg_Min_Tests!$A$1:AAC$1000,S$1,FALSE) -> Fabric Filter, reverse air | T196: =VLOOKUP($B196&"_"&$C196,Hg_Min_Tests!$A$1:AAD$1000,T$1,FALSE) ->  | U196: =VLOOKUP($B196&"_"&$C196,Hg_Min_Tests!$A$1:AAE$1000,U$1,FALSE) -> 
A197: =VLOOKUP(B197&"_"&C197,Hg_Min_Tests!$A:$AZ,6,FALSE) -> Hayden | B197: 525 | C197: 1 | D197: Unit 1 | E197: Mercury | F197: 3.335286667e-07 | G197: lb/MMBtu | H197: 3.241172142e-06 | I197: lb/MW | J197: ETTS | L197: 96 | P197: 0.003241172142 | Q197: =VLOOKUP(B197&"_"&C197,Hg_Min_Tests!$A$1:AA$1000,11,FALSE) -> Wall firing - front firing | R197: =VLOOKUP($B197&"_"&$C197,Hg_Min_Tests!$A$1:AAB$1000,R$1,FALSE) -> Dry FGD - Spray Dryer | S197: =VLOOKUP($B197&"_"&$C197,Hg_Min_Tests!$A$1:AAC$1000,S$1,FALSE) -> Fabric Filter, reverse air | T197: =VLOOKUP($B197&"_"&$C197,Hg_Min_Tests!$A$1:AAD$1000,T$1,FALSE) ->  | U197: =VLOOKUP($B197&"_"&$C197,Hg_Min_Tests!$A$1:AAE$1000,U$1,FALSE) -> 
A198: =VLOOKUP(B198&"_"&C198,Hg_Min_Tests!$A:$AZ,6,FALSE) -> Hayden | B198: 525 | C198: 1 | D198: Unit 1 | E198: Mercury | F198: 3.578262071e-07 | G198: lb/MMBtu | H198: 3.477291309e-06 | I198: lb/MW | J198: Part II | K198: HAY1 Hg Jul09 | L198: 96 | P198: 0.003477291309 | Q198: =VLOOKUP(B198&"_"&C198,Hg_Min_Tests!$A$1:AA$1000,11,FALSE) -> Wall firing - front firing | R198: =VLOOKUP($B198&"_"&$C198,Hg_Min_Tests!$A$1:AAB$1000,R$1,FALSE) -> Dry FGD - Spray Dryer | S198: =VLOOKUP($B198&"_"&$C198,Hg_Min_Tests!$A$1:AAC$1000,S$1,FALSE) -> Fabric Filter, reverse air | T198: =VLOOKUP($B198&"_"&$C198,Hg_Min_Tests!$A$1:AAD$1000,T$1,FALSE) ->  | U198: =VLOOKUP($B198&"_"&$C198,Hg_Min_Tests!$A$1:AAE$1000,U$1,FALSE) -> 
A199: =VLOOKUP(B199&"_"&C199,Hg_Min_Tests!$A:$AZ,6,FALSE) -> Hayden | B199: 525 | C199: 1 | D199: Unit 1 | E199: Mercury | F199: 4.8e-07 | G199: lb/MMBtu | H199: 4.664554455e-06 | I199: lb/MW | J199: Part II | K199: HAY1 Hg Jan08 | L199: 96 | P199: 0.004664554455 | Q199: =VLOOKUP(B199&"_"&C199,Hg_Min_Tests!$A$1:AA$1000,11,FALSE) -> Wall firing - front firing | R199: =VLOOKUP($B199&"_"&$C199,Hg_Min_Tests!$A$1:AAB$1000,R$1,FALSE) -> Dry FGD - Spray Dryer | S199: =VLOOKUP($B199&"_"&$C199,Hg_Min_Tests!$A$1:AAC$1000,S$1,FALSE) -> Fabric Filter, reverse air | T199: =VLOOKUP($B199&"_"&$C199,Hg_Min_Tests!$A$1:AAD$1000,T$1,FALSE) ->  | U199: =VLOOKUP($B199&"_"&$C199,Hg_Min_Tests!$A$1:AAE$1000,U$1,FALSE) -> 
A200: =VLOOKUP(B200&"_"&C200,Hg_Min_Tests!$A:$AZ,6,FALSE) -> Hayden | B200: 525 | C200: 1 | D200: Unit 1 | E200: Mercury | F200: 5.5e-07 | G200: lb/MMBtu | H200: 5.34480198e-06 | I200: lb/MW | J200: Part II | K200: HAY1 Hg Sep07 | L200: 96 | P200: 0.00534480198 | Q200: =VLOOKUP(B200&"_"&C200,Hg_Min_Tests!$A$1:AA$1000,11,FALSE) -> Wall firing - front firing | R200: =VLOOKUP($B200&"_"&$C200,Hg_Min_Tests!$A$1:AAB$1000,R$1,FALSE) -> Dry FGD - Spray Dryer | S200: =VLOOKUP($B200&"_"&$C200,Hg_Min_Tests!$A$1:AAC$1000,S$1,FALSE) -> Fabric Filter, reverse air | T200: =VLOOKUP($B200&"_"&$C200,Hg_Min_Tests!$A$1:AAD$1000,T$1,FALSE) ->  | U200: =VLOOKUP($B200&"_"&$C200,Hg_Min_Tests!$A$1:AAE$1000,U$1,FALSE) -> 
... 476 more rows

Sheet SourceAchievingNewSourceLimit
A11: 4 | B11: =COUNTIF(D11:D107,A11) -> 3 | D11: 4 | E11: 5.003636364e-05 | F11: Fluidized bed firing | G11: Selective Noncatalytic Reduction | H11: Fabric Filter, shake and deflate | O11: 29 | P11: 4
A12: 7 | B12: =COUNTIF(D12:D108,A12) -> 2 | D12: 4 | E12: 5.629090909e-05 | F12: Fluidized bed firing | G12: Selective Noncatalytic Reduction | H12: Fabric Filter, shake and deflate | O12: 43 | P12: 4
A13: 8 | B13: 3 | D13: 4 | E13: 9.244218182e-05 | F13: Fluidized bed firing | G13: Selective Noncatalytic Reduction | H13: Fabric Filter, shake and deflate | O13: 69 | P13: 4
A14: 9 | B14: 3 | D14: 7 | E14: 6.442862006e-05 | F14: Tangential firing | G14: Selective Catalytic Reduction | H14: Selective Noncatalytic Reduction | I14: Activated carbon injection | J14: Dry FGD - Circulating Dry Scrubber | K14: Fabric Filter, pulse | O14: 4 | P14: 3
A15: 10 | B15: 1 | D15: 7 | E15: 0.0007656534487 | F15: Tangential firing | G15: Selective Catalytic Reduction | H15: Selective Noncatalytic Reduction | I15: Activated carbon injection | J15: Dry FGD - Circulating Dry Scrubber | K15: Fabric Filter, pulse | O15: 8 | P15: 3
A16: 12 | B16: 1 | D16: 8 | E16: 6.72991453e-05 | F16: Fluidized bed firing | G16: Selective Noncatalytic Reduction | H16: Fabric Filter, pulse | O16: 9 | P16: 3
A17: 13 | B17: 2 | D17: 8 | E17: 0.0004027350427 | F17: Fluidized bed firing | G17: Selective Noncatalytic Reduction | H17: Fabric Filter, pulse | O17: 14 | P17: 3
A18: 14 | B18: 3 | D18: 8 | E18: 0.0005864387464 | F18: Fluidized bed firing | G18: Selective Noncatalytic Reduction | H18: Fabric Filter, pulse | O18: 15 | P18: 3
A19: 15 | B19: 3 | D19: 9 | E19: 6.72991453e-05 | F19: Fluidized bed firing | G19: Selective Noncatalytic Reduction | H19: Fabric Filter, pulse | O19: 35 | P19: 3
A20: 16 | B20: 1 | D20: 9 | E20: 0.0004027350427 | F20: Fluidized bed firing | G20: Selective Noncatalytic Reduction | H20: Fabric Filter, pulse | O20: 53 | P20: 3
A21: 17 | B21: 1 | D21: 9 | E21: 0.0005864387464 | F21: Fluidized bed firing | G21: Selective Noncatalytic Reduction | H21: Fabric Filter, pulse | O21: 54 | P21: 3
A22: 18 | B22: 1 | D22: 10 | E22: 6.784432234e-05 | F22: Wall firing - front firing | G22: Dry FGD - Spray Dryer | H22: Fabric Filter, reverse air | O22: 62 | P22: 3
A23: 22 | B23: 1 | D23: 12 | E23: 8.287647059e-05 | F23: Tangential firing | G23: Selective Catalytic Reduction | H23: Dry FGD - Spray Dryer | I23: Fabric Filter, pulse | O23: 71 | P23: 3
A24: 24 | B24: 1 | D24: 13 | E24: 9.846760331e-05 | F24: Fluidized bed firing | G24: Selective Noncatalytic Reduction | H24: Fabric Filter, pulse
A25: 25 | B25: 1 | D25: 13 | E25: 0.001219125683 | F25: Fluidized bed firing | G25: Selective Noncatalytic Reduction | H25: Fabric Filter, pulse
A26: 26 | B26: 2 | D26: 14 | E26: 0.0001011634615 | F26: Fluidized bed firing | G26: Dry FGD - Circulating Dry Scrubber | H26: Fabric Filter, pulse
A27: 27 | B27: 1 | D27: 14 | E27: 0.0001185057692 | F27: Fluidized bed firing | G27: Dry FGD - Circulating Dry Scrubber | H27: Fabric Filter, pulse
A28: 28 | B28: 1 | D28: 14 | E28: 0.0001329576923 | F28: Fluidized bed firing | G28: Dry FGD - Circulating Dry Scrubber | H28: Fabric Filter, pulse
A29: 29 | B29: 4 | D29: 15 | E29: 0.0001011634615 | F29: Fluidized bed firing | G29: Dry FGD - Circulating Dry Scrubber | H29: Fabric Filter, pulse
A30: 30 | B30: 1 | D30: 15 | E30: 0.0001185057692 | F30: Fluidized bed firing | G30: Dry FGD - Circulating Dry Scrubber | H30: Fabric Filter, pulse
A31: 32 | B31: 2 | D31: 15 | E31: 0.0001329576923 | F31: Fluidized bed firing | G31: Dry FGD - Circulating Dry Scrubber | H31: Fabric Filter, pulse
A32: 34 | B32: 1 | D32: 16 | E32: 0.0001178446458 | F32: Fluidized bed firing | G32: Selective Noncatalytic Reduction | H32: Fabric Filter, unspecified
A33: 35 | B33: 3 | D33: 17 | E33: 0.000120512 | F33: Wall firing - front firing | G33: Selective Noncatalytic Reduction | H33: Dry FGD - Spray Dryer | I33: Fabric Filter, pulse
A34: 37 | B34: 1 | D34: 18 | E34: 0.0001208744508 | F34: Fluidized bed firing | G34: Selective Noncatalytic Reduction | H34: Fabric Filter, unspecified
A35: 38 | B35: 1 | D35: 22 | E35: 0.0001603383839 | F35: Tangential firing | G35: Selective Catalytic Reduction | H35: Dry FGD - Spray Dryer | I35: Fabric Filter, reverse air
A36: 43 | B36: 4 | D36: 24 | E36: 0.0001879182222 | F36: Wall firing - front firing | G36: Selective Catalytic Reduction | H36: Dry FGD - Spray Dryer | I36: Fabric Filter, reverse air
A37: 44 | B37: 1 | D37: 25 | E37: 0.0002197216216 | F37: Wall firing - front firing | G37: Fabric Filter, pulse | H37: Wet FGD - Venturi Type
A38: 47 | B38: 2 | D38: 26 | E38: 0.0002198911786 | F38: Fluidized bed firing | G38: Dry FGD - Circulating Dry Scrubber | H38: Selective Noncatalytic Reduction | I38: Fabric Filter, pulse
A39: 48 | B39: 1 | D39: 26 | E39: 0.0005617977528 | F39: Fluidized bed firing | G39: Dry FGD - Circulating Dry Scrubber | H39: Selective Noncatalytic Reduction | I39: Fabric Filter, pulse
A40: 49 | B40: 1 | D40: 27 | E40: 0.0002311102052 | F40: Tangential firing | G40: Fabric Filter, reverse air | H40: Wet FGD - Spray Type
A41: 50 | B41: 1 | D41: 28 | E41: 0.0002326722222 | F41: Wall firing - front firing | G41: Fabric Filter, pulse
A42: 51 | B42: 1 | D42: 29 | E42: 0.0002371277228 | F42: Fluidized bed firing | G42: Selective Noncatalytic Reduction | H42: Fabric Filter, pulse
A43: 52 | B43: 1 | D43: 29 | E43: 0.002036866337 | F43: Fluidized bed firing | G43: Selective Noncatalytic Reduction | H43: Fabric Filter, pulse
A44: 53 | B44: 3 | D44: 29 | E44: 0.002300341584 | F44: Fluidized bed firing | G44: Selective Noncatalytic Reduction | H44: Fabric Filter, pulse
A45: 54 | B45: 3 | D45: 29 | E45: 0.002682042904 | F45: Fluidized bed firing | G45: Selective Noncatalytic Reduction | H45: Fabric Filter, pulse
A46: 56 | B46: 1 | D46: 30 | E46: 0.000252362963 | F46: Wall firing - front firing | G46: Fabric Filter, pulse
A47: 59 | B47: 1 | D47: 32 | E47: 0.000266556771 | F47: Tangential firing | G47: Selective Catalytic Reduction | H47: Dry FGD - Spray Dryer | I47: Fabric Filter, unspecified
A48: 60 | B48: 1 | D48: 32 | E48: 0.0006488721848 | F48: Tangential firing | G48: Selective Catalytic Reduction | H48: Dry FGD - Spray Dryer | I48: Fabric Filter, unspecified
A49: 61 | B49: 1 | D49: 34 | E49: 0.0003061906025 | F49: Fluidized bed firing | G49: Dry FGD - Circulating Dry Scrubber | H49: Selective Noncatalytic Reduction | I49: Fabric Filter, pulse
A50: 62 | B50: 3 | D50: 35 | E50: 0.0003193503383 | F50: Wall firing - front firing | G50: Dry FGD - Spray Dryer | H50: Fabric Filter, reverse air
A51: 63 | B51: 1 | D51: 35 | E51: 0.001245429841 | F51: Wall firing - front firing | G51: Dry FGD - Spray Dryer | H51: Fabric Filter, reverse air
A52: 65 | B52: 2 | D52: 35 | E52: 0.001820121212 | F52: Wall firing - front firing | G52: Dry FGD - Spray Dryer | H52: Fabric Filter, reverse air
A53: 67 | B53: 1 | D53: 37 | E53: 0.0003288893333 | F53: Wall firing - front firing | G53: Selective Catalytic Reduction | H53: Dry FGD - Spray Dryer | I53: Fabric Filter, reverse air
A54: 69 | B54: 4 | D54: 38 | E54: 0.0003303222222 | F54: Wall firing - front firing | G54: Fabric Filter, pulse
A55: 71 | B55: 3 | D55: 43 | E55: 0.0004165777297 | F55: Wall firing - unspecified | G55: Fabric Filter, unspecified
A56: 72 | B56: 1 | D56: 43 | E56: 0.0004278907451 | F56: Wall firing - unspecified | G56: Fabric Filter, unspecified
A57: 73 | B57: 1 | D57: 43 | E57: 0.0006903513514 | F57: Wall firing - unspecified | G57: Fabric Filter, unspecified
A58: 74 | B58: 1 | D58: 43 | E58: 0.002268297297 | F58: Wall firing - unspecified | G58: Fabric Filter, unspecified
A59: 76 | B59: 1 | D59: 44 | E59: 0.0004548969072 | F59: Fluidized bed firing | G59: Selective Noncatalytic Reduction | H59: Selective Noncatalytic Reduction | I59: Fabric Filter, pulse | J59: Fabric Filter, pulse
A60: 78 | B60: 1 | D60: 47 | E60: 0.0004957101716 | F60: Wall firing - opposed firing | G60: Activated carbon injection | H60: Fabric Filter, pulse | I60: Wet FGD - Spray Type
A61: 81 | B61: 1 | D61: 47 | E61: 0.002646139706 | F61: Wall firing - opposed firing | G61: Activated carbon injection | H61: Fabric Filter, pulse | I61: Wet FGD - Spray Type
A62: 82 | B62: 1 | D62: 48 | E62: 0.0005089493915 | F62: Fluidized bed firing | G62: Fabric Filter, pulse
A63: 83 | B63: 1 | D63: 49 | E63: 0.0005089493915 | F63: Fluidized bed firing | G63: Fabric Filter, pulse
A64: 84 | B64: 1 | D64: 50 | E64: 0.0005089493915 | F64: Fluidized bed firing | G64: Fabric Filter, pulse
A65: 85 | B65: 1 | D65: 51 | E65: 0.0005089493915 | F65: Fluidized bed firing | G65: Fabric Filter, pulse
A66: 88 | B66: 1 | D66: 52 | E66: 0.0005299354839 | F66: Wall firing - front firing | G66: Selective Catalytic Reduction | H66: Electrostatic precipitator, cold side, w/o flue gas conditioning | I66: Dry FGD - Circulating Dry Scrubber | J66: Fabric Filter, pulse
A67: 91 | B67: 1 | D67: 53 | E67: 0.0005333333333 | F67: Fluidized bed firing | G67: Selective Noncatalytic Reduction | H67: Fabric Filter, pulse
A68: 92 | B68: 1 | D68: 53 | E68: 0.00104516129 | F68: Fluidized bed firing | G68: Selective Noncatalytic Reduction | H68: Fabric Filter, pulse
A69: 93 | B69: 1 | D69: 53 | E69: 0.002322580645 | F69: Fluidized bed firing | G69: Selective Noncatalytic Reduction | H69: Fabric Filter, pulse
A70: 94 | B70: 1 | D70: 54 | E70: 0.0005333333333 | F70: Fluidized bed firing | G70: Selective Noncatalytic Reduction | H70: Fabric Filter, pulse
A71: 97 | B71: 1 | D71: 54 | E71: 0.0007720430108 | F71: Fluidized bed firing | G71: Selective Noncatalytic Reduction | H71: Fabric Filter, pulse
A72: 100 | B72: 1 | D72: 54 | E72: 0.00164516129 | F72: Fluidized bed firing | G72: Selective Noncatalytic Reduction | H72: Fabric Filter, pulse
D73: 56 | E73: 0.0005661932493 | F73: Tangential firing | G73: Selective Noncatalytic Reduction | H73: Fabric Filter, reverse air | I73: Wet FGD - Spray Type
D74: 59 | E74: 0.0006 | F74: Fluidized bed firing | G74: Selective Noncatalytic Reduction | H74: Dry FGD - Unspecified | I74: Fabric Filter, pulse
D75: 60 | E75: 0.0006083538739 | F75: Wall firing - front firing | G75: Activated carbon injection | H75: Fabric Filter, pulse | I75: Wet FGD - Spray Type
D76: 61 | E76: 0.0006206666667 | F76: Fluidized bed firing | G76: Other (specify): Anhydrous ammonia injection | H76: Dry FGD - Sorbent Injection | I76: Fabric Filter, pulse
D77: 62 | E77: 0.0006358563158 | F77: Wall firing - opposed firing | G77: Fabric Filter, pulse | H77: Wet FGD - Spray Type
D78: 62 | E78: 0.0007823379386 | F78: Wall firing - opposed firing | G78: Fabric Filter, pulse | H78: Wet FGD - Spray Type
D79: 62 | E79: 0.001007958333 | F79: Wall firing - opposed firing | G79: Fabric Filter, pulse | H79: Wet FGD - Spray Type
D80: 63 | E80: 0.0007249581487 | F80: Wall firing - unspecified | G80: Selective Catalytic Reduction | H80: Fabric Filter, pulse | I80: Wet FGD - Spray Type | J80: Wet electrostatic precipitator
D81: 65 | E81: 0.0007621621622 | F81: Fluidized bed firing | G81: Selective Noncatalytic Reduction | H81: Fabric Filter, pulse
D82: 65 | E82: 0.001591666667 | F82: Fluidized bed firing | G82: Selective Noncatalytic Reduction | H82: Fabric Filter, pulse
D83: 67 | E83: 0.0008848777778 | F83: Wall firing - front firing | G83: Fabric Filter, pulse
D84: 69 | E84: 0.0009163110008 | F84: Tangential firing | G84: Electrostatic precipitator, cold side, w/o flue gas conditioning | H84: Activated carbon injection | I84: Fabric Filter, pulse
D85: 69 | E85: 0.0011818445 | F85: Tangential firing | G85: Electrostatic precipitator, cold side, w/o flue gas conditioning | H85: Activated carbon injection | I85: Fabric Filter, pulse
D86: 69 | E86: 0.001237799835 | F86: Tangential firing | G86: Electrostatic precipitator, cold side, w/o flue gas conditioning | H86: Activated carbon injection | I86: Fabric Filter, pulse
D87: 69 | E87: 0.00230942928 | F87: Tangential firing | G87: Electrostatic precipitator, cold side, w/o flue gas conditioning | H87: Activated carbon injection | I87: Fabric Filter, pulse
D88: 71 | E88: 0.0009952222222 | F88: Wall firing - opposed firing | G88: Fabric Filter, pulse | H88: Wet FGD - Spray Type
D89: 71 | E89: 0.001021722222 | F89: Wall firing - opposed firing | G89: Fabric Filter, pulse | H89: Wet FGD - Spray Type
D90: 71 | E90: 0.001998541667 | F90: Wall firing - opposed firing | G90: Fabric Filter, pulse | H90: Wet FGD - Spray Type
D91: 72 | E91: 0.001217626322 | F91: Wall firing - opposed firing | G91: Selective Catalytic Reduction | H91: Dry sorbent injection | I91: Electrostatic precipitator, unspecified | J91: Wet FGD - Spray Type
D92: 73 | E92: 0.001261864596 | F92: Wall firing - opposed firing | G92: Selective Catalytic Reduction | H92: Electrostatic precipitator, cold side, w/o flue gas conditioning | I92: Wet FGD - Spray/Tray Type
D93: 74 | E93: 0.001311476486 | F93: Wall firing - front firing | G93: Activated carbon injection | H93: Fabric Filter, pulse | I93: Wet FGD - Spray Type
D94: 76 | E94: 0.001512245614 | F94: Wall firing - front firing | G94: Dry FGD - Spray Dryer | H94: Dry FGD - Spray Dryer | I94: Fabric Filter, pulse | J94: Fabric Filter, pulse
D95: 78 | E95: 0.001512245614 | F95: Wall firing - front firing | G95: Dry FGD - Spray Dryer | H95: Dry FGD - Spray Dryer | I95: Fabric Filter, pulse | J95: Fabric Filter, pulse
D96: 81 | E96: 0.001602405464 | F96: Wall firing - opposed firing | G96: Selective Catalytic Reduction | H96: Electrostatic precipitator, cold side, w/o flue gas conditioning | I96: Wet FGD - Spray Type
D97: 82 | E97: 0.00166969508 | F97: Wall firing - unspecified | G97: Electrostatic precipitator, hot side, unspecified | H97: Selective Catalytic Reduction | I97: Activated carbon injection | J97: Dry FGD - Spray Dryer
D98: 83 | E98: 0.001672711111 | F98: Tangential firing | G98: Electrostatic precipitator, cold side, unspecified | H98: Activated carbon injection | I98: Fabric Filter, unspecified
D99: 84 | E99: 0.001727207977 | F99: Tangential firing | G99: Electrostatic precipitator, cold side, unspecified | H99: Activated carbon injection | I99: Fabric Filter, unspecified
D100: 85 | E100: 0.001793431401 | F100: Wall firing - unspecified | G100: Selective Catalytic Reduction | H100: Electrostatic precipitator, hot side, unspecified | I100: Activated carbon injection | J100: Other (specify): lime injection
D101: 88 | E101: 0.002075804446 | F101: Vertical firing | G101: Selective Noncatalytic Reduction | H101: Electrostatic precipitator, cold side, w/ flue gas conditioning
D102: 91 | E102: 0.002408707265 | F102: Cyclone firing | G102: Selective Catalytic Reduction | H102: Selective Catalytic Reduction | I102: Activated carbon injection | J102: Activated carbon injection
D103: 92 | E103: 0.002408707265 | F103: Cyclone firing | G103: Selective Catalytic Reduction | H103: Selective Catalytic Reduction | I103: Activated carbon injection | J103: Activated carbon injection
D104: 93 | E104: 0.002449598165 | F104: Tangential firing | G104: Selective Catalytic Reduction | H104: Electrostatic precipitator, cold side, unspecified | I104: Wet FGD - Unspecified
D105: 94 | E105: 0.002573462986 | F105: Tangential firing | G105: Electrostatic precipitator, cold side, w/o flue gas conditioning | H105: Selective Catalytic Reduction | I105: Wet FGD - Tray Type
D106: 97 | E106: 0.002898833286 | F106: Wall firing - opposed firing | G106: Selective Catalytic Reduction | H106: Fabric Filter, pulse | I106: Wet FGD - Spray Type
D107: 100 | E107: 0.00300952381 | F107: Fluidized bed firing | G107: Selective Noncatalytic Reduction | H107: Fabric Filter, unspecified

Sheet UPL Pooled Template
B1: Emissions
A2: Runs | B2: 527 Nucla 001
A3: 1 | B3: 5.003636364e-08
A4: 2 | B4: 5.629090909e-08
A5: 3 | B5: 9.244218182e-08
A6: 4
A7: 5
A8: 6
A9: 7
A10: 8
A11: 9
A12: 10
A13: 11
A14: 12
A15: 13
A16: 14
A17: 15
A18: 16
A19: 17
A20: 18
A21: 19
A22: 20
A23: 21
A24: 22
A25: 23
A26: 24
A27: 25
A28: 26
A29: 27
A30: 28
A31: 29
A32: 30
A33: 31
A34: 32
A35: 33
A36: 34
A37: 35
A38: Use for large sample sets and small sample sets that are Normal.
A40: Testing Normality | B40: Raw Data
A41: Sample Size | B41: =COUNT(B3:L37) -> 3
A42: Kurtosis | B42: =KURT(B3:L37) -> 
A43: SE Kurtosis | B43: =SQRT((B41^2-1)/((B41-3)*(B41+5))) -> 
A44: Result Kurtosis | B44: =IF(ABS(B42/B43)>NORMSINV(1-0.05/2),"non normal","normal") -> 
A45: Skewness | B45: =SKEW(B3:L37) -> 1.587730145
A46: SE Skewness | B46: =SQRT((6*B41*(B41-1))/((B41-2)*(B41+1)*(B41+3))) -> 1.224744871
A47: Result Skewness | B47: =IF(ABS(B45/B46)>NORMSINV(1-0.05/2),"non normal","normal") -> normal | C47: Tested for normality in "UPL_Calc_n=3_Results" DATA IS NORMAL
A50: ni = number test runs = | B50: =COUNT(B3:B37) -> 3 | C50: 0 | D50: 0 | E50: 0 | F50: 0 | G50: 0 | H50: 0 | I50: 0 | J50: 0 | K50: 0 | L50: 0
A52: Total Number of sources = | B52: =COUNTA(B2:L2) -> 1
A55: n =Total # test runs = | B55: =SUM(B50:L50) -> 3
B60: =B55-1 -> 2
A65: This step is for QC only:
A67: means | B67: =AVERAGE(B3:B37) -> 6.625648485e-08
B74: =AVERAGE(B3:L37) -> 6.625648485e-08
A75: Mean =
A79: Pooled Variance = | D79: =VAR(B3:L37) -> 5.240478791e-16
A85: m= number future runs = | B85: 1
A88: Term1 | B88: =1/B55+1/B85 -> 1.333333333
A92: Term2 | B92: =D79*B88 -> 6.987305054e-16
A98: Squared root Term2 | C98: =SQRT(B92) -> 2.643351103e-08
A101: NOTE: the pvalue for the t-statistic is calculated as: 2*alpha, where 1-alpha is desired confidence, so if 99% confidence is desired then alpha=0.01 and 2*alpha=2*(0.01)
A104: t-statistic | B104: = quantile t-distribution with df degrees of freedom at .99 confidence level = | H104: =TINV(2*0.01,B60) -> 6.964556734
A107: UPL POOLED VARIANCE = | F107: =B74+H104*C98 -> 2.503541721e-07 | G107: lb/MWh
F109: =F107*1000 -> 0.0002503541721 | G109: lb/GWh
E111: 3 x RDL = | F111: 0.003 | G111: lb/GWh
E113: Revised Floor after Reconsideration = | F113: =IF(F111<F109,F109,F111) -> 0.003 | G113: lb/GWh

Sheet UPL_Calc_n=3_Results
B1: Emissions (lb/MWh)
A2: tests | B2: 527 Nucla 001
A3: 1 | B3: 5.003636364e-08
A4: 2 | B4: 5.629090909e-08
A5: 3 | B5: 9.244218182e-08
A6: 4
A7: 5
A8: 6
A9: 7
A11: 9
A12: 10
A13: 11
A14: 12
A15: 13
A16: 14
A17: 15
A18: 16
A19: 17
A20: 18
A21: 19
A22: 20
A23: 21
A24: 22
A25: 23
A26: 24
A27: 25
A28: 26
A29: 27
A30: 28
A31: 29
A32: 30
A33: 31
A34: 32
A35: 33
A36: 34
A37: 35
A39: n for each source | B39: =COUNT(B3:B37) -> 3 | C39: =COUNT(C3:C37) -> 0 | D39: 0 | E39: 0 | F39: 0 | G39: 0 | H39: 0 | I39: 0 | J39: 0 | K39: 0 | L39: 0
A40: Sample size | B40: =SUM(B39:L39) -> 3
A41: If sample size is less than 4 test tests use the kurtosis calculation section below
A42: NOTE: Sample size is the number of test tests used to calculate the average
A44: KURTOSIS CALCULATIONS WHEN TOTAL NUMBER TEST tests IS LESS THAN 4
A45: Average | B45: =AVERAGE(B3:L37) -> 6.625648485e-08
A46: Standard Deviation | B46: =STDEV(B3:L37) -> 2.289209206e-08
A47: 1 | B47: =((B3-$B$45)/($B$46))^4 -> 0.2520428873
A48: 2 | B48: =((B4-$B$45)/($B$46))^4 -> 0.03591431973
A49: 3 | B49: =((B5-$B$45)/($B$46))^4 -> 1.712042793
A50: 4
A51: 5
A52: 6
A53: 7
A54: 8
A55: 9
A56: 10
A57: 11
A58: 12
A59: 13
A60: 14
A61: 15
A62: 16
A63: 17
A64: 18
A65: 19
A66: 20
A67: 21
A68: 22
A69: 23
A70: 24
A71: 25
A72: 26
A73: 27
A74: 28
A75: 29
A76: 30
A77: 31
A78: 32
A79: 33
A80: 34
A81: 35
A83: Testing Normality | B83: Raw Data
A84: Sample Size | B84: =COUNT(B3:L37) -> 3
A85: Kurtosis | B85: =SUM(B47:L81)/($B$84-1)-3 -> -2 | E85: ### Make sure that kurtosis and skewness are copied in "Calculations for Template n<3", in cells H14 and H12 respectively
A86: SE Kurtosis | B86: =SQRT(24/B84) -> 2.828427125 | E86: ### Using approximate kurtosis variance equal to 24/n
A87: Result Kurtosis | B87: =IF(ABS(B85/B86)>NORMSINV(1-0.05/2),"non normal","normal") -> normal
A88: Skewness | B88: =SKEW(B3:L37) -> 1.587730145
A89: SE Skewness | B89: =SQRT((6*B84*(B84-1))/((B84-2)*(B84+1)*(B84+3))) -> 1.224744871 | D89: RESULT
A90: Result Skewness | B90: =IF(ABS(B88/B89)>NORMSINV(1-0.05/2),"non normal","normal") -> normal | D90: =IF(AND(B87="normal", B90="normal"),"normal", "non normal") -> normal
A93: ni = number test tests = | B93: =COUNT(B3:B37) -> 3 | C93: =COUNT(C3:C37) -> 0 | D93: 0 | E93: 0 | F93: 0 | G93: 0 | H93: 0 | I93: 0 | J93: 0 | K93: 0
A95: Total Number of sources = | B95: =COUNTA(B2:L2) -> 1
A98: n =Total # test tests = | B98: =COUNT(B3:L37) -> 3
B103: =B98-1 -> 2
A108: This step is for QC only:
A110: means | B110: =AVERAGE(B3:B37) -> 6.625648485e-08 | C110: =AVERAGE(C3:C37) ->  | D110: =AVERAGE(D3:D37) -> 
B117: =AVERAGE(B3:L37) -> 6.625648485e-08
A118: Mean =
A122: Pooled Variance = | D122: =VAR(B3:L37) -> 5.240478791e-16
A128: m= number future tests = | B128: 1
A131: Term1 | B131: =1/B98+1/B128 -> 1.333333333
A135: Term2 | B135: =D122*B131 -> 6.987305054e-16
A141: Squared root Term2 | C141: =SQRT(B135) -> 2.643351103e-08
A144: NOTE: the pvalue for the t-statistic is calculated as: 2*alpha, where 1-alpha is desired confidence, so if 99% confidence is desired then alpha=0.01 and 2*alpha=2*(0.01)
A147: t-statistic | B147: = quantile t-distribution with df degrees of freedom at .99 confidence level = | H147: =TINV(2*0.01,B103) -> 6.964556734
A150: Adjustment for non-normality (skewness and kurtosis) for any sample size in particular for small samples
A152: a) n = number of tests = | J152: =B98 -> 3
A154: b) Calculate u0 | J154: =1/(1+$H$147^2/($J$152-1)) -> 0.0396
B159: Current Confidence Level is | E159: =(1-'Calculations for Template n=3'!J139) -> 0.9615635018
A160: Conclusion | B160: =IF( ABS(('Recalculations1 n=3'!J143) -0.01)<0.0001, "Confidence Level is 99%","Confidence Level is not 99%, Go to Recalculate t-stat n<3 tab to fix the Confidence Level") -> Confidence Level is not 99%, Go to Recalculate t-stat n<3 tab to fix the Confidence Level
B164: new t-statistic from tab Recalculate t-statistic | E164: 14.11455673
A167: Adjusted UPL for skewness and kurtosis for all sample size | E167: =B117+C141*E164 -> 4.39353776e-07 | F167: lb/MWh
E169: =E167*1000 -> 0.000439353776 | F169: lb/GWh
D171: 3 x RDL = | E171: 0.003 | F171: lb/GWh
D173: Revised Floor after Reconsideration = | E173: =E171 -> 0.003 | F173: lb/GWh

Sheet Hg_QA_Calcs
I1: Anthracite | K1: Anthracite | N1: fPM | O1: 30B | Q1: μg/dscm | R1: No | U1: =1/453592370 -> 2.204622622e-09 | V1: lbs/μg | W1: 0.02831684659 | AA1: cm/cf | AF1: lb/hr | AI1: lb/MMBtu | AP1: Round to | AT1: From | AV1: original database export===>
I2: Bituminous | K2: Bituminous | N2: Se | O2: M5 | R2: Yes | U2: =U1/1000 -> 2.204622622e-12 | V2: lb/mg | AP2: Same | AT2: Min | AV2: original database export===>
I3: Lignite | K3: Lignite | N3: Pb | O3: M5B | AP3: Sig Figs | AT3: Test | AV3: original database export===>
I4: Oil | K4: Oil | N4: Hg | O4: M29 | AP4: as Submitted | AT4: Sheet | AV4: original database export===>
I5: Pet Coke | K5: Pet Coke | N5: HCl | O5: OTM27 | AP5: prior to | AV5: original database export===>
I6: Subbituminous | K6: Sub Bituminous | N6: SO2 | AP6: Calc % Diff. | AV6: original database export===>
AV7: original database export===>
A8: Part II Data | B8: Part II Data | C8: Part II Data | D8: Part II Data | E8: Part II Data | F8: Part II Data | G8: Part II Data | H8: Part II Data | I8: Part II Data | J8: Part II Data | K8: Part II Data | L8: Part II Data | M8: Part II Data | N8: Part II Data | O8: Part II Data | P8: Part II Data | Q8: Part II Data | R8: Part II Data | S8: Part II Data | T8: Part II Data | U8: Part II Data | V8: Part II Data | W8: Part II Data | X8: Part II Data | Y8: Part II Data | Z8: Part II Data | AA8: Part II Data | AB8: Part II Data | AC8: Part II Data | AD8: Part II Data | AE8: Part II Data | AF8: Part II Data | AG8: Part II Data | AH8: Part II Data | AI8: Part II Data | AJ8: Part II Data | AK8: Part II Data | AL8: Part II Data | AM8: Part II Data | AN8: Part II Data | AO8: Part II Data | AP8: Part II Data | AQ8: Part II Data | AR8: Part II Data | AS8: Part II Data | AT8: Part II Data | AU8: Part II Data | AV8: original database export===> | AW8: Part II Data | AX8: Part II Data | AY8: Part II Data | AZ8: Part II Data | BA8: Part II Data | BB8: Part II Data | BC8: Part II Data | BD8: Part II Data | BE8: Part II Data | BF8: Part II Data | BG8: Part II Data | BH8: Part II Data | BI8: Part II Data | BJ8: Part II Data | BK8: Part II Data | BL8: Part II Data | BM8: Part II Data | BN8: Part II Data | BO8: Part II Data | BP8: Part II Data | BQ8: Part II Data | BR8: Part II Data | BS8: Part II Data | BT8: Part II Data | BU8: Part II Data | BV8: Part II Data | BW8: Part II Data | BX8: Part II Data | BY8: Part II Data | BZ8: Part II Data | CA8: Part II Data | CB8: Part II Data | CC8: Part II Data | CD8: Part II Data | CE8: Part II Data | CF8: Part II Data | CG8: Part II Data
A9: RTI | G9: As Submitted | U9: RTI-QA | AB9: As Submitted | AK9: RTI-QA | AS9: Final for UPL | AU9: Final for UPL | AV9: original database export===>
A10: Comments | B10: Original Data | C10: Use Run in UPL Calc? | D10: Grade | E10: Key | F10: Facility_Name | G10: Facility_ID | H10: Boiler_ID | I10: Fuel1 Used | J10: Fuel1 Fraction | K10: Fuel2 Used | L10: Fuel2 Fraction | M10: "Fuel Used/Fraction" Data Source | N10: Pollutant | O10: Reference Method | P10: Concentration | Q10: Concentration UOM | R10: Non-Detect? | S10: MDL | T10: MDL UOM | U10: HAP Conversion Value to lbs | V10: HAP Conversion UOM | W10: Volume Conversion Value to cubic feet | X10: Reserve | Y10: Reserve | Z10: Reserve | AA10: Volume Conversion UOM | AB10: Bws (percent) | AC10: %O2d | AD10: %CO2d | AE10: Emission Rate Value | AF10: Emission Rate UOM | AG10: Emission Rate MDL | AH10: Emission Factor Value | AI10: Emission Factor UOM | AJ10: Emission Factor MDL | AK10: Fd | AL10: Fw | AM10: Fc | AN10: Calculated conc lb/dscf | AO10: 19-1 lb/MMBtu | AP10: %diff 19-1 | AQ10: 19-6 lb/MMBtu | AR10: %diff 19-6 | AS10: lb/MMBtu Value Used for UPL Calcs | AT10: Unit Heat Rate (MMBtu/MWh) | AU10: lb/MWh Value Used in UPL Calcs | AV10: original database export===> | AW10: facility_id | AX10: report_id | AY10: sampling_port_id | AZ10: pollutant_id | BA10: pollutant_name | BB10: run_id | BC10: start_datetime | BD10: end_datetime | BE10: unit_load | BF10: fuel_flow_rate | BG10: fuel_heating_value | BH10: fg_moisture_content | BI10: fg_oxygen_content | BJ10: fg_CO2_content | BK10: fg_temperature | BL10: test_method | BM10: conc | BN10: conc_units | BO10: conc_ND | BP10: conc_MDL | BQ10: conc2 | BR10: conc2_units | BS10: emission_rate | BT10: emission_rate_units | BU10: emission_rate_ND | BV10: emission_rate_MDL | BW10: emission_factor | BX10: emission_factor_units | BY10: emission_factor_ND | BZ10: emission_factor_MDL | CA10: run_pollutant_comment | CB10: Fuel1 | CC10: Fuel1%Btu | CD10: Fuel2 | CE10: Fuel2%Btu | CF10: QA Comment | CG10: Questions for EPA
